Workbook

Sheet Introduction
C4: Joint Monitoring Programme for Water Supply, Sanitation and Hygiene
C6: Estimates on household water, sanitation and hygiene by wealth quintile and sub-national region in
C7: =+Water!B5 -> Cambodia
C9: Updated May 2021
C11: Follow the links below to find the following information:
C13: JMP Estimates
C14: WASH status and trends by wealth quintile (customized quintiles made without water and sanitation assets)
C15: Water
C16: Sanitation
C17: Hygiene
C19: Data inputs
C20: customized wealth quintiles and subnational data:
C21: =IF(INDIRECT(CONCATENATE("Water","!B105"))=0,"",INDIRECT(CONCATENATE("Water","!B105"))) -> DHS05
C22: =IF(INDIRECT(CONCATENATE("Water","!B106"))=0,"",INDIRECT(CONCATENATE("Water","!B106"))) -> DHS10
C23: =IF(INDIRECT(CONCATENATE("Water","!B107"))=0,"",INDIRECT(CONCATENATE("Water","!B107"))) -> DHS14
C24: =IF(INDIRECT(CONCATENATE("Water","!B108"))=0,"",INDIRECT(CONCATENATE("Water","!B108"))) -> 
C25: =IF(INDIRECT(CONCATENATE("Water","!B109"))=0,"",INDIRECT(CONCATENATE("Water","!B109"))) -> 
C26: =IF(INDIRECT(CONCATENATE("Water","!B110"))=0,"",INDIRECT(CONCATENATE("Water","!B110"))) -> 
C27: =IF(INDIRECT(CONCATENATE("Water","!B111"))=0,"",INDIRECT(CONCATENATE("Water","!B111"))) -> 
C28: =IF(INDIRECT(CONCATENATE("Water","!B112"))=0,"",INDIRECT(CONCATENATE("Water","!B112"))) -> 
C29: =IF(INDIRECT(CONCATENATE("Water","!B113"))=0,"",INDIRECT(CONCATENATE("Water","!B113"))) -> 
C30: =IF(INDIRECT(CONCATENATE("Water","!B114"))=0,"",INDIRECT(CONCATENATE("Water","!B114"))) -> 
C31: =IF(INDIRECT(CONCATENATE("Water","!B115"))=0,"",INDIRECT(CONCATENATE("Water","!B115"))) -> 
C32: =IF(INDIRECT(CONCATENATE("Water","!B116"))=0,"",INDIRECT(CONCATENATE("Water","!B116"))) -> 
L55: =+IF(ISNUMBER(M48), "", "Insufficient data to estimate safely managed sanitation services at national level") -> Insufficient data to estimate safely managed sanitation services at national level

Sheet Water
A1: BGD
B4: Summary of trends in use of drinking water by wealth quintile (%)
B5: =IF(ISERROR(INDIRECT(CONCATENATE($B105,"!A2"))),"",INDIRECT(CONCATENATE($B105,"!A2"))) -> Cambodia
B7: =B118 -> National use of drinking water sources, 2000–2020 | J7: =B218 -> Urban use of drinking water sources, 2000–2020 | R7: =B318 -> Rural use of drinking water sources, 2000–2020
B31: =IF(ISERROR(INDIRECT(CONCATENATE($B105,"!A2"))),"",INDIRECT(CONCATENATE($B105,"!A2"))) -> Cambodia | F31: Poorest | J31: Poor | N31: Middle | R31: Rich | V31: Richest
F32: Basic | G32: Limited | H32: Unimproved | I32: Surface water | J32: Basic | K32: Limited | L32: Unimproved | M32: Surface water | N32: Basic | O32: Limited | P32: Unimproved | Q32: Surface water | R32: Basic | S32: Limited | T32: Unimproved | U32: Surface water | V32: Basic | W32: Limited | X32: Unimproved | Y32: Surface water
B33: NATIONAL | D33: Estimate | E33: =C99 -> 2000 | F33: =E99 -> 54.76043368 | G33: =F99 -> 0.5056798874 | H33: 25.22477657 | I33: 19.50910986 | J33: =J99 -> 60.43748128 | K33: =K99 -> 0.3334096702 | L33: 18.6012626 | M33: 20.62784645 | N33: =O99 -> 62.51058477 | O33: =P99 -> 0.3417369807 | P33: 17.2350188 | Q33: 19.91265944 | R33: =T99 -> 68.83717517 | S33: =U99 -> 0.4023281943 | T33: 10.48283203 | U33: 20.27766461 | V33: =Y99 -> 86.8347818 | W33: =Z99 -> 0.1551719075 | X33: 2.928569498 | Y33: 10.0814768
E34: =C100 -> 2020 | F34: =E100 -> 60.29845277 | G34: 0.5568201849 | H34: 17.9846119 | I34: 21.16011515 | J34: =J100 -> 67.77032981 | K34: 0.373862094 | L34: 15.04857996 | M34: 16.80722814 | N34: =O100 -> 75.80940352 | O34: 0.4144398387 | P34: 11.31809588 | Q34: 12.45806076 | R34: =T100 -> 83.07913485 | S34: 0.4855672568 | T34: 9.33134686 | U34: 7.103951037 | V34: =Y100 -> 96.38168884 | W34: 0.1722320272 | X34: 3.036084044 | Y34: 0.4099950921
B36: URBAN | D36: Estimate | E36: =C199 -> 2000 | F36: =E199 -> 59.75635107 | G36: =F199 -> 0.2960262479 | H36: 17.90681597 | I36: 22.04080671 | J36: =J199 -> 75.30435628 | K36: =K199 -> 0.2556869386 | L36: 7.301921821 | M36: 17.13803496 | N36: =O199 -> 90.46291611 | O36: =P199 -> 0.137129206 | P36: 3.004495535 | Q36: 6.395459151 | R36: =T199 -> 95.49936387 | S36: =U199 -> 0.04651369279 | T36: 1.379164357 | U36: 3.07495808 | V36: =Y199 -> 99.20950031 | W36: =Z199 -> 0.04310981368 | X36: 0.7473898752 | Y36: 0
E37: =C200 -> 2020 | F37: =E200 -> 98.84933031 | G37: 0.489688474 | H37: 0.6609812116 | I37: 0 | J37: =J200 -> 99.66161092 | K37: 0.3383890847 | L37: 0 | M37: 0 | N37: =O200 -> 99.84864334 | O37: 0.1513566638 | P37: 0 | Q37: 0 | R37: =T200 -> 99.89196554 | S37: 0.0486531429 | T37: 0.05938132073 | U37: 0 | V37: =Y200 -> 98.8117918 | W37: 0.04293699616 | X37: 0.9730175608 | Y37: 0.1722536445
B39: RURAL | D39: Estimate | E39: =C299 -> 2000 | F39: =E299 -> 53.92636829 | G39: =F299 -> 0.5217468338 | H39: 26.2608748 | I39: 19.29101007 | J39: =J299 -> 59.61422717 | K39: =K299 -> 0.3290400345 | L39: 18.38263257 | M39: 21.67410023 | N39: =O299 -> 60.73354822 | O39: =P299 -> 0.4020626576 | P39: 19.64091367 | Q39: 19.22347545 | R39: =T299 -> 66.14361756 | S39: =U299 -> 0.4116923172 | T39: 12.33252504 | U39: 21.11216508 | V39: =Y299 -> 76.33772903 | W39: =Z299 -> 0.2640574705 | X39: 6.380950139 | Y39: 17.01726336
E40: =C300 -> 2020 | F40: =E300 -> 59.03567461 | G40: 0.5711802461 | H40: 18.84045815 | I40: 21.55268699 | J40: =J300 -> 66.39055795 | K40: 0.3664419135 | L40: 16.13254127 | M40: 17.11045887 | N40: =O300 -> 71.40075187 | O40: 0.4726806994 | P40: 12.59651562 | Q40: 15.53005181 | R40: =T300 -> 76.89356687 | S40: 0.4786023488 | T40: 12.05943316 | U40: 10.56839762 | V40: =Y300 -> 86.20413172 | W40: 0.298186038 | X40: 7.223804751 | Y40: 6.273877493
A97: NATIONAL | D97: Poorest | I97: Poor | N97: Middle | S97: Rich | X97: Richest
D98: Improved | E98: Basic | F98: Limited | G98: Unimproved | H98: Surface water | I98: Improved | J98: Basic | K98: Limited | L98: Unimproved | M98: Surface water | N98: Improved | O98: Basic | P98: Limited | Q98: Unimproved | R98: Surface water | S98: Improved | T98: Basic | U98: Limited | V98: Unimproved | W98: Surface water | X98: Improved | Y98: Basic | Z98: Limited | AA98: Unimproved | AB98: Surface water
A99: Forecast period: | C99: 2000 | D99: =IF((D101+H101)>100,D101*100/(D101+H101),D101) -> 55.26611356 | E99: =D99*AVERAGEIF(E105:E116,">0")/100 -> 54.76043368 | F99: =D99*(100-AVERAGEIF(E105:E116,">0"))/100 -> 0.5056798874 | G99: =100-(E99+F99+H99) -> 25.22477657 | H99: =IF((D101+H101)>100,H101*100/(D101+H101),H101) -> 19.50910986 | I99: =IF((I101+M101)>100,I101*100/(I101+M101),I101) -> 60.77089095 | J99: =I99*AVERAGEIF(J105:J116,">0")/100 -> 60.43748128 | K99: =I99*(100-AVERAGEIF(J105:J116,">0"))/100 -> 0.3334096702 | L99: =100-(J99+K99+M99) -> 18.6012626 | M99: =IF((I101+M101)>100,M101*100/(I101+M101),M101) -> 20.62784645 | N99: =IF((N101+R101)>100,N101*100/(N101+R101),N101) -> 62.85232176 | O99: =N99*AVERAGEIF(O105:O116,">0")/100 -> 62.51058477 | P99: =N99*(100-AVERAGEIF(O105:O116,">0"))/100 -> 0.3417369807 | Q99: =100-(O99+P99+R99) -> 17.2350188 | R99: =IF((N101+R101)>100,R101*100/(N101+R101),R101) -> 19.91265944 | S99: =IF((S101+W101)>100,S101*100/(S101+W101),S101) -> 69.23950336 | T99: =S99*AVERAGEIF(T105:T116,">0")/100 -> 68.83717517 | U99: =S99*(100-AVERAGEIF(T105:T116,">0"))/100 -> 0.4023281943 | V99: =100-(T99+U99+W99) -> 10.48283203 | W99: =IF((S101+W101)>100,W101*100/(S101+W101),W101) -> 20.27766461 | X99: =IF((X101+AB101)>100,X101*100/(X101+AB101),X101) -> 86.9899537 | Y99: =X99*AVERAGEIF(Y105:Y116,">0")/100 -> 86.8347818 | Z99: =X99*(100-AVERAGEIF(Y105:Y116,">0"))/100 -> 0.1551719075 | AA99: =100-(Y99+Z99+AB99) -> 2.928569498 | AB99: =IF((X101+AB101)>100,AB101*100/(X101+AB101),AB101) -> 10.0814768
C100: 2020 | D100: =IF((D102+H102)>100,D102*100/(D102+H102),D102) -> 60.85527295 | E100: =D100*AVERAGEIF(E105:E116,">0")/100 -> 60.29845277 | F100: =D100*(100-AVERAGEIF(E105:E116,">0"))/100 -> 0.5568201849 | G100: =100-(E100+F100+H100) -> 17.9846119 | H100: =IF((D102+H102)>100,H102*100/(D102+H102),H102) -> 21.16011515 | I100: =IF((I102+M102)>100,I102*100/(I102+M102),I102) -> 68.1441919 | J100: =I100*AVERAGEIF(J105:J116,">0")/100 -> 67.77032981 | K100: =I100*(100-AVERAGEIF(J105:J116,">0"))/100 -> 0.373862094 | L100: =100-(J100+K100+M100) -> 15.04857996 | M100: =IF((I102+M102)>100,M102*100/(I102+M102),M102) -> 16.80722814 | N100: =IF((N102+R102)>100,N102*100/(N102+R102),N102) -> 76.22384336 | O100: =N100*AVERAGEIF(O105:O116,">0")/100 -> 75.80940352 | P100: =N100*(100-AVERAGEIF(O105:O116,">0"))/100 -> 0.4144398387 | Q100: =100-(O100+P100+R100) -> 11.31809588 | R100: =IF((N102+R102)>100,R102*100/(N102+R102),R102) -> 12.45806076 | S100: =IF((S102+W102)>100,S102*100/(S102+W102),S102) -> 83.5647021 | T100: =S100*AVERAGEIF(T105:T116,">0")/100 -> 83.07913485 | U100: =S100*(100-AVERAGEIF(T105:T116,">0"))/100 -> 0.4855672568 | V100: =100-(T100+U100+W100) -> 9.33134686 | W100: =IF((S102+W102)>100,W102*100/(S102+W102),W102) -> 7.103951037 | X100: =IF((X102+AB102)>100,X102*100/(X102+AB102),X102) -> 96.55392086 | Y100: =X100*AVERAGEIF(Y105:Y116,">0")/100 -> 96.38168884 | Z100: =X100*(100-AVERAGEIF(Y105:Y116,">0"))/100 -> 0.1722320272 | AA100: =100-(Y100+Z100+AB100) -> 3.036084044 | AB100: =IF((X102+AB102)>100,AB102*100/(X102+AB102),AB102) -> 0.4099950921
A101: Regression period: | C101: =MinRegYear(C99,C105:C116) -> 2003 | D101: =IF(MAX(C105:C116)-MIN(C105:C116)<5,AVERAGEIF(C105:C116,">0",D105:D116), IF(FORECAST($C101,D$105:D$116,$C$105:$C$116)<0,0, IF(FORECAST($C101,D$105:D$116,$C$105:$C$116)>100,100, FORECAST($C101,D$105:D$116,$C$105:$C$116)))) -> 55.26611356 | H101: =IF(MAX(C105:C116)-MIN(C105:C116)<5,AVERAGEIF(C105:C116,">0",H105:H116), IF(FORECAST($C101,H$105:H$116,$C$105:$C$116)<0,0, IF(FORECAST($C101,H$105:H$116,$C$105:$C$116)>100,100, FORECAST($C101,H$105:H$116,$C$105:$C$116)))) -> 19.50910986 | I101: =IF(MAX(C105:C116)-MIN(C105:C116)<5,AVERAGEIF(C105:C116,">0",I105:I116), IF(FORECAST($C101,I$105:I$116,$C$105:$C$116)<0,0, IF(FORECAST($C101,I$105:I$116,$C$105:$C$116)>100,100, FORECAST($C101,I$105:I$116,$C$105:$C$116)))) -> 60.77089095 | M101: =IF(MAX(C105:C116)-MIN(C105:C116)<5,AVERAGEIF(C105:C116,">0",M105:M116), IF(FORECAST($C101,M$105:M$116,$C$105:$C$116)<0,0, IF(FORECAST($C101,M$105:M$116,$C$105:$C$116)>100,100, FORECAST($C101,M$105:M$116,$C$105:$C$116)))) -> 20.62784645 | N101: =IF(MAX(C105:C116)-MIN(C105:C116)<5,AVERAGEIF(C105:C116,">0",N105:N116), IF(FORECAST($C101,N$105:N$116,$C$105:$C$116)<0,0, IF(FORECAST($C101,N$105:N$116,$C$105:$C$116)>100,100, FORECAST($C101,N$105:N$116,$C$105:$C$116)))) -> 62.85232176 | R101: =IF(MAX(C105:C116)-MIN(C105:C116)<5,AVERAGEIF(C105:C116,">0",R105:R116), IF(FORECAST($C101,R$105:R$116,$C$105:$C$116)<0,0, IF(FORECAST($C101,R$105:R$116,$C$105:$C$116)>100,100, FORECAST($C101,R$105:R$116,$C$105:$C$116)))) -> 19.91265944 | S101: =IF(MAX(C105:C116)-MIN(C105:C116)<5,AVERAGEIF(C105:C116,">0",S105:S116), IF(FORECAST($C101,S$105:S$116,$C$105:$C$116)<0,0, IF(FORECAST($C101,S$105:S$116,$C$105:$C$116)>100,100, FORECAST($C101,S$105:S$116,$C$105:$C$116)))) -> 69.23950336 | W101: =IF(MAX(C105:C116)-MIN(C105:C116)<5,AVERAGEIF(C105:C116,">0",W105:W116), IF(FORECAST($C101,W$105:W$116,$C$105:$C$116)<0,0, IF(FORECAST($C101,W$105:W$116,$C$105:$C$116)>100,100, FORECAST($C101,W$105:W$116,$C$105:$C$116)))) -> 20.27766461 | X101: =IF(MAX(C105:C116)-MIN(C105:C116)<5,AVERAGEIF(C105:C116,">0",X105:X116), IF(FORECAST($C101,X$105:X$116,$C$105:$C$116)<0,0, IF(FORECAST($C101,X$105:X$116,$C$105:$C$116)>100,100, FORECAST($C101,X$105:X$116,$C$105:$C$116)))) -> 86.9899537 | AB101: =IF(MAX(C105:C116)-MIN(C105:C116)<5,AVERAGEIF(C105:C116,">0",AB105:AB116), IF(FORECAST($C101,AB$105:AB$116,$C$105:$C$116)<0,0, IF(FORECAST($C101,AB$105:AB$116,$C$105:$C$116)>100,100, FORECAST($C101,AB$105:AB$116,$C$105:$C$116)))) -> 10.0814768
C102: =MaxRegYear(C100,C105:C116) -> 2016 | D102: =IF(MAX(C105:C116)-MIN(C105:C116)<5,AVERAGEIF(C105:C116,">0",D105:D116), IF(FORECAST($C102,D$105:D$116,$C$105:$C$116)<0,0, IF(FORECAST($C102,D$105:D$116,$C$105:$C$116)>100,100, FORECAST($C102,D$105:D$116,$C$105:$C$116)))) -> 60.85527295 | H102: =IF(MAX(C105:C116)-MIN(C105:C116)<5,AVERAGEIF(C105:C116,">0",H105:H116), IF(FORECAST($C102,H$105:H$116,$C$105:$C$116)<0,0, IF(FORECAST($C102,H$105:H$116,$C$105:$C$116)>100,100, FORECAST($C102,H$105:H$116,$C$105:$C$116)))) -> 21.16011515 | I102: =IF(MAX(C105:C116)-MIN(C105:C116)<5,AVERAGEIF(C105:C116,">0",I105:I116), IF(FORECAST($C102,I$105:I$116,$C$105:$C$116)<0,0, IF(FORECAST($C102,I$105:I$116,$C$105:$C$116)>100,100, FORECAST($C102,I$105:I$116,$C$105:$C$116)))) -> 68.1441919 | M102: =IF(MAX(C105:C116)-MIN(C105:C116)<5,AVERAGEIF(C105:C116,">0",M105:M116), IF(FORECAST($C102,M$105:M$116,$C$105:$C$116)<0,0, IF(FORECAST($C102,M$105:M$116,$C$105:$C$116)>100,100, FORECAST($C102,M$105:M$116,$C$105:$C$116)))) -> 16.80722814 | N102: =IF(MAX(C105:C116)-MIN(C105:C116)<5,AVERAGEIF(C105:C116,">0",N105:N116), IF(FORECAST($C102,N$105:N$116,$C$105:$C$116)<0,0, IF(FORECAST($C102,N$105:N$116,$C$105:$C$116)>100,100, FORECAST($C102,N$105:N$116,$C$105:$C$116)))) -> 76.22384336 | R102: =IF(MAX(C105:C116)-MIN(C105:C116)<5,AVERAGEIF(C105:C116,">0",R105:R116), IF(FORECAST($C102,R$105:R$116,$C$105:$C$116)<0,0, IF(FORECAST($C102,R$105:R$116,$C$105:$C$116)>100,100, FORECAST($C102,R$105:R$116,$C$105:$C$116)))) -> 12.45806076 | S102: =IF(MAX(C105:C116)-MIN(C105:C116)<5,AVERAGEIF(C105:C116,">0",S105:S116), IF(FORECAST($C102,S$105:S$116,$C$105:$C$116)<0,0, IF(FORECAST($C102,S$105:S$116,$C$105:$C$116)>100,100, FORECAST($C102,S$105:S$116,$C$105:$C$116)))) -> 83.5647021 | W102: =IF(MAX(C105:C116)-MIN(C105:C116)<5,AVERAGEIF(C105:C116,">0",W105:W116), IF(FORECAST($C102,W$105:W$116,$C$105:$C$116)<0,0, IF(FORECAST($C102,W$105:W$116,$C$105:$C$116)>100,100, FORECAST($C102,W$105:W$116,$C$105:$C$116)))) -> 7.103951037 | X102: =IF(MAX(C105:C116)-MIN(C105:C116)<5,AVERAGEIF(C105:C116,">0",X105:X116), IF(FORECAST($C102,X$105:X$116,$C$105:$C$116)<0,0, IF(FORECAST($C102,X$105:X$116,$C$105:$C$116)>100,100, FORECAST($C102,X$105:X$116,$C$105:$C$116)))) -> 96.55392086 | AB102: =IF(MAX(C105:C116)-MIN(C105:C116)<5,AVERAGEIF(C105:C116,">0",AB105:AB116), IF(FORECAST($C102,AB$105:AB$116,$C$105:$C$116)<0,0, IF(FORECAST($C102,AB$105:AB$116,$C$105:$C$116)>100,100, FORECAST($C102,AB$105:AB$116,$C$105:$C$116)))) -> 0.4099950921
B104: Survey | C104: Year | D104: Improved | E104: % Improved < = 30min | H104: Surface water | I104: Improved | J104: % Improved < = 30min | M104: Surface water | N104: Improved | O104: % Improved < = 30min | R104: Surface water | S104: Improved | T104: % Improved < = 30min | W104: Surface water | X104: Improved | Y104: % Improved < = 30min | AB104: Surface water
B105: DHS05 | C105: 2005 | D105: =IF(ISERROR(INDIRECT(CONCATENATE($B105,"!C16"))),"",INDIRECT(CONCATENATE($B105,"!C16"))) -> 57.35864753 | E105: =IF(ISERROR(INDIRECT(CONCATENATE($B105,"!C23"))),"",INDIRECT(CONCATENATE($B105,"!C23"))) -> 98.44421346 | H105: =IF(ISERROR(INDIRECT(CONCATENATE($B105,"!C21"))),"",INDIRECT(CONCATENATE($B105,"!C21"))) -> 19.85910287 | I105: =IF(ISERROR(INDIRECT(CONCATENATE($B105,"!D16"))),"",INDIRECT(CONCATENATE($B105,"!D16"))) -> 62.60911164 | J105: =IF(ISERROR(INDIRECT(CONCATENATE($B105,"!D23"))),"",INDIRECT(CONCATENATE($B105,"!D23"))) -> 99.4432052 | M105: =IF(ISERROR(INDIRECT(CONCATENATE($B105,"!D21"))),"",INDIRECT(CONCATENATE($B105,"!D21"))) -> 20.00569401 | N105: =IF(ISERROR(INDIRECT(CONCATENATE($B105,"!E16"))),"",INDIRECT(CONCATENATE($B105,"!E16"))) -> 65.39839662 | O105: =IF(ISERROR(INDIRECT(CONCATENATE($B105,"!E23"))),"",INDIRECT(CONCATENATE($B105,"!E23"))) -> 99.45867687 | R105: =IF(ISERROR(INDIRECT(CONCATENATE($B105,"!E21"))),"",INDIRECT(CONCATENATE($B105,"!E21"))) -> 19.21972769 | S105: =IF(ISERROR(INDIRECT(CONCATENATE($B105,"!F16"))),"",INDIRECT(CONCATENATE($B105,"!F16"))) -> 71.4728126 | T105: =IF(ISERROR(INDIRECT(CONCATENATE($B105,"!F23"))),"",INDIRECT(CONCATENATE($B105,"!F23"))) -> 99.39640859 | W105: =IF(ISERROR(INDIRECT(CONCATENATE($B105,"!F21"))),"",INDIRECT(CONCATENATE($B105,"!F21"))) -> 18.82223956 | X105: =IF(ISERROR(INDIRECT(CONCATENATE($B105,"!G16"))),"",INDIRECT(CONCATENATE($B105,"!G16"))) -> 88.52330338 | Y105: =IF(ISERROR(INDIRECT(CONCATENATE($B105,"!G23"))),"",INDIRECT(CONCATENATE($B105,"!G23"))) -> 99.84956832 | AB105: =IF(ISERROR(INDIRECT(CONCATENATE($B105,"!G221"))),"",INDIRECT(CONCATENATE($B105,"!G21"))) -> 9.329191828
B106: DHS10 | C106: 2010 | D106: 55.50216851 | E106: 99.36126515 | H106: 20.18213026 | I106: 63.15742986 | J106: 99.32499843 | M106: 18.64791169 | N106: 68.95230704 | O106: 99.59730141 | R106: 14.87730321 | S106: 76.88684877 | T106: 99.56377002 | W106: 11.89870129 | X106: 92.00034942 | Y106: 99.84000597 | AB106: 3.218576469
B107: DHS14 | C107: 2014 | D107: 61.5362314 | E107: 99.44954881 | H107: 21.02610458 | I107: 67.88967128 | J107: 99.58589487 | M107: 17.35205931 | N107: 74.77783331 | O107: 99.31287921 | R107: 14.17233407 | S107: 81.39761601 | T107: 99.29661913 | W107: 9.84480134 | X107: 95.16000394 | Y107: 99.77528838 | AB107: 2.817459471
D111: =IF(ISERROR(INDIRECT(CONCATENATE($B111,"!C16"))),"",INDIRECT(CONCATENATE($B111,"!C16"))) ->  | E111: =IF(ISERROR(INDIRECT(CONCATENATE($B111,"!C23"))),"",INDIRECT(CONCATENATE($B111,"!C23"))) ->  | H111: =IF(ISERROR(INDIRECT(CONCATENATE($B111,"!C21"))),"",INDIRECT(CONCATENATE($B111,"!C21"))) ->  | I111: =IF(ISERROR(INDIRECT(CONCATENATE($B111,"!D16"))),"",INDIRECT(CONCATENATE($B111,"!D16"))) ->  | J111: =IF(ISERROR(INDIRECT(CONCATENATE($B111,"!D23"))),"",INDIRECT(CONCATENATE($B111,"!D23"))) ->  | M111: =IF(ISERROR(INDIRECT(CONCATENATE($B111,"!D21"))),"",INDIRECT(CONCATENATE($B111,"!D21"))) ->  | N111: =IF(ISERROR(INDIRECT(CONCATENATE($B111,"!E16"))),"",INDIRECT(CONCATENATE($B111,"!E16"))) ->  | O111: =IF(ISERROR(INDIRECT(CONCATENATE($B111,"!E23"))),"",INDIRECT(CONCATENATE($B111,"!E23"))) ->  | R111: =IF(ISERROR(INDIRECT(CONCATENATE($B111,"!E21"))),"",INDIRECT(CONCATENATE($B111,"!E21"))) ->  | S111: =IF(ISERROR(INDIRECT(CONCATENATE($B111,"!F16"))),"",INDIRECT(CONCATENATE($B111,"!F16"))) ->  | T111: =IF(ISERROR(INDIRECT(CONCATENATE($B111,"!F23"))),"",INDIRECT(CONCATENATE($B111,"!F23"))) ->  | W111: =IF(ISERROR(INDIRECT(CONCATENATE($B111,"!F21"))),"",INDIRECT(CONCATENATE($B111,"!F21"))) ->  | X111: =IF(ISERROR(INDIRECT(CONCATENATE($B111,"!G16"))),"",INDIRECT(CONCATENATE($B111,"!G16"))) ->  | Y111: =IF(ISERROR(INDIRECT(CONCATENATE($B111,"!G23"))),"",INDIRECT(CONCATENATE($B111,"!G23"))) ->  | AB111: =IF(ISERROR(INDIRECT(CONCATENATE($B111,"!G221"))),"",INDIRECT(CONCATENATE($B111,"!G21"))) -> 
D112: =IF(ISERROR(INDIRECT(CONCATENATE($B112,"!C16"))),"",INDIRECT(CONCATENATE($B112,"!C16"))) ->  | E112: =IF(ISERROR(INDIRECT(CONCATENATE($B112,"!C23"))),"",INDIRECT(CONCATENATE($B112,"!C23"))) ->  | H112: =IF(ISERROR(INDIRECT(CONCATENATE($B112,"!C21"))),"",INDIRECT(CONCATENATE($B112,"!C21"))) ->  | I112: =IF(ISERROR(INDIRECT(CONCATENATE($B112,"!D16"))),"",INDIRECT(CONCATENATE($B112,"!D16"))) ->  | J112: =IF(ISERROR(INDIRECT(CONCATENATE($B112,"!D23"))),"",INDIRECT(CONCATENATE($B112,"!D23"))) ->  | M112: =IF(ISERROR(INDIRECT(CONCATENATE($B112,"!D21"))),"",INDIRECT(CONCATENATE($B112,"!D21"))) ->  | N112: =IF(ISERROR(INDIRECT(CONCATENATE($B112,"!E16"))),"",INDIRECT(CONCATENATE($B112,"!E16"))) ->  | O112: =IF(ISERROR(INDIRECT(CONCATENATE($B112,"!E23"))),"",INDIRECT(CONCATENATE($B112,"!E23"))) ->  | R112: =IF(ISERROR(INDIRECT(CONCATENATE($B112,"!E21"))),"",INDIRECT(CONCATENATE($B112,"!E21"))) ->  | S112: =IF(ISERROR(INDIRECT(CONCATENATE($B112,"!F16"))),"",INDIRECT(CONCATENATE($B112,"!F16"))) ->  | T112: =IF(ISERROR(INDIRECT(CONCATENATE($B112,"!F23"))),"",INDIRECT(CONCATENATE($B112,"!F23"))) ->  | W112: =IF(ISERROR(INDIRECT(CONCATENATE($B112,"!F21"))),"",INDIRECT(CONCATENATE($B112,"!F21"))) ->  | X112: =IF(ISERROR(INDIRECT(CONCATENATE($B112,"!G16"))),"",INDIRECT(CONCATENATE($B112,"!G16"))) ->  | Y112: =IF(ISERROR(INDIRECT(CONCATENATE($B112,"!G23"))),"",INDIRECT(CONCATENATE($B112,"!G23"))) ->  | AB112: =IF(ISERROR(INDIRECT(CONCATENATE($B112,"!G221"))),"",INDIRECT(CONCATENATE($B112,"!G21"))) -> 
B118: =CONCATENATE("National use of drinking water sources, ",C99,"–",C100) -> National use of drinking water sources, 2000–2020 | S118: Data points used for regression
E153: =IF(ISERROR(INDIRECT(CONCATENATE($B153,"!M18"))),"",INDIRECT(CONCATENATE($B153,"!M18"))) ->  | F153: =IF(ISERROR(INDIRECT(CONCATENATE($B153,"!M19"))),"",INDIRECT(CONCATENATE($B153,"!M19"))) ->  | G153: =IF(ISERROR(INDIRECT(CONCATENATE($B153,"!M20"))),"",INDIRECT(CONCATENATE($B153,"!M20"))) ->  | H153: =IF(ISERROR(INDIRECT(CONCATENATE($B153,"!M21"))),"",INDIRECT(CONCATENATE($B153,"!M21"))) ->  | J153: =IF(ISERROR(INDIRECT(CONCATENATE($B153,"!N18"))),"",INDIRECT(CONCATENATE($B153,"!N18"))) ->  | K153: =IF(ISERROR(INDIRECT(CONCATENATE($B153,"!N19"))),"",INDIRECT(CONCATENATE($B153,"!N19"))) ->  | L153: =IF(ISERROR(INDIRECT(CONCATENATE($B153,"!N20"))),"",INDIRECT(CONCATENATE($B153,"!N20"))) ->  | M153: =IF(ISERROR(INDIRECT(CONCATENATE($B153,"!N21"))),"",INDIRECT(CONCATENATE($B153,"!N21"))) ->  | O153: =IF(ISERROR(INDIRECT(CONCATENATE($B153,"!O18"))),"",INDIRECT(CONCATENATE($B153,"!O18"))) ->  | P153: =IF(ISERROR(INDIRECT(CONCATENATE($B153,"!O19"))),"",INDIRECT(CONCATENATE($B153,"!O19"))) ->  | Q153: =IF(ISERROR(INDIRECT(CONCATENATE($B153,"!O20"))),"",INDIRECT(CONCATENATE($B153,"!O20"))) ->  | R153: =IF(ISERROR(INDIRECT(CONCATENATE($B153,"!O21"))),"",INDIRECT(CONCATENATE($B153,"!O21"))) ->  | T153: =IF(ISERROR(INDIRECT(CONCATENATE($B153,"!P18"))),"",INDIRECT(CONCATENATE($B153,"!P18"))) ->  | U153: =IF(ISERROR(INDIRECT(CONCATENATE($B153,"!P19"))),"",INDIRECT(CONCATENATE($B153,"!P19"))) ->  | V153: =IF(ISERROR(INDIRECT(CONCATENATE($B153,"!P20"))),"",INDIRECT(CONCATENATE($B153,"!P20"))) ->  | W153: =IF(ISERROR(INDIRECT(CONCATENATE($B153,"!P21"))),"",INDIRECT(CONCATENATE($B153,"!P21"))) ->  | Y153: =IF(ISERROR(INDIRECT(CONCATENATE($B153,"!Q18"))),"",INDIRECT(CONCATENATE($B153,"!Q18"))) ->  | Z153: =IF(ISERROR(INDIRECT(CONCATENATE($B153,"!Q19"))),"",INDIRECT(CONCATENATE($B153,"!Q19"))) ->  | AA153: =IF(ISERROR(INDIRECT(CONCATENATE($B153,"!Q20"))),"",INDIRECT(CONCATENATE($B153,"!Q20"))) ->  | AB153: =IF(ISERROR(INDIRECT(CONCATENATE($B153,"!Q21"))),"",INDIRECT(CONCATENATE($B153,"!Q1"))) -> 
A197: URBAN | D197: Poorest | I197: Poor | N197: Middle | S197: Rich | X197: Richest
D198: Improved | E198: Basic | F198: Limited | G198: Unimproved | H198: Surface water | I198: Improved | J198: Basic | K198: Limited | L198: Unimproved | M198: Surface water | N198: Improved | O198: Basic | P198: Limited | Q198: Unimproved | R198: Surface water | S198: Improved | T198: Basic | U198: Limited | V198: Unimproved | W198: Surface water | X198: Improved | Y198: Basic | Z198: Limited | AA198: Unimproved | AB198: Surface water
A199: Forecast period: | C199: 2000 | D199: =IF((D201+H201)>100,D201*100/(D201+H201),D201) -> 60.05237732 | E199: =D199*AVERAGEIF(E205:E216,">0")/100 -> 59.75635107 | F199: =D199*(100-AVERAGEIF(E205:E216,">0"))/100 -> 0.2960262479 | G199: =100-(E199+F199+H199) -> 17.90681597 | H199: =IF((D201+H201)>100,H201*100/(D201+H201),H201) -> 22.04080671 | I199: =IF((I201+M201)>100,I201*100/(I201+M201),I201) -> 75.56004321 | J199: =I199*AVERAGEIF(J205:J216,">0")/100 -> 75.30435628 | K199: =I199*(100-AVERAGEIF(J205:J216,">0"))/100 -> 0.2556869386 | L199: =100-(J199+K199+M199) -> 7.301921821 | M199: =IF((I201+M201)>100,M201*100/(I201+M201),M201) -> 17.13803496 | N199: =IF((N201+R201)>100,N201*100/(N201+R201),N201) -> 90.60004531 | O199: =N199*AVERAGEIF(O205:O216,">0")/100 -> 90.46291611 | P199: =N199*(100-AVERAGEIF(O205:O216,">0"))/100 -> 0.137129206 | Q199: =100-(O199+P199+R199) -> 3.004495535 | R199: =IF((N201+R201)>100,R201*100/(N201+R201),R201) -> 6.395459151 | S199: =IF((S201+W201)>100,S201*100/(S201+W201),S201) -> 95.54587756 | T199: =S199*AVERAGEIF(T205:T216,">0")/100 -> 95.49936387 | U199: =S199*(100-AVERAGEIF(T205:T216,">0"))/100 -> 0.04651369279 | V199: =100-(T199+U199+W199) -> 1.379164357 | W199: =IF((S201+W201)>100,W201*100/(S201+W201),W201) -> 3.07495808 | X199: =IF((X201+AB201)>100,X201*100/(X201+AB201),X201) -> 99.25261012 | Y199: =X199*AVERAGEIF(Y205:Y216,">0")/100 -> 99.20950031 | Z199: =X199*(100-AVERAGEIF(Y205:Y216,">0"))/100 -> 0.04310981368 | AA199: =100-(Y199+Z199+AB199) -> 0.7473898752 | AB199: =IF((X201+AB201)>100,AB201*100/(X201+AB201),AB201) -> 0
C200: 2020 | D200: =IF((D202+H202)>100,D202*100/(D202+H202),D202) -> 99.33901879 | E200: =D200*AVERAGEIF(E205:E216,">0")/100 -> 98.84933031 | F200: =D200*(100-AVERAGEIF(E205:E216,">0"))/100 -> 0.489688474 | G200: =100-(E200+F200+H200) -> 0.6609812116 | H200: =IF((D202+H202)>100,H202*100/(D202+H202),H202) -> 0 | I200: =IF((I202+M202)>100,I202*100/(I202+M202),I202) -> 100 | J200: =I200*AVERAGEIF(J205:J216,">0")/100 -> 99.66161092 | K200: =I200*(100-AVERAGEIF(J205:J216,">0"))/100 -> 0.3383890847 | L200: =100-(J200+K200+M200) -> 0 | M200: =IF((I202+M202)>100,M202*100/(I202+M202),M202) -> 0 | N200: =IF((N202+R202)>100,N202*100/(N202+R202),N202) -> 100 | O200: =N200*AVERAGEIF(O205:O216,">0")/100 -> 99.84864334 | P200: =N200*(100-AVERAGEIF(O205:O216,">0"))/100 -> 0.1513566638 | Q200: =100-(O200+P200+R200) -> 0 | R200: =IF((N202+R202)>100,R202*100/(N202+R202),R202) -> 0 | S200: =IF((S202+W202)>100,S202*100/(S202+W202),S202) -> 99.94061868 | T200: =S200*AVERAGEIF(T205:T216,">0")/100 -> 99.89196554 | U200: =S200*(100-AVERAGEIF(T205:T216,">0"))/100 -> 0.0486531429 | V200: =100-(T200+U200+W200) -> 0.05938132073 | W200: =IF((S202+W202)>100,W202*100/(S202+W202),W202) -> 0 | X200: =IF((X202+AB202)>100,X202*100/(X202+AB202),X202) -> 98.85472879 | Y200: =X200*AVERAGEIF(Y205:Y216,">0")/100 -> 98.8117918 | Z200: =X200*(100-AVERAGEIF(Y205:Y216,">0"))/100 -> 0.04293699616 | AA200: =100-(Y200+Z200+AB200) -> 0.9730175608 | AB200: =IF((X202+AB202)>100,AB202*100/(X202+AB202),AB202) -> 0.1722536445
A201: Regression period: | C201: =MinRegYear(C199,C205:C216) -> 2003 | D201: =IF(MAX(C205:C216)-MIN(C205:C216)<5,AVERAGEIF(C205:C216,">0",D205:D216), IF(FORECAST($C201,D$205:D$216,$C$205:$C$216)<0,0, IF(FORECAST($C201,D$205:D$216,$C$205:$C$216)>100,100, FORECAST($C201,D$205:D$216,$C$205:$C$216)))) -> 60.05237732 | H201: =IF(MAX(C205:C216)-MIN(C205:C216)<5,AVERAGEIF(C205:C216,">0",H205:H216), IF(FORECAST($C201,H$205:H$216,$C$205:$C$216)<0,0, IF(FORECAST($C201,H$205:H$216,$C$205:$C$216)>100,100, FORECAST($C201,H$205:H$216,$C$205:$C$216)))) -> 22.04080671 | I201: =IF(MAX(C205:C216)-MIN(C205:C216)<5,AVERAGEIF(C205:C216,">0",I205:I216), IF(FORECAST($C201,I$205:I$216,$C$205:$C$216)<0,0, IF(FORECAST($C201,I$205:I$216,$C$205:$C$216)>100,100, FORECAST($C201,I$205:I$216,$C$205:$C$216)))) -> 75.56004321 | M201: =IF(MAX(C205:C216)-MIN(C205:C216)<5,AVERAGEIF(C205:C216,">0",M205:M216), IF(FORECAST($C201,M$205:M$216,$C$205:$C$216)<0,0, IF(FORECAST($C201,M$205:M$216,$C$205:$C$216)>100,100, FORECAST($C201,M$205:M$216,$C$205:$C$216)))) -> 17.13803496 | N201: =IF(MAX(C205:C216)-MIN(C205:C216)<5,AVERAGEIF(C205:C216,">0",N205:N216), IF(FORECAST($C201,N$205:N$216,$C$205:$C$216)<0,0, IF(FORECAST($C201,N$205:N$216,$C$205:$C$216)>100,100, FORECAST($C201,N$205:N$216,$C$205:$C$216)))) -> 90.60004531 | R201: =IF(MAX(C205:C216)-MIN(C205:C216)<5,AVERAGEIF(C205:C216,">0",R205:R216), IF(FORECAST($C201,R$205:R$216,$C$205:$C$216)<0,0, IF(FORECAST($C201,R$205:R$216,$C$205:$C$216)>100,100, FORECAST($C201,R$205:R$216,$C$205:$C$216)))) -> 6.395459151 | S201: =IF(MAX(C205:C216)-MIN(C205:C216)<5,AVERAGEIF(C205:C216,">0",S205:S216), IF(FORECAST($C201,S$205:S$216,$C$205:$C$216)<0,0, IF(FORECAST($C201,S$205:S$216,$C$205:$C$216)>100,100, FORECAST($C201,S$205:S$216,$C$205:$C$216)))) -> 95.54587756 | W201: =IF(MAX(C205:C216)-MIN(C205:C216)<5,AVERAGEIF(C205:C216,">0",W205:W216), IF(FORECAST($C201,W$205:W$216,$C$205:$C$216)<0,0, IF(FORECAST($C201,W$205:W$216,$C$205:$C$216)>100,100, FORECAST($C201,W$205:W$216,$C$205:$C$216)))) -> 3.07495808 | X201: =IF(MAX(C205:C216)-MIN(C205:C216)<5,AVERAGEIF(C205:C216,">0",X205:X216), IF(FORECAST($C201,X$205:X$216,$C$205:$C$216)<0,0, IF(FORECAST($C201,X$205:X$216,$C$205:$C$216)>100,100, FORECAST($C201,X$205:X$216,$C$205:$C$216)))) -> 99.25261012 | AB201: =IF(MAX(C205:C216)-MIN(C205:C216)<5,AVERAGEIF(C205:C216,">0",AB205:AB216), IF(FORECAST($C201,AB$205:AB$216,$C$205:$C$216)<0,0, IF(FORECAST($C201,AB$205:AB$216,$C$205:$C$216)>100,100, FORECAST($C201,AB$205:AB$216,$C$205:$C$216)))) -> 0
C202: =MaxRegYear(C200,C205:C216) -> 2016 | D202: =IF(MAX(C205:C216)-MIN(C205:C216)<5,AVERAGEIF(C205:C216,">0",D205:D216), IF(FORECAST($C202,D$205:D$216,$C$205:$C$216)<0,0, IF(FORECAST($C202,D$205:D$216,$C$205:$C$216)>100,100, FORECAST($C202,D$205:D$216,$C$205:$C$216)))) -> 99.33901879 | H202: =IF(MAX(C205:C216)-MIN(C205:C216)<5,AVERAGEIF(C205:C216,">0",H205:H216), IF(FORECAST($C202,H$205:H$216,$C$205:$C$216)<0,0, IF(FORECAST($C202,H$205:H$216,$C$205:$C$216)>100,100, FORECAST($C202,H$205:H$216,$C$205:$C$216)))) -> 0 | I202: =IF(MAX(C205:C216)-MIN(C205:C216)<5,AVERAGEIF(C205:C216,">0",I205:I216), IF(FORECAST($C202,I$205:I$216,$C$205:$C$216)<0,0, IF(FORECAST($C202,I$205:I$216,$C$205:$C$216)>100,100, FORECAST($C202,I$205:I$216,$C$205:$C$216)))) -> 100 | M202: =IF(MAX(C205:C216)-MIN(C205:C216)<5,AVERAGEIF(C205:C216,">0",M205:M216), IF(FORECAST($C202,M$205:M$216,$C$205:$C$216)<0,0, IF(FORECAST($C202,M$205:M$216,$C$205:$C$216)>100,100, FORECAST($C202,M$205:M$216,$C$205:$C$216)))) -> 0 | N202: =IF(MAX(C205:C216)-MIN(C205:C216)<5,AVERAGEIF(C205:C216,">0",N205:N216), IF(FORECAST($C202,N$205:N$216,$C$205:$C$216)<0,0, IF(FORECAST($C202,N$205:N$216,$C$205:$C$216)>100,100, FORECAST($C202,N$205:N$216,$C$205:$C$216)))) -> 100 | R202: =IF(MAX(C205:C216)-MIN(C205:C216)<5,AVERAGEIF(C205:C216,">0",R205:R216), IF(FORECAST($C202,R$205:R$216,$C$205:$C$216)<0,0, IF(FORECAST($C202,R$205:R$216,$C$205:$C$216)>100,100, FORECAST($C202,R$205:R$216,$C$205:$C$216)))) -> 0 | S202: =IF(MAX(C205:C216)-MIN(C205:C216)<5,AVERAGEIF(C205:C216,">0",S205:S216), IF(FORECAST($C202,S$205:S$216,$C$205:$C$216)<0,0, IF(FORECAST($C202,S$205:S$216,$C$205:$C$216)>100,100, FORECAST($C202,S$205:S$216,$C$205:$C$216)))) -> 99.94061868 | W202: =IF(MAX(C205:C216)-MIN(C205:C216)<5,AVERAGEIF(C205:C216,">0",W205:W216), IF(FORECAST($C202,W$205:W$216,$C$205:$C$216)<0,0, IF(FORECAST($C202,W$205:W$216,$C$205:$C$216)>100,100, FORECAST($C202,W$205:W$216,$C$205:$C$216)))) -> 0 | X202: =IF(MAX(C205:C216)-MIN(C205:C216)<5,AVERAGEIF(C205:C216,">0",X205:X216), IF(FORECAST($C202,X$205:X$216,$C$205:$C$216)<0,0, IF(FORECAST($C202,X$205:X$216,$C$205:$C$216)>100,100, FORECAST($C202,X$205:X$216,$C$205:$C$216)))) -> 98.85472879 | AB202: =IF(MAX(C205:C216)-MIN(C205:C216)<5,AVERAGEIF(C205:C216,">0",AB205:AB216), IF(FORECAST($C202,AB$205:AB$216,$C$205:$C$216)<0,0, IF(FORECAST($C202,AB$205:AB$216,$C$205:$C$216)>100,100, FORECAST($C202,AB$205:AB$216,$C$205:$C$216)))) -> 0.1722536445
B204: Survey | C204: Year | D204: Improved | E204: % Improved < = 30min | H204: Surface water | I204: Improved | J204: % Improved < = 30min | M204: Surface water | N204: Improved | O204: % Improved < = 30min | R204: Surface water | S204: Improved | T204: % Improved < = 30min | W204: Surface water | X204: Improved | Y204: % Improved < = 30min | AB204: Surface water
B205: DHS05 | C205: 2005 | D205: =IF(ISERROR(INDIRECT(CONCATENATE($B205,"!H16"))),"",INDIRECT(CONCATENATE($B205,"!H16"))) -> 65.07548387 | E205: =IF(ISERROR(INDIRECT(CONCATENATE($B205,"!H23"))),"",INDIRECT(CONCATENATE($B205,"!H23"))) -> 99.09312544 | H205: =IF(ISERROR(INDIRECT(CONCATENATE($B205,"!H21"))),"",INDIRECT(CONCATENATE($B205,"!H21"))) -> 19.55770374 | I205: =IF(ISERROR(INDIRECT(CONCATENATE($B205,"!I16"))),"",INDIRECT(CONCATENATE($B205,"!I16"))) -> 78.80101827 | J205: =IF(ISERROR(INDIRECT(CONCATENATE($B205,"!I23"))),"",INDIRECT(CONCATENATE($B205,"!I23"))) -> 100 | M205: =IF(ISERROR(INDIRECT(CONCATENATE($B205,"!I21"))),"",INDIRECT(CONCATENATE($B205,"!I21"))) -> 15.21916944 | N205: =IF(ISERROR(INDIRECT(CONCATENATE($B205,"!J16"))),"",INDIRECT(CONCATENATE($B205,"!J16"))) -> 92.02781296 | O205: =IF(ISERROR(INDIRECT(CONCATENATE($B205,"!J23"))),"",INDIRECT(CONCATENATE($B205,"!J23"))) -> 99.8644718 | R205: =IF(ISERROR(INDIRECT(CONCATENATE($B205,"!J21"))),"",INDIRECT(CONCATENATE($B205,"!J21"))) -> 5.678664551 | S205: =IF(ISERROR(INDIRECT(CONCATENATE($B205,"!K16"))),"",INDIRECT(CONCATENATE($B205,"!K16"))) -> 96.42241457 | T205: =IF(ISERROR(INDIRECT(CONCATENATE($B205,"!K23"))),"",INDIRECT(CONCATENATE($B205,"!K23"))) -> 100 | W205: =IF(ISERROR(INDIRECT(CONCATENATE($B205,"!K21"))),"",INDIRECT(CONCATENATE($B205,"!K21"))) -> 2.792735944 | X205: =IF(ISERROR(INDIRECT(CONCATENATE($B205,"!L16"))),"",INDIRECT(CONCATENATE($B205,"!L16"))) -> 99.69049774 | Y205: =IF(ISERROR(INDIRECT(CONCATENATE($B205,"!L23"))),"",INDIRECT(CONCATENATE($B205,"!L23"))) -> 100 | AB205: =IF(ISERROR(INDIRECT(CONCATENATE($B205,"!L221"))),"",INDIRECT(CONCATENATE($B205,"!L21"))) -> 0.04146520922
B206: DHS10 | C206: 2010 | D206: 83.50395503 | E206: 99.63479745 | H206: 7.417190525 | I206: 92.40294152 | J206: 99.93048636 | M206: 2.501472604 | N206: 96.13219137 | O206: 99.80284648 | R206: 0.6417208643 | S206: 97.46132489 | T206: 99.97961007 | W206: 0.1363194163 | X206: 97.91539105 | Y206: 100 | AB206: 0.04677185093
B207: DHS14 | C207: 2014 | D207: 92.01867993 | E207: 99.79323683 | H207: 3.998660002 | I207: 97.45024322 | J207: 99.05434638 | M207: 0.7299675512 | N207: 98.84817205 | O207: 99.87861174 | R207: 0.05464223587 | S207: 99.5150334 | T207: 99.87434378 | W207: 0.08079545388 | X207: 99.53981646 | Y207: 99.86969669 | AB207: 0.1691625828
B218: =CONCATENATE("Urban use of drinking water sources, ",C199,"–",C200) -> Urban use of drinking water sources, 2000–2020 | S218: Data points used for regression
E253: =IF(ISERROR(INDIRECT(CONCATENATE($B253,"!M18"))),"",INDIRECT(CONCATENATE($B253,"!M18"))) ->  | F253: =IF(ISERROR(INDIRECT(CONCATENATE($B253,"!M19"))),"",INDIRECT(CONCATENATE($B253,"!M19"))) ->  | G253: =IF(ISERROR(INDIRECT(CONCATENATE($B253,"!M20"))),"",INDIRECT(CONCATENATE($B253,"!M20"))) ->  | H253: =IF(ISERROR(INDIRECT(CONCATENATE($B253,"!M21"))),"",INDIRECT(CONCATENATE($B253,"!M21"))) ->  | J253: =IF(ISERROR(INDIRECT(CONCATENATE($B253,"!N18"))),"",INDIRECT(CONCATENATE($B253,"!N18"))) ->  | K253: =IF(ISERROR(INDIRECT(CONCATENATE($B253,"!N19"))),"",INDIRECT(CONCATENATE($B253,"!N19"))) ->  | L253: =IF(ISERROR(INDIRECT(CONCATENATE($B253,"!N20"))),"",INDIRECT(CONCATENATE($B253,"!N20"))) ->  | M253: =IF(ISERROR(INDIRECT(CONCATENATE($B253,"!N21"))),"",INDIRECT(CONCATENATE($B253,"!N21"))) ->  | O253: =IF(ISERROR(INDIRECT(CONCATENATE($B253,"!O18"))),"",INDIRECT(CONCATENATE($B253,"!O18"))) ->  | P253: =IF(ISERROR(INDIRECT(CONCATENATE($B253,"!O19"))),"",INDIRECT(CONCATENATE($B253,"!O19"))) ->  | Q253: =IF(ISERROR(INDIRECT(CONCATENATE($B253,"!O20"))),"",INDIRECT(CONCATENATE($B253,"!O20"))) ->  | R253: =IF(ISERROR(INDIRECT(CONCATENATE($B253,"!O21"))),"",INDIRECT(CONCATENATE($B253,"!O21"))) ->  | T253: =IF(ISERROR(INDIRECT(CONCATENATE($B253,"!P18"))),"",INDIRECT(CONCATENATE($B253,"!P18"))) ->  | U253: =IF(ISERROR(INDIRECT(CONCATENATE($B253,"!P19"))),"",INDIRECT(CONCATENATE($B253,"!P19"))) ->  | V253: =IF(ISERROR(INDIRECT(CONCATENATE($B253,"!P20"))),"",INDIRECT(CONCATENATE($B253,"!P20"))) ->  | W253: =IF(ISERROR(INDIRECT(CONCATENATE($B253,"!P21"))),"",INDIRECT(CONCATENATE($B253,"!P21"))) ->  | Y253: =IF(ISERROR(INDIRECT(CONCATENATE($B253,"!Q18"))),"",INDIRECT(CONCATENATE($B253,"!Q18"))) ->  | Z253: =IF(ISERROR(INDIRECT(CONCATENATE($B253,"!Q19"))),"",INDIRECT(CONCATENATE($B253,"!Q19"))) ->  | AA253: =IF(ISERROR(INDIRECT(CONCATENATE($B253,"!Q20"))),"",INDIRECT(CONCATENATE($B253,"!Q20"))) ->  | AB253: =IF(ISERROR(INDIRECT(CONCATENATE($B253,"!Q21"))),"",INDIRECT(CONCATENATE($B253,"!Q1"))) -> 
E254: =IF(ISERROR(INDIRECT(CONCATENATE($B254,"!M18"))),"",INDIRECT(CONCATENATE($B254,"!M18"))) ->  | F254: =IF(ISERROR(INDIRECT(CONCATENATE($B254,"!M19"))),"",INDIRECT(CONCATENATE($B254,"!M19"))) ->  | G254: =IF(ISERROR(INDIRECT(CONCATENATE($B254,"!M20"))),"",INDIRECT(CONCATENATE($B254,"!M20"))) ->  | H254: =IF(ISERROR(INDIRECT(CONCATENATE($B254,"!M21"))),"",INDIRECT(CONCATENATE($B254,"!M21"))) ->  | J254: =IF(ISERROR(INDIRECT(CONCATENATE($B254,"!N18"))),"",INDIRECT(CONCATENATE($B254,"!N18"))) ->  | K254: =IF(ISERROR(INDIRECT(CONCATENATE($B254,"!N19"))),"",INDIRECT(CONCATENATE($B254,"!N19"))) ->  | L254: =IF(ISERROR(INDIRECT(CONCATENATE($B254,"!N20"))),"",INDIRECT(CONCATENATE($B254,"!N20"))) ->  | M254: =IF(ISERROR(INDIRECT(CONCATENATE($B254,"!N21"))),"",INDIRECT(CONCATENATE($B254,"!N21"))) ->  | O254: =IF(ISERROR(INDIRECT(CONCATENATE($B254,"!O18"))),"",INDIRECT(CONCATENATE($B254,"!O18"))) ->  | P254: =IF(ISERROR(INDIRECT(CONCATENATE($B254,"!O19"))),"",INDIRECT(CONCATENATE($B254,"!O19"))) ->  | Q254: =IF(ISERROR(INDIRECT(CONCATENATE($B254,"!O20"))),"",INDIRECT(CONCATENATE($B254,"!O20"))) ->  | R254: =IF(ISERROR(INDIRECT(CONCATENATE($B254,"!O21"))),"",INDIRECT(CONCATENATE($B254,"!O21"))) ->  | T254: =IF(ISERROR(INDIRECT(CONCATENATE($B254,"!P18"))),"",INDIRECT(CONCATENATE($B254,"!P18"))) ->  | U254: =IF(ISERROR(INDIRECT(CONCATENATE($B254,"!P19"))),"",INDIRECT(CONCATENATE($B254,"!P19"))) ->  | V254: =IF(ISERROR(INDIRECT(CONCATENATE($B254,"!P20"))),"",INDIRECT(CONCATENATE($B254,"!P20"))) ->  | W254: =IF(ISERROR(INDIRECT(CONCATENATE($B254,"!P21"))),"",INDIRECT(CONCATENATE($B254,"!P21"))) ->  | Y254: =IF(ISERROR(INDIRECT(CONCATENATE($B254,"!Q18"))),"",INDIRECT(CONCATENATE($B254,"!Q18"))) ->  | Z254: =IF(ISERROR(INDIRECT(CONCATENATE($B254,"!Q19"))),"",INDIRECT(CONCATENATE($B254,"!Q19"))) ->  | AA254: =IF(ISERROR(INDIRECT(CONCATENATE($B254,"!Q20"))),"",INDIRECT(CONCATENATE($B254,"!Q20"))) ->  | AB254: =IF(ISERROR(INDIRECT(CONCATENATE($B254,"!Q21"))),"",INDIRECT(CONCATENATE($B254,"!Q1"))) -> 
E255: =IF(ISERROR(INDIRECT(CONCATENATE($B255,"!M18"))),"",INDIRECT(CONCATENATE($B255,"!M18"))) ->  | F255: =IF(ISERROR(INDIRECT(CONCATENATE($B255,"!M19"))),"",INDIRECT(CONCATENATE($B255,"!M19"))) ->  | G255: =IF(ISERROR(INDIRECT(CONCATENATE($B255,"!M20"))),"",INDIRECT(CONCATENATE($B255,"!M20"))) ->  | H255: =IF(ISERROR(INDIRECT(CONCATENATE($B255,"!M21"))),"",INDIRECT(CONCATENATE($B255,"!M21"))) ->  | J255: =IF(ISERROR(INDIRECT(CONCATENATE($B255,"!N18"))),"",INDIRECT(CONCATENATE($B255,"!N18"))) ->  | K255: =IF(ISERROR(INDIRECT(CONCATENATE($B255,"!N19"))),"",INDIRECT(CONCATENATE($B255,"!N19"))) ->  | L255: =IF(ISERROR(INDIRECT(CONCATENATE($B255,"!N20"))),"",INDIRECT(CONCATENATE($B255,"!N20"))) ->  | M255: =IF(ISERROR(INDIRECT(CONCATENATE($B255,"!N21"))),"",INDIRECT(CONCATENATE($B255,"!N21"))) ->  | O255: =IF(ISERROR(INDIRECT(CONCATENATE($B255,"!O18"))),"",INDIRECT(CONCATENATE($B255,"!O18"))) ->  | P255: =IF(ISERROR(INDIRECT(CONCATENATE($B255,"!O19"))),"",INDIRECT(CONCATENATE($B255,"!O19"))) ->  | Q255: =IF(ISERROR(INDIRECT(CONCATENATE($B255,"!O20"))),"",INDIRECT(CONCATENATE($B255,"!O20"))) ->  | R255: =IF(ISERROR(INDIRECT(CONCATENATE($B255,"!O21"))),"",INDIRECT(CONCATENATE($B255,"!O21"))) ->  | T255: =IF(ISERROR(INDIRECT(CONCATENATE($B255,"!P18"))),"",INDIRECT(CONCATENATE($B255,"!P18"))) ->  | U255: =IF(ISERROR(INDIRECT(CONCATENATE($B255,"!P19"))),"",INDIRECT(CONCATENATE($B255,"!P19"))) ->  | V255: =IF(ISERROR(INDIRECT(CONCATENATE($B255,"!P20"))),"",INDIRECT(CONCATENATE($B255,"!P20"))) ->  | W255: =IF(ISERROR(INDIRECT(CONCATENATE($B255,"!P21"))),"",INDIRECT(CONCATENATE($B255,"!P21"))) ->  | Y255: =IF(ISERROR(INDIRECT(CONCATENATE($B255,"!Q18"))),"",INDIRECT(CONCATENATE($B255,"!Q18"))) ->  | Z255: =IF(ISERROR(INDIRECT(CONCATENATE($B255,"!Q19"))),"",INDIRECT(CONCATENATE($B255,"!Q19"))) ->  | AA255: =IF(ISERROR(INDIRECT(CONCATENATE($B255,"!Q20"))),"",INDIRECT(CONCATENATE($B255,"!Q20"))) ->  | AB255: =IF(ISERROR(INDIRECT(CONCATENATE($B255,"!Q21"))),"",INDIRECT(CONCATENATE($B255,"!Q1"))) -> 
E256: =IF(ISERROR(INDIRECT(CONCATENATE($B256,"!M18"))),"",INDIRECT(CONCATENATE($B256,"!M18"))) ->  | F256: =IF(ISERROR(INDIRECT(CONCATENATE($B256,"!M19"))),"",INDIRECT(CONCATENATE($B256,"!M19"))) ->  | G256: =IF(ISERROR(INDIRECT(CONCATENATE($B256,"!M20"))),"",INDIRECT(CONCATENATE($B256,"!M20"))) ->  | H256: =IF(ISERROR(INDIRECT(CONCATENATE($B256,"!M21"))),"",INDIRECT(CONCATENATE($B256,"!M21"))) ->  | J256: =IF(ISERROR(INDIRECT(CONCATENATE($B256,"!N18"))),"",INDIRECT(CONCATENATE($B256,"!N18"))) ->  | K256: =IF(ISERROR(INDIRECT(CONCATENATE($B256,"!N19"))),"",INDIRECT(CONCATENATE($B256,"!N19"))) ->  | L256: =IF(ISERROR(INDIRECT(CONCATENATE($B256,"!N20"))),"",INDIRECT(CONCATENATE($B256,"!N20"))) ->  | M256: =IF(ISERROR(INDIRECT(CONCATENATE($B256,"!N21"))),"",INDIRECT(CONCATENATE($B256,"!N21"))) ->  | O256: =IF(ISERROR(INDIRECT(CONCATENATE($B256,"!O18"))),"",INDIRECT(CONCATENATE($B256,"!O18"))) ->  | P256: =IF(ISERROR(INDIRECT(CONCATENATE($B256,"!O19"))),"",INDIRECT(CONCATENATE($B256,"!O19"))) ->  | Q256: =IF(ISERROR(INDIRECT(CONCATENATE($B256,"!O20"))),"",INDIRECT(CONCATENATE($B256,"!O20"))) ->  | R256: =IF(ISERROR(INDIRECT(CONCATENATE($B256,"!O21"))),"",INDIRECT(CONCATENATE($B256,"!O21"))) ->  | T256: =IF(ISERROR(INDIRECT(CONCATENATE($B256,"!P18"))),"",INDIRECT(CONCATENATE($B256,"!P18"))) ->  | U256: =IF(ISERROR(INDIRECT(CONCATENATE($B256,"!P19"))),"",INDIRECT(CONCATENATE($B256,"!P19"))) ->  | V256: =IF(ISERROR(INDIRECT(CONCATENATE($B256,"!P20"))),"",INDIRECT(CONCATENATE($B256,"!P20"))) ->  | W256: =IF(ISERROR(INDIRECT(CONCATENATE($B256,"!P21"))),"",INDIRECT(CONCATENATE($B256,"!P21"))) ->  | Y256: =IF(ISERROR(INDIRECT(CONCATENATE($B256,"!Q18"))),"",INDIRECT(CONCATENATE($B256,"!Q18"))) ->  | Z256: =IF(ISERROR(INDIRECT(CONCATENATE($B256,"!Q19"))),"",INDIRECT(CONCATENATE($B256,"!Q19"))) ->  | AA256: =IF(ISERROR(INDIRECT(CONCATENATE($B256,"!Q20"))),"",INDIRECT(CONCATENATE($B256,"!Q20"))) ->  | AB256: =IF(ISERROR(INDIRECT(CONCATENATE($B256,"!Q21"))),"",INDIRECT(CONCATENATE($B256,"!Q1"))) -> 
E257: =IF(ISERROR(INDIRECT(CONCATENATE($B257,"!M18"))),"",INDIRECT(CONCATENATE($B257,"!M18"))) ->  | F257: =IF(ISERROR(INDIRECT(CONCATENATE($B257,"!M19"))),"",INDIRECT(CONCATENATE($B257,"!M19"))) ->  | G257: =IF(ISERROR(INDIRECT(CONCATENATE($B257,"!M20"))),"",INDIRECT(CONCATENATE($B257,"!M20"))) ->  | H257: =IF(ISERROR(INDIRECT(CONCATENATE($B257,"!M21"))),"",INDIRECT(CONCATENATE($B257,"!M21"))) ->  | J257: =IF(ISERROR(INDIRECT(CONCATENATE($B257,"!N18"))),"",INDIRECT(CONCATENATE($B257,"!N18"))) ->  | K257: =IF(ISERROR(INDIRECT(CONCATENATE($B257,"!N19"))),"",INDIRECT(CONCATENATE($B257,"!N19"))) ->  | L257: =IF(ISERROR(INDIRECT(CONCATENATE($B257,"!N20"))),"",INDIRECT(CONCATENATE($B257,"!N20"))) ->  | M257: =IF(ISERROR(INDIRECT(CONCATENATE($B257,"!N21"))),"",INDIRECT(CONCATENATE($B257,"!N21"))) ->  | O257: =IF(ISERROR(INDIRECT(CONCATENATE($B257,"!O18"))),"",INDIRECT(CONCATENATE($B257,"!O18"))) ->  | P257: =IF(ISERROR(INDIRECT(CONCATENATE($B257,"!O19"))),"",INDIRECT(CONCATENATE($B257,"!O19"))) ->  | Q257: =IF(ISERROR(INDIRECT(CONCATENATE($B257,"!O20"))),"",INDIRECT(CONCATENATE($B257,"!O20"))) ->  | R257: =IF(ISERROR(INDIRECT(CONCATENATE($B257,"!O21"))),"",INDIRECT(CONCATENATE($B257,"!O21"))) ->  | T257: =IF(ISERROR(INDIRECT(CONCATENATE($B257,"!P18"))),"",INDIRECT(CONCATENATE($B257,"!P18"))) ->  | U257: =IF(ISERROR(INDIRECT(CONCATENATE($B257,"!P19"))),"",INDIRECT(CONCATENATE($B257,"!P19"))) ->  | V257: =IF(ISERROR(INDIRECT(CONCATENATE($B257,"!P20"))),"",INDIRECT(CONCATENATE($B257,"!P20"))) ->  | W257: =IF(ISERROR(INDIRECT(CONCATENATE($B257,"!P21"))),"",INDIRECT(CONCATENATE($B257,"!P21"))) ->  | Y257: =IF(ISERROR(INDIRECT(CONCATENATE($B257,"!Q18"))),"",INDIRECT(CONCATENATE($B257,"!Q18"))) ->  | Z257: =IF(ISERROR(INDIRECT(CONCATENATE($B257,"!Q19"))),"",INDIRECT(CONCATENATE($B257,"!Q19"))) ->  | AA257: =IF(ISERROR(INDIRECT(CONCATENATE($B257,"!Q20"))),"",INDIRECT(CONCATENATE($B257,"!Q20"))) ->  | AB257: =IF(ISERROR(INDIRECT(CONCATENATE($B257,"!Q21"))),"",INDIRECT(CONCATENATE($B257,"!Q1"))) -> 
A297: RURAL | D297: Poorest | I297: Poor | N297: Middle | S297: Rich | X297: Richest
D298: Improved | E298: Basic | F298: Limited | G298: Unimproved | H298: Surface water | I298: Improved | J298: Basic | K298: Limited | L298: Unimproved | M298: Surface water | N298: Improved | O298: Basic | P298: Limited | Q298: Unimproved | R298: Surface water | S298: Improved | T298: Basic | U298: Limited | V298: Unimproved | W298: Surface water | X298: Improved | Y298: Basic | Z298: Limited | AA298: Unimproved | AB298: Surface water
A299: Forecast period: | C299: 2000 | D299: =IF((D301+H301)>100,D301*100/(D301+H301),D301) -> 54.44811513 | E299: =D299*AVERAGEIF(E305:E316,">0")/100 -> 53.92636829 | F299: =D299*(100-AVERAGEIF(E305:E316,">0"))/100 -> 0.5217468338 | G299: =100-(E299+F299+H299) -> 26.2608748 | H299: =IF((D301+H301)>100,H301*100/(D301+H301),H301) -> 19.29101007 | I299: =IF((I301+M301)>100,I301*100/(I301+M301),I301) -> 59.9432672 | J299: =I299*AVERAGEIF(J305:J316,">0")/100 -> 59.61422717 | K299: =I299*(100-AVERAGEIF(J305:J316,">0"))/100 -> 0.3290400345 | L299: =100-(J299+K299+M299) -> 18.38263257 | M299: =IF((I301+M301)>100,M301*100/(I301+M301),M301) -> 21.67410023 | N299: =IF((N301+R301)>100,N301*100/(N301+R301),N301) -> 61.13561088 | O299: =N299*AVERAGEIF(O305:O316,">0")/100 -> 60.73354822 | P299: =N299*(100-AVERAGEIF(O305:O316,">0"))/100 -> 0.4020626576 | Q299: =100-(O299+P299+R299) -> 19.64091367 | R299: =IF((N301+R301)>100,R301*100/(N301+R301),R301) -> 19.22347545 | S299: =IF((S301+W301)>100,S301*100/(S301+W301),S301) -> 66.55530988 | T299: =S299*AVERAGEIF(T305:T316,">0")/100 -> 66.14361756 | U299: =S299*(100-AVERAGEIF(T305:T316,">0"))/100 -> 0.4116923172 | V299: =100-(T299+U299+W299) -> 12.33252504 | W299: =IF((S301+W301)>100,W301*100/(S301+W301),W301) -> 21.11216508 | X299: =IF((X301+AB301)>100,X301*100/(X301+AB301),X301) -> 76.6017865 | Y299: =X299*AVERAGEIF(Y305:Y316,">0")/100 -> 76.33772903 | Z299: =X299*(100-AVERAGEIF(Y305:Y316,">0"))/100 -> 0.2640574705 | AA299: =100-(Y299+Z299+AB299) -> 6.380950139 | AB299: =IF((X301+AB301)>100,AB301*100/(X301+AB301),AB301) -> 17.01726336
C300: 2020 | D300: =IF((D302+H302)>100,D302*100/(D302+H302),D302) -> 59.60685486 | E300: =D300*AVERAGEIF(E305:E316,">0")/100 -> 59.03567461 | F300: =D300*(100-AVERAGEIF(E305:E316,">0"))/100 -> 0.5711802461 | G300: =100-(E300+F300+H300) -> 18.84045815 | H300: =IF((D302+H302)>100,H302*100/(D302+H302),H302) -> 21.55268699 | I300: =IF((I302+M302)>100,I302*100/(I302+M302),I302) -> 66.75699986 | J300: =I300*AVERAGEIF(J305:J316,">0")/100 -> 66.39055795 | K300: =I300*(100-AVERAGEIF(J305:J316,">0"))/100 -> 0.3664419135 | L300: =100-(J300+K300+M300) -> 16.13254127 | M300: =IF((I302+M302)>100,M302*100/(I302+M302),M302) -> 17.11045887 | N300: =IF((N302+R302)>100,N302*100/(N302+R302),N302) -> 71.87343257 | O300: =N300*AVERAGEIF(O305:O316,">0")/100 -> 71.40075187 | P300: =N300*(100-AVERAGEIF(O305:O316,">0"))/100 -> 0.4726806994 | Q300: =100-(O300+P300+R300) -> 12.59651562 | R300: =IF((N302+R302)>100,R302*100/(N302+R302),R302) -> 15.53005181 | S300: =IF((S302+W302)>100,S302*100/(S302+W302),S302) -> 77.37216922 | T300: =S300*AVERAGEIF(T305:T316,">0")/100 -> 76.89356687 | U300: =S300*(100-AVERAGEIF(T305:T316,">0"))/100 -> 0.4786023488 | V300: =100-(T300+U300+W300) -> 12.05943316 | W300: =IF((S302+W302)>100,W302*100/(S302+W302),W302) -> 10.56839762 | X300: =IF((X302+AB302)>100,X302*100/(X302+AB302),X302) -> 86.50231776 | Y300: =X300*AVERAGEIF(Y305:Y316,">0")/100 -> 86.20413172 | Z300: =X300*(100-AVERAGEIF(Y305:Y316,">0"))/100 -> 0.298186038 | AA300: =100-(Y300+Z300+AB300) -> 7.223804751 | AB300: =IF((X302+AB302)>100,AB302*100/(X302+AB302),AB302) -> 6.273877493
A301: Regression period: | C301: =MinRegYear(C299,C305:C316) -> 2003 | D301: =IF(MAX(C305:C316)-MIN(C305:C316)<5,AVERAGEIF(C305:C316,">0",D305:D316), IF(FORECAST($C301,D$305:D$316,$C$305:$C$316)<0,0, IF(FORECAST($C301,D$305:D$316,$C$305:$C$316)>100,100, FORECAST($C301,D$305:D$316,$C$305:$C$316)))) -> 54.44811513 | H301: =IF(MAX(C305:C316)-MIN(C305:C316)<5,AVERAGEIF(C305:C316,">0",H305:H316), IF(FORECAST($C301,H$305:H$316,$C$305:$C$316)<0,0, IF(FORECAST($C301,H$305:H$316,$C$305:$C$316)>100,100, FORECAST($C301,H$305:H$316,$C$305:$C$316)))) -> 19.29101007 | I301: =IF(MAX(C305:C316)-MIN(C305:C316)<5,AVERAGEIF(C305:C316,">0",I305:I316), IF(FORECAST($C301,I$305:I$316,$C$305:$C$316)<0,0, IF(FORECAST($C301,I$305:I$316,$C$305:$C$316)>100,100, FORECAST($C301,I$305:I$316,$C$305:$C$316)))) -> 59.9432672 | M301: =IF(MAX(C305:C316)-MIN(C305:C316)<5,AVERAGEIF(C305:C316,">0",M305:M316), IF(FORECAST($C301,M$305:M$316,$C$305:$C$316)<0,0, IF(FORECAST($C301,M$305:M$316,$C$305:$C$316)>100,100, FORECAST($C301,M$305:M$316,$C$305:$C$316)))) -> 21.67410023 | N301: =IF(MAX(C305:C316)-MIN(C305:C316)<5,AVERAGEIF(C305:C316,">0",N305:N316), IF(FORECAST($C301,N$305:N$316,$C$305:$C$316)<0,0, IF(FORECAST($C301,N$305:N$316,$C$305:$C$316)>100,100, FORECAST($C301,N$305:N$316,$C$305:$C$316)))) -> 61.13561088 | R301: =IF(MAX(C305:C316)-MIN(C305:C316)<5,AVERAGEIF(C305:C316,">0",R305:R316), IF(FORECAST($C301,R$305:R$316,$C$305:$C$316)<0,0, IF(FORECAST($C301,R$305:R$316,$C$305:$C$316)>100,100, FORECAST($C301,R$305:R$316,$C$305:$C$316)))) -> 19.22347545 | S301: =IF(MAX(C305:C316)-MIN(C305:C316)<5,AVERAGEIF(C305:C316,">0",S305:S316), IF(FORECAST($C301,S$305:S$316,$C$305:$C$316)<0,0, IF(FORECAST($C301,S$305:S$316,$C$305:$C$316)>100,100, FORECAST($C301,S$305:S$316,$C$305:$C$316)))) -> 66.55530988 | W301: =IF(MAX(C305:C316)-MIN(C305:C316)<5,AVERAGEIF(C305:C316,">0",W305:W316), IF(FORECAST($C301,W$305:W$316,$C$305:$C$316)<0,0, IF(FORECAST($C301,W$305:W$316,$C$305:$C$316)>100,100, FORECAST($C301,W$305:W$316,$C$305:$C$316)))) -> 21.11216508 | X301: =IF(MAX(C305:C316)-MIN(C305:C316)<5,AVERAGEIF(C305:C316,">0",X305:X316), IF(FORECAST($C301,X$305:X$316,$C$305:$C$316)<0,0, IF(FORECAST($C301,X$305:X$316,$C$305:$C$316)>100,100, FORECAST($C301,X$305:X$316,$C$305:$C$316)))) -> 76.6017865 | AB301: =IF(MAX(C305:C316)-MIN(C305:C316)<5,AVERAGEIF(C305:C316,">0",AB305:AB316), IF(FORECAST($C301,AB$305:AB$316,$C$305:$C$316)<0,0, IF(FORECAST($C301,AB$305:AB$316,$C$305:$C$316)>100,100, FORECAST($C301,AB$305:AB$316,$C$305:$C$316)))) -> 17.01726336
C302: =MaxRegYear(C300,C305:C316) -> 2016 | D302: =IF(MAX(C305:C316)-MIN(C305:C316)<5,AVERAGEIF(C305:C316,">0",D305:D316), IF(FORECAST($C302,D$305:D$316,$C$305:$C$316)<0,0, IF(FORECAST($C302,D$305:D$316,$C$305:$C$316)>100,100, FORECAST($C302,D$305:D$316,$C$305:$C$316)))) -> 59.60685486 | H302: =IF(MAX(C305:C316)-MIN(C305:C316)<5,AVERAGEIF(C305:C316,">0",H305:H316), IF(FORECAST($C302,H$305:H$316,$C$305:$C$316)<0,0, IF(FORECAST($C302,H$305:H$316,$C$305:$C$316)>100,100, FORECAST($C302,H$305:H$316,$C$305:$C$316)))) -> 21.55268699 | I302: =IF(MAX(C305:C316)-MIN(C305:C316)<5,AVERAGEIF(C305:C316,">0",I305:I316), IF(FORECAST($C302,I$305:I$316,$C$305:$C$316)<0,0, IF(FORECAST($C302,I$305:I$316,$C$305:$C$316)>100,100, FORECAST($C302,I$305:I$316,$C$305:$C$316)))) -> 66.75699986 | M302: =IF(MAX(C305:C316)-MIN(C305:C316)<5,AVERAGEIF(C305:C316,">0",M305:M316), IF(FORECAST($C302,M$305:M$316,$C$305:$C$316)<0,0, IF(FORECAST($C302,M$305:M$316,$C$305:$C$316)>100,100, FORECAST($C302,M$305:M$316,$C$305:$C$316)))) -> 17.11045887 | N302: =IF(MAX(C305:C316)-MIN(C305:C316)<5,AVERAGEIF(C305:C316,">0",N305:N316), IF(FORECAST($C302,N$305:N$316,$C$305:$C$316)<0,0, IF(FORECAST($C302,N$305:N$316,$C$305:$C$316)>100,100, FORECAST($C302,N$305:N$316,$C$305:$C$316)))) -> 71.87343257 | R302: =IF(MAX(C305:C316)-MIN(C305:C316)<5,AVERAGEIF(C305:C316,">0",R305:R316), IF(FORECAST($C302,R$305:R$316,$C$305:$C$316)<0,0, IF(FORECAST($C302,R$305:R$316,$C$305:$C$316)>100,100, FORECAST($C302,R$305:R$316,$C$305:$C$316)))) -> 15.53005181 | S302: =IF(MAX(C305:C316)-MIN(C305:C316)<5,AVERAGEIF(C305:C316,">0",S305:S316), IF(FORECAST($C302,S$305:S$316,$C$305:$C$316)<0,0, IF(FORECAST($C302,S$305:S$316,$C$305:$C$316)>100,100, FORECAST($C302,S$305:S$316,$C$305:$C$316)))) -> 77.37216922 | W302: =IF(MAX(C305:C316)-MIN(C305:C316)<5,AVERAGEIF(C305:C316,">0",W305:W316), IF(FORECAST($C302,W$305:W$316,$C$305:$C$316)<0,0, IF(FORECAST($C302,W$305:W$316,$C$305:$C$316)>100,100, FORECAST($C302,W$305:W$316,$C$305:$C$316)))) -> 10.56839762 | X302: =IF(MAX(C305:C316)-MIN(C305:C316)<5,AVERAGEIF(C305:C316,">0",X305:X316), IF(FORECAST($C302,X$305:X$316,$C$305:$C$316)<0,0, IF(FORECAST($C302,X$305:X$316,$C$305:$C$316)>100,100, FORECAST($C302,X$305:X$316,$C$305:$C$316)))) -> 86.50231776 | AB302: =IF(MAX(C305:C316)-MIN(C305:C316)<5,AVERAGEIF(C305:C316,">0",AB305:AB316), IF(FORECAST($C302,AB$305:AB$316,$C$305:$C$316)<0,0, IF(FORECAST($C302,AB$305:AB$316,$C$305:$C$316)>100,100, FORECAST($C302,AB$305:AB$316,$C$305:$C$316)))) -> 6.273877493
B304: Survey | C304: Year | D304: Improved | E304: % Improved < = 30min | H304: Surface water | I304: Improved | J304: % Improved < = 30min | M304: Surface water | N304: Improved | O304: % Improved < = 30min | R304: Surface water | S304: Improved | T304: % Improved < = 30min | W304: Surface water | X304: Improved | Y304: % Improved < = 30min | AB304: Surface water
B305: DHS05 | C305: 2005 | D305: =IF(ISERROR(INDIRECT(CONCATENATE($B305,"!M16"))),"",INDIRECT(CONCATENATE($B305,"!M16"))) -> 56.64488699 | E305: =IF(ISERROR(INDIRECT(CONCATENATE($B305,"!M23"))),"",INDIRECT(CONCATENATE($B305,"!M23"))) -> 98.28079652 | H305: =IF(ISERROR(INDIRECT(CONCATENATE($B305,"!M21"))),"",INDIRECT(CONCATENATE($B305,"!M21"))) -> 19.77327819 | I305: =IF(ISERROR(INDIRECT(CONCATENATE($B305,"!N16"))),"",INDIRECT(CONCATENATE($B305,"!N16"))) -> 62.19688486 | J305: =IF(ISERROR(INDIRECT(CONCATENATE($B305,"!N23"))),"",INDIRECT(CONCATENATE($B305,"!N23"))) -> 99.43151347 | M305: =IF(ISERROR(INDIRECT(CONCATENATE($B305,"!N21"))),"",INDIRECT(CONCATENATE($B305,"!N21"))) -> 20.73255801 | N305: =IF(ISERROR(INDIRECT(CONCATENATE($B305,"!O16"))),"",INDIRECT(CONCATENATE($B305,"!O16"))) -> 63.12204633 | O305: =IF(ISERROR(INDIRECT(CONCATENATE($B305,"!O23"))),"",INDIRECT(CONCATENATE($B305,"!O23"))) -> 99.44715411 | R305: =IF(ISERROR(INDIRECT(CONCATENATE($B305,"!O21"))),"",INDIRECT(CONCATENATE($B305,"!O21"))) -> 18.99663267 | S305: =IF(ISERROR(INDIRECT(CONCATENATE($B305,"!P16"))),"",INDIRECT(CONCATENATE($B305,"!P16"))) -> 68.73795268 | T305: =IF(ISERROR(INDIRECT(CONCATENATE($B305,"!P23"))),"",INDIRECT(CONCATENATE($B305,"!P23"))) -> 99.31813252 | W305: =IF(ISERROR(INDIRECT(CONCATENATE($B305,"!P21"))),"",INDIRECT(CONCATENATE($B305,"!P21"))) -> 19.56858613 | X305: =IF(ISERROR(INDIRECT(CONCATENATE($B305,"!Q16"))),"",INDIRECT(CONCATENATE($B305,"!Q16"))) -> 78.93173512 | Y305: =IF(ISERROR(INDIRECT(CONCATENATE($B305,"!Q23"))),"",INDIRECT(CONCATENATE($B305,"!Q23"))) -> 99.65223778 | AB305: =IF(ISERROR(INDIRECT(CONCATENATE($B305,"!Q221"))),"",INDIRECT(CONCATENATE($B305,"!Q21"))) -> 16.05044298
B306: DHS10 | C306: 2010 | D306: 54.06887896 | E306: 99.46795552 | H306: 20.20662101 | I306: 60.90016021 | J306: 99.27056906 | M306: 19.75550287 | N306: 66.16497338 | O306: 99.44842332 | R306: 16.46661233 | S306: 71.21312376 | T306: 99.44000335 | W306: 15.25803882 | X306: 80.11756439 | Y306: 99.68263621 | AB306: 9.688844781
B307: DHS14 | C307: 2014 | D307: 60.56710209 | E307: 99.37651025 | H307: 21.37263397 | I307: 67.21542217 | J307: 99.65116021 | M307: 17.5132531 | N307: 70.63953861 | O307: 99.1314514 | R307: 16.52499113 | S307: 76.35617526 | T307: 99.386149 | W307: 12.28868958 | X307: 85.98764655 | Y307: 99.63098249 | AB307: 8.784216362
B318: =CONCATENATE("Rural use of drinking water sources, ",C299,"–",C300) -> Rural use of drinking water sources, 2000–2020 | S318: Data points used for regression

Sheet Sanitation
B4: Summary of trends in use of sanitation facilities by wealth quintile (%)
B5: =IF(ISERROR(INDIRECT(CONCATENATE($B105,"!A2"))),"",INDIRECT(CONCATENATE($B105,"!A2"))) -> Cambodia
B7: =B118 -> National use of sanitation facilities, 2000–2020 | J7: =B218 -> Urban use of sanitation facilities, 2000–2020 | R7: =B318 -> Rural use of sanitation facilities, 2000–2020
B31: =IF(ISERROR(INDIRECT(CONCATENATE($B105,"!A2"))),"",INDIRECT(CONCATENATE($B105,"!A2"))) -> Cambodia | F31: Poorest | J31: Poor | N31: Middle | R31: Rich | V31: Richest
F32: Basic | G32: Limited | H32: Unimproved | I32: Open defecation | J32: Basic | K32: Limited | L32: Unimproved | M32: Open defecation | N32: Basic | O32: Limited | P32: Unimproved | Q32: Open defecation | R32: Basic | S32: Limited | T32: Unimproved | U32: Open defecation | V32: Basic | W32: Limited | X32: Unimproved | Y32: Open defecation
B33: NATIONAL | D33: Estimate | E33: =C99 -> 2000 | F33: =E99 -> 0 | G33: =F99 -> 0 | H33: 0 | I33: 100 | J33: =J99 -> 0 | K33: =K99 -> 0 | L33: 1.920401918 | M33: 98.07959808 | N33: =O99 -> 0.6420951766 | O33: =P99 -> 0.1945874302 | P33: 3.141520658 | Q33: 96.02179674 | R33: =T99 -> 17.75593601 | S33: =U99 -> 4.178547251 | T33: 5.058560683 | U33: 73.00695605 | V33: =Y99 -> 77.10365935 | W33: =Z99 -> 6.84612366 | X33: 3.074182097 | Y33: 12.9760349
E34: =C100 -> 2020 | F34: =E100 -> 14.64178246 | G34: 6.298827176 | H34: 1.309474688 | I34: 77.74991567 | J34: =J100 -> 27.93633859 | K34: 11.14141507 | L34: 1.134441319 | M34: 59.78780501 | N34: =O100 -> 48.21732172 | O34: 14.61229591 | P34: 0.9591483901 | Q34: 36.21123398 | R34: =T100 -> 73.55941856 | S34: 17.3109154 | T34: 0.1266260299 | U34: 9.003040009 | V34: =Y100 -> 91.84497754 | W34: 8.15502246 | X34: 0 | Y34: 0
B36: URBAN | D36: Estimate | E36: =C199 -> 2000 | F36: =E199 -> 0 | G36: =F199 -> 0 | H36: 0 | I36: 100 | J36: =J199 -> 28.08558026 | K36: =K199 -> 6.01428481 | L36: 8.237743816 | M36: 57.66239112 | N36: =O199 -> 73.32099826 | O36: =P199 -> 8.217012533 | P36: 5.345995497 | Q36: 13.11599371 | R36: =T199 -> 93.94074626 | S36: =U199 -> 3.068818131 | T36: 1.907190356 | U36: 1.083245252 | V36: =Y199 -> 99.12129519 | W36: =Z199 -> 0.8787048089 | X36: 0 | Y36: 0
E37: =C200 -> 2020 | F37: =E200 -> 60.36743716 | G37: 28.123241 | H37: 1.32510388 | I37: 10.18421796 | J37: =J200 -> 82.36273135 | K37: 17.63726865 | L37: 0 | M37: 0 | N37: =O200 -> 89.92247609 | O37: 10.07752391 | P37: 0 | Q37: 0 | R37: =T200 -> 96.83658189 | S37: 3.163418113 | T37: 0 | U37: 0 | V37: =Y200 -> 99.03243834 | W37: 0.8779170978 | X37: 0.08964456035 | Y37: 0
B39: RURAL | D39: Estimate | E39: =C299 -> 2000 | F39: =E299 -> 0 | G39: =F299 -> 0 | H39: 0 | I39: 100 | J39: =J299 -> 0 | K39: =K299 -> 0 | L39: 1.421450085 | M39: 98.57854992 | N39: =O299 -> 0 | O39: =P299 -> 0 | P39: 1.393614604 | Q39: 98.6063854 | R39: =T299 -> 7.095569336 | S39: =U299 -> 1.890433963 | T39: 3.820494132 | U39: 87.19350257 | V39: =Y299 -> 51.75879159 | W39: =Z299 -> 8.609790861 | X39: 4.155871712 | Y39: 35.47554584
E40: =C300 -> 2020 | F40: =E300 -> 13.57920637 | G40: 6.028370462 | H40: 1.409055112 | I40: 78.98336806 | J40: =J300 -> 23.74017383 | K40: 9.422817959 | L40: 1.242067327 | M40: 65.59494088 | N40: =O300 -> 41.73472926 | O40: 12.04454511 | P40: 0.7609530773 | Q40: 45.45977255 | R40: =T300 -> 60.01645773 | S40: 15.98985855 | T40: 0.6964076807 | U40: 23.29727604 | V40: =Y300 -> 78.90213165 | W40: 13.12493648 | X40: 0 | Y40: 7.972931868
A97: NATIONAL | D97: Poorest | I97: Poor | N97: Middle | S97: Rich | X97: Richest
D98: Improved | E98: Basic | F98: Limited | G98: Unimproved | H98: Open defecation | I98: Improved | J98: Basic | K98: Limited | L98: Unimproved | M98: Open defecation | N98: Improved | O98: Basic | P98: Limited | Q98: Unimproved | R98: Open defecation | S98: Improved | T98: Basic | U98: Limited | V98: Unimproved | W98: Open defecation | X98: Improved | Y98: Basic | Z98: Limited | AA98: Unimproved | AB98: Open defecation
A99: Forecast period: | C99: 2000 | D99: =IF((D101+H101)>100,D101*100/(D101+H101),D101) -> 0 | E99: =D99*AVERAGEIF(E105:E116,">0")/100 -> 0 | F99: =D99*(100-AVERAGEIF(E105:E116,">0"))/100 -> 0 | G99: =100-(E99+F99+H99) -> 0 | H99: =IF((D101+H101)>100,H101*100/(D101+H101),H101) -> 100 | I99: =IF((I101+M101)>100,I101*100/(I101+M101),I101) -> 0 | J99: =I99*AVERAGEIF(J105:J116,">0")/100 -> 0 | K99: =I99*(100-AVERAGEIF(J105:J116,">0"))/100 -> 0 | L99: =100-(J99+K99+M99) -> 1.920401918 | M99: =IF((I101+M101)>100,M101*100/(I101+M101),M101) -> 98.07959808 | N99: =IF((N101+R101)>100,N101*100/(N101+R101),N101) -> 0.8366826068 | O99: =N99*AVERAGEIF(O105:O116,">0")/100 -> 0.6420951766 | P99: =N99*(100-AVERAGEIF(O105:O116,">0"))/100 -> 0.1945874302 | Q99: =100-(O99+P99+R99) -> 3.141520658 | R99: =IF((N101+R101)>100,R101*100/(N101+R101),R101) -> 96.02179674 | S99: =IF((S101+W101)>100,S101*100/(S101+W101),S101) -> 21.93448326 | T99: =S99*AVERAGEIF(T105:T116,">0")/100 -> 17.75593601 | U99: =S99*(100-AVERAGEIF(T105:T116,">0"))/100 -> 4.178547251 | V99: =100-(T99+U99+W99) -> 5.058560683 | W99: =IF((S101+W101)>100,W101*100/(S101+W101),W101) -> 73.00695605 | X99: =IF((X101+AB101)>100,X101*100/(X101+AB101),X101) -> 83.94978301 | Y99: =X99*AVERAGEIF(Y105:Y116,">0")/100 -> 77.10365935 | Z99: =X99*(100-AVERAGEIF(Y105:Y116,">0"))/100 -> 6.84612366 | AA99: =100-(Y99+Z99+AB99) -> 3.074182097 | AB99: =IF((X101+AB101)>100,AB101*100/(X101+AB101),AB101) -> 12.9760349
C100: 2020 | D100: =IF((D102+H102)>100,D102*100/(D102+H102),D102) -> 20.94060964 | E100: =D100*AVERAGEIF(E105:E116,">0")/100 -> 14.64178246 | F100: =D100*(100-AVERAGEIF(E105:E116,">0"))/100 -> 6.298827176 | G100: =100-(E100+F100+H100) -> 1.309474688 | H100: =IF((D102+H102)>100,H102*100/(D102+H102),H102) -> 77.74991567 | I100: =IF((I102+M102)>100,I102*100/(I102+M102),I102) -> 39.07775367 | J100: =I100*AVERAGEIF(J105:J116,">0")/100 -> 27.93633859 | K100: =I100*(100-AVERAGEIF(J105:J116,">0"))/100 -> 11.14141507 | L100: =100-(J100+K100+M100) -> 1.134441319 | M100: =IF((I102+M102)>100,M102*100/(I102+M102),M102) -> 59.78780501 | N100: =IF((N102+R102)>100,N102*100/(N102+R102),N102) -> 62.82961763 | O100: =N100*AVERAGEIF(O105:O116,">0")/100 -> 48.21732172 | P100: =N100*(100-AVERAGEIF(O105:O116,">0"))/100 -> 14.61229591 | Q100: =100-(O100+P100+R100) -> 0.9591483901 | R100: =IF((N102+R102)>100,R102*100/(N102+R102),R102) -> 36.21123398 | S100: =IF((S102+W102)>100,S102*100/(S102+W102),S102) -> 90.87033396 | T100: =S100*AVERAGEIF(T105:T116,">0")/100 -> 73.55941856 | U100: =S100*(100-AVERAGEIF(T105:T116,">0"))/100 -> 17.3109154 | V100: =100-(T100+U100+W100) -> 0.1266260299 | W100: =IF((S102+W102)>100,W102*100/(S102+W102),W102) -> 9.003040009 | X100: =IF((X102+AB102)>100,X102*100/(X102+AB102),X102) -> 100 | Y100: =X100*AVERAGEIF(Y105:Y116,">0")/100 -> 91.84497754 | Z100: =X100*(100-AVERAGEIF(Y105:Y116,">0"))/100 -> 8.15502246 | AA100: =100-(Y100+Z100+AB100) -> 0 | AB100: =IF((X102+AB102)>100,AB102*100/(X102+AB102),AB102) -> 0
A101: Regression period: | C101: =MinRegYear(C99,C105:C116) -> 2003 | D101: =IF(MAX(C105:C116)-MIN(C105:C116)<5,AVERAGEIF(C105:C116,">0",D105:D116), IF(FORECAST($C101,D$105:D$116,$C$105:$C$116)<0,0, IF(FORECAST($C101,D$105:D$116,$C$105:$C$116)>100,100, FORECAST($C101,D$105:D$116,$C$105:$C$116)))) -> 0 | H101: =IF(MAX(C105:C116)-MIN(C105:C116)<5,AVERAGEIF(C105:C116,">0",H105:H116), IF(FORECAST($C101,H$105:H$116,$C$105:$C$116)<0,0, IF(FORECAST($C101,H$105:H$116,$C$105:$C$116)>100,100, FORECAST($C101,H$105:H$116,$C$105:$C$116)))) -> 100 | I101: =IF(MAX(C105:C116)-MIN(C105:C116)<5,AVERAGEIF(C105:C116,">0",I105:I116), IF(FORECAST($C101,I$105:I$116,$C$105:$C$116)<0,0, IF(FORECAST($C101,I$105:I$116,$C$105:$C$116)>100,100, FORECAST($C101,I$105:I$116,$C$105:$C$116)))) -> 0 | M101: =IF(MAX(C105:C116)-MIN(C105:C116)<5,AVERAGEIF(C105:C116,">0",M105:M116), IF(FORECAST($C101,M$105:M$116,$C$105:$C$116)<0,0, IF(FORECAST($C101,M$105:M$116,$C$105:$C$116)>100,100, FORECAST($C101,M$105:M$116,$C$105:$C$116)))) -> 98.07959808 | N101: =IF(MAX(C105:C116)-MIN(C105:C116)<5,AVERAGEIF(C105:C116,">0",N105:N116), IF(FORECAST($C101,N$105:N$116,$C$105:$C$116)<0,0, IF(FORECAST($C101,N$105:N$116,$C$105:$C$116)>100,100, FORECAST($C101,N$105:N$116,$C$105:$C$116)))) -> 0.8366826068 | R101: =IF(MAX(C105:C116)-MIN(C105:C116)<5,AVERAGEIF(C105:C116,">0",R105:R116), IF(FORECAST($C101,R$105:R$116,$C$105:$C$116)<0,0, IF(FORECAST($C101,R$105:R$116,$C$105:$C$116)>100,100, FORECAST($C101,R$105:R$116,$C$105:$C$116)))) -> 96.02179674 | S101: =IF(MAX(C105:C116)-MIN(C105:C116)<5,AVERAGEIF(C105:C116,">0",S105:S116), IF(FORECAST($C101,S$105:S$116,$C$105:$C$116)<0,0, IF(FORECAST($C101,S$105:S$116,$C$105:$C$116)>100,100, FORECAST($C101,S$105:S$116,$C$105:$C$116)))) -> 21.93448326 | W101: =IF(MAX(C105:C116)-MIN(C105:C116)<5,AVERAGEIF(C105:C116,">0",W105:W116), IF(FORECAST($C101,W$105:W$116,$C$105:$C$116)<0,0, IF(FORECAST($C101,W$105:W$116,$C$105:$C$116)>100,100, FORECAST($C101,W$105:W$116,$C$105:$C$116)))) -> 73.00695605 | X101: =IF(MAX(C105:C116)-MIN(C105:C116)<5,AVERAGEIF(C105:C116,">0",X105:X116), IF(FORECAST($C101,X$105:X$116,$C$105:$C$116)<0,0, IF(FORECAST($C101,X$105:X$116,$C$105:$C$116)>100,100, FORECAST($C101,X$105:X$116,$C$105:$C$116)))) -> 83.94978301 | AB101: =IF(MAX(C105:C116)-MIN(C105:C116)<5,AVERAGEIF(C105:C116,">0",AB105:AB116), IF(FORECAST($C101,AB$105:AB$116,$C$105:$C$116)<0,0, IF(FORECAST($C101,AB$105:AB$116,$C$105:$C$116)>100,100, FORECAST($C101,AB$105:AB$116,$C$105:$C$116)))) -> 12.9760349
C102: =MaxRegYear(C100,C105:C116) -> 2016 | D102: =IF(MAX(C105:C116)-MIN(C105:C116)<5,AVERAGEIF(C105:C116,">0",D105:D116), IF(FORECAST($C102,D$105:D$116,$C$105:$C$116)<0,0, IF(FORECAST($C102,D$105:D$116,$C$105:$C$116)>100,100, FORECAST($C102,D$105:D$116,$C$105:$C$116)))) -> 20.94060964 | H102: =IF(MAX(C105:C116)-MIN(C105:C116)<5,AVERAGEIF(C105:C116,">0",H105:H116), IF(FORECAST($C102,H$105:H$116,$C$105:$C$116)<0,0, IF(FORECAST($C102,H$105:H$116,$C$105:$C$116)>100,100, FORECAST($C102,H$105:H$116,$C$105:$C$116)))) -> 77.74991567 | I102: =IF(MAX(C105:C116)-MIN(C105:C116)<5,AVERAGEIF(C105:C116,">0",I105:I116), IF(FORECAST($C102,I$105:I$116,$C$105:$C$116)<0,0, IF(FORECAST($C102,I$105:I$116,$C$105:$C$116)>100,100, FORECAST($C102,I$105:I$116,$C$105:$C$116)))) -> 39.07775367 | M102: =IF(MAX(C105:C116)-MIN(C105:C116)<5,AVERAGEIF(C105:C116,">0",M105:M116), IF(FORECAST($C102,M$105:M$116,$C$105:$C$116)<0,0, IF(FORECAST($C102,M$105:M$116,$C$105:$C$116)>100,100, FORECAST($C102,M$105:M$116,$C$105:$C$116)))) -> 59.78780501 | N102: =IF(MAX(C105:C116)-MIN(C105:C116)<5,AVERAGEIF(C105:C116,">0",N105:N116), IF(FORECAST($C102,N$105:N$116,$C$105:$C$116)<0,0, IF(FORECAST($C102,N$105:N$116,$C$105:$C$116)>100,100, FORECAST($C102,N$105:N$116,$C$105:$C$116)))) -> 62.82961763 | R102: =IF(MAX(C105:C116)-MIN(C105:C116)<5,AVERAGEIF(C105:C116,">0",R105:R116), IF(FORECAST($C102,R$105:R$116,$C$105:$C$116)<0,0, IF(FORECAST($C102,R$105:R$116,$C$105:$C$116)>100,100, FORECAST($C102,R$105:R$116,$C$105:$C$116)))) -> 36.21123398 | S102: =IF(MAX(C105:C116)-MIN(C105:C116)<5,AVERAGEIF(C105:C116,">0",S105:S116), IF(FORECAST($C102,S$105:S$116,$C$105:$C$116)<0,0, IF(FORECAST($C102,S$105:S$116,$C$105:$C$116)>100,100, FORECAST($C102,S$105:S$116,$C$105:$C$116)))) -> 90.87033396 | W102: =IF(MAX(C105:C116)-MIN(C105:C116)<5,AVERAGEIF(C105:C116,">0",W105:W116), IF(FORECAST($C102,W$105:W$116,$C$105:$C$116)<0,0, IF(FORECAST($C102,W$105:W$116,$C$105:$C$116)>100,100, FORECAST($C102,W$105:W$116,$C$105:$C$116)))) -> 9.003040009 | X102: =IF(MAX(C105:C116)-MIN(C105:C116)<5,AVERAGEIF(C105:C116,">0",X105:X116), IF(FORECAST($C102,X$105:X$116,$C$105:$C$116)<0,0, IF(FORECAST($C102,X$105:X$116,$C$105:$C$116)>100,100, FORECAST($C102,X$105:X$116,$C$105:$C$116)))) -> 100 | AB102: =IF(MAX(C105:C116)-MIN(C105:C116)<5,AVERAGEIF(C105:C116,">0",AB105:AB116), IF(FORECAST($C102,AB$105:AB$116,$C$105:$C$116)<0,0, IF(FORECAST($C102,AB$105:AB$116,$C$105:$C$116)>100,100, FORECAST($C102,AB$105:AB$116,$C$105:$C$116)))) -> 0
B104: Survey | C104: Year | D104: Improved | E104: Not shared | H104: Open defecation | I104: Improved | J104: Not shared | M104: Open defecation | N104: Improved | O104: Not shared | R104: Open defecation | S104: Improved | T104: Not shared | W104: Open defecation | X104: Improved | Y104: Not shared | AB104: Open defecation
B105: DHS05 | C105: 2005 | D105: =IF(ISERROR(INDIRECT(CONCATENATE($B105,"!C122"))),"",INDIRECT(CONCATENATE($B105,"!C122"))) -> 2.65543539 | E105: =IF(ISERROR(INDIRECT(CONCATENATE($B105,"!C129"))),"",INDIRECT(CONCATENATE($B105,"!C129"))) -> 66.0776381 | H105: =IF(ISERROR(INDIRECT(CONCATENATE($B105,"!C127"))),"",INDIRECT(CONCATENATE($B105,"!C127"))) -> 96.59317876 | I105: =IF(ISERROR(INDIRECT(CONCATENATE($B105,"!D122"))),"",INDIRECT(CONCATENATE($B105,"!D122"))) -> 6.267876986 | J105: =IF(ISERROR(INDIRECT(CONCATENATE($B105,"!D129"))),"",INDIRECT(CONCATENATE($B105,"!D129"))) -> 70.93415109 | M105: =IF(ISERROR(INDIRECT(CONCATENATE($B105,"!D127"))),"",INDIRECT(CONCATENATE($B105,"!D127"))) -> 91.76670425 | N105: =IF(ISERROR(INDIRECT(CONCATENATE($B105,"!E122"))),"",INDIRECT(CONCATENATE($B105,"!E122"))) -> 11.77748464 | O105: =IF(ISERROR(INDIRECT(CONCATENATE($B105,"!E129"))),"",INDIRECT(CONCATENATE($B105,"!E129"))) -> 72.72979727 | R105: =IF(ISERROR(INDIRECT(CONCATENATE($B105,"!E127"))),"",INDIRECT(CONCATENATE($B105,"!E127"))) -> 85.7021383 | S105: =IF(ISERROR(INDIRECT(CONCATENATE($B105,"!F122"))),"",INDIRECT(CONCATENATE($B105,"!F122"))) -> 31.86016351 | T105: =IF(ISERROR(INDIRECT(CONCATENATE($B105,"!F129"))),"",INDIRECT(CONCATENATE($B105,"!F129"))) -> 78.04596949 | W105: =IF(ISERROR(INDIRECT(CONCATENATE($B105,"!F127"))),"",INDIRECT(CONCATENATE($B105,"!F127"))) -> 64.07782297 | X105: =IF(ISERROR(INDIRECT(CONCATENATE($B105,"!G122"))),"",INDIRECT(CONCATENATE($B105,"!G122"))) -> 85.85204566 | Y105: =IF(ISERROR(INDIRECT(CONCATENATE($B105,"!G129"))),"",INDIRECT(CONCATENATE($B105,"!G129"))) -> 90.11921428 | AB105: =IF(ISERROR(INDIRECT(CONCATENATE($B105,"!G2127"))),"",INDIRECT(CONCATENATE($B105,"!G127"))) -> 11.40591359
B106: DHS10 | C106: 2010 | D106: 8.732361314 | E106: 69.46957636 | H106: 90.00963874 | I106: 19.08044468 | J106: 68.52476983 | M106: 78.41009995 | N106: 31.05978208 | O106: 76.34589575 | R106: 66.33168424 | S106: 60.58341678 | T106: 80.9637702 | W106: 36.47865667 | X106: 93.95763081 | Y106: 91.95946636 | AB106: 4.988814791
B107: DHS14 | C107: 2014 | D107: 18.4698723 | E107: 74.21433568 | H107: 80.41877457 | I107: 33.9151475 | J107: 75.00841129 | M107: 65.15153917 | N107: 55.04652728 | O107: 81.15325091 | R107: 44.01531727 | S107: 79.41502442 | T107: 83.83987477 | W107: 19.99682537 | X107: 96.88826172 | Y107: 93.45625199 | AB107: 2.498605794
B118: =CONCATENATE("National use of sanitation facilities, ",C99,"–",C100) -> National use of sanitation facilities, 2000–2020 | S118: Data points used for regression
A197: URBAN | D197: Poorest | I197: Poor | N197: Middle | S197: Rich | X197: Richest
D198: Improved | E198: Basic | F198: Limited | G198: Unimproved | H198: Open defecation | I198: Improved | J198: Basic | K198: Limited | L198: Unimproved | M198: Open defecation | N198: Improved | O198: Basic | P198: Limited | Q198: Unimproved | R198: Open defecation | S198: Improved | T198: Basic | U198: Limited | V198: Unimproved | W198: Open defecation | X198: Improved | Y198: Basic | Z198: Limited | AA198: Unimproved | AB198: Open defecation
A199: Forecast period: | C199: 2000 | D199: =IF((D201+H201)>100,D201*100/(D201+H201),D201) -> 0 | E199: =D199*AVERAGEIF(E205:E216,">0")/100 -> 0 | F199: =D199*(100-AVERAGEIF(E205:E216,">0"))/100 -> 0 | G199: =100-(E199+F199+H199) -> 0 | H199: =IF((D201+H201)>100,H201*100/(D201+H201),H201) -> 100 | I199: =IF((I201+M201)>100,I201*100/(I201+M201),I201) -> 34.09986507 | J199: =I199*AVERAGEIF(J205:J216,">0")/100 -> 28.08558026 | K199: =I199*(100-AVERAGEIF(J205:J216,">0"))/100 -> 6.01428481 | L199: =100-(J199+K199+M199) -> 8.237743816 | M199: =IF((I201+M201)>100,M201*100/(I201+M201),M201) -> 57.66239112 | N199: =IF((N201+R201)>100,N201*100/(N201+R201),N201) -> 81.5380108 | O199: =N199*AVERAGEIF(O205:O216,">0")/100 -> 73.32099826 | P199: =N199*(100-AVERAGEIF(O205:O216,">0"))/100 -> 8.217012533 | Q199: =100-(O199+P199+R199) -> 5.345995497 | R199: =IF((N201+R201)>100,R201*100/(N201+R201),R201) -> 13.11599371 | S199: =IF((S201+W201)>100,S201*100/(S201+W201),S201) -> 97.00956439 | T199: =S199*AVERAGEIF(T205:T216,">0")/100 -> 93.94074626 | U199: =S199*(100-AVERAGEIF(T205:T216,">0"))/100 -> 3.068818131 | V199: =100-(T199+U199+W199) -> 1.907190356 | W199: =IF((S201+W201)>100,W201*100/(S201+W201),W201) -> 1.083245252 | X199: =IF((X201+AB201)>100,X201*100/(X201+AB201),X201) -> 100 | Y199: =X199*AVERAGEIF(Y205:Y216,">0")/100 -> 99.12129519 | Z199: =X199*(100-AVERAGEIF(Y205:Y216,">0"))/100 -> 0.8787048089 | AA199: =100-(Y199+Z199+AB199) -> 0 | AB199: =IF((X201+AB201)>100,AB201*100/(X201+AB201),AB201) -> 0
C200: 2020 | D200: =IF((D202+H202)>100,D202*100/(D202+H202),D202) -> 88.49067816 | E200: =D200*AVERAGEIF(E205:E216,">0")/100 -> 60.36743716 | F200: =D200*(100-AVERAGEIF(E205:E216,">0"))/100 -> 28.123241 | G200: =100-(E200+F200+H200) -> 1.32510388 | H200: =IF((D202+H202)>100,H202*100/(D202+H202),H202) -> 10.18421796 | I200: =IF((I202+M202)>100,I202*100/(I202+M202),I202) -> 100 | J200: =I200*AVERAGEIF(J205:J216,">0")/100 -> 82.36273135 | K200: =I200*(100-AVERAGEIF(J205:J216,">0"))/100 -> 17.63726865 | L200: =100-(J200+K200+M200) -> 0 | M200: =IF((I202+M202)>100,M202*100/(I202+M202),M202) -> 0 | N200: =IF((N202+R202)>100,N202*100/(N202+R202),N202) -> 100 | O200: =N200*AVERAGEIF(O205:O216,">0")/100 -> 89.92247609 | P200: =N200*(100-AVERAGEIF(O205:O216,">0"))/100 -> 10.07752391 | Q200: =100-(O200+P200+R200) -> 0 | R200: =IF((N202+R202)>100,R202*100/(N202+R202),R202) -> 0 | S200: =IF((S202+W202)>100,S202*100/(S202+W202),S202) -> 100 | T200: =S200*AVERAGEIF(T205:T216,">0")/100 -> 96.83658189 | U200: =S200*(100-AVERAGEIF(T205:T216,">0"))/100 -> 3.163418113 | V200: =100-(T200+U200+W200) -> 0 | W200: =IF((S202+W202)>100,W202*100/(S202+W202),W202) -> 0 | X200: =IF((X202+AB202)>100,X202*100/(X202+AB202),X202) -> 99.91035544 | Y200: =X200*AVERAGEIF(Y205:Y216,">0")/100 -> 99.03243834 | Z200: =X200*(100-AVERAGEIF(Y205:Y216,">0"))/100 -> 0.8779170978 | AA200: =100-(Y200+Z200+AB200) -> 0.08964456035 | AB200: =IF((X202+AB202)>100,AB202*100/(X202+AB202),AB202) -> 0
A201: Regression period: | C201: =MinRegYear(C199,C205:C216) -> 2003 | D201: =IF(MAX(C205:C216)-MIN(C205:C216)<5,AVERAGEIF(C205:C216,">0",D205:D216), IF(FORECAST($C201,D$205:D$216,$C$205:$C$216)<0,0, IF(FORECAST($C201,D$205:D$216,$C$205:$C$216)>100,100, FORECAST($C201,D$205:D$216,$C$205:$C$216)))) -> 0 | H201: =IF(MAX(C205:C216)-MIN(C205:C216)<5,AVERAGEIF(C205:C216,">0",H205:H216), IF(FORECAST($C201,H$205:H$216,$C$205:$C$216)<0,0, IF(FORECAST($C201,H$205:H$216,$C$205:$C$216)>100,100, FORECAST($C201,H$205:H$216,$C$205:$C$216)))) -> 100 | I201: =IF(MAX(C205:C216)-MIN(C205:C216)<5,AVERAGEIF(C205:C216,">0",I205:I216), IF(FORECAST($C201,I$205:I$216,$C$205:$C$216)<0,0, IF(FORECAST($C201,I$205:I$216,$C$205:$C$216)>100,100, FORECAST($C201,I$205:I$216,$C$205:$C$216)))) -> 34.09986507 | M201: =IF(MAX(C205:C216)-MIN(C205:C216)<5,AVERAGEIF(C205:C216,">0",M205:M216), IF(FORECAST($C201,M$205:M$216,$C$205:$C$216)<0,0, IF(FORECAST($C201,M$205:M$216,$C$205:$C$216)>100,100, FORECAST($C201,M$205:M$216,$C$205:$C$216)))) -> 57.66239112 | N201: =IF(MAX(C205:C216)-MIN(C205:C216)<5,AVERAGEIF(C205:C216,">0",N205:N216), IF(FORECAST($C201,N$205:N$216,$C$205:$C$216)<0,0, IF(FORECAST($C201,N$205:N$216,$C$205:$C$216)>100,100, FORECAST($C201,N$205:N$216,$C$205:$C$216)))) -> 81.5380108 | R201: =IF(MAX(C205:C216)-MIN(C205:C216)<5,AVERAGEIF(C205:C216,">0",R205:R216), IF(FORECAST($C201,R$205:R$216,$C$205:$C$216)<0,0, IF(FORECAST($C201,R$205:R$216,$C$205:$C$216)>100,100, FORECAST($C201,R$205:R$216,$C$205:$C$216)))) -> 13.11599371 | S201: =IF(MAX(C205:C216)-MIN(C205:C216)<5,AVERAGEIF(C205:C216,">0",S205:S216), IF(FORECAST($C201,S$205:S$216,$C$205:$C$216)<0,0, IF(FORECAST($C201,S$205:S$216,$C$205:$C$216)>100,100, FORECAST($C201,S$205:S$216,$C$205:$C$216)))) -> 97.00956439 | W201: =IF(MAX(C205:C216)-MIN(C205:C216)<5,AVERAGEIF(C205:C216,">0",W205:W216), IF(FORECAST($C201,W$205:W$216,$C$205:$C$216)<0,0, IF(FORECAST($C201,W$205:W$216,$C$205:$C$216)>100,100, FORECAST($C201,W$205:W$216,$C$205:$C$216)))) -> 1.083245252 | X201: =IF(MAX(C205:C216)-MIN(C205:C216)<5,AVERAGEIF(C205:C216,">0",X205:X216), IF(FORECAST($C201,X$205:X$216,$C$205:$C$216)<0,0, IF(FORECAST($C201,X$205:X$216,$C$205:$C$216)>100,100, FORECAST($C201,X$205:X$216,$C$205:$C$216)))) -> 100 | AB201: =IF(MAX(C205:C216)-MIN(C205:C216)<5,AVERAGEIF(C205:C216,">0",AB205:AB216), IF(FORECAST($C201,AB$205:AB$216,$C$205:$C$216)<0,0, IF(FORECAST($C201,AB$205:AB$216,$C$205:$C$216)>100,100, FORECAST($C201,AB$205:AB$216,$C$205:$C$216)))) -> 0
C202: =MaxRegYear(C200,C205:C216) -> 2016 | D202: =IF(MAX(C205:C216)-MIN(C205:C216)<5,AVERAGEIF(C205:C216,">0",D205:D216), IF(FORECAST($C202,D$205:D$216,$C$205:$C$216)<0,0, IF(FORECAST($C202,D$205:D$216,$C$205:$C$216)>100,100, FORECAST($C202,D$205:D$216,$C$205:$C$216)))) -> 88.49067816 | H202: =IF(MAX(C205:C216)-MIN(C205:C216)<5,AVERAGEIF(C205:C216,">0",H205:H216), IF(FORECAST($C202,H$205:H$216,$C$205:$C$216)<0,0, IF(FORECAST($C202,H$205:H$216,$C$205:$C$216)>100,100, FORECAST($C202,H$205:H$216,$C$205:$C$216)))) -> 10.18421796 | I202: =IF(MAX(C205:C216)-MIN(C205:C216)<5,AVERAGEIF(C205:C216,">0",I205:I216), IF(FORECAST($C202,I$205:I$216,$C$205:$C$216)<0,0, IF(FORECAST($C202,I$205:I$216,$C$205:$C$216)>100,100, FORECAST($C202,I$205:I$216,$C$205:$C$216)))) -> 100 | M202: =IF(MAX(C205:C216)-MIN(C205:C216)<5,AVERAGEIF(C205:C216,">0",M205:M216), IF(FORECAST($C202,M$205:M$216,$C$205:$C$216)<0,0, IF(FORECAST($C202,M$205:M$216,$C$205:$C$216)>100,100, FORECAST($C202,M$205:M$216,$C$205:$C$216)))) -> 0 | N202: =IF(MAX(C205:C216)-MIN(C205:C216)<5,AVERAGEIF(C205:C216,">0",N205:N216), IF(FORECAST($C202,N$205:N$216,$C$205:$C$216)<0,0, IF(FORECAST($C202,N$205:N$216,$C$205:$C$216)>100,100, FORECAST($C202,N$205:N$216,$C$205:$C$216)))) -> 100 | R202: =IF(MAX(C205:C216)-MIN(C205:C216)<5,AVERAGEIF(C205:C216,">0",R205:R216), IF(FORECAST($C202,R$205:R$216,$C$205:$C$216)<0,0, IF(FORECAST($C202,R$205:R$216,$C$205:$C$216)>100,100, FORECAST($C202,R$205:R$216,$C$205:$C$216)))) -> 0 | S202: =IF(MAX(C205:C216)-MIN(C205:C216)<5,AVERAGEIF(C205:C216,">0",S205:S216), IF(FORECAST($C202,S$205:S$216,$C$205:$C$216)<0,0, IF(FORECAST($C202,S$205:S$216,$C$205:$C$216)>100,100, FORECAST($C202,S$205:S$216,$C$205:$C$216)))) -> 100 | W202: =IF(MAX(C205:C216)-MIN(C205:C216)<5,AVERAGEIF(C205:C216,">0",W205:W216), IF(FORECAST($C202,W$205:W$216,$C$205:$C$216)<0,0, IF(FORECAST($C202,W$205:W$216,$C$205:$C$216)>100,100, FORECAST($C202,W$205:W$216,$C$205:$C$216)))) -> 0 | X202: =IF(MAX(C205:C216)-MIN(C205:C216)<5,AVERAGEIF(C205:C216,">0",X205:X216), IF(FORECAST($C202,X$205:X$216,$C$205:$C$216)<0,0, IF(FORECAST($C202,X$205:X$216,$C$205:$C$216)>100,100, FORECAST($C202,X$205:X$216,$C$205:$C$216)))) -> 99.91035544 | AB202: =IF(MAX(C205:C216)-MIN(C205:C216)<5,AVERAGEIF(C205:C216,">0",AB205:AB216), IF(FORECAST($C202,AB$205:AB$216,$C$205:$C$216)<0,0, IF(FORECAST($C202,AB$205:AB$216,$C$205:$C$216)>100,100, FORECAST($C202,AB$205:AB$216,$C$205:$C$216)))) -> 0
B204: Survey | C204: Year | D204: Improved | E204: Not shared | H204: Open defecation | I204: Improved | J204: Not shared | M204: Open defecation | N204: Improved | O204: Not shared | R204: Open defecation | S204: Improved | T204: Not shared | W204: Open defecation | X204: Improved | Y204: Not shared | AB204: Open defecation
B205: DHS05 | C205: 2005 | D205: =IF(ISERROR(INDIRECT(CONCATENATE($B205,"!H122"))),"",INDIRECT(CONCATENATE($B205,"!H122"))) -> 6.923943352 | E205: =IF(ISERROR(INDIRECT(CONCATENATE($B205,"!H129"))),"",INDIRECT(CONCATENATE($B205,"!H129"))) -> 54.80951117 | H205: =IF(ISERROR(INDIRECT(CONCATENATE($B205,"!H127"))),"",INDIRECT(CONCATENATE($B205,"!H127"))) -> 89.13642663 | I205: =IF(ISERROR(INDIRECT(CONCATENATE($B205,"!I122"))),"",INDIRECT(CONCATENATE($B205,"!I122"))) -> 40.32017237 | J205: =IF(ISERROR(INDIRECT(CONCATENATE($B205,"!I129"))),"",INDIRECT(CONCATENATE($B205,"!I129"))) -> 73.23347518 | M205: =IF(ISERROR(INDIRECT(CONCATENATE($B205,"!I127"))),"",INDIRECT(CONCATENATE($B205,"!I127"))) -> 51.8794267 | N205: =IF(ISERROR(INDIRECT(CONCATENATE($B205,"!J122"))),"",INDIRECT(CONCATENATE($B205,"!J122"))) -> 83.29013308 | O205: =IF(ISERROR(INDIRECT(CONCATENATE($B205,"!J129"))),"",INDIRECT(CONCATENATE($B205,"!J129"))) -> 86.21765793 | R205: =IF(ISERROR(INDIRECT(CONCATENATE($B205,"!J127"))),"",INDIRECT(CONCATENATE($B205,"!J127"))) -> 11.60880245 | S205: =IF(ISERROR(INDIRECT(CONCATENATE($B205,"!K122"))),"",INDIRECT(CONCATENATE($B205,"!K122"))) -> 97.30924259 | T205: =IF(ISERROR(INDIRECT(CONCATENATE($B205,"!K129"))),"",INDIRECT(CONCATENATE($B205,"!K129"))) -> 95.38529673 | W205: =IF(ISERROR(INDIRECT(CONCATENATE($B205,"!K127"))),"",INDIRECT(CONCATENATE($B205,"!K127"))) -> 0.9633871018 | X205: =IF(ISERROR(INDIRECT(CONCATENATE($B205,"!L122"))),"",INDIRECT(CONCATENATE($B205,"!L122"))) -> 100 | Y205: =IF(ISERROR(INDIRECT(CONCATENATE($B205,"!L129"))),"",INDIRECT(CONCATENATE($B205,"!L129"))) -> 99.23666561 | AB205: =IF(ISERROR(INDIRECT(CONCATENATE($B205,"!L2127"))),"",INDIRECT(CONCATENATE($B205,"!L127"))) -> 0
B206: DHS10 | C206: 2010 | D206: 51.85908597 | E206: 73.87555914 | H206: 46.40452233 | I206: 90.22941074 | J206: 84.0563356 | M206: 7.481453255 | N206: 97.68281969 | O206: 90.27810978 | R206: 1.72668577 | S206: 99.8198827 | T206: 97.66842468 | W206: 0.1445407474 | X206: 100 | Y206: 99.41907365 | AB206: 0
B207: DHS14 | C207: 2014 | D207: 70.65719492 | E207: 75.97186671 | H207: 27.15455707 | I207: 93.70694618 | J207: 89.79838328 | M207: 3.726105925 | N207: 98.57513881 | O207: 93.27166056 | R207: 0.3072959295 | S207: 99.95973182 | T207: 97.45602425 | W207: 0.04026818159 | X207: 99.91108426 | Y207: 98.70814631 | AB207: 0
B218: =CONCATENATE("Urban use of sanitation facilities, ",C199,"–",C200) -> Urban use of sanitation facilities, 2000–2020 | S218: Data points used for regression
A297: RURAL | D297: Poorest | I297: Poor | N297: Middle | S297: Rich | X297: Richest
D298: Improved | E298: Basic | F298: Limited | G298: Unimproved | H298: Open defecation | I298: Improved | J298: Basic | K298: Limited | L298: Unimproved | M298: Open defecation | N298: Improved | O298: Basic | P298: Limited | Q298: Unimproved | R298: Open defecation | S298: Improved | T298: Basic | U298: Limited | V298: Unimproved | W298: Open defecation | X298: Improved | Y298: Basic | Z298: Limited | AA298: Unimproved | AB298: Open defecation
A299: Forecast period: | C299: 2000 | D299: =IF((D301+H301)>100,D301*100/(D301+H301),D301) -> 0 | E299: =D299*AVERAGEIF(E305:E316,">0")/100 -> 0 | F299: =D299*(100-AVERAGEIF(E305:E316,">0"))/100 -> 0 | G299: =100-(E299+F299+H299) -> 0 | H299: =IF((D301+H301)>100,H301*100/(D301+H301),H301) -> 100 | I299: =IF((I301+M301)>100,I301*100/(I301+M301),I301) -> 0 | J299: =I299*AVERAGEIF(J305:J316,">0")/100 -> 0 | K299: =I299*(100-AVERAGEIF(J305:J316,">0"))/100 -> 0 | L299: =100-(J299+K299+M299) -> 1.421450085 | M299: =IF((I301+M301)>100,M301*100/(I301+M301),M301) -> 98.57854992 | N299: =IF((N301+R301)>100,N301*100/(N301+R301),N301) -> 0 | O299: =N299*AVERAGEIF(O305:O316,">0")/100 -> 0 | P299: =N299*(100-AVERAGEIF(O305:O316,">0"))/100 -> 0 | Q299: =100-(O299+P299+R299) -> 1.393614604 | R299: =IF((N301+R301)>100,R301*100/(N301+R301),R301) -> 98.6063854 | S299: =IF((S301+W301)>100,S301*100/(S301+W301),S301) -> 8.986003299 | T299: =S299*AVERAGEIF(T305:T316,">0")/100 -> 7.095569336 | U299: =S299*(100-AVERAGEIF(T305:T316,">0"))/100 -> 1.890433963 | V299: =100-(T299+U299+W299) -> 3.820494132 | W299: =IF((S301+W301)>100,W301*100/(S301+W301),W301) -> 87.19350257 | X299: =IF((X301+AB301)>100,X301*100/(X301+AB301),X301) -> 60.36858245 | Y299: =X299*AVERAGEIF(Y305:Y316,">0")/100 -> 51.75879159 | Z299: =X299*(100-AVERAGEIF(Y305:Y316,">0"))/100 -> 8.609790861 | AA299: =100-(Y299+Z299+AB299) -> 4.155871712 | AB299: =IF((X301+AB301)>100,AB301*100/(X301+AB301),AB301) -> 35.47554584
C300: 2020 | D300: =IF((D302+H302)>100,D302*100/(D302+H302),D302) -> 19.60757683 | E300: =D300*AVERAGEIF(E305:E316,">0")/100 -> 13.57920637 | F300: =D300*(100-AVERAGEIF(E305:E316,">0"))/100 -> 6.028370462 | G300: =100-(E300+F300+H300) -> 1.409055112 | H300: =IF((D302+H302)>100,H302*100/(D302+H302),H302) -> 78.98336806 | I300: =IF((I302+M302)>100,I302*100/(I302+M302),I302) -> 33.16299179 | J300: =I300*AVERAGEIF(J305:J316,">0")/100 -> 23.74017383 | K300: =I300*(100-AVERAGEIF(J305:J316,">0"))/100 -> 9.422817959 | L300: =100-(J300+K300+M300) -> 1.242067327 | M300: =IF((I302+M302)>100,M302*100/(I302+M302),M302) -> 65.59494088 | N300: =IF((N302+R302)>100,N302*100/(N302+R302),N302) -> 53.77927437 | O300: =N300*AVERAGEIF(O305:O316,">0")/100 -> 41.73472926 | P300: =N300*(100-AVERAGEIF(O305:O316,">0"))/100 -> 12.04454511 | Q300: =100-(O300+P300+R300) -> 0.7609530773 | R300: =IF((N302+R302)>100,R302*100/(N302+R302),R302) -> 45.45977255 | S300: =IF((S302+W302)>100,S302*100/(S302+W302),S302) -> 76.00631628 | T300: =S300*AVERAGEIF(T305:T316,">0")/100 -> 60.01645773 | U300: =S300*(100-AVERAGEIF(T305:T316,">0"))/100 -> 15.98985855 | V300: =100-(T300+U300+W300) -> 0.6964076807 | W300: =IF((S302+W302)>100,W302*100/(S302+W302),W302) -> 23.29727604 | X300: =IF((X302+AB302)>100,X302*100/(X302+AB302),X302) -> 92.02706813 | Y300: =X300*AVERAGEIF(Y305:Y316,">0")/100 -> 78.90213165 | Z300: =X300*(100-AVERAGEIF(Y305:Y316,">0"))/100 -> 13.12493648 | AA300: =100-(Y300+Z300+AB300) -> 0 | AB300: =IF((X302+AB302)>100,AB302*100/(X302+AB302),AB302) -> 7.972931868
A301: Regression period: | C301: =MinRegYear(C299,C305:C316) -> 2003 | D301: =IF(MAX(C305:C316)-MIN(C305:C316)<5,AVERAGEIF(C305:C316,">0",D305:D316), IF(FORECAST($C301,D$305:D$316,$C$305:$C$316)<0,0, IF(FORECAST($C301,D$305:D$316,$C$305:$C$316)>100,100, FORECAST($C301,D$305:D$316,$C$305:$C$316)))) -> 0 | H301: =IF(MAX(C305:C316)-MIN(C305:C316)<5,AVERAGEIF(C305:C316,">0",H305:H316), IF(FORECAST($C301,H$305:H$316,$C$305:$C$316)<0,0, IF(FORECAST($C301,H$305:H$316,$C$305:$C$316)>100,100, FORECAST($C301,H$305:H$316,$C$305:$C$316)))) -> 100 | I301: =IF(MAX(C305:C316)-MIN(C305:C316)<5,AVERAGEIF(C305:C316,">0",I305:I316), IF(FORECAST($C301,I$305:I$316,$C$305:$C$316)<0,0, IF(FORECAST($C301,I$305:I$316,$C$305:$C$316)>100,100, FORECAST($C301,I$305:I$316,$C$305:$C$316)))) -> 0 | M301: =IF(MAX(C305:C316)-MIN(C305:C316)<5,AVERAGEIF(C305:C316,">0",M305:M316), IF(FORECAST($C301,M$305:M$316,$C$305:$C$316)<0,0, IF(FORECAST($C301,M$305:M$316,$C$305:$C$316)>100,100, FORECAST($C301,M$305:M$316,$C$305:$C$316)))) -> 98.57854992 | N301: =IF(MAX(C305:C316)-MIN(C305:C316)<5,AVERAGEIF(C305:C316,">0",N305:N316), IF(FORECAST($C301,N$305:N$316,$C$305:$C$316)<0,0, IF(FORECAST($C301,N$305:N$316,$C$305:$C$316)>100,100, FORECAST($C301,N$305:N$316,$C$305:$C$316)))) -> 0 | R301: =IF(MAX(C305:C316)-MIN(C305:C316)<5,AVERAGEIF(C305:C316,">0",R305:R316), IF(FORECAST($C301,R$305:R$316,$C$305:$C$316)<0,0, IF(FORECAST($C301,R$305:R$316,$C$305:$C$316)>100,100, FORECAST($C301,R$305:R$316,$C$305:$C$316)))) -> 98.6063854 | S301: =IF(MAX(C305:C316)-MIN(C305:C316)<5,AVERAGEIF(C305:C316,">0",S305:S316), IF(FORECAST($C301,S$305:S$316,$C$305:$C$316)<0,0, IF(FORECAST($C301,S$305:S$316,$C$305:$C$316)>100,100, FORECAST($C301,S$305:S$316,$C$305:$C$316)))) -> 8.986003299 | W301: =IF(MAX(C305:C316)-MIN(C305:C316)<5,AVERAGEIF(C305:C316,">0",W305:W316), IF(FORECAST($C301,W$305:W$316,$C$305:$C$316)<0,0, IF(FORECAST($C301,W$305:W$316,$C$305:$C$316)>100,100, FORECAST($C301,W$305:W$316,$C$305:$C$316)))) -> 87.19350257 | X301: =IF(MAX(C305:C316)-MIN(C305:C316)<5,AVERAGEIF(C305:C316,">0",X305:X316), IF(FORECAST($C301,X$305:X$316,$C$305:$C$316)<0,0, IF(FORECAST($C301,X$305:X$316,$C$305:$C$316)>100,100, FORECAST($C301,X$305:X$316,$C$305:$C$316)))) -> 60.36858245 | AB301: =IF(MAX(C305:C316)-MIN(C305:C316)<5,AVERAGEIF(C305:C316,">0",AB305:AB316), IF(FORECAST($C301,AB$305:AB$316,$C$305:$C$316)<0,0, IF(FORECAST($C301,AB$305:AB$316,$C$305:$C$316)>100,100, FORECAST($C301,AB$305:AB$316,$C$305:$C$316)))) -> 35.47554584
C302: =MaxRegYear(C300,C305:C316) -> 2016 | D302: =IF(MAX(C305:C316)-MIN(C305:C316)<5,AVERAGEIF(C305:C316,">0",D305:D316), IF(FORECAST($C302,D$305:D$316,$C$305:$C$316)<0,0, IF(FORECAST($C302,D$305:D$316,$C$305:$C$316)>100,100, FORECAST($C302,D$305:D$316,$C$305:$C$316)))) -> 19.60757683 | H302: =IF(MAX(C305:C316)-MIN(C305:C316)<5,AVERAGEIF(C305:C316,">0",H305:H316), IF(FORECAST($C302,H$305:H$316,$C$305:$C$316)<0,0, IF(FORECAST($C302,H$305:H$316,$C$305:$C$316)>100,100, FORECAST($C302,H$305:H$316,$C$305:$C$316)))) -> 78.98336806 | I302: =IF(MAX(C305:C316)-MIN(C305:C316)<5,AVERAGEIF(C305:C316,">0",I305:I316), IF(FORECAST($C302,I$305:I$316,$C$305:$C$316)<0,0, IF(FORECAST($C302,I$305:I$316,$C$305:$C$316)>100,100, FORECAST($C302,I$305:I$316,$C$305:$C$316)))) -> 33.16299179 | M302: =IF(MAX(C305:C316)-MIN(C305:C316)<5,AVERAGEIF(C305:C316,">0",M305:M316), IF(FORECAST($C302,M$305:M$316,$C$305:$C$316)<0,0, IF(FORECAST($C302,M$305:M$316,$C$305:$C$316)>100,100, FORECAST($C302,M$305:M$316,$C$305:$C$316)))) -> 65.59494088 | N302: =IF(MAX(C305:C316)-MIN(C305:C316)<5,AVERAGEIF(C305:C316,">0",N305:N316), IF(FORECAST($C302,N$305:N$316,$C$305:$C$316)<0,0, IF(FORECAST($C302,N$305:N$316,$C$305:$C$316)>100,100, FORECAST($C302,N$305:N$316,$C$305:$C$316)))) -> 53.77927437 | R302: =IF(MAX(C305:C316)-MIN(C305:C316)<5,AVERAGEIF(C305:C316,">0",R305:R316), IF(FORECAST($C302,R$305:R$316,$C$305:$C$316)<0,0, IF(FORECAST($C302,R$305:R$316,$C$305:$C$316)>100,100, FORECAST($C302,R$305:R$316,$C$305:$C$316)))) -> 45.45977255 | S302: =IF(MAX(C305:C316)-MIN(C305:C316)<5,AVERAGEIF(C305:C316,">0",S305:S316), IF(FORECAST($C302,S$305:S$316,$C$305:$C$316)<0,0, IF(FORECAST($C302,S$305:S$316,$C$305:$C$316)>100,100, FORECAST($C302,S$305:S$316,$C$305:$C$316)))) -> 76.00631628 | W302: =IF(MAX(C305:C316)-MIN(C305:C316)<5,AVERAGEIF(C305:C316,">0",W305:W316), IF(FORECAST($C302,W$305:W$316,$C$305:$C$316)<0,0, IF(FORECAST($C302,W$305:W$316,$C$305:$C$316)>100,100, FORECAST($C302,W$305:W$316,$C$305:$C$316)))) -> 23.29727604 | X302: =IF(MAX(C305:C316)-MIN(C305:C316)<5,AVERAGEIF(C305:C316,">0",X305:X316), IF(FORECAST($C302,X$305:X$316,$C$305:$C$316)<0,0, IF(FORECAST($C302,X$305:X$316,$C$305:$C$316)>100,100, FORECAST($C302,X$305:X$316,$C$305:$C$316)))) -> 92.05016941 | AB302: =IF(MAX(C305:C316)-MIN(C305:C316)<5,AVERAGEIF(C305:C316,">0",AB305:AB316), IF(FORECAST($C302,AB$305:AB$316,$C$305:$C$316)<0,0, IF(FORECAST($C302,AB$305:AB$316,$C$305:$C$316)>100,100, FORECAST($C302,AB$305:AB$316,$C$305:$C$316)))) -> 7.974933289
B304: Survey | C304: Year | D304: Improved | E304: Not shared | H304: Open defecation | I304: Improved | J304: Not shared | M304: Open defecation | N304: Improved | O304: Not shared | R304: Open defecation | S304: Improved | T304: Not shared | W304: Open defecation | X304: Improved | Y304: Not shared | AB304: Open defecation
B305: DHS05 | C305: 2005 | D305: =IF(ISERROR(INDIRECT(CONCATENATE($B305,"!M122"))),"",INDIRECT(CONCATENATE($B305,"!M122"))) -> 2.815016289 | E305: =IF(ISERROR(INDIRECT(CONCATENATE($B305,"!M129"))),"",INDIRECT(CONCATENATE($B305,"!M129"))) -> 65.20413775 | H305: =IF(ISERROR(INDIRECT(CONCATENATE($B305,"!M127"))),"",INDIRECT(CONCATENATE($B305,"!M127"))) -> 96.52561278 | I305: =IF(ISERROR(INDIRECT(CONCATENATE($B305,"!N122"))),"",INDIRECT(CONCATENATE($B305,"!N122"))) -> 5.40325261 | J305: =IF(ISERROR(INDIRECT(CONCATENATE($B305,"!N129"))),"",INDIRECT(CONCATENATE($B305,"!N129"))) -> 72.06406219 | M305: =IF(ISERROR(INDIRECT(CONCATENATE($B305,"!N127"))),"",INDIRECT(CONCATENATE($B305,"!N127"))) -> 92.87012519 | N305: =IF(ISERROR(INDIRECT(CONCATENATE($B305,"!O122"))),"",INDIRECT(CONCATENATE($B305,"!O122"))) -> 8.709484719 | O305: =IF(ISERROR(INDIRECT(CONCATENATE($B305,"!O129"))),"",INDIRECT(CONCATENATE($B305,"!O129"))) -> 77.30365041 | R305: =IF(ISERROR(INDIRECT(CONCATENATE($B305,"!O127"))),"",INDIRECT(CONCATENATE($B305,"!O127"))) -> 89.17537481 | S305: =IF(ISERROR(INDIRECT(CONCATENATE($B305,"!P122"))),"",INDIRECT(CONCATENATE($B305,"!P122"))) -> 20.60954898 | T305: =IF(ISERROR(INDIRECT(CONCATENATE($B305,"!P129"))),"",INDIRECT(CONCATENATE($B305,"!P129"))) -> 77.09232574 | W305: =IF(ISERROR(INDIRECT(CONCATENATE($B305,"!P127"))),"",INDIRECT(CONCATENATE($B305,"!P127"))) -> 76.36885573 | X305: =IF(ISERROR(INDIRECT(CONCATENATE($B305,"!Q122"))),"",INDIRECT(CONCATENATE($B305,"!Q122"))) -> 66.49424647 | Y305: =IF(ISERROR(INDIRECT(CONCATENATE($B305,"!Q129"))),"",INDIRECT(CONCATENATE($B305,"!Q129"))) -> 84.14639801 | AB305: =IF(ISERROR(INDIRECT(CONCATENATE($B305,"!Q2127"))),"",INDIRECT(CONCATENATE($B305,"!Q127"))) -> 30.17454585
B306: DHS10 | C306: 2010 | D306: 7.856639381 | E306: 67.08844328 | H306: 90.83247376 | I306: 15.42079643 | J306: 67.1151776 | M306: 82.24469755 | N306: 24.39356174 | O306: 75.18536423 | R306: 72.81184786 | S306: 42.12022547 | T306: 78.3070855 | W306: 55.02537295 | X306: 74.61185764 | Y306: 85.08425561 | AB306: 23.07533085
B307: DHS14 | C307: 2014 | D307: 17.54457808 | E307: 75.4720982 | H307: 81.30141504 | I307: 29.10946091 | J307: 75.57979625 | M307: 69.87681311 | N307: 47.41975072 | O307: 80.32221096 | R307: 52.06791376 | S307: 67.33640927 | T307: 81.48797128 | W307: 31.88439206 | X307: 88.74054625 | Y307: 87.98322895 | AB307: 10.86812612
B318: =CONCATENATE("Rural use of sanitation facilities, ",C299,"–",C300) -> Rural use of sanitation facilities, 2000–2020 | S318: Data points used for regression

Sheet Hygiene
B4: Access to hygiene facilities by wealth quintile (%)
B5: =IF(ISERROR(INDIRECT(CONCATENATE($E$32,"!A2"))),"",INDIRECT(CONCATENATE($E$32,"!A2"))) -> Cambodia
B7: =CONCATENATE("National ",IF(ISERROR(INDIRECT(CONCATENATE($E$32,"!A2"))),"",INDIRECT(CONCATENATE($E$32,"!A210")))) -> National Access to hygiene facilities | K7: =CONCATENATE("Urban ",IF(ISERROR(INDIRECT(CONCATENATE($E$32,"!A2"))),"",INDIRECT(CONCATENATE($E$32,"!A210")))) -> Urban Access to hygiene facilities | S7: =CONCATENATE("Rural ",IF(ISERROR(INDIRECT(CONCATENATE($E$32,"!A2"))),"",INDIRECT(CONCATENATE($E$32,"!A210")))) -> Rural Access to hygiene facilities
E32: =INDEX(B88:B100,A88) -> DHS14 | G32: =IF(ISERROR(INDIRECT(CONCATENATE($E$32,"!A2"))),"",INDIRECT(CONCATENATE($E$32,"!A2"))) -> Cambodia | K32: Poorest | N32: Poor | Q32: Middle | T32: Rich | W32: Richest
K33: Basic | L33: Limited | M33: No facility | N33: Basic | O33: Limited | P33: No facility | Q33: Basic | R33: Limited | S33: No facility | T33: Basic | U33: Limited | V33: No facility | W33: Basic | X33: Limited | Y33: No facility
B34: >>> Select Survey : | G34: NATIONAL | J34: =IF(ISERROR(INDIRECT(CONCATENATE(#REF!,"!A2"))),"",INDIRECT(CONCATENATE(#REF!,"!A210"))) ->  | K34: =IF(ISERROR(INDIRECT(CONCATENATE($E$32,"!C222"))),"",INDIRECT(CONCATENATE($E$32,"!C222"))) -> 48.80432103 | L34: =IF(ISERROR(INDIRECT(CONCATENATE($E$32,"!C223"))),"",INDIRECT(CONCATENATE($E$32,"!C223"))) -> 24.27152595 | M34: =IF(ISERROR(INDIRECT(CONCATENATE($E$32,"!C224"))),"",INDIRECT(CONCATENATE($E$32,"!C224"))) -> 26.92415302 | N34: =IF(ISERROR(INDIRECT(CONCATENATE($E$32,"!D222"))),"",INDIRECT(CONCATENATE($E$32,"!D222"))) -> 58.83787574 | O34: =IF(ISERROR(INDIRECT(CONCATENATE($E$32,"!D223"))),"",INDIRECT(CONCATENATE($E$32,"!D223"))) -> 21.52983205 | P34: =IF(ISERROR(INDIRECT(CONCATENATE($E$32,"!D224"))),"",INDIRECT(CONCATENATE($E$32,"!D224"))) -> 19.63229221 | Q34: =IF(ISERROR(INDIRECT(CONCATENATE($E$32,"!E222"))),"",INDIRECT(CONCATENATE($E$32,"!E222"))) -> 66.54856703 | R34: =IF(ISERROR(INDIRECT(CONCATENATE($E$32,"!E223"))),"",INDIRECT(CONCATENATE($E$32,"!E223"))) -> 19.78017368 | S34: =IF(ISERROR(INDIRECT(CONCATENATE($E$32,"!E224"))),"",INDIRECT(CONCATENATE($E$32,"!E224"))) -> 13.67125929 | T34: =IF(ISERROR(INDIRECT(CONCATENATE($E$32,"!F222"))),"",INDIRECT(CONCATENATE($E$32,"!F222"))) -> 77.30661019 | U34: =IF(ISERROR(INDIRECT(CONCATENATE($E$32,"!F223"))),"",INDIRECT(CONCATENATE($E$32,"!F223"))) -> 12.84581383 | V34: =IF(ISERROR(INDIRECT(CONCATENATE($E$32,"!F224"))),"",INDIRECT(CONCATENATE($E$32,"!F224"))) -> 9.847575976 | W34: =IF(ISERROR(INDIRECT(CONCATENATE($E$32,"!G222"))),"",INDIRECT(CONCATENATE($E$32,"!G222"))) -> 90.41589312 | X34: =IF(ISERROR(INDIRECT(CONCATENATE($E$32,"!G223"))),"",INDIRECT(CONCATENATE($E$32,"!G223"))) -> 5.488764972 | Y34: =IF(ISERROR(INDIRECT(CONCATENATE($E$32,"!G224"))),"",INDIRECT(CONCATENATE($E$32,"!G224"))) -> 4.095341908
G37: URBAN | J37: =IF(ISERROR(INDIRECT(CONCATENATE(#REF!,"!A2"))),"",INDIRECT(CONCATENATE(#REF!,"!A210"))) ->  | K37: =IF(ISERROR(INDIRECT(CONCATENATE($E$32,"!H222"))),"",INDIRECT(CONCATENATE($E$32,"!H222"))) -> 78.74678014 | L37: =IF(ISERROR(INDIRECT(CONCATENATE($E$32,"!H223"))),"",INDIRECT(CONCATENATE($E$32,"!H223"))) -> 13.8563269 | M37: =IF(ISERROR(INDIRECT(CONCATENATE($E$32,"!H224"))),"",INDIRECT(CONCATENATE($E$32,"!H224"))) -> 7.396892964 | N37: =IF(ISERROR(INDIRECT(CONCATENATE($E$32,"!I222"))),"",INDIRECT(CONCATENATE($E$32,"!I222"))) -> 90.14771289 | O37: =IF(ISERROR(INDIRECT(CONCATENATE($E$32,"!I223"))),"",INDIRECT(CONCATENATE($E$32,"!I223"))) -> 7.213858958 | P37: =IF(ISERROR(INDIRECT(CONCATENATE($E$32,"!I224"))),"",INDIRECT(CONCATENATE($E$32,"!I224"))) -> 2.638428148 | Q37: =IF(ISERROR(INDIRECT(CONCATENATE($E$32,"!J222"))),"",INDIRECT(CONCATENATE($E$32,"!J222"))) -> 94.87512224 | R37: =IF(ISERROR(INDIRECT(CONCATENATE($E$32,"!J223"))),"",INDIRECT(CONCATENATE($E$32,"!J223"))) -> 3.275063113 | S37: =IF(ISERROR(INDIRECT(CONCATENATE($E$32,"!J224"))),"",INDIRECT(CONCATENATE($E$32,"!J224"))) -> 1.849814651 | T37: =IF(ISERROR(INDIRECT(CONCATENATE($E$32,"!K222"))),"",INDIRECT(CONCATENATE($E$32,"!K222"))) -> 96.34805461 | U37: =IF(ISERROR(INDIRECT(CONCATENATE($E$32,"!K223"))),"",INDIRECT(CONCATENATE($E$32,"!K223"))) -> 1.778991275 | V37: =IF(ISERROR(INDIRECT(CONCATENATE($E$32,"!K224"))),"",INDIRECT(CONCATENATE($E$32,"!K224"))) -> 1.872954116 | W37: =IF(ISERROR(INDIRECT(CONCATENATE($E$32,"!L222"))),"",INDIRECT(CONCATENATE($E$32,"!L222"))) -> 99.03599288 | X37: =IF(ISERROR(INDIRECT(CONCATENATE($E$32,"!L223"))),"",INDIRECT(CONCATENATE($E$32,"!L223"))) -> 0.8006905918 | Y37: =IF(ISERROR(INDIRECT(CONCATENATE($E$32,"!L224"))),"",INDIRECT(CONCATENATE($E$32,"!L224"))) -> 0.1633165329
G40: RURAL | J40: =IF(ISERROR(INDIRECT(CONCATENATE(#REF!,"!A2"))),"",INDIRECT(CONCATENATE(#REF!,"!A210"))) ->  | K40: =IF(ISERROR(INDIRECT(CONCATENATE($E$32,"!M222"))),"",INDIRECT(CONCATENATE($E$32,"!M222"))) -> 47.27869434 | L40: =IF(ISERROR(INDIRECT(CONCATENATE($E$32,"!M223"))),"",INDIRECT(CONCATENATE($E$32,"!M223"))) -> 24.41688052 | M40: =IF(ISERROR(INDIRECT(CONCATENATE($E$32,"!M224"))),"",INDIRECT(CONCATENATE($E$32,"!M224"))) -> 28.30442514 | N40: =IF(ISERROR(INDIRECT(CONCATENATE($E$32,"!N222"))),"",INDIRECT(CONCATENATE($E$32,"!N222"))) -> 56.85885198 | O40: =IF(ISERROR(INDIRECT(CONCATENATE($E$32,"!N223"))),"",INDIRECT(CONCATENATE($E$32,"!N223"))) -> 22.04334021 | P40: =IF(ISERROR(INDIRECT(CONCATENATE($E$32,"!N224"))),"",INDIRECT(CONCATENATE($E$32,"!N224"))) -> 21.09780781 | Q40: =IF(ISERROR(INDIRECT(CONCATENATE($E$32,"!O222"))),"",INDIRECT(CONCATENATE($E$32,"!O222"))) -> 63.58558055 | R40: =IF(ISERROR(INDIRECT(CONCATENATE($E$32,"!O223"))),"",INDIRECT(CONCATENATE($E$32,"!O223"))) -> 20.89298935 | S40: =IF(ISERROR(INDIRECT(CONCATENATE($E$32,"!O224"))),"",INDIRECT(CONCATENATE($E$32,"!O224"))) -> 15.52143011 | T40: =IF(ISERROR(INDIRECT(CONCATENATE($E$32,"!P222"))),"",INDIRECT(CONCATENATE($E$32,"!P222"))) -> 71.36335374 | U40: =IF(ISERROR(INDIRECT(CONCATENATE($E$32,"!P223"))),"",INDIRECT(CONCATENATE($E$32,"!P223"))) -> 17.11864001 | V40: =IF(ISERROR(INDIRECT(CONCATENATE($E$32,"!P224"))),"",INDIRECT(CONCATENATE($E$32,"!P224"))) -> 11.51800625 | W40: =IF(ISERROR(INDIRECT(CONCATENATE($E$32,"!Q222"))),"",INDIRECT(CONCATENATE($E$32,"!Q222"))) -> 80.83462743 | X40: =IF(ISERROR(INDIRECT(CONCATENATE($E$32,"!Q223"))),"",INDIRECT(CONCATENATE($E$32,"!Q223"))) -> 10.13405249 | Y40: =IF(ISERROR(INDIRECT(CONCATENATE($E$32,"!Q224"))),"",INDIRECT(CONCATENATE($E$32,"!Q224"))) -> 9.03132008
A88: 3 | B88: DHS05
B89: DHS10
B90: DHS14
B91: DHS05_Dry
B92: DHS05_Wet
B93: DHS10_Dry
B94: DHS10_Wet
B95: DHS14_Dry
B96: DHS14_Wet
B97: Template

Sheet DHS05
A2: =A1026 -> Cambodia
A3: =A1034 -> 2005
A4: Use of drinking water sources
A5: by wealth quintile and sub-national region
A6: Notes:
A7: WHO/UNICEF JMP customised wealth index excludes water,
A8: sanitation and hygiene assets.
A9: Survey used for analysis: | B9: =A1025 -> DHS05
A10: =B1028 -> 
A11: =B1027 -> 
A14: Use of drinking water sources | C14: NATIONAL wealth index quintile | H14: URBAN wealth index quintile | M14: RURAL wealth index quintile | R14: SUB-REGIONS: | BA14: Raw numbers of respondents: | BB14: Use of drinking water sources | BC14: NATIONAL wealth index quintile | BH14: URBAN wealth index quintile | BM14: RURAL wealth index quintile | BR14: SUB-REGIONS:
A15: Weighted percentage (used in graphs) | C15: Poorest | D15: Poor | E15: Middle | F15: Rich | G15: Richest | H15: Poorest | I15: Poor | J15: Middle | K15: Rich | L15: Richest | M15: Poorest | N15: Poor | O15: Middle | P15: Rich | Q15: Richest | R15: Banteay Mean Chey | S15: Battambang & Krong Pailin | T15: Kampong Cham | U15: Kampong Chhnang | V15: Kampong Speu | W15: Kampong Thom | X15: Kampot & Krong Kep | Y15: Kandal | Z15: Kratie | AA15: Krong Preah Sihanouk & Kaoh Kong | AB15: Mondol Kiri & Rattanak Kiri | AC15: Otdar Mean Chey | AD15: Phnom Penh | AE15: Preah Vihear & Steung Treng | AF15: Prey Veng | AG15: Pursat | AH15: Siem Reap | AI15: Svay Rieng | AJ15: Takeo | BA15: Water data, raw numbers (weighted) | BC15: Poorest | BD15: Poor | BE15: Middle | BF15: Rich | BG15: Richest | BH15: Poorest | BI15: Poor | BJ15: Middle | BK15: Rich | BL15: Richest | BM15: Poorest | BN15: Poor | BO15: Middle | BP15: Rich | BQ15: Richest | BR15: Banteay Mean Chey | BS15: Battambang & Krong Pailin | BT15: Kampong Cham | BU15: Kampong Chhnang | BV15: Kampong Speu | BW15: Kampong Thom | BX15: Kampot & Krong Kep | BY15: Kandal | BZ15: Kratie | CA15: Krong Preah Sihanouk & Kaoh Kong | CB15: Mondol Kiri & Rattanak Kiri | CC15: Otdar Mean Chey | CD15: Phnom Penh | CE15: Preah Vihear & Steung Treng | CF15: Prey Veng | CG15: Pursat | CH15: Siem Reap | CI15: Svay Rieng | CJ15: Takeo
A16: Water | B16: Improved | C16: =(DHS_Wet05!C16+DHS_Dry05!C16)/2 -> 57.35864753 | D16: =(DHS_Wet05!D16+DHS_Dry05!D16)/2 -> 62.60911164 | E16: =(DHS_Wet05!E16+DHS_Dry05!E16)/2 -> 65.39839662 | F16: =(DHS_Wet05!F16+DHS_Dry05!F16)/2 -> 71.4728126 | G16: =(DHS_Wet05!G16+DHS_Dry05!G16)/2 -> 88.52330338 | H16: =(DHS_Wet05!H16+DHS_Dry05!H16)/2 -> 65.07548387 | I16: =(DHS_Wet05!I16+DHS_Dry05!I16)/2 -> 78.80101827 | J16: =(DHS_Wet05!J16+DHS_Dry05!J16)/2 -> 92.02781296 | K16: =(DHS_Wet05!K16+DHS_Dry05!K16)/2 -> 96.42241457 | L16: =(DHS_Wet05!L16+DHS_Dry05!L16)/2 -> 99.69049774 | M16: =(DHS_Wet05!M16+DHS_Dry05!M16)/2 -> 56.64488699 | N16: =(DHS_Wet05!N16+DHS_Dry05!N16)/2 -> 62.19688486 | O16: =(DHS_Wet05!O16+DHS_Dry05!O16)/2 -> 63.12204633 | P16: =(DHS_Wet05!P16+DHS_Dry05!P16)/2 -> 68.73795268 | Q16: =(DHS_Wet05!Q16+DHS_Dry05!Q16)/2 -> 78.93173512 | R16: =(DHS_Wet05!R16+DHS_Dry05!R16)/2 -> 57.00307514 | S16: =(DHS_Wet05!S16+DHS_Dry05!S16)/2 -> 55.82700925 | T16: =(DHS_Wet05!T16+DHS_Dry05!T16)/2 -> 71.25064569 | U16: =(DHS_Wet05!U16+DHS_Dry05!U16)/2 -> 52.00494107 | V16: =(DHS_Wet05!V16+DHS_Dry05!V16)/2 -> 74.45064863 | W16: =(DHS_Wet05!W16+DHS_Dry05!W16)/2 -> 45.10779074 | X16: =(DHS_Wet05!X16+DHS_Dry05!X16)/2 -> 63.20527005 | Y16: =(DHS_Wet05!Y16+DHS_Dry05!Y16)/2 -> 64.92345139 | Z16: =(DHS_Wet05!Z16+DHS_Dry05!Z16)/2 -> 52.08028112 | AA16: =(DHS_Wet05!AA16+DHS_Dry05!AA16)/2 -> 83.47157632 | AB16: =(DHS_Wet05!AB16+DHS_Dry05!AB16)/2 -> 35.53789175 | AC16: =(DHS_Wet05!AC16+DHS_Dry05!AC16)/2 -> 73.24017729 | AD16: =(DHS_Wet05!AD16+DHS_Dry05!AD16)/2 -> 94.28732005 | AE16: =(DHS_Wet05!AE16+DHS_Dry05!AE16)/2 -> 44.29704675 | AF16: =(DHS_Wet05!AF16+DHS_Dry05!AF16)/2 -> 88.51729064 | AG16: =(DHS_Wet05!AG16+DHS_Dry05!AG16)/2 -> 67.75797576 | AH16: =(DHS_Wet05!AH16+DHS_Dry05!AH16)/2 -> 61.04570023 | AI16: =(DHS_Wet05!AI16+DHS_Dry05!AI16)/2 -> 96.20144299 | AJ16: =(DHS_Wet05!AJ16+DHS_Dry05!AJ16)/2 -> 70.47759714 | BA16: Water | BB16: Improved | BC16: N/A | BD16: N/A | BE16: N/A | BF16: N/A | BG16: N/A | BH16: N/A | BI16: N/A | BJ16: N/A | BK16: N/A | BL16: N/A | BM16: N/A | BN16: N/A | BO16: N/A | BP16: N/A | BQ16: N/A | BR16: N/A | BS16: N/A | BT16: N/A | BU16: N/A | BV16: N/A | BW16: N/A | BX16: N/A | BY16: N/A | BZ16: N/A | CA16: N/A | CB16: N/A | CC16: N/A | CD16: N/A | CE16: N/A | CF16: N/A | CG16: N/A | CH16: N/A | CI16: N/A | CJ16: N/A
B17: Not Improved | C17: =(DHS_Wet05!C17+DHS_Dry05!C17)/2 -> 42.64135247 | D17: =(DHS_Wet05!D17+DHS_Dry05!D17)/2 -> 37.39088836 | E17: =(DHS_Wet05!E17+DHS_Dry05!E17)/2 -> 34.60160338 | F17: =(DHS_Wet05!F17+DHS_Dry05!F17)/2 -> 28.5271874 | G17: =(DHS_Wet05!G17+DHS_Dry05!G17)/2 -> 11.47669662 | H17: =(DHS_Wet05!H17+DHS_Dry05!H17)/2 -> 34.92451613 | I17: =(DHS_Wet05!I17+DHS_Dry05!I17)/2 -> 21.19898173 | J17: =(DHS_Wet05!J17+DHS_Dry05!J17)/2 -> 7.972187044 | K17: =(DHS_Wet05!K17+DHS_Dry05!K17)/2 -> 3.577585427 | L17: =(DHS_Wet05!L17+DHS_Dry05!L17)/2 -> 0.3095022632 | M17: =(DHS_Wet05!M17+DHS_Dry05!M17)/2 -> 43.35511301 | N17: =(DHS_Wet05!N17+DHS_Dry05!N17)/2 -> 37.80311514 | O17: =(DHS_Wet05!O17+DHS_Dry05!O17)/2 -> 36.87795367 | P17: =(DHS_Wet05!P17+DHS_Dry05!P17)/2 -> 31.26204732 | Q17: =(DHS_Wet05!Q17+DHS_Dry05!Q17)/2 -> 21.06826488 | R17: =(DHS_Wet05!R17+DHS_Dry05!R17)/2 -> 42.99692486 | S17: =(DHS_Wet05!S17+DHS_Dry05!S17)/2 -> 44.17299075 | T17: =(DHS_Wet05!T17+DHS_Dry05!T17)/2 -> 28.74935431 | U17: =(DHS_Wet05!U17+DHS_Dry05!U17)/2 -> 47.99505893 | V17: =(DHS_Wet05!V17+DHS_Dry05!V17)/2 -> 25.54935137 | W17: =(DHS_Wet05!W17+DHS_Dry05!W17)/2 -> 54.89220926 | X17: =(DHS_Wet05!X17+DHS_Dry05!X17)/2 -> 36.79472995 | Y17: =(DHS_Wet05!Y17+DHS_Dry05!Y17)/2 -> 35.07654861 | Z17: =(DHS_Wet05!Z17+DHS_Dry05!Z17)/2 -> 47.91971888 | AA17: =(DHS_Wet05!AA17+DHS_Dry05!AA17)/2 -> 16.52842368 | AB17: =(DHS_Wet05!AB17+DHS_Dry05!AB17)/2 -> 64.46210825 | AC17: =(DHS_Wet05!AC17+DHS_Dry05!AC17)/2 -> 26.75982271 | AD17: =(DHS_Wet05!AD17+DHS_Dry05!AD17)/2 -> 5.712679954 | AE17: =(DHS_Wet05!AE17+DHS_Dry05!AE17)/2 -> 55.70295325 | AF17: =(DHS_Wet05!AF17+DHS_Dry05!AF17)/2 -> 11.48270936 | AG17: =(DHS_Wet05!AG17+DHS_Dry05!AG17)/2 -> 32.24202424 | AH17: =(DHS_Wet05!AH17+DHS_Dry05!AH17)/2 -> 38.95429977 | AI17: =(DHS_Wet05!AI17+DHS_Dry05!AI17)/2 -> 3.798557009 | AJ17: =(DHS_Wet05!AJ17+DHS_Dry05!AJ17)/2 -> 29.52240286 | BB17: Not Improved | BC17: N/A | BD17: N/A | BE17: N/A | BF17: N/A | BG17: N/A | BH17: N/A | BI17: N/A | BJ17: N/A | BK17: N/A | BL17: N/A | BM17: N/A | BN17: N/A | BO17: N/A | BP17: N/A | BQ17: N/A | BR17: N/A | BS17: N/A | BT17: N/A | BU17: N/A | BV17: N/A | BW17: N/A | BX17: N/A | BY17: N/A | BZ17: N/A | CA17: N/A | CB17: N/A | CC17: N/A | CD17: N/A | CE17: N/A | CF17: N/A | CG17: N/A | CH17: N/A | CI17: N/A | CJ17: N/A
A18: Water ladder | B18: Basic | C18: =(DHS_Wet05!C18+DHS_Dry05!C18)/2 -> 56.50994319 | D18: =(DHS_Wet05!D18+DHS_Dry05!D18)/2 -> 62.28975771 | E18: =(DHS_Wet05!E18+DHS_Dry05!E18)/2 -> 65.09711602 | F18: =(DHS_Wet05!F18+DHS_Dry05!F18)/2 -> 71.07750951 | G18: =(DHS_Wet05!G18+DHS_Dry05!G18)/2 -> 88.39652265 | H18: =(DHS_Wet05!H18+DHS_Dry05!H18)/2 -> 64.56080193 | I18: =(DHS_Wet05!I18+DHS_Dry05!I18)/2 -> 78.80101827 | J18: =(DHS_Wet05!J18+DHS_Dry05!J18)/2 -> 91.90755979 | K18: =(DHS_Wet05!K18+DHS_Dry05!K18)/2 -> 96.42241457 | L18: =(DHS_Wet05!L18+DHS_Dry05!L18)/2 -> 99.69049774 | M18: =(DHS_Wet05!M18+DHS_Dry05!M18)/2 -> 55.71112064 | N18: =(DHS_Wet05!N18+DHS_Dry05!N18)/2 -> 61.87741636 | O18: =(DHS_Wet05!O18+DHS_Dry05!O18)/2 -> 62.81196433 | P18: =(DHS_Wet05!P18+DHS_Dry05!P18)/2 -> 68.31827389 | Q18: =(DHS_Wet05!Q18+DHS_Dry05!Q18)/2 -> 78.67966956 | R18: =(DHS_Wet05!R18+DHS_Dry05!R18)/2 -> 56.871315 | S18: =(DHS_Wet05!S18+DHS_Dry05!S18)/2 -> 55.75150479 | T18: =(DHS_Wet05!T18+DHS_Dry05!T18)/2 -> 71.20284318 | U18: =(DHS_Wet05!U18+DHS_Dry05!U18)/2 -> 50.34720207 | V18: =(DHS_Wet05!V18+DHS_Dry05!V18)/2 -> 73.59911099 | W18: =(DHS_Wet05!W18+DHS_Dry05!W18)/2 -> 45.04205581 | X18: =(DHS_Wet05!X18+DHS_Dry05!X18)/2 -> 62.95446253 | Y18: =(DHS_Wet05!Y18+DHS_Dry05!Y18)/2 -> 64.77062272 | Z18: =(DHS_Wet05!Z18+DHS_Dry05!Z18)/2 -> 52.02838149 | AA18: =(DHS_Wet05!AA18+DHS_Dry05!AA18)/2 -> 82.44923978 | AB18: =(DHS_Wet05!AB18+DHS_Dry05!AB18)/2 -> 35.53789175 | AC18: =(DHS_Wet05!AC18+DHS_Dry05!AC18)/2 -> 65.79913179 | AD18: =(DHS_Wet05!AD18+DHS_Dry05!AD18)/2 -> 94.28732005 | AE18: =(DHS_Wet05!AE18+DHS_Dry05!AE18)/2 -> 43.94749422 | AF18: =(DHS_Wet05!AF18+DHS_Dry05!AF18)/2 -> 88.45982225 | AG18: =(DHS_Wet05!AG18+DHS_Dry05!AG18)/2 -> 67.27834955 | AH18: =(DHS_Wet05!AH18+DHS_Dry05!AH18)/2 -> 60.85798883 | AI18: =(DHS_Wet05!AI18+DHS_Dry05!AI18)/2 -> 96.20144299 | AJ18: =(DHS_Wet05!AJ18+DHS_Dry05!AJ18)/2 -> 69.0396487 | BA18: Water ladder | BB18: Basic | BC18: N/A | BD18: N/A | BE18: N/A | BF18: N/A | BG18: N/A | BH18: N/A | BI18: N/A | BJ18: N/A | BK18: N/A | BL18: N/A | BM18: N/A | BN18: N/A | BO18: N/A | BP18: N/A | BQ18: N/A | BR18: N/A | BS18: N/A | BT18: N/A | BU18: N/A | BV18: N/A | BW18: N/A | BX18: N/A | BY18: N/A | BZ18: N/A | CA18: N/A | CB18: N/A | CC18: N/A | CD18: N/A | CE18: N/A | CF18: N/A | CG18: N/A | CH18: N/A | CI18: N/A | CJ18: N/A
B19: Limited | C19: =(DHS_Wet05!C19+DHS_Dry05!C19)/2 -> 0.8487043464 | D19: =(DHS_Wet05!D19+DHS_Dry05!D19)/2 -> 0.3193539297 | E19: =(DHS_Wet05!E19+DHS_Dry05!E19)/2 -> 0.3012806003 | F19: =(DHS_Wet05!F19+DHS_Dry05!F19)/2 -> 0.3953030897 | G19: =(DHS_Wet05!G19+DHS_Dry05!G19)/2 -> 0.1267807319 | H19: =(DHS_Wet05!H19+DHS_Dry05!H19)/2 -> 0.5146819411 | I19: =(DHS_Wet05!I19+DHS_Dry05!I19)/2 -> 0 | J19: =(DHS_Wet05!J19+DHS_Dry05!J19)/2 -> 0.1202531634 | K19: =(DHS_Wet05!K19+DHS_Dry05!K19)/2 -> 0 | L19: =(DHS_Wet05!L19+DHS_Dry05!L19)/2 -> 0 | M19: =(DHS_Wet05!M19+DHS_Dry05!M19)/2 -> 0.9337663501 | N19: =(DHS_Wet05!N19+DHS_Dry05!N19)/2 -> 0.3194684988 | O19: =(DHS_Wet05!O19+DHS_Dry05!O19)/2 -> 0.3100819985 | P19: =(DHS_Wet05!P19+DHS_Dry05!P19)/2 -> 0.4196787889 | Q19: =(DHS_Wet05!Q19+DHS_Dry05!Q19)/2 -> 0.2520655612 | R19: =(DHS_Wet05!R19+DHS_Dry05!R19)/2 -> 0.1317601393 | S19: =(DHS_Wet05!S19+DHS_Dry05!S19)/2 -> 0.07550445719 | T19: =(DHS_Wet05!T19+DHS_Dry05!T19)/2 -> 0.04780251666 | U19: =(DHS_Wet05!U19+DHS_Dry05!U19)/2 -> 1.657739003 | V19: =(DHS_Wet05!V19+DHS_Dry05!V19)/2 -> 0.8515376385 | W19: =(DHS_Wet05!W19+DHS_Dry05!W19)/2 -> 0.06573493205 | X19: =(DHS_Wet05!X19+DHS_Dry05!X19)/2 -> 0.2508075229 | Y19: =(DHS_Wet05!Y19+DHS_Dry05!Y19)/2 -> 0.1528286718 | Z19: =(DHS_Wet05!Z19+DHS_Dry05!Z19)/2 -> 0.05189962938 | AA19: =(DHS_Wet05!AA19+DHS_Dry05!AA19)/2 -> 1.02233654 | AB19: =(DHS_Wet05!AB19+DHS_Dry05!AB19)/2 -> 0 | AC19: =(DHS_Wet05!AC19+DHS_Dry05!AC19)/2 -> 7.441045499 | AD19: =(DHS_Wet05!AD19+DHS_Dry05!AD19)/2 -> 0 | AE19: =(DHS_Wet05!AE19+DHS_Dry05!AE19)/2 -> 0.3495525321 | AF19: =(DHS_Wet05!AF19+DHS_Dry05!AF19)/2 -> 0.05746838396 | AG19: =(DHS_Wet05!AG19+DHS_Dry05!AG19)/2 -> 0.4796262089 | AH19: =(DHS_Wet05!AH19+DHS_Dry05!AH19)/2 -> 0.1877113901 | AI19: =(DHS_Wet05!AI19+DHS_Dry05!AI19)/2 -> 0 | AJ19: =(DHS_Wet05!AJ19+DHS_Dry05!AJ19)/2 -> 1.437948443 | BB19: Limited | BC19: N/A | BD19: N/A | BE19: N/A | BF19: N/A | BG19: N/A | BH19: N/A | BI19: N/A | BJ19: N/A | BK19: N/A | BL19: N/A | BM19: N/A | BN19: N/A | BO19: N/A | BP19: N/A | BQ19: N/A | BR19: N/A | BS19: N/A | BT19: N/A | BU19: N/A | BV19: N/A | BW19: N/A | BX19: N/A | BY19: N/A | BZ19: N/A | CA19: N/A | CB19: N/A | CC19: N/A | CD19: N/A | CE19: N/A | CF19: N/A | CG19: N/A | CH19: N/A | CI19: N/A | CJ19: N/A
B20: Unimproved | C20: =(DHS_Wet05!C20+DHS_Dry05!C20)/2 -> 22.78224959 | D20: =(DHS_Wet05!D20+DHS_Dry05!D20)/2 -> 17.38519435 | E20: =(DHS_Wet05!E20+DHS_Dry05!E20)/2 -> 15.3818757 | F20: =(DHS_Wet05!F20+DHS_Dry05!F20)/2 -> 9.704947843 | G20: =(DHS_Wet05!G20+DHS_Dry05!G20)/2 -> 2.14750479 | H20: =(DHS_Wet05!H20+DHS_Dry05!H20)/2 -> 15.36681239 | I20: =(DHS_Wet05!I20+DHS_Dry05!I20)/2 -> 5.97981229 | J20: =(DHS_Wet05!J20+DHS_Dry05!J20)/2 -> 2.293522493 | K20: =(DHS_Wet05!K20+DHS_Dry05!K20)/2 -> 0.7848494826 | L20: =(DHS_Wet05!L20+DHS_Dry05!L20)/2 -> 0.2680370539 | M20: =(DHS_Wet05!M20+DHS_Dry05!M20)/2 -> 23.58183482 | N20: =(DHS_Wet05!N20+DHS_Dry05!N20)/2 -> 17.07055714 | O20: =(DHS_Wet05!O20+DHS_Dry05!O20)/2 -> 17.881321 | P20: =(DHS_Wet05!P20+DHS_Dry05!P20)/2 -> 11.6934612 | Q20: =(DHS_Wet05!Q20+DHS_Dry05!Q20)/2 -> 5.017821901 | R20: =(DHS_Wet05!R20+DHS_Dry05!R20)/2 -> 6.841540035 | S20: =(DHS_Wet05!S20+DHS_Dry05!S20)/2 -> 2.262080806 | T20: =(DHS_Wet05!T20+DHS_Dry05!T20)/2 -> 13.64687283 | U20: =(DHS_Wet05!U20+DHS_Dry05!U20)/2 -> 36.18704153 | V20: =(DHS_Wet05!V20+DHS_Dry05!V20)/2 -> 5.839936788 | W20: =(DHS_Wet05!W20+DHS_Dry05!W20)/2 -> 52.05027532 | X20: =(DHS_Wet05!X20+DHS_Dry05!X20)/2 -> 20.43425613 | Y20: =(DHS_Wet05!Y20+DHS_Dry05!Y20)/2 -> 2.369144201 | Z20: =(DHS_Wet05!Z20+DHS_Dry05!Z20)/2 -> 13.51435181 | AA20: =(DHS_Wet05!AA20+DHS_Dry05!AA20)/2 -> 13.75854369 | AB20: =(DHS_Wet05!AB20+DHS_Dry05!AB20)/2 -> 26.31221723 | AC20: =(DHS_Wet05!AC20+DHS_Dry05!AC20)/2 -> 9.147009386 | AD20: =(DHS_Wet05!AD20+DHS_Dry05!AD20)/2 -> 7.460698725e-14 | AE20: =(DHS_Wet05!AE20+DHS_Dry05!AE20)/2 -> 32.98379528 | AF20: =(DHS_Wet05!AF20+DHS_Dry05!AF20)/2 -> 5.557097381 | AG20: =(DHS_Wet05!AG20+DHS_Dry05!AG20)/2 -> 14.57650389 | AH20: =(DHS_Wet05!AH20+DHS_Dry05!AH20)/2 -> 36.30393727 | AI20: =(DHS_Wet05!AI20+DHS_Dry05!AI20)/2 -> 3.409584791 | AJ20: =(DHS_Wet05!AJ20+DHS_Dry05!AJ20)/2 -> 5.166368126 | BB20: Unimproved | BC20: N/A | BD20: N/A | BE20: N/A | BF20: N/A | BG20: N/A | BH20: N/A | BI20: N/A | BJ20: N/A | BK20: N/A | BL20: N/A | BM20: N/A | BN20: N/A | BO20: N/A | BP20: N/A | BQ20: N/A | BR20: N/A | BS20: N/A | BT20: N/A | BU20: N/A | BV20: N/A | BW20: N/A | BX20: N/A | BY20: N/A | BZ20: N/A | CA20: N/A | CB20: N/A | CC20: N/A | CD20: N/A | CE20: N/A | CF20: N/A | CG20: N/A | CH20: N/A | CI20: N/A | CJ20: N/A
B21: Surface water | C21: =(DHS_Wet05!C21+DHS_Dry05!C21)/2 -> 19.85910287 | D21: =(DHS_Wet05!D21+DHS_Dry05!D21)/2 -> 20.00569401 | E21: =(DHS_Wet05!E21+DHS_Dry05!E21)/2 -> 19.21972769 | F21: =(DHS_Wet05!F21+DHS_Dry05!F21)/2 -> 18.82223956 | G21: =(DHS_Wet05!G21+DHS_Dry05!G21)/2 -> 9.329191828 | H21: =(DHS_Wet05!H21+DHS_Dry05!H21)/2 -> 19.55770374 | I21: =(DHS_Wet05!I21+DHS_Dry05!I21)/2 -> 15.21916944 | J21: =(DHS_Wet05!J21+DHS_Dry05!J21)/2 -> 5.678664551 | K21: =(DHS_Wet05!K21+DHS_Dry05!K21)/2 -> 2.792735944 | L21: =(DHS_Wet05!L21+DHS_Dry05!L21)/2 -> 0.04146520922 | M21: =(DHS_Wet05!M21+DHS_Dry05!M21)/2 -> 19.77327819 | N21: =(DHS_Wet05!N21+DHS_Dry05!N21)/2 -> 20.73255801 | O21: =(DHS_Wet05!O21+DHS_Dry05!O21)/2 -> 18.99663267 | P21: =(DHS_Wet05!P21+DHS_Dry05!P21)/2 -> 19.56858613 | Q21: =(DHS_Wet05!Q21+DHS_Dry05!Q21)/2 -> 16.05044298 | R21: =(DHS_Wet05!R21+DHS_Dry05!R21)/2 -> 36.15538483 | S21: =(DHS_Wet05!S21+DHS_Dry05!S21)/2 -> 41.91090994 | T21: =(DHS_Wet05!T21+DHS_Dry05!T21)/2 -> 15.10248148 | U21: =(DHS_Wet05!U21+DHS_Dry05!U21)/2 -> 11.8080174 | V21: =(DHS_Wet05!V21+DHS_Dry05!V21)/2 -> 19.70941458 | W21: =(DHS_Wet05!W21+DHS_Dry05!W21)/2 -> 2.841933942 | X21: =(DHS_Wet05!X21+DHS_Dry05!X21)/2 -> 16.36047382 | Y21: =(DHS_Wet05!Y21+DHS_Dry05!Y21)/2 -> 32.70740441 | Z21: =(DHS_Wet05!Z21+DHS_Dry05!Z21)/2 -> 34.40536707 | AA21: =(DHS_Wet05!AA21+DHS_Dry05!AA21)/2 -> 2.769879983 | AB21: =(DHS_Wet05!AB21+DHS_Dry05!AB21)/2 -> 38.14989102 | AC21: =(DHS_Wet05!AC21+DHS_Dry05!AC21)/2 -> 17.61281332 | AD21: =(DHS_Wet05!AD21+DHS_Dry05!AD21)/2 -> 5.712679954 | AE21: =(DHS_Wet05!AE21+DHS_Dry05!AE21)/2 -> 22.71915797 | AF21: =(DHS_Wet05!AF21+DHS_Dry05!AF21)/2 -> 5.925611981 | AG21: =(DHS_Wet05!AG21+DHS_Dry05!AG21)/2 -> 17.66552035 | AH21: =(DHS_Wet05!AH21+DHS_Dry05!AH21)/2 -> 2.650362506 | AI21: =(DHS_Wet05!AI21+DHS_Dry05!AI21)/2 -> 0.388972218 | AJ21: =(DHS_Wet05!AJ21+DHS_Dry05!AJ21)/2 -> 24.35603474 | BB21: Surface water | BC21: N/A | BD21: N/A | BE21: N/A | BF21: N/A | BG21: N/A | BH21: N/A | BI21: N/A | BJ21: N/A | BK21: N/A | BL21: N/A | BM21: N/A | BN21: N/A | BO21: N/A | BP21: N/A | BQ21: N/A | BR21: N/A | BS21: N/A | BT21: N/A | BU21: N/A | BV21: N/A | BW21: N/A | BX21: N/A | BY21: N/A | BZ21: N/A | CA21: N/A | CB21: N/A | CC21: N/A | CD21: N/A | CE21: N/A | CF21: N/A | CG21: N/A | CH21: N/A | CI21: N/A | CJ21: N/A
A22: Improved water point at more than 30 minutes | B22: Yes | C22: =(DHS_Wet05!C22+DHS_Dry05!C22)/2 -> 1.555786537 | D22: =(DHS_Wet05!D22+DHS_Dry05!D22)/2 -> 0.5567948033 | E22: =(DHS_Wet05!E22+DHS_Dry05!E22)/2 -> 0.5413231345 | F22: =(DHS_Wet05!F22+DHS_Dry05!F22)/2 -> 0.6035914055 | G22: =(DHS_Wet05!G22+DHS_Dry05!G22)/2 -> 0.1504316793 | H22: =(DHS_Wet05!H22+DHS_Dry05!H22)/2 -> 0.9068745628 | I22: =(DHS_Wet05!I22+DHS_Dry05!I22)/2 -> 0 | J22: =(DHS_Wet05!J22+DHS_Dry05!J22)/2 -> 0.1355282042 | K22: =(DHS_Wet05!K22+DHS_Dry05!K22)/2 -> 0 | L22: =(DHS_Wet05!L22+DHS_Dry05!L22)/2 -> 0 | M22: =(DHS_Wet05!M22+DHS_Dry05!M22)/2 -> 1.719203482 | N22: =(DHS_Wet05!N22+DHS_Dry05!N22)/2 -> 0.5684865332 | O22: =(DHS_Wet05!O22+DHS_Dry05!O22)/2 -> 0.5528458888 | P22: =(DHS_Wet05!P22+DHS_Dry05!P22)/2 -> 0.6818674802 | Q22: =(DHS_Wet05!Q22+DHS_Dry05!Q22)/2 -> 0.3477622219 | R22: =(DHS_Wet05!R22+DHS_Dry05!R22)/2 -> 0.4668140027 | S22: =(DHS_Wet05!S22+DHS_Dry05!S22)/2 -> 0.1870113007 | T22: =(DHS_Wet05!T22+DHS_Dry05!T22)/2 -> 0.06792394861 | U22: =(DHS_Wet05!U22+DHS_Dry05!U22)/2 -> 3.130565507 | V22: =(DHS_Wet05!V22+DHS_Dry05!V22)/2 -> 1.212332069 | W22: =(DHS_Wet05!W22+DHS_Dry05!W22)/2 -> 0.1520691459 | X22: =(DHS_Wet05!X22+DHS_Dry05!X22)/2 -> 0.5950987889 | Y22: =(DHS_Wet05!Y22+DHS_Dry05!Y22)/2 -> 0.25961841 | Z22: =(DHS_Wet05!Z22+DHS_Dry05!Z22)/2 -> 0.1219176997 | AA22: =(DHS_Wet05!AA22+DHS_Dry05!AA22)/2 -> 1.287149399 | AB22: =(DHS_Wet05!AB22+DHS_Dry05!AB22)/2 -> 0 | AC22: =(DHS_Wet05!AC22+DHS_Dry05!AC22)/2 -> 11.4997989 | AD22: =(DHS_Wet05!AD22+DHS_Dry05!AD22)/2 -> 0 | AE22: =(DHS_Wet05!AE22+DHS_Dry05!AE22)/2 -> 0.9798149262 | AF22: =(DHS_Wet05!AF22+DHS_Dry05!AF22)/2 -> 0.06491193743 | AG22: =(DHS_Wet05!AG22+DHS_Dry05!AG22)/2 -> 0.9090797107 | AH22: =(DHS_Wet05!AH22+DHS_Dry05!AH22)/2 -> 0.3168369396 | AI22: =(DHS_Wet05!AI22+DHS_Dry05!AI22)/2 -> 0 | AJ22: =(DHS_Wet05!AJ22+DHS_Dry05!AJ22)/2 -> 2.553432485 | BA22: Improved water point at more than 30 minutes | BB22: Yes | BC22: N/A | BD22: N/A | BE22: N/A | BF22: N/A | BG22: N/A | BH22: N/A | BI22: N/A | BJ22: N/A | BK22: N/A | BL22: N/A | BM22: N/A | BN22: N/A | BO22: N/A | BP22: N/A | BQ22: N/A | BR22: N/A | BS22: N/A | BT22: N/A | BU22: N/A | BV22: N/A | BW22: N/A | BX22: N/A | BY22: N/A | BZ22: N/A | CA22: N/A | CB22: N/A | CC22: N/A | CD22: N/A | CE22: N/A | CF22: N/A | CG22: N/A | CH22: N/A | CI22: N/A | CJ22: N/A
B23: No | C23: =(DHS_Wet05!C23+DHS_Dry05!C23)/2 -> 98.44421346 | D23: =(DHS_Wet05!D23+DHS_Dry05!D23)/2 -> 99.4432052 | E23: =(DHS_Wet05!E23+DHS_Dry05!E23)/2 -> 99.45867687 | F23: =(DHS_Wet05!F23+DHS_Dry05!F23)/2 -> 99.39640859 | G23: =(DHS_Wet05!G23+DHS_Dry05!G23)/2 -> 99.84956832 | H23: =(DHS_Wet05!H23+DHS_Dry05!H23)/2 -> 99.09312544 | I23: =(DHS_Wet05!I23+DHS_Dry05!I23)/2 -> 100 | J23: =(DHS_Wet05!J23+DHS_Dry05!J23)/2 -> 99.8644718 | K23: =(DHS_Wet05!K23+DHS_Dry05!K23)/2 -> 100 | L23: =(DHS_Wet05!L23+DHS_Dry05!L23)/2 -> 100 | M23: =(DHS_Wet05!M23+DHS_Dry05!M23)/2 -> 98.28079652 | N23: =(DHS_Wet05!N23+DHS_Dry05!N23)/2 -> 99.43151347 | O23: =(DHS_Wet05!O23+DHS_Dry05!O23)/2 -> 99.44715411 | P23: =(DHS_Wet05!P23+DHS_Dry05!P23)/2 -> 99.31813252 | Q23: =(DHS_Wet05!Q23+DHS_Dry05!Q23)/2 -> 99.65223778 | R23: =(DHS_Wet05!R23+DHS_Dry05!R23)/2 -> 99.533186 | S23: =(DHS_Wet05!S23+DHS_Dry05!S23)/2 -> 99.8129887 | T23: =(DHS_Wet05!T23+DHS_Dry05!T23)/2 -> 99.93207605 | U23: =(DHS_Wet05!U23+DHS_Dry05!U23)/2 -> 96.86943449 | V23: =(DHS_Wet05!V23+DHS_Dry05!V23)/2 -> 98.78766793 | W23: =(DHS_Wet05!W23+DHS_Dry05!W23)/2 -> 99.84793085 | X23: =(DHS_Wet05!X23+DHS_Dry05!X23)/2 -> 99.40490121 | Y23: =(DHS_Wet05!Y23+DHS_Dry05!Y23)/2 -> 99.74038159 | Z23: =(DHS_Wet05!Z23+DHS_Dry05!Z23)/2 -> 99.8780823 | AA23: =(DHS_Wet05!AA23+DHS_Dry05!AA23)/2 -> 98.7128506 | AB23: =(DHS_Wet05!AB23+DHS_Dry05!AB23)/2 -> 100 | AC23: =(DHS_Wet05!AC23+DHS_Dry05!AC23)/2 -> 88.5002011 | AD23: =(DHS_Wet05!AD23+DHS_Dry05!AD23)/2 -> 100 | AE23: =(DHS_Wet05!AE23+DHS_Dry05!AE23)/2 -> 99.02018507 | AF23: =(DHS_Wet05!AF23+DHS_Dry05!AF23)/2 -> 99.93508806 | AG23: =(DHS_Wet05!AG23+DHS_Dry05!AG23)/2 -> 99.09092029 | AH23: =(DHS_Wet05!AH23+DHS_Dry05!AH23)/2 -> 99.68316306 | AI23: =(DHS_Wet05!AI23+DHS_Dry05!AI23)/2 -> 100 | AJ23: =(DHS_Wet05!AJ23+DHS_Dry05!AJ23)/2 -> 97.44656751 | BB23: No | BC23: N/A | BD23: N/A | BE23: N/A | BF23: N/A | BG23: N/A | BH23: N/A | BI23: N/A | BJ23: N/A | BK23: N/A | BL23: N/A | BM23: N/A | BN23: N/A | BO23: N/A | BP23: N/A | BQ23: N/A | BR23: N/A | BS23: N/A | BT23: N/A | BU23: N/A | BV23: N/A | BW23: N/A | BX23: N/A | BY23: N/A | BZ23: N/A | CA23: N/A | CB23: N/A | CC23: N/A | CD23: N/A | CE23: N/A | CF23: N/A | CG23: N/A | CH23: N/A | CI23: N/A | CJ23: N/A
A24: Manually calculated ratios | B24: Improved wells
B25: Improved springs
B26: Other
C27: NATIONAL wealth index quintile | H27: URBAN wealth index quintile | M27: RURAL wealth index quintile | R27: SUB-REGIONS: | BA27: Raw numbers of respondents: | BB27: Use of drinking water sources | BC27: NATIONAL wealth index quintile | BH27: URBAN wealth index quintile | BM27: RURAL wealth index quintile | BR27: SUB-REGIONS:
A28: Percentage based on weighted population | C28: Poorest | D28: Poor | E28: Middle | F28: Rich | G28: Richest | H28: Poorest | I28: Poor | J28: Middle | K28: Rich | L28: Richest | M28: Poorest | N28: Poor | O28: Middle | P28: Rich | Q28: Richest | R28: Banteay Mean Chey | S28: Battambang & Krong Pailin | T28: Kampong Cham | U28: Kampong Chhnang | V28: Kampong Speu | W28: Kampong Thom | X28: Kampot & Krong Kep | Y28: Kandal | Z28: Kratie | AA28: Krong Preah Sihanouk & Kaoh Kong | AB28: Mondol Kiri & Rattanak Kiri | AC28: Otdar Mean Chey | AD28: Phnom Penh | AE28: Preah Vihear & Steung Treng | AF28: Prey Veng | AG28: Pursat | AH28: Siem Reap | AI28: Svay Rieng | AJ28: Takeo | BA28: Water data, raw numbers (weighted) | BC28: Poorest | BD28: Poor | BE28: Middle | BF28: Rich | BG28: Richest | BH28: Poorest | BI28: Poor | BJ28: Middle | BK28: Rich | BL28: Richest | BM28: Poorest | BN28: Poor | BO28: Middle | BP28: Rich | BQ28: Richest | BR28: Banteay Mean Chey | BS28: Battambang & Krong Pailin | BT28: Kampong Cham | BU28: Kampong Chhnang | BV28: Kampong Speu | BW28: Kampong Thom | BX28: Kampot & Krong Kep | BY28: Kandal | BZ28: Kratie | CA28: Krong Preah Sihanouk & Kaoh Kong | CB28: Mondol Kiri & Rattanak Kiri | CC28: Otdar Mean Chey | CD28: Phnom Penh | CE28: Preah Vihear & Steung Treng | CF28: Prey Veng | CG28: Pursat | CH28: Siem Reap | CI28: Svay Rieng | CJ28: Takeo
A29: Piped water | B29: Yes | C29: =(DHS_Wet05!C31+DHS_Dry05!C31)/2 -> 0.8829410871 | D29: =(DHS_Wet05!D31+DHS_Dry05!D31)/2 -> 1.391069117 | E29: =(DHS_Wet05!E31+DHS_Dry05!E31)/2 -> 2.629449533 | F29: =(DHS_Wet05!F31+DHS_Dry05!F31)/2 -> 4.853451976 | G29: =(DHS_Wet05!G31+DHS_Dry05!G31)/2 -> 42.05636446 | H29: =(DHS_Wet05!H31+DHS_Dry05!H31)/2 -> 4.748294805 | I29: =(DHS_Wet05!I31+DHS_Dry05!I31)/2 -> 16.31670286 | J29: =(DHS_Wet05!J31+DHS_Dry05!J31)/2 -> 38.28509216 | K29: =(DHS_Wet05!K31+DHS_Dry05!K31)/2 -> 64.97625447 | L29: =(DHS_Wet05!L31+DHS_Dry05!L31)/2 -> 79.04685549 | M29: =(DHS_Wet05!M31+DHS_Dry05!M31)/2 -> 0.5735708645 | N29: =(DHS_Wet05!N31+DHS_Dry05!N31)/2 -> 1.377543999 | O29: =(DHS_Wet05!O31+DHS_Dry05!O31)/2 -> 1.430011139 | P29: =(DHS_Wet05!P31+DHS_Dry05!P31)/2 -> 2.280065229 | Q29: =(DHS_Wet05!Q31+DHS_Dry05!Q31)/2 -> 18.65139564 | R29: =(DHS_Wet05!R31+DHS_Dry05!R31)/2 -> 3.950958668 | S29: =(DHS_Wet05!S31+DHS_Dry05!S31)/2 -> 3.842910473 | T29: =(DHS_Wet05!T31+DHS_Dry05!T31)/2 -> 9.576159396 | U29: =(DHS_Wet05!U31+DHS_Dry05!U31)/2 -> 0.05953142926 | V29: =(DHS_Wet05!V31+DHS_Dry05!V31)/2 -> 3.510412118 | W29: =(DHS_Wet05!W31+DHS_Dry05!W31)/2 -> 2.647034279 | X29: =(DHS_Wet05!X31+DHS_Dry05!X31)/2 -> 6.095783691 | Y29: =(DHS_Wet05!Y31+DHS_Dry05!Y31)/2 -> 5.875588754 | Z29: =(DHS_Wet05!Z31+DHS_Dry05!Z31)/2 -> 6.935552172 | AA29: =(DHS_Wet05!AA31+DHS_Dry05!AA31)/2 -> 25.05381256 | AB29: =(DHS_Wet05!AB31+DHS_Dry05!AB31)/2 -> 1.457042081 | AC29: =(DHS_Wet05!AC31+DHS_Dry05!AC31)/2 -> 0 | AD29: =(DHS_Wet05!AD31+DHS_Dry05!AD31)/2 -> 69.54962474 | AE29: =(DHS_Wet05!AE31+DHS_Dry05!AE31)/2 -> 1.544450738 | AF29: =(DHS_Wet05!AF31+DHS_Dry05!AF31)/2 -> 0.3088925764 | AG29: =(DHS_Wet05!AG31+DHS_Dry05!AG31)/2 -> 4.77550577 | AH29: =(DHS_Wet05!AH31+DHS_Dry05!AH31)/2 -> 3.079072311 | AI29: =(DHS_Wet05!AI31+DHS_Dry05!AI31)/2 -> 0.9383259424 | AJ29: =(DHS_Wet05!AJ31+DHS_Dry05!AJ31)/2 -> 1.934491707 | BA29: Piped water | BB29: Yes | BC29: N/A | BD29: N/A | BE29: N/A | BF29: N/A | BG29: N/A | BH29: N/A | BI29: N/A | BJ29: N/A | BK29: N/A | BL29: N/A | BM29: N/A | BN29: N/A | BO29: N/A | BP29: N/A | BQ29: N/A | BR29: N/A | BS29: N/A | BT29: N/A | BU29: N/A | BV29: N/A | BW29: N/A | BX29: N/A | BY29: N/A | BZ29: N/A | CA29: N/A | CB29: N/A | CC29: N/A | CD29: N/A | CE29: N/A | CF29: N/A | CG29: N/A | CH29: N/A | CI29: N/A | CJ29: N/A
B30: No | C30: =(DHS_Wet05!C32+DHS_Dry05!C32)/2 -> 99.11705891 | D30: =(DHS_Wet05!D32+DHS_Dry05!D32)/2 -> 98.60893088 | E30: =(DHS_Wet05!E32+DHS_Dry05!E32)/2 -> 97.37055047 | F30: =(DHS_Wet05!F32+DHS_Dry05!F32)/2 -> 95.14654802 | G30: =(DHS_Wet05!G32+DHS_Dry05!G32)/2 -> 57.94363554 | H30: =(DHS_Wet05!H32+DHS_Dry05!H32)/2 -> 95.25170519 | I30: =(DHS_Wet05!I32+DHS_Dry05!I32)/2 -> 83.68329714 | J30: =(DHS_Wet05!J32+DHS_Dry05!J32)/2 -> 61.71490784 | K30: =(DHS_Wet05!K32+DHS_Dry05!K32)/2 -> 35.02374553 | L30: =(DHS_Wet05!L32+DHS_Dry05!L32)/2 -> 20.95314451 | M30: =(DHS_Wet05!M32+DHS_Dry05!M32)/2 -> 99.42642914 | N30: =(DHS_Wet05!N32+DHS_Dry05!N32)/2 -> 98.622456 | O30: =(DHS_Wet05!O32+DHS_Dry05!O32)/2 -> 98.56998886 | P30: =(DHS_Wet05!P32+DHS_Dry05!P32)/2 -> 97.71993477 | Q30: =(DHS_Wet05!Q32+DHS_Dry05!Q32)/2 -> 81.34860436 | R30: =(DHS_Wet05!R32+DHS_Dry05!R32)/2 -> 96.04904133 | S30: =(DHS_Wet05!S32+DHS_Dry05!S32)/2 -> 96.15708953 | T30: =(DHS_Wet05!T32+DHS_Dry05!T32)/2 -> 90.4238406 | U30: =(DHS_Wet05!U32+DHS_Dry05!U32)/2 -> 99.94046857 | V30: =(DHS_Wet05!V32+DHS_Dry05!V32)/2 -> 96.48958788 | W30: =(DHS_Wet05!W32+DHS_Dry05!W32)/2 -> 97.35296572 | X30: =(DHS_Wet05!X32+DHS_Dry05!X32)/2 -> 93.90421631 | Y30: =(DHS_Wet05!Y32+DHS_Dry05!Y32)/2 -> 94.12441125 | Z30: =(DHS_Wet05!Z32+DHS_Dry05!Z32)/2 -> 93.06444783 | AA30: =(DHS_Wet05!AA32+DHS_Dry05!AA32)/2 -> 74.94618744 | AB30: =(DHS_Wet05!AB32+DHS_Dry05!AB32)/2 -> 98.54295792 | AC30: =(DHS_Wet05!AC32+DHS_Dry05!AC32)/2 -> 100 | AD30: =(DHS_Wet05!AD32+DHS_Dry05!AD32)/2 -> 30.45037526 | AE30: =(DHS_Wet05!AE32+DHS_Dry05!AE32)/2 -> 98.45554926 | AF30: =(DHS_Wet05!AF32+DHS_Dry05!AF32)/2 -> 99.69110742 | AG30: =(DHS_Wet05!AG32+DHS_Dry05!AG32)/2 -> 95.22449423 | AH30: =(DHS_Wet05!AH32+DHS_Dry05!AH32)/2 -> 96.92092769 | AI30: =(DHS_Wet05!AI32+DHS_Dry05!AI32)/2 -> 99.06167406 | AJ30: =(DHS_Wet05!AJ32+DHS_Dry05!AJ32)/2 -> 98.06550829 | BB30: No | BC30: N/A | BD30: N/A | BE30: N/A | BF30: N/A | BG30: N/A | BH30: N/A | BI30: N/A | BJ30: N/A | BK30: N/A | BL30: N/A | BM30: N/A | BN30: N/A | BO30: N/A | BP30: N/A | BQ30: N/A | BR30: N/A | BS30: N/A | BT30: N/A | BU30: N/A | BV30: N/A | BW30: N/A | BX30: N/A | BY30: N/A | BZ30: N/A | CA30: N/A | CB30: N/A | CC30: N/A | CD30: N/A | CE30: N/A | CF30: N/A | CG30: N/A | CH30: N/A | CI30: N/A | CJ30: N/A
A31: Piped water on premises | B31: Yes | C31: =(DHS_Wet05!C29+DHS_Dry05!C29)/2 -> 0.8240421759 | D31: =(DHS_Wet05!D29+DHS_Dry05!D29)/2 -> 1.275719338 | E31: =(DHS_Wet05!E29+DHS_Dry05!E29)/2 -> 2.531527442 | F31: =(DHS_Wet05!F29+DHS_Dry05!F29)/2 -> 4.742261399 | G31: =(DHS_Wet05!G29+DHS_Dry05!G29)/2 -> 41.73627052 | H31: =(DHS_Wet05!H29+DHS_Dry05!H29)/2 -> 4.748294805 | I31: =(DHS_Wet05!I29+DHS_Dry05!I29)/2 -> 15.9443854 | J31: =(DHS_Wet05!J29+DHS_Dry05!J29)/2 -> 37.87255566 | K31: =(DHS_Wet05!K29+DHS_Dry05!K29)/2 -> 64.89662689 | L31: =(DHS_Wet05!L29+DHS_Dry05!L29)/2 -> 79.04685549 | M31: =(DHS_Wet05!M29+DHS_Dry05!M29)/2 -> 0.5171122145 | N31: =(DHS_Wet05!N29+DHS_Dry05!N29)/2 -> 1.268080364 | O31: =(DHS_Wet05!O29+DHS_Dry05!O29)/2 -> 1.36199185 | P31: =(DHS_Wet05!P29+DHS_Dry05!P29)/2 -> 2.158454116 | Q31: =(DHS_Wet05!Q29+DHS_Dry05!Q29)/2 -> 18.33288562 | R31: =(DHS_Wet05!R29+DHS_Dry05!R29)/2 -> 3.09269644 | S31: =(DHS_Wet05!S29+DHS_Dry05!S29)/2 -> 3.842910473 | T31: =(DHS_Wet05!T29+DHS_Dry05!T29)/2 -> 9.576159396 | U31: =(DHS_Wet05!U29+DHS_Dry05!U29)/2 -> 0.05953142926 | V31: =(DHS_Wet05!V29+DHS_Dry05!V29)/2 -> 3.510412118 | W31: =(DHS_Wet05!W29+DHS_Dry05!W29)/2 -> 1.555555445 | X31: =(DHS_Wet05!X29+DHS_Dry05!X29)/2 -> 5.749117076 | Y31: =(DHS_Wet05!Y29+DHS_Dry05!Y29)/2 -> 5.875588754 | Z31: =(DHS_Wet05!Z29+DHS_Dry05!Z29)/2 -> 6.935552172 | AA31: =(DHS_Wet05!AA29+DHS_Dry05!AA29)/2 -> 25.05381256 | AB31: =(DHS_Wet05!AB29+DHS_Dry05!AB29)/2 -> 1.457042081 | AC31: =(DHS_Wet05!AC29+DHS_Dry05!AC29)/2 -> 0 | AD31: =(DHS_Wet05!AD29+DHS_Dry05!AD29)/2 -> 69.47324759 | AE31: =(DHS_Wet05!AE29+DHS_Dry05!AE29)/2 -> 1.544450738 | AF31: =(DHS_Wet05!AF29+DHS_Dry05!AF29)/2 -> 0.3088925764 | AG31: =(DHS_Wet05!AG29+DHS_Dry05!AG29)/2 -> 4.77550577 | AH31: =(DHS_Wet05!AH29+DHS_Dry05!AH29)/2 -> 3.079072311 | AI31: =(DHS_Wet05!AI29+DHS_Dry05!AI29)/2 -> 0.7093828709 | AJ31: =(DHS_Wet05!AJ29+DHS_Dry05!AJ29)/2 -> 1.654823736 | BA31: Piped water on premises | BB31: Yes | BC31: N/A | BD31: N/A | BE31: N/A | BF31: N/A | BG31: N/A | BH31: N/A | BI31: N/A | BJ31: N/A | BK31: N/A | BL31: N/A | BM31: N/A | BN31: N/A | BO31: N/A | BP31: N/A | BQ31: N/A | BR31: N/A | BS31: N/A | BT31: N/A | BU31: N/A | BV31: N/A | BW31: N/A | BX31: N/A | BY31: N/A | BZ31: N/A | CA31: N/A | CB31: N/A | CC31: N/A | CD31: N/A | CE31: N/A | CF31: N/A | CG31: N/A | CH31: N/A | CI31: N/A | CJ31: N/A
B32: No | C32: =(DHS_Wet05!C30+DHS_Dry05!C30)/2 -> 99.17595782 | D32: =(DHS_Wet05!D30+DHS_Dry05!D30)/2 -> 98.72428066 | E32: =(DHS_Wet05!E30+DHS_Dry05!E30)/2 -> 97.46847256 | F32: =(DHS_Wet05!F30+DHS_Dry05!F30)/2 -> 95.2577386 | G32: =(DHS_Wet05!G30+DHS_Dry05!G30)/2 -> 58.26372948 | H32: =(DHS_Wet05!H30+DHS_Dry05!H30)/2 -> 95.25170519 | I32: =(DHS_Wet05!I30+DHS_Dry05!I30)/2 -> 84.0556146 | J32: =(DHS_Wet05!J30+DHS_Dry05!J30)/2 -> 62.12744434 | K32: =(DHS_Wet05!K30+DHS_Dry05!K30)/2 -> 35.10337311 | L32: =(DHS_Wet05!L30+DHS_Dry05!L30)/2 -> 20.95314451 | M32: =(DHS_Wet05!M30+DHS_Dry05!M30)/2 -> 99.48288779 | N32: =(DHS_Wet05!N30+DHS_Dry05!N30)/2 -> 98.73191964 | O32: =(DHS_Wet05!O30+DHS_Dry05!O30)/2 -> 98.63800815 | P32: =(DHS_Wet05!P30+DHS_Dry05!P30)/2 -> 97.84154588 | Q32: =(DHS_Wet05!Q30+DHS_Dry05!Q30)/2 -> 81.66711438 | R32: =(DHS_Wet05!R30+DHS_Dry05!R30)/2 -> 96.90730356 | S32: =(DHS_Wet05!S30+DHS_Dry05!S30)/2 -> 96.15708953 | T32: =(DHS_Wet05!T30+DHS_Dry05!T30)/2 -> 90.4238406 | U32: =(DHS_Wet05!U30+DHS_Dry05!U30)/2 -> 99.94046857 | V32: =(DHS_Wet05!V30+DHS_Dry05!V30)/2 -> 96.48958788 | W32: =(DHS_Wet05!W30+DHS_Dry05!W30)/2 -> 98.44444456 | X32: =(DHS_Wet05!X30+DHS_Dry05!X30)/2 -> 94.25088292 | Y32: =(DHS_Wet05!Y30+DHS_Dry05!Y30)/2 -> 94.12441125 | Z32: =(DHS_Wet05!Z30+DHS_Dry05!Z30)/2 -> 93.06444783 | AA32: =(DHS_Wet05!AA30+DHS_Dry05!AA30)/2 -> 74.94618744 | AB32: =(DHS_Wet05!AB30+DHS_Dry05!AB30)/2 -> 98.54295792 | AC32: =(DHS_Wet05!AC30+DHS_Dry05!AC30)/2 -> 100 | AD32: =(DHS_Wet05!AD30+DHS_Dry05!AD30)/2 -> 30.52675241 | AE32: =(DHS_Wet05!AE30+DHS_Dry05!AE30)/2 -> 98.45554926 | AF32: =(DHS_Wet05!AF30+DHS_Dry05!AF30)/2 -> 99.69110742 | AG32: =(DHS_Wet05!AG30+DHS_Dry05!AG30)/2 -> 95.22449423 | AH32: =(DHS_Wet05!AH30+DHS_Dry05!AH30)/2 -> 96.92092769 | AI32: =(DHS_Wet05!AI30+DHS_Dry05!AI30)/2 -> 99.29061713 | AJ32: =(DHS_Wet05!AJ30+DHS_Dry05!AJ30)/2 -> 98.34517626 | BB32: No | BC32: N/A | BD32: N/A | BE32: N/A | BF32: N/A | BG32: N/A | BH32: N/A | BI32: N/A | BJ32: N/A | BK32: N/A | BL32: N/A | BM32: N/A | BN32: N/A | BO32: N/A | BP32: N/A | BQ32: N/A | BR32: N/A | BS32: N/A | BT32: N/A | BU32: N/A | BV32: N/A | BW32: N/A | BX32: N/A | BY32: N/A | BZ32: N/A | CA32: N/A | CB32: N/A | CC32: N/A | CD32: N/A | CE32: N/A | CF32: N/A | CG32: N/A | CH32: N/A | CI32: N/A | CJ32: N/A
A33: Piped water into dwelling | B33: Yes | C33: N/A | D33: N/A | E33: N/A | F33: N/A | G33: N/A | H33: N/A | I33: N/A | J33: N/A | K33: N/A | L33: N/A | M33: N/A | N33: N/A | O33: N/A | P33: N/A | Q33: N/A | R33: N/A | S33: N/A | T33: N/A | U33: N/A | V33: N/A | W33: N/A | X33: N/A | Y33: N/A | Z33: N/A | AA33: N/A | AB33: N/A | AC33: N/A | AD33: N/A | AE33: N/A | AF33: N/A | AG33: N/A | AH33: N/A | AI33: N/A | AJ33: N/A | BA33: Piped water into dwelling | BB33: Yes | BC33: N/A | BD33: N/A | BE33: N/A | BF33: N/A | BG33: N/A | BH33: N/A | BI33: N/A | BJ33: N/A | BK33: N/A | BL33: N/A | BM33: N/A | BN33: N/A | BO33: N/A | BP33: N/A | BQ33: N/A | BR33: N/A | BS33: N/A | BT33: N/A | BU33: N/A | BV33: N/A | BW33: N/A | BX33: N/A | BY33: N/A | BZ33: N/A | CA33: N/A | CB33: N/A | CC33: N/A | CD33: N/A | CE33: N/A | CF33: N/A | CG33: N/A | CH33: N/A | CI33: N/A | CJ33: N/A
B34: No | C34: N/A | D34: N/A | E34: N/A | F34: N/A | G34: N/A | H34: N/A | I34: N/A | J34: N/A | K34: N/A | L34: N/A | M34: N/A | N34: N/A | O34: N/A | P34: N/A | Q34: N/A | R34: N/A | S34: N/A | T34: N/A | U34: N/A | V34: N/A | W34: N/A | X34: N/A | Y34: N/A | Z34: N/A | AA34: N/A | AB34: N/A | AC34: N/A | AD34: N/A | AE34: N/A | AF34: N/A | AG34: N/A | AH34: N/A | AI34: N/A | AJ34: N/A | BB34: No | BC34: N/A | BD34: N/A | BE34: N/A | BF34: N/A | BG34: N/A | BH34: N/A | BI34: N/A | BJ34: N/A | BK34: N/A | BL34: N/A | BM34: N/A | BN34: N/A | BO34: N/A | BP34: N/A | BQ34: N/A | BR34: N/A | BS34: N/A | BT34: N/A | BU34: N/A | BV34: N/A | BW34: N/A | BX34: N/A | BY34: N/A | BZ34: N/A | CA34: N/A | CB34: N/A | CC34: N/A | CD34: N/A | CE34: N/A | CF34: N/A | CG34: N/A | CH34: N/A | CI34: N/A | CJ34: N/A
A35: Water source on premises | B35: Yes | C35: =(DHS_Wet05!C33+DHS_Dry05!C33)/2 -> 34.31978141 | D35: =(DHS_Wet05!D33+DHS_Dry05!D33)/2 -> 47.50383224 | E35: =(DHS_Wet05!E33+DHS_Dry05!E33)/2 -> 58.97624908 | F35: =(DHS_Wet05!F33+DHS_Dry05!F33)/2 -> 71.11030389 | G35: =(DHS_Wet05!G33+DHS_Dry05!G33)/2 -> 89.11197881 | H35: =(DHS_Wet05!H33+DHS_Dry05!H33)/2 -> 46.36045046 | I35: =(DHS_Wet05!I33+DHS_Dry05!I33)/2 -> 70.25558187 | J35: =(DHS_Wet05!J33+DHS_Dry05!J33)/2 -> 84.28834767 | K35: =(DHS_Wet05!K33+DHS_Dry05!K33)/2 -> 92.23177508 | L35: =(DHS_Wet05!L33+DHS_Dry05!L33)/2 -> 94.46558269 | M35: =(DHS_Wet05!M33+DHS_Dry05!M33)/2 -> 33.10038878 | N35: =(DHS_Wet05!N33+DHS_Dry05!N33)/2 -> 46.25731625 | O35: =(DHS_Wet05!O33+DHS_Dry05!O33)/2 -> 56.19489377 | P35: =(DHS_Wet05!P33+DHS_Dry05!P33)/2 -> 66.24758086 | Q35: =(DHS_Wet05!Q33+DHS_Dry05!Q33)/2 -> 83.50439907 | R35: =(DHS_Wet05!R33+DHS_Dry05!R33)/2 -> 58.51267551 | S35: =(DHS_Wet05!S33+DHS_Dry05!S33)/2 -> 49.14144378 | T35: =(DHS_Wet05!T33+DHS_Dry05!T33)/2 -> 56.5542193 | U35: =(DHS_Wet05!U33+DHS_Dry05!U33)/2 -> 44.48577317 | V35: =(DHS_Wet05!V33+DHS_Dry05!V33)/2 -> 42.1985338 | W35: =(DHS_Wet05!W33+DHS_Dry05!W33)/2 -> 55.21353169 | X35: =(DHS_Wet05!X33+DHS_Dry05!X33)/2 -> 57.76753834 | Y35: =(DHS_Wet05!Y33+DHS_Dry05!Y33)/2 -> 74.80431898 | Z35: =(DHS_Wet05!Z33+DHS_Dry05!Z33)/2 -> 44.06561498 | AA35: =(DHS_Wet05!AA33+DHS_Dry05!AA33)/2 -> 71.89724472 | AB35: =(DHS_Wet05!AB33+DHS_Dry05!AB33)/2 -> 26.98934803 | AC35: =(DHS_Wet05!AC33+DHS_Dry05!AC33)/2 -> 36.31503341 | AD35: =(DHS_Wet05!AD33+DHS_Dry05!AD33)/2 -> 93.6613062 | AE35: =(DHS_Wet05!AE33+DHS_Dry05!AE33)/2 -> 33.62592976 | AF35: =(DHS_Wet05!AF33+DHS_Dry05!AF33)/2 -> 63.31085001 | AG35: =(DHS_Wet05!AG33+DHS_Dry05!AG33)/2 -> 52.69446142 | AH35: =(DHS_Wet05!AH33+DHS_Dry05!AH33)/2 -> 54.42975826 | AI35: =(DHS_Wet05!AI33+DHS_Dry05!AI33)/2 -> 83.83001197 | AJ35: =(DHS_Wet05!AJ33+DHS_Dry05!AJ33)/2 -> 56.08129975 | BA35: Water source on premises | BB35: Yes | BC35: N/A | BD35: N/A | BE35: N/A | BF35: N/A | BG35: N/A | BH35: N/A | BI35: N/A | BJ35: N/A | BK35: N/A | BL35: N/A | BM35: N/A | BN35: N/A | BO35: N/A | BP35: N/A | BQ35: N/A | BR35: N/A | BS35: N/A | BT35: N/A | BU35: N/A | BV35: N/A | BW35: N/A | BX35: N/A | BY35: N/A | BZ35: N/A | CA35: N/A | CB35: N/A | CC35: N/A | CD35: N/A | CE35: N/A | CF35: N/A | CG35: N/A | CH35: N/A | CI35: N/A | CJ35: N/A
B36: No | C36: =(DHS_Wet05!C34+DHS_Dry05!C34)/2 -> 65.68021859 | D36: =(DHS_Wet05!D34+DHS_Dry05!D34)/2 -> 52.49616776 | E36: =(DHS_Wet05!E34+DHS_Dry05!E34)/2 -> 41.02375092 | F36: =(DHS_Wet05!F34+DHS_Dry05!F34)/2 -> 28.88969611 | G36: =(DHS_Wet05!G34+DHS_Dry05!G34)/2 -> 10.88802119 | H36: =(DHS_Wet05!H34+DHS_Dry05!H34)/2 -> 53.63954954 | I36: =(DHS_Wet05!I34+DHS_Dry05!I34)/2 -> 29.74441813 | J36: =(DHS_Wet05!J34+DHS_Dry05!J34)/2 -> 15.71165233 | K36: =(DHS_Wet05!K34+DHS_Dry05!K34)/2 -> 7.768224922 | L36: =(DHS_Wet05!L34+DHS_Dry05!L34)/2 -> 5.534417312 | M36: =(DHS_Wet05!M34+DHS_Dry05!M34)/2 -> 66.89961122 | N36: =(DHS_Wet05!N34+DHS_Dry05!N34)/2 -> 53.74268375 | O36: =(DHS_Wet05!O34+DHS_Dry05!O34)/2 -> 43.80510623 | P36: =(DHS_Wet05!P34+DHS_Dry05!P34)/2 -> 33.75241914 | Q36: =(DHS_Wet05!Q34+DHS_Dry05!Q34)/2 -> 16.49560093 | R36: =(DHS_Wet05!R34+DHS_Dry05!R34)/2 -> 41.48732449 | S36: =(DHS_Wet05!S34+DHS_Dry05!S34)/2 -> 50.85855622 | T36: =(DHS_Wet05!T34+DHS_Dry05!T34)/2 -> 43.4457807 | U36: =(DHS_Wet05!U34+DHS_Dry05!U34)/2 -> 55.51422683 | V36: =(DHS_Wet05!V34+DHS_Dry05!V34)/2 -> 57.8014662 | W36: =(DHS_Wet05!W34+DHS_Dry05!W34)/2 -> 44.78646831 | X36: =(DHS_Wet05!X34+DHS_Dry05!X34)/2 -> 42.23246166 | Y36: =(DHS_Wet05!Y34+DHS_Dry05!Y34)/2 -> 25.19568102 | Z36: =(DHS_Wet05!Z34+DHS_Dry05!Z34)/2 -> 55.93438502 | AA36: =(DHS_Wet05!AA34+DHS_Dry05!AA34)/2 -> 28.10275528 | AB36: =(DHS_Wet05!AB34+DHS_Dry05!AB34)/2 -> 73.01065197 | AC36: =(DHS_Wet05!AC34+DHS_Dry05!AC34)/2 -> 63.68496659 | AD36: =(DHS_Wet05!AD34+DHS_Dry05!AD34)/2 -> 6.338693803 | AE36: =(DHS_Wet05!AE34+DHS_Dry05!AE34)/2 -> 66.37407024 | AF36: =(DHS_Wet05!AF34+DHS_Dry05!AF34)/2 -> 36.68914999 | AG36: =(DHS_Wet05!AG34+DHS_Dry05!AG34)/2 -> 47.30553858 | AH36: =(DHS_Wet05!AH34+DHS_Dry05!AH34)/2 -> 45.57024174 | AI36: =(DHS_Wet05!AI34+DHS_Dry05!AI34)/2 -> 16.16998803 | AJ36: =(DHS_Wet05!AJ34+DHS_Dry05!AJ34)/2 -> 43.91870025 | BB36: No | BC36: N/A | BD36: N/A | BE36: N/A | BF36: N/A | BG36: N/A | BH36: N/A | BI36: N/A | BJ36: N/A | BK36: N/A | BL36: N/A | BM36: N/A | BN36: N/A | BO36: N/A | BP36: N/A | BQ36: N/A | BR36: N/A | BS36: N/A | BT36: N/A | BU36: N/A | BV36: N/A | BW36: N/A | BX36: N/A | BY36: N/A | BZ36: N/A | CA36: N/A | CB36: N/A | CC36: N/A | CD36: N/A | CE36: N/A | CF36: N/A | CG36: N/A | CH36: N/A | CI36: N/A | CJ36: N/A
A37: Improved Water source on premises | B37: Yes | C37: =(DHS_Wet05!C35+DHS_Dry05!C35)/2 -> 39.21746937 | D37: =(DHS_Wet05!D35+DHS_Dry05!D35)/2 -> 57.89595454 | E37: =(DHS_Wet05!E35+DHS_Dry05!E35)/2 -> 66.06623965 | F37: =(DHS_Wet05!F35+DHS_Dry05!F35)/2 -> 77.91870994 | G37: =(DHS_Wet05!G35+DHS_Dry05!G35)/2 -> 92.24118019 | H37: =(DHS_Wet05!H35+DHS_Dry05!H35)/2 -> 55.70653435 | I37: =(DHS_Wet05!I35+DHS_Dry05!I35)/2 -> 77.99115789 | J37: =(DHS_Wet05!J35+DHS_Dry05!J35)/2 -> 87.46049679 | K37: =(DHS_Wet05!K35+DHS_Dry05!K35)/2 -> 94.0346384 | L37: =(DHS_Wet05!L35+DHS_Dry05!L35)/2 -> 94.49861663 | M37: =(DHS_Wet05!M35+DHS_Dry05!M35)/2 -> 37.60629566 | N37: =(DHS_Wet05!N35+DHS_Dry05!N35)/2 -> 55.89474489 | O37: =(DHS_Wet05!O35+DHS_Dry05!O35)/2 -> 64.37027564 | P37: =(DHS_Wet05!P35+DHS_Dry05!P35)/2 -> 72.61218992 | Q37: =(DHS_Wet05!Q35+DHS_Dry05!Q35)/2 -> 88.99329195 | R37: =(DHS_Wet05!R35+DHS_Dry05!R35)/2 -> 79.54596028 | S37: =(DHS_Wet05!S35+DHS_Dry05!S35)/2 -> 62.43252031 | T37: =(DHS_Wet05!T35+DHS_Dry05!T35)/2 -> 57.3708427 | U37: =(DHS_Wet05!U35+DHS_Dry05!U35)/2 -> 45.4935672 | V37: =(DHS_Wet05!V35+DHS_Dry05!V35)/2 -> 51.08320264 | W37: =(DHS_Wet05!W35+DHS_Dry05!W35)/2 -> 55.45076574 | X37: =(DHS_Wet05!X35+DHS_Dry05!X35)/2 -> 69.87657266 | Y37: =(DHS_Wet05!Y35+DHS_Dry05!Y35)/2 -> 85.08615342 | Z37: =(DHS_Wet05!Z35+DHS_Dry05!Z35)/2 -> 52.89691276 | AA37: =(DHS_Wet05!AA35+DHS_Dry05!AA35)/2 -> 77.2076141 | AB37: =(DHS_Wet05!AB35+DHS_Dry05!AB35)/2 -> 50.00730547 | AC37: =(DHS_Wet05!AC35+DHS_Dry05!AC35)/2 -> 37.95590202 | AD37: =(DHS_Wet05!AD35+DHS_Dry05!AD35)/2 -> 93.51181281 | AE37: =(DHS_Wet05!AE35+DHS_Dry05!AE35)/2 -> 53.42830692 | AF37: =(DHS_Wet05!AF35+DHS_Dry05!AF35)/2 -> 62.37569265 | AG37: =(DHS_Wet05!AG35+DHS_Dry05!AG35)/2 -> 58.33787445 | AH37: =(DHS_Wet05!AH35+DHS_Dry05!AH35)/2 -> 62.73741315 | AI37: =(DHS_Wet05!AI35+DHS_Dry05!AI35)/2 -> 84.05550241 | AJ37: =(DHS_Wet05!AJ35+DHS_Dry05!AJ35)/2 -> 70.81488461 | BA37: Improved water source on premises | BB37: Yes | BC37: N/A | BD37: N/A | BE37: N/A | BF37: N/A | BG37: N/A | BH37: N/A | BI37: N/A | BJ37: N/A | BK37: N/A | BL37: N/A | BM37: N/A | BN37: N/A | BO37: N/A | BP37: N/A | BQ37: N/A | BR37: N/A | BS37: N/A | BT37: N/A | BU37: N/A | BV37: N/A | BW37: N/A | BX37: N/A | BY37: N/A | BZ37: N/A | CA37: N/A | CB37: N/A | CC37: N/A | CD37: N/A | CE37: N/A | CF37: N/A | CG37: N/A | CH37: N/A | CI37: N/A | CJ37: N/A
B38: No | C38: =(DHS_Wet05!C36+DHS_Dry05!C36)/2 -> 60.78253063 | D38: =(DHS_Wet05!D36+DHS_Dry05!D36)/2 -> 42.10404546 | E38: =(DHS_Wet05!E36+DHS_Dry05!E36)/2 -> 33.93376035 | F38: =(DHS_Wet05!F36+DHS_Dry05!F36)/2 -> 22.08129006 | G38: =(DHS_Wet05!G36+DHS_Dry05!G36)/2 -> 7.758819814 | H38: =(DHS_Wet05!H36+DHS_Dry05!H36)/2 -> 44.29346565 | I38: =(DHS_Wet05!I36+DHS_Dry05!I36)/2 -> 22.00884211 | J38: =(DHS_Wet05!J36+DHS_Dry05!J36)/2 -> 12.53950321 | K38: =(DHS_Wet05!K36+DHS_Dry05!K36)/2 -> 5.965361597 | L38: =(DHS_Wet05!L36+DHS_Dry05!L36)/2 -> 5.50138337 | M38: =(DHS_Wet05!M36+DHS_Dry05!M36)/2 -> 62.39370434 | N38: =(DHS_Wet05!N36+DHS_Dry05!N36)/2 -> 44.10525511 | O38: =(DHS_Wet05!O36+DHS_Dry05!O36)/2 -> 35.62972436 | P38: =(DHS_Wet05!P36+DHS_Dry05!P36)/2 -> 27.38781008 | Q38: =(DHS_Wet05!Q36+DHS_Dry05!Q36)/2 -> 11.00670805 | R38: =(DHS_Wet05!R36+DHS_Dry05!R36)/2 -> 20.45403972 | S38: =(DHS_Wet05!S36+DHS_Dry05!S36)/2 -> 37.56747969 | T38: =(DHS_Wet05!T36+DHS_Dry05!T36)/2 -> 42.6291573 | U38: =(DHS_Wet05!U36+DHS_Dry05!U36)/2 -> 54.5064328 | V38: =(DHS_Wet05!V36+DHS_Dry05!V36)/2 -> 48.91679736 | W38: =(DHS_Wet05!W36+DHS_Dry05!W36)/2 -> 44.54923426 | X38: =(DHS_Wet05!X36+DHS_Dry05!X36)/2 -> 30.12342734 | Y38: =(DHS_Wet05!Y36+DHS_Dry05!Y36)/2 -> 14.91384658 | Z38: =(DHS_Wet05!Z36+DHS_Dry05!Z36)/2 -> 47.10308724 | AA38: =(DHS_Wet05!AA36+DHS_Dry05!AA36)/2 -> 22.7923859 | AB38: =(DHS_Wet05!AB36+DHS_Dry05!AB36)/2 -> 49.99269453 | AC38: =(DHS_Wet05!AC36+DHS_Dry05!AC36)/2 -> 62.04409798 | AD38: =(DHS_Wet05!AD36+DHS_Dry05!AD36)/2 -> 6.488187193 | AE38: =(DHS_Wet05!AE36+DHS_Dry05!AE36)/2 -> 46.57169308 | AF38: =(DHS_Wet05!AF36+DHS_Dry05!AF36)/2 -> 37.62430735 | AG38: =(DHS_Wet05!AG36+DHS_Dry05!AG36)/2 -> 41.66212555 | AH38: =(DHS_Wet05!AH36+DHS_Dry05!AH36)/2 -> 37.26258685 | AI38: =(DHS_Wet05!AI36+DHS_Dry05!AI36)/2 -> 15.94449759 | AJ38: =(DHS_Wet05!AJ36+DHS_Dry05!AJ36)/2 -> 29.18511539 | BB38: No | BC38: N/A | BD38: N/A | BE38: N/A | BF38: N/A | BG38: N/A | BH38: N/A | BI38: N/A | BJ38: N/A | BK38: N/A | BL38: N/A | BM38: N/A | BN38: N/A | BO38: N/A | BP38: N/A | BQ38: N/A | BR38: N/A | BS38: N/A | BT38: N/A | BU38: N/A | BV38: N/A | BW38: N/A | BX38: N/A | BY38: N/A | BZ38: N/A | CA38: N/A | CB38: N/A | CC38: N/A | CD38: N/A | CE38: N/A | CF38: N/A | CG38: N/A | CH38: N/A | CI38: N/A | CJ38: N/A
A39: Piped water on premises available when needed | B39: Yes | C39: N/A | D39: N/A | E39: N/A | F39: N/A | G39: N/A | H39: N/A | I39: N/A | J39: N/A | K39: N/A | L39: N/A | M39: N/A | N39: N/A | O39: N/A | P39: N/A | Q39: N/A | R39: N/A | S39: N/A | T39: N/A | U39: N/A | V39: N/A | W39: N/A | X39: N/A | Y39: N/A | Z39: N/A | AA39: N/A | AB39: N/A | AC39: N/A | AD39: N/A | AE39: N/A | AF39: N/A | AG39: N/A | AH39: N/A | AI39: N/A | AJ39: N/A | BA39: Piped water on premises available when needed | BB39: Yes | BC39: N/A | BD39: N/A | BE39: N/A | BF39: N/A | BG39: N/A | BH39: N/A | BI39: N/A | BJ39: N/A | BK39: N/A | BL39: N/A | BM39: N/A | BN39: N/A | BO39: N/A | BP39: N/A | BQ39: N/A | BR39: N/A | BS39: N/A | BT39: N/A | BU39: N/A | BV39: N/A | BW39: N/A | BX39: N/A | BY39: N/A | BZ39: N/A | CA39: N/A | CB39: N/A | CC39: N/A | CD39: N/A | CE39: N/A | CF39: N/A | CG39: N/A | CH39: N/A | CI39: N/A | CJ39: N/A
B40: No | C40: N/A | D40: N/A | E40: N/A | F40: N/A | G40: N/A | H40: N/A | I40: N/A | J40: N/A | K40: N/A | L40: N/A | M40: N/A | N40: N/A | O40: N/A | P40: N/A | Q40: N/A | R40: N/A | S40: N/A | T40: N/A | U40: N/A | V40: N/A | W40: N/A | X40: N/A | Y40: N/A | Z40: N/A | AA40: N/A | AB40: N/A | AC40: N/A | AD40: N/A | AE40: N/A | AF40: N/A | AG40: N/A | AH40: N/A | AI40: N/A | AJ40: N/A | BB40: No | BC40: N/A | BD40: N/A | BE40: N/A | BF40: N/A | BG40: N/A | BH40: N/A | BI40: N/A | BJ40: N/A | BK40: N/A | BL40: N/A | BM40: N/A | BN40: N/A | BO40: N/A | BP40: N/A | BQ40: N/A | BR40: N/A | BS40: N/A | BT40: N/A | BU40: N/A | BV40: N/A | BW40: N/A | BX40: N/A | BY40: N/A | BZ40: N/A | CA40: N/A | CB40: N/A | CC40: N/A | CD40: N/A | CE40: N/A | CF40: N/A | CG40: N/A | CH40: N/A | CI40: N/A | CJ40: N/A
A41: Water point at more than 30 minutes | B41: Yes | C41: =(DHS_Wet05!C37+DHS_Dry05!C37)/2 -> 2.674552525 | D41: =(DHS_Wet05!D37+DHS_Dry05!D37)/2 -> 1.590543959 | E41: =(DHS_Wet05!E37+DHS_Dry05!E37)/2 -> 1.270073912 | F41: =(DHS_Wet05!F37+DHS_Dry05!F37)/2 -> 1.088047229 | G41: =(DHS_Wet05!G37+DHS_Dry05!G37)/2 -> 0.3114901329 | H41: =(DHS_Wet05!H37+DHS_Dry05!H37)/2 -> 2.180728798 | I41: =(DHS_Wet05!I37+DHS_Dry05!I37)/2 -> 0.4419997658 | J41: =(DHS_Wet05!J37+DHS_Dry05!J37)/2 -> 0.112508512 | K41: =(DHS_Wet05!K37+DHS_Dry05!K37)/2 -> 0.1373498088 | L41: =(DHS_Wet05!L37+DHS_Dry05!L37)/2 -> 0 | M41: =(DHS_Wet05!M37+DHS_Dry05!M37)/2 -> 2.824685248 | N41: =(DHS_Wet05!N37+DHS_Dry05!N37)/2 -> 1.657030195 | O41: =(DHS_Wet05!O37+DHS_Dry05!O37)/2 -> 1.243558469 | P41: =(DHS_Wet05!P37+DHS_Dry05!P37)/2 -> 1.346179989 | Q41: =(DHS_Wet05!Q37+DHS_Dry05!Q37)/2 -> 0.6005725943 | R41: =(DHS_Wet05!R37+DHS_Dry05!R37)/2 -> 2.133222904 | S41: =(DHS_Wet05!S37+DHS_Dry05!S37)/2 -> 1.200680398 | T41: =(DHS_Wet05!T37+DHS_Dry05!T37)/2 -> 0.159467651 | U41: =(DHS_Wet05!U37+DHS_Dry05!U37)/2 -> 4.672847552 | V41: =(DHS_Wet05!V37+DHS_Dry05!V37)/2 -> 3.016633557 | W41: =(DHS_Wet05!W37+DHS_Dry05!W37)/2 -> 0.06565679996 | X41: =(DHS_Wet05!X37+DHS_Dry05!X37)/2 -> 2.207210581 | Y41: =(DHS_Wet05!Y37+DHS_Dry05!Y37)/2 -> 0.642264732 | Z41: =(DHS_Wet05!Z37+DHS_Dry05!Z37)/2 -> 0.7547367989 | AA41: =(DHS_Wet05!AA37+DHS_Dry05!AA37)/2 -> 1.602710089 | AB41: =(DHS_Wet05!AB37+DHS_Dry05!AB37)/2 -> 6.322860308 | AC41: =(DHS_Wet05!AC37+DHS_Dry05!AC37)/2 -> 15.36583522 | AD41: =(DHS_Wet05!AD37+DHS_Dry05!AD37)/2 -> 0 | AE41: =(DHS_Wet05!AE37+DHS_Dry05!AE37)/2 -> 0.4838032933 | AF41: =(DHS_Wet05!AF37+DHS_Dry05!AF37)/2 -> 0.6752535115 | AG41: =(DHS_Wet05!AG37+DHS_Dry05!AG37)/2 -> 0.6858729422 | AH41: =(DHS_Wet05!AH37+DHS_Dry05!AH37)/2 -> 0.4110589821 | AI41: =(DHS_Wet05!AI37+DHS_Dry05!AI37)/2 -> 0.04488140977 | AJ41: =(DHS_Wet05!AJ37+DHS_Dry05!AJ37)/2 -> 3.602424761 | BA41: Water point at more than 30 minutes | BB41: Yes | BC41: N/A | BD41: N/A | BE41: N/A | BF41: N/A | BG41: N/A | BH41: N/A | BI41: N/A | BJ41: N/A | BK41: N/A | BL41: N/A | BM41: N/A | BN41: N/A | BO41: N/A | BP41: N/A | BQ41: N/A | BR41: N/A | BS41: N/A | BT41: N/A | BU41: N/A | BV41: N/A | BW41: N/A | BX41: N/A | BY41: N/A | BZ41: N/A | CA41: N/A | CB41: N/A | CC41: N/A | CD41: N/A | CE41: N/A | CF41: N/A | CG41: N/A | CH41: N/A | CI41: N/A | CJ41: N/A
B42: No | C42: =(DHS_Wet05!C38+DHS_Dry05!C38)/2 -> 97.32544748 | D42: =(DHS_Wet05!D38+DHS_Dry05!D38)/2 -> 98.40945604 | E42: =(DHS_Wet05!E38+DHS_Dry05!E38)/2 -> 98.72992609 | F42: =(DHS_Wet05!F38+DHS_Dry05!F38)/2 -> 98.91195277 | G42: =(DHS_Wet05!G38+DHS_Dry05!G38)/2 -> 99.68850987 | H42: =(DHS_Wet05!H38+DHS_Dry05!H38)/2 -> 97.8192712 | I42: =(DHS_Wet05!I38+DHS_Dry05!I38)/2 -> 99.55800023 | J42: =(DHS_Wet05!J38+DHS_Dry05!J38)/2 -> 99.88749149 | K42: =(DHS_Wet05!K38+DHS_Dry05!K38)/2 -> 99.86265019 | L42: =(DHS_Wet05!L38+DHS_Dry05!L38)/2 -> 100 | M42: =(DHS_Wet05!M38+DHS_Dry05!M38)/2 -> 97.17531475 | N42: =(DHS_Wet05!N38+DHS_Dry05!N38)/2 -> 98.34296981 | O42: =(DHS_Wet05!O38+DHS_Dry05!O38)/2 -> 98.75644153 | P42: =(DHS_Wet05!P38+DHS_Dry05!P38)/2 -> 98.65382001 | Q42: =(DHS_Wet05!Q38+DHS_Dry05!Q38)/2 -> 99.39942741 | R42: =(DHS_Wet05!R38+DHS_Dry05!R38)/2 -> 97.8667771 | S42: =(DHS_Wet05!S38+DHS_Dry05!S38)/2 -> 98.7993196 | T42: =(DHS_Wet05!T38+DHS_Dry05!T38)/2 -> 99.84053235 | U42: =(DHS_Wet05!U38+DHS_Dry05!U38)/2 -> 95.32715245 | V42: =(DHS_Wet05!V38+DHS_Dry05!V38)/2 -> 96.98336644 | W42: =(DHS_Wet05!W38+DHS_Dry05!W38)/2 -> 99.9343432 | X42: =(DHS_Wet05!X38+DHS_Dry05!X38)/2 -> 97.79278942 | Y42: =(DHS_Wet05!Y38+DHS_Dry05!Y38)/2 -> 99.35773527 | Z42: =(DHS_Wet05!Z38+DHS_Dry05!Z38)/2 -> 99.2452632 | AA42: =(DHS_Wet05!AA38+DHS_Dry05!AA38)/2 -> 98.39728991 | AB42: =(DHS_Wet05!AB38+DHS_Dry05!AB38)/2 -> 93.67713969 | AC42: =(DHS_Wet05!AC38+DHS_Dry05!AC38)/2 -> 84.63416478 | AD42: =(DHS_Wet05!AD38+DHS_Dry05!AD38)/2 -> 100 | AE42: =(DHS_Wet05!AE38+DHS_Dry05!AE38)/2 -> 99.51619671 | AF42: =(DHS_Wet05!AF38+DHS_Dry05!AF38)/2 -> 99.32474649 | AG42: =(DHS_Wet05!AG38+DHS_Dry05!AG38)/2 -> 99.31412706 | AH42: =(DHS_Wet05!AH38+DHS_Dry05!AH38)/2 -> 99.58894102 | AI42: =(DHS_Wet05!AI38+DHS_Dry05!AI38)/2 -> 99.95511859 | AJ42: =(DHS_Wet05!AJ38+DHS_Dry05!AJ38)/2 -> 96.39757524 | BB42: No | BC42: N/A | BD42: N/A | BE42: N/A | BF42: N/A | BG42: N/A | BH42: N/A | BI42: N/A | BJ42: N/A | BK42: N/A | BL42: N/A | BM42: N/A | BN42: N/A | BO42: N/A | BP42: N/A | BQ42: N/A | BR42: N/A | BS42: N/A | BT42: N/A | BU42: N/A | BV42: N/A | BW42: N/A | BX42: N/A | BY42: N/A | BZ42: N/A | CA42: N/A | CB42: N/A | CC42: N/A | CD42: N/A | CE42: N/A | CF42: N/A | CG42: N/A | CH42: N/A | CI42: N/A | CJ42: N/A
A43: Water source available when needed | B43: Yes | C43: N/A | D43: N/A | E43: N/A | F43: N/A | G43: N/A | H43: N/A | I43: N/A | J43: N/A | K43: N/A | L43: N/A | M43: N/A | N43: N/A | O43: N/A | P43: N/A | Q43: N/A | R43: N/A | S43: N/A | T43: N/A | U43: N/A | V43: N/A | W43: N/A | X43: N/A | Y43: N/A | Z43: N/A | AA43: N/A | AB43: N/A | AC43: N/A | AD43: N/A | AE43: N/A | AF43: N/A | AG43: N/A | AH43: N/A | AI43: N/A | AJ43: N/A | BA43: Water source available when needed | BB43: Yes | BC43: N/A | BD43: N/A | BE43: N/A | BF43: N/A | BG43: N/A | BH43: N/A | BI43: N/A | BJ43: N/A | BK43: N/A | BL43: N/A | BM43: N/A | BN43: N/A | BO43: N/A | BP43: N/A | BQ43: N/A | BR43: N/A | BS43: N/A | BT43: N/A | BU43: N/A | BV43: N/A | BW43: N/A | BX43: N/A | BY43: N/A | BZ43: N/A | CA43: N/A | CB43: N/A | CC43: N/A | CD43: N/A | CE43: N/A | CF43: N/A | CG43: N/A | CH43: N/A | CI43: N/A | CJ43: N/A
B44: No | C44: N/A | D44: N/A | E44: N/A | F44: N/A | G44: N/A | H44: N/A | I44: N/A | J44: N/A | K44: N/A | L44: N/A | M44: N/A | N44: N/A | O44: N/A | P44: N/A | Q44: N/A | R44: N/A | S44: N/A | T44: N/A | U44: N/A | V44: N/A | W44: N/A | X44: N/A | Y44: N/A | Z44: N/A | AA44: N/A | AB44: N/A | AC44: N/A | AD44: N/A | AE44: N/A | AF44: N/A | AG44: N/A | AH44: N/A | AI44: N/A | AJ44: N/A | BB44: No | BC44: N/A | BD44: N/A | BE44: N/A | BF44: N/A | BG44: N/A | BH44: N/A | BI44: N/A | BJ44: N/A | BK44: N/A | BL44: N/A | BM44: N/A | BN44: N/A | BO44: N/A | BP44: N/A | BQ44: N/A | BR44: N/A | BS44: N/A | BT44: N/A | BU44: N/A | BV44: N/A | BW44: N/A | BX44: N/A | BY44: N/A | BZ44: N/A | CA44: N/A | CB44: N/A | CC44: N/A | CD44: N/A | CE44: N/A | CF44: N/A | CG44: N/A | CH44: N/A | CI44: N/A | CJ44: N/A
A45: Improved water source available when needed | B45: Yes | C45: N/A | D45: N/A | E45: N/A | F45: N/A | G45: N/A | H45: N/A | I45: N/A | J45: N/A | K45: N/A | L45: N/A | M45: N/A | N45: N/A | O45: N/A | P45: N/A | Q45: N/A | R45: N/A | S45: N/A | T45: N/A | U45: N/A | V45: N/A | W45: N/A | X45: N/A | Y45: N/A | Z45: N/A | AA45: N/A | AB45: N/A | AC45: N/A | AD45: N/A | AE45: N/A | AF45: N/A | AG45: N/A | AH45: N/A | AI45: N/A | AJ45: N/A | BA45: Improved water source available when needed | BB45: Yes | BC45: N/A | BD45: N/A | BE45: N/A | BF45: N/A | BG45: N/A | BH45: N/A | BI45: N/A | BJ45: N/A | BK45: N/A | BL45: N/A | BM45: N/A | BN45: N/A | BO45: N/A | BP45: N/A | BQ45: N/A | BR45: N/A | BS45: N/A | BT45: N/A | BU45: N/A | BV45: N/A | BW45: N/A | BX45: N/A | BY45: N/A | BZ45: N/A | CA45: N/A | CB45: N/A | CC45: N/A | CD45: N/A | CE45: N/A | CF45: N/A | CG45: N/A | CH45: N/A | CI45: N/A | CJ45: N/A
B46: No | C46: N/A | D46: N/A | E46: N/A | F46: N/A | G46: N/A | H46: N/A | I46: N/A | J46: N/A | K46: N/A | L46: N/A | M46: N/A | N46: N/A | O46: N/A | P46: N/A | Q46: N/A | R46: N/A | S46: N/A | T46: N/A | U46: N/A | V46: N/A | W46: N/A | X46: N/A | Y46: N/A | Z46: N/A | AA46: N/A | AB46: N/A | AC46: N/A | AD46: N/A | AE46: N/A | AF46: N/A | AG46: N/A | AH46: N/A | AI46: N/A | AJ46: N/A | BB46: No | BC46: N/A | BD46: N/A | BE46: N/A | BF46: N/A | BG46: N/A | BH46: N/A | BI46: N/A | BJ46: N/A | BK46: N/A | BL46: N/A | BM46: N/A | BN46: N/A | BO46: N/A | BP46: N/A | BQ46: N/A | BR46: N/A | BS46: N/A | BT46: N/A | BU46: N/A | BV46: N/A | BW46: N/A | BX46: N/A | BY46: N/A | BZ46: N/A | CA46: N/A | CB46: N/A | CC46: N/A | CD46: N/A | CE46: N/A | CF46: N/A | CG46: N/A | CH46: N/A | CI46: N/A | CJ46: N/A
A47: Microbiological quality at point of collection | B47: Not contaminated (No E. coli in 100 mL) | C47: N/A | D47: N/A | E47: N/A | F47: N/A | G47: N/A | H47: N/A | I47: N/A | J47: N/A | K47: N/A | L47: N/A | M47: N/A | N47: N/A | O47: N/A | P47: N/A | Q47: N/A | R47: N/A | S47: N/A | T47: N/A | U47: N/A | V47: N/A | W47: N/A | X47: N/A | Y47: N/A | Z47: N/A | AA47: N/A | AB47: N/A | AC47: N/A | AD47: N/A | AE47: N/A | AF47: N/A | AG47: N/A | AH47: N/A | AI47: N/A | AJ47: N/A | BA47: Microbiological quality at point of collection | BB47: Not contaminated (No E. coli in 100 mL) | BC47: N/A | BD47: N/A | BE47: N/A | BF47: N/A | BG47: N/A | BH47: N/A | BI47: N/A | BJ47: N/A | BK47: N/A | BL47: N/A | BM47: N/A | BN47: N/A | BO47: N/A | BP47: N/A | BQ47: N/A | BR47: N/A | BS47: N/A | BT47: N/A | BU47: N/A | BV47: N/A | BW47: N/A | BX47: N/A | BY47: N/A | BZ47: N/A | CA47: N/A | CB47: N/A | CC47: N/A | CD47: N/A | CE47: N/A | CF47: N/A | CG47: N/A | CH47: N/A | CI47: N/A | CJ47: N/A
B48: Contaminated (E. coli detected in 100 mL) | C48: N/A | D48: N/A | E48: N/A | F48: N/A | G48: N/A | H48: N/A | I48: N/A | J48: N/A | K48: N/A | L48: N/A | M48: N/A | N48: N/A | O48: N/A | P48: N/A | Q48: N/A | R48: N/A | S48: N/A | T48: N/A | U48: N/A | V48: N/A | W48: N/A | X48: N/A | Y48: N/A | Z48: N/A | AA48: N/A | AB48: N/A | AC48: N/A | AD48: N/A | AE48: N/A | AF48: N/A | AG48: N/A | AH48: N/A | AI48: N/A | AJ48: N/A | BB48: Contaminated (E. coli detected in 100 mL) | BC48: N/A | BD48: N/A | BE48: N/A | BF48: N/A | BG48: N/A | BH48: N/A | BI48: N/A | BJ48: N/A | BK48: N/A | BL48: N/A | BM48: N/A | BN48: N/A | BO48: N/A | BP48: N/A | BQ48: N/A | BR48: N/A | BS48: N/A | BT48: N/A | BU48: N/A | BV48: N/A | BW48: N/A | BX48: N/A | BY48: N/A | BZ48: N/A | CA48: N/A | CB48: N/A | CC48: N/A | CD48: N/A | CE48: N/A | CF48: N/A | CG48: N/A | CH48: N/A | CI48: N/A | CJ48: N/A
B49: Highly contaminated (>100 CFU/100 mL) | C49: N/A | D49: N/A | E49: N/A | F49: N/A | G49: N/A | H49: N/A | I49: N/A | J49: N/A | K49: N/A | L49: N/A | M49: N/A | N49: N/A | O49: N/A | P49: N/A | Q49: N/A | R49: N/A | S49: N/A | T49: N/A | U49: N/A | V49: N/A | W49: N/A | X49: N/A | Y49: N/A | Z49: N/A | AA49: N/A | AB49: N/A | AC49: N/A | AD49: N/A | AE49: N/A | AF49: N/A | AG49: N/A | AH49: N/A | AI49: N/A | AJ49: N/A | BB49: Highly contaminated (>100 CFU/100 mL) | BC49: N/A | BD49: N/A | BE49: N/A | BF49: N/A | BG49: N/A | BH49: N/A | BI49: N/A | BJ49: N/A | BK49: N/A | BL49: N/A | BM49: N/A | BN49: N/A | BO49: N/A | BP49: N/A | BQ49: N/A | BR49: N/A | BS49: N/A | BT49: N/A | BU49: N/A | BV49: N/A | BW49: N/A | BX49: N/A | BY49: N/A | BZ49: N/A | CA49: N/A | CB49: N/A | CC49: N/A | CD49: N/A | CE49: N/A | CF49: N/A | CG49: N/A | CH49: N/A | CI49: N/A | CJ49: N/A
A50: Microbiological quality of improved water sources at point of collection | B50: Not contaminated (No E. coli in 100 mL) | C50: N/A | D50: N/A | E50: N/A | F50: N/A | G50: N/A | H50: N/A | I50: N/A | J50: N/A | K50: N/A | L50: N/A | M50: N/A | N50: N/A | O50: N/A | P50: N/A | Q50: N/A | R50: N/A | S50: N/A | T50: N/A | U50: N/A | V50: N/A | W50: N/A | X50: N/A | Y50: N/A | Z50: N/A | AA50: N/A | AB50: N/A | AC50: N/A | AD50: N/A | AE50: N/A | AF50: N/A | AG50: N/A | AH50: N/A | AI50: N/A | AJ50: N/A | BA50: Microbiological quality of improved water sources at point of collection | BB50: Not contaminated (No E. coli in 100 mL) | BC50: N/A | BD50: N/A | BE50: N/A | BF50: N/A | BG50: N/A | BH50: N/A | BI50: N/A | BJ50: N/A | BK50: N/A | BL50: N/A | BM50: N/A | BN50: N/A | BO50: N/A | BP50: N/A | BQ50: N/A | BR50: N/A | BS50: N/A | BT50: N/A | BU50: N/A | BV50: N/A | BW50: N/A | BX50: N/A | BY50: N/A | BZ50: N/A | CA50: N/A | CB50: N/A | CC50: N/A | CD50: N/A | CE50: N/A | CF50: N/A | CG50: N/A | CH50: N/A | CI50: N/A | CJ50: N/A
B51: Contaminated (E. coli detected in 100 mL) | C51: N/A | D51: N/A | E51: N/A | F51: N/A | G51: N/A | H51: N/A | I51: N/A | J51: N/A | K51: N/A | L51: N/A | M51: N/A | N51: N/A | O51: N/A | P51: N/A | Q51: N/A | R51: N/A | S51: N/A | T51: N/A | U51: N/A | V51: N/A | W51: N/A | X51: N/A | Y51: N/A | Z51: N/A | AA51: N/A | AB51: N/A | AC51: N/A | AD51: N/A | AE51: N/A | AF51: N/A | AG51: N/A | AH51: N/A | AI51: N/A | AJ51: N/A | BB51: Contaminated (E. coli detected in 100 mL) | BC51: N/A | BD51: N/A | BE51: N/A | BF51: N/A | BG51: N/A | BH51: N/A | BI51: N/A | BJ51: N/A | BK51: N/A | BL51: N/A | BM51: N/A | BN51: N/A | BO51: N/A | BP51: N/A | BQ51: N/A | BR51: N/A | BS51: N/A | BT51: N/A | BU51: N/A | BV51: N/A | BW51: N/A | BX51: N/A | BY51: N/A | BZ51: N/A | CA51: N/A | CB51: N/A | CC51: N/A | CD51: N/A | CE51: N/A | CF51: N/A | CG51: N/A | CH51: N/A | CI51: N/A | CJ51: N/A
B52: Highly contaminated (>100 CFU/100 mL) | C52: N/A | D52: N/A | E52: N/A | F52: N/A | G52: N/A | H52: N/A | I52: N/A | J52: N/A | K52: N/A | L52: N/A | M52: N/A | N52: N/A | O52: N/A | P52: N/A | Q52: N/A | R52: N/A | S52: N/A | T52: N/A | U52: N/A | V52: N/A | W52: N/A | X52: N/A | Y52: N/A | Z52: N/A | AA52: N/A | AB52: N/A | AC52: N/A | AD52: N/A | AE52: N/A | AF52: N/A | AG52: N/A | AH52: N/A | AI52: N/A | AJ52: N/A | BB52: Highly contaminated (>100 CFU/100 mL) | BC52: N/A | BD52: N/A | BE52: N/A | BF52: N/A | BG52: N/A | BH52: N/A | BI52: N/A | BJ52: N/A | BK52: N/A | BL52: N/A | BM52: N/A | BN52: N/A | BO52: N/A | BP52: N/A | BQ52: N/A | BR52: N/A | BS52: N/A | BT52: N/A | BU52: N/A | BV52: N/A | BW52: N/A | BX52: N/A | BY52: N/A | BZ52: N/A | CA52: N/A | CB52: N/A | CC52: N/A | CD52: N/A | CE52: N/A | CF52: N/A | CG52: N/A | CH52: N/A | CI52: N/A | CJ52: N/A
A53: Microbiological quality of piped on premises at point of collection | B53: Not contaminated (No E. coli in 100 mL) | C53: N/A | D53: N/A | E53: N/A | F53: N/A | G53: N/A | H53: N/A | I53: N/A | J53: N/A | K53: N/A | L53: N/A | M53: N/A | N53: N/A | O53: N/A | P53: N/A | Q53: N/A | R53: N/A | S53: N/A | T53: N/A | U53: N/A | V53: N/A | W53: N/A | X53: N/A | Y53: N/A | Z53: N/A | AA53: N/A | AB53: N/A | AC53: N/A | AD53: N/A | AE53: N/A | AF53: N/A | AG53: N/A | AH53: N/A | AI53: N/A | AJ53: N/A | BA53: Microbiological quality of piped on premises at point of collection | BB53: Not contaminated (No E. coli in 100 mL) | BC53: N/A | BD53: N/A | BE53: N/A | BF53: N/A | BG53: N/A | BH53: N/A | BI53: N/A | BJ53: N/A | BK53: N/A | BL53: N/A | BM53: N/A | BN53: N/A | BO53: N/A | BP53: N/A | BQ53: N/A | BR53: N/A | BS53: N/A | BT53: N/A | BU53: N/A | BV53: N/A | BW53: N/A | BX53: N/A | BY53: N/A | BZ53: N/A | CA53: N/A | CB53: N/A | CC53: N/A | CD53: N/A | CE53: N/A | CF53: N/A | CG53: N/A | CH53: N/A | CI53: N/A | CJ53: N/A
B54: Contaminated (E. coli detected in 100 mL) | C54: N/A | D54: N/A | E54: N/A | F54: N/A | G54: N/A | H54: N/A | I54: N/A | J54: N/A | K54: N/A | L54: N/A | M54: N/A | N54: N/A | O54: N/A | P54: N/A | Q54: N/A | R54: N/A | S54: N/A | T54: N/A | U54: N/A | V54: N/A | W54: N/A | X54: N/A | Y54: N/A | Z54: N/A | AA54: N/A | AB54: N/A | AC54: N/A | AD54: N/A | AE54: N/A | AF54: N/A | AG54: N/A | AH54: N/A | AI54: N/A | AJ54: N/A | BB54: Contaminated (E. coli detected in 100 mL) | BC54: N/A | BD54: N/A | BE54: N/A | BF54: N/A | BG54: N/A | BH54: N/A | BI54: N/A | BJ54: N/A | BK54: N/A | BL54: N/A | BM54: N/A | BN54: N/A | BO54: N/A | BP54: N/A | BQ54: N/A | BR54: N/A | BS54: N/A | BT54: N/A | BU54: N/A | BV54: N/A | BW54: N/A | BX54: N/A | BY54: N/A | BZ54: N/A | CA54: N/A | CB54: N/A | CC54: N/A | CD54: N/A | CE54: N/A | CF54: N/A | CG54: N/A | CH54: N/A | CI54: N/A | CJ54: N/A
B55: Highly contaminated (>100 CFU/100 mL) | C55: N/A | D55: N/A | E55: N/A | F55: N/A | G55: N/A | H55: N/A | I55: N/A | J55: N/A | K55: N/A | L55: N/A | M55: N/A | N55: N/A | O55: N/A | P55: N/A | Q55: N/A | R55: N/A | S55: N/A | T55: N/A | U55: N/A | V55: N/A | W55: N/A | X55: N/A | Y55: N/A | Z55: N/A | AA55: N/A | AB55: N/A | AC55: N/A | AD55: N/A | AE55: N/A | AF55: N/A | AG55: N/A | AH55: N/A | AI55: N/A | AJ55: N/A | BB55: Highly contaminated (>100 CFU/100 mL) | BC55: N/A | BD55: N/A | BE55: N/A | BF55: N/A | BG55: N/A | BH55: N/A | BI55: N/A | BJ55: N/A | BK55: N/A | BL55: N/A | BM55: N/A | BN55: N/A | BO55: N/A | BP55: N/A | BQ55: N/A | BR55: N/A | BS55: N/A | BT55: N/A | BU55: N/A | BV55: N/A | BW55: N/A | BX55: N/A | BY55: N/A | BZ55: N/A | CA55: N/A | CB55: N/A | CC55: N/A | CD55: N/A | CE55: N/A | CF55: N/A | CG55: N/A | CH55: N/A | CI55: N/A | CJ55: N/A
C56: NATIONAL wealth index quintile | H56: URBAN wealth index quintile | M56: RURAL wealth index quintile | R56: SUB-REGIONS: | BA56: Raw numbers of respondents: | BB56: Use of drinking water sources | BC56: NATIONAL wealth index quintile | BH56: URBAN wealth index quintile | BM56: RURAL wealth index quintile | BR56: SUB-REGIONS:
A57: Percentage based on weighted population | C57: Poorest | D57: Poor | E57: Middle | F57: Rich | G57: Richest | H57: Poorest | I57: Poor | J57: Middle | K57: Rich | L57: Richest | M57: Poorest | N57: Poor | O57: Middle | P57: Rich | Q57: Richest | R57: Banteay Mean Chey | S57: Battambang & Krong Pailin | T57: Kampong Cham | U57: Kampong Chhnang | V57: Kampong Speu | W57: Kampong Thom | X57: Kampot & Krong Kep | Y57: Kandal | Z57: Kratie | AA57: Krong Preah Sihanouk & Kaoh Kong | AB57: Mondol Kiri & Rattanak Kiri | AC57: Otdar Mean Chey | AD57: Phnom Penh | AE57: Preah Vihear & Steung Treng | AF57: Prey Veng | AG57: Pursat | AH57: Siem Reap | AI57: Svay Rieng | AJ57: Takeo | BA57: Water data, raw numbers (weighted) | BC57: Poorest | BD57: Poor | BE57: Middle | BF57: Rich | BG57: Richest | BH57: Poorest | BI57: Poor | BJ57: Middle | BK57: Rich | BL57: Richest | BM57: Poorest | BN57: Poor | BO57: Middle | BP57: Rich | BQ57: Richest | BR57: Banteay Mean Chey | BS57: Battambang & Krong Pailin | BT57: Kampong Cham | BU57: Kampong Chhnang | BV57: Kampong Speu | BW57: Kampong Thom | BX57: Kampot & Krong Kep | BY57: Kandal | BZ57: Kratie | CA57: Krong Preah Sihanouk & Kaoh Kong | CB57: Mondol Kiri & Rattanak Kiri | CC57: Otdar Mean Chey | CD57: Phnom Penh | CE57: Preah Vihear & Steung Treng | CF57: Prey Veng | CG57: Pursat | CH57: Siem Reap | CI57: Svay Rieng | CJ57: Takeo
A58: Main drinking water source | B58: Piped into dwelling | C58: =(DHS_Wet05!C49+DHS_Dry05!C49)/2 -> 0.4356582722 | D58: =(DHS_Wet05!D49+DHS_Dry05!D49)/2 -> 0.4917433196 | E58: =(DHS_Wet05!E49+DHS_Dry05!E49)/2 -> 1.203601148 | F58: =(DHS_Wet05!F49+DHS_Dry05!F49)/2 -> 2.62855756 | G58: =(DHS_Wet05!G49+DHS_Dry05!G49)/2 -> 38.32581946 | H58: =(DHS_Wet05!H49+DHS_Dry05!H49)/2 -> 3.457722373 | I58: =(DHS_Wet05!I49+DHS_Dry05!I49)/2 -> 12.78900935 | J58: =(DHS_Wet05!J49+DHS_Dry05!J49)/2 -> 33.5609044 | K58: =(DHS_Wet05!K49+DHS_Dry05!K49)/2 -> 63.8897405 | L58: =(DHS_Wet05!L49+DHS_Dry05!L49)/2 -> 78.03081967 | M58: =(DHS_Wet05!M49+DHS_Dry05!M49)/2 -> 0.2509815248 | N58: =(DHS_Wet05!N49+DHS_Dry05!N49)/2 -> 0.2825995815 | O58: =(DHS_Wet05!O49+DHS_Dry05!O49)/2 -> 0.7220609189 | P58: =(DHS_Wet05!P49+DHS_Dry05!P49)/2 -> 0.7983594598 | Q58: =(DHS_Wet05!Q49+DHS_Dry05!Q49)/2 -> 14.06386732 | R58: =(DHS_Wet05!R49+DHS_Dry05!R49)/2 -> 2.29267739 | S58: =(DHS_Wet05!S49+DHS_Dry05!S49)/2 -> 3.716371227 | T58: =(DHS_Wet05!T49+DHS_Dry05!T49)/2 -> 5.352169659 | U58: =(DHS_Wet05!U49+DHS_Dry05!U49)/2 -> 0.005704585348 | V58: =(DHS_Wet05!V49+DHS_Dry05!V49)/2 -> 2.378390482 | W58: =(DHS_Wet05!W49+DHS_Dry05!W49)/2 -> 0.9515456504 | X58: =(DHS_Wet05!X49+DHS_Dry05!X49)/2 -> 3.964170306 | Y58: =(DHS_Wet05!Y49+DHS_Dry05!Y49)/2 -> 2.744953124 | Z58: =(DHS_Wet05!Z49+DHS_Dry05!Z49)/2 -> 4.678503679 | AA58: =(DHS_Wet05!AA49+DHS_Dry05!AA49)/2 -> 23.60131759 | AB58: =(DHS_Wet05!AB49+DHS_Dry05!AB49)/2 -> 1.271928554 | AC58: =(DHS_Wet05!AC49+DHS_Dry05!AC49)/2 -> 0 | AD58: =(DHS_Wet05!AD49+DHS_Dry05!AD49)/2 -> 66.00711343 | AE58: =(DHS_Wet05!AE49+DHS_Dry05!AE49)/2 -> 0.9866202361 | AF58: =(DHS_Wet05!AF49+DHS_Dry05!AF49)/2 -> 0.1544462882 | AG58: =(DHS_Wet05!AG49+DHS_Dry05!AG49)/2 -> 1.316231989 | AH58: =(DHS_Wet05!AH49+DHS_Dry05!AH49)/2 -> 3.079072311 | AI58: =(DHS_Wet05!AI49+DHS_Dry05!AI49)/2 -> 0.5502727084 | AJ58: =(DHS_Wet05!AJ49+DHS_Dry05!AJ49)/2 -> 1.604764376
B59: Piped to yard/plot | C59: =(DHS_Wet05!C50+DHS_Dry05!C50)/2 -> 0.3884629165 | D59: =(DHS_Wet05!D50+DHS_Dry05!D50)/2 -> 0.7840462806 | E59: =(DHS_Wet05!E50+DHS_Dry05!E50)/2 -> 1.327926294 | F59: =(DHS_Wet05!F50+DHS_Dry05!F50)/2 -> 2.11466159 | G59: =(DHS_Wet05!G50+DHS_Dry05!G50)/2 -> 3.410451058 | H59: =(DHS_Wet05!H50+DHS_Dry05!H50)/2 -> 1.290907465 | I59: =(DHS_Wet05!I50+DHS_Dry05!I50)/2 -> 3.155376043 | J59: =(DHS_Wet05!J50+DHS_Dry05!J50)/2 -> 4.311651264 | K59: =(DHS_Wet05!K50+DHS_Dry05!K50)/2 -> 1.006886383 | L59: =(DHS_Wet05!L50+DHS_Dry05!L50)/2 -> 1.016035818 | M59: =(DHS_Wet05!M50+DHS_Dry05!M50)/2 -> 0.2661660116 | N59: =(DHS_Wet05!N50+DHS_Dry05!N50)/2 -> 0.9856056117 | O59: =(DHS_Wet05!O50+DHS_Dry05!O50)/2 -> 0.6399309314 | P59: =(DHS_Wet05!P50+DHS_Dry05!P50)/2 -> 1.360155233 | Q59: =(DHS_Wet05!Q50+DHS_Dry05!Q50)/2 -> 4.273216787 | R59: =(DHS_Wet05!R50+DHS_Dry05!R50)/2 -> 0.8003492972 | S59: =(DHS_Wet05!S50+DHS_Dry05!S50)/2 -> 0.1265392455 | T59: =(DHS_Wet05!T50+DHS_Dry05!T50)/2 -> 4.223989737 | U59: =(DHS_Wet05!U50+DHS_Dry05!U50)/2 -> 0.05384570057 | V59: =(DHS_Wet05!V50+DHS_Dry05!V50)/2 -> 1.13450483 | W59: =(DHS_Wet05!W50+DHS_Dry05!W50)/2 -> 0.6040097943 | X59: =(DHS_Wet05!X50+DHS_Dry05!X50)/2 -> 1.78494677 | Y59: =(DHS_Wet05!Y50+DHS_Dry05!Y50)/2 -> 3.13063563 | Z59: =(DHS_Wet05!Z50+DHS_Dry05!Z50)/2 -> 2.258646253 | AA59: =(DHS_Wet05!AA50+DHS_Dry05!AA50)/2 -> 1.452494973 | AB59: =(DHS_Wet05!AB50+DHS_Dry05!AB50)/2 -> 0.1851135271 | AC59: =(DHS_Wet05!AC50+DHS_Dry05!AC50)/2 -> 0 | AD59: =(DHS_Wet05!AD50+DHS_Dry05!AD50)/2 -> 3.466134151 | AE59: =(DHS_Wet05!AE50+DHS_Dry05!AE50)/2 -> 0.5578305022 | AF59: =(DHS_Wet05!AF50+DHS_Dry05!AF50)/2 -> 0.1544462882 | AG59: =(DHS_Wet05!AG50+DHS_Dry05!AG50)/2 -> 3.459273781 | AH59: =(DHS_Wet05!AH50+DHS_Dry05!AH50)/2 -> 0 | AI59: =(DHS_Wet05!AI50+DHS_Dry05!AI50)/2 -> 0.1591101625 | AJ59: =(DHS_Wet05!AJ50+DHS_Dry05!AJ50)/2 -> 0.05005935995
B60: Public tap/standpipe | C60: =(DHS_Wet05!C51+DHS_Dry05!C51)/2 -> 0.05890347463 | D60: =(DHS_Wet05!D51+DHS_Dry05!D51)/2 -> 0.1153497786 | E60: =(DHS_Wet05!E51+DHS_Dry05!E51)/2 -> 0.09792209171 | F60: =(DHS_Wet05!F51+DHS_Dry05!F51)/2 -> 0.1112043825 | G60: =(DHS_Wet05!G51+DHS_Dry05!G51)/2 -> 0.3200939383 | H60: =(DHS_Wet05!H51+DHS_Dry05!H51)/2 -> 0 | I60: =(DHS_Wet05!I51+DHS_Dry05!I51)/2 -> 0.3723174669 | J60: =(DHS_Wet05!J51+DHS_Dry05!J51)/2 -> 0.4125364957 | K60: =(DHS_Wet05!K51+DHS_Dry05!K51)/2 -> 0.07962758738 | L60: =(DHS_Wet05!L51+DHS_Dry05!L51)/2 -> 0 | M60: =(DHS_Wet05!M51+DHS_Dry05!M51)/2 -> 0.0564625065 | N60: =(DHS_Wet05!N51+DHS_Dry05!N51)/2 -> 0.1094636344 | O60: =(DHS_Wet05!O51+DHS_Dry05!O51)/2 -> 0.06801928892 | P60: =(DHS_Wet05!P51+DHS_Dry05!P51)/2 -> 0.1216111128 | Q60: =(DHS_Wet05!Q51+DHS_Dry05!Q51)/2 -> 0.3185818169 | R60: =(DHS_Wet05!R51+DHS_Dry05!R51)/2 -> 0.8582622283 | S60: =(DHS_Wet05!S51+DHS_Dry05!S51)/2 -> 0 | T60: =(DHS_Wet05!T51+DHS_Dry05!T51)/2 -> 0 | U60: =(DHS_Wet05!U51+DHS_Dry05!U51)/2 -> 0 | V60: =(DHS_Wet05!V51+DHS_Dry05!V51)/2 -> 0 | W60: =(DHS_Wet05!W51+DHS_Dry05!W51)/2 -> 1.091478834 | X60: =(DHS_Wet05!X51+DHS_Dry05!X51)/2 -> 0.3466666151 | Y60: =(DHS_Wet05!Y51+DHS_Dry05!Y51)/2 -> 0 | Z60: =(DHS_Wet05!Z51+DHS_Dry05!Z51)/2 -> 0 | AA60: =(DHS_Wet05!AA51+DHS_Dry05!AA51)/2 -> 0 | AB60: =(DHS_Wet05!AB51+DHS_Dry05!AB51)/2 -> 0 | AC60: =(DHS_Wet05!AC51+DHS_Dry05!AC51)/2 -> 0 | AD60: =(DHS_Wet05!AD51+DHS_Dry05!AD51)/2 -> 0.07637715042 | AE60: =(DHS_Wet05!AE51+DHS_Dry05!AE51)/2 -> 0 | AF60: =(DHS_Wet05!AF51+DHS_Dry05!AF51)/2 -> 0 | AG60: =(DHS_Wet05!AG51+DHS_Dry05!AG51)/2 -> 0 | AH60: =(DHS_Wet05!AH51+DHS_Dry05!AH51)/2 -> 0 | AI60: =(DHS_Wet05!AI51+DHS_Dry05!AI51)/2 -> 0.2289430715 | AJ60: =(DHS_Wet05!AJ51+DHS_Dry05!AJ51)/2 -> 0.2796679715
B61: Tube well or borehole | C61: =(DHS_Wet05!C52+DHS_Dry05!C52)/2 -> 32.09926151 | D61: =(DHS_Wet05!D52+DHS_Dry05!D52)/2 -> 29.91297375 | E61: =(DHS_Wet05!E52+DHS_Dry05!E52)/2 -> 25.10533263 | F61: =(DHS_Wet05!F52+DHS_Dry05!F52)/2 -> 23.70020226 | G61: =(DHS_Wet05!G52+DHS_Dry05!G52)/2 -> 15.58175729 | H61: =(DHS_Wet05!H52+DHS_Dry05!H52)/2 -> 23.26337739 | I61: =(DHS_Wet05!I52+DHS_Dry05!I52)/2 -> 21.15468578 | J61: =(DHS_Wet05!J52+DHS_Dry05!J52)/2 -> 17.25153938 | K61: =(DHS_Wet05!K52+DHS_Dry05!K52)/2 -> 10.41566984 | L61: =(DHS_Wet05!L52+DHS_Dry05!L52)/2 -> 6.056590864 | M61: =(DHS_Wet05!M52+DHS_Dry05!M52)/2 -> 33.19484829 | N61: =(DHS_Wet05!N52+DHS_Dry05!N52)/2 -> 30.04776552 | O61: =(DHS_Wet05!O52+DHS_Dry05!O52)/2 -> 26.31822997 | P61: =(DHS_Wet05!P52+DHS_Dry05!P52)/2 -> 25.18055185 | Q61: =(DHS_Wet05!Q52+DHS_Dry05!Q52)/2 -> 20.41443747 | R61: =(DHS_Wet05!R52+DHS_Dry05!R52)/2 -> 2.163632555 | S61: =(DHS_Wet05!S52+DHS_Dry05!S52)/2 -> 15.00306398 | T61: =(DHS_Wet05!T52+DHS_Dry05!T52)/2 -> 21.94098786 | U61: =(DHS_Wet05!U52+DHS_Dry05!U52)/2 -> 30.61910274 | V61: =(DHS_Wet05!V52+DHS_Dry05!V52)/2 -> 24.48589658 | W61: =(DHS_Wet05!W52+DHS_Dry05!W52)/2 -> 11.46953555 | X61: =(DHS_Wet05!X52+DHS_Dry05!X52)/2 -> 10.64139977 | Y61: =(DHS_Wet05!Y52+DHS_Dry05!Y52)/2 -> 14.85607852 | Z61: =(DHS_Wet05!Z52+DHS_Dry05!Z52)/2 -> 18.30551162 | AA61: =(DHS_Wet05!AA52+DHS_Dry05!AA52)/2 -> 1.779723622 | AB61: =(DHS_Wet05!AB52+DHS_Dry05!AB52)/2 -> 12.94169079 | AC61: =(DHS_Wet05!AC52+DHS_Dry05!AC52)/2 -> 38.02605432 | AD61: =(DHS_Wet05!AD52+DHS_Dry05!AD52)/2 -> 5.141040815 | AE61: =(DHS_Wet05!AE52+DHS_Dry05!AE52)/2 -> 12.34126346 | AF61: =(DHS_Wet05!AF52+DHS_Dry05!AF52)/2 -> 82.97849006 | AG61: =(DHS_Wet05!AG52+DHS_Dry05!AG52)/2 -> 4.152997437 | AH61: =(DHS_Wet05!AH52+DHS_Dry05!AH52)/2 -> 37.5829942 | AI61: =(DHS_Wet05!AI52+DHS_Dry05!AI52)/2 -> 91.66035957 | AJ61: =(DHS_Wet05!AJ52+DHS_Dry05!AJ52)/2 -> 18.90797488
B62: Protected well | C62: =(DHS_Wet05!C53+DHS_Dry05!C53)/2 -> 13.5421716 | D62: =(DHS_Wet05!D53+DHS_Dry05!D53)/2 -> 13.22912265 | E62: =(DHS_Wet05!E53+DHS_Dry05!E53)/2 -> 11.87028678 | F62: =(DHS_Wet05!F53+DHS_Dry05!F53)/2 -> 12.11013524 | G62: =(DHS_Wet05!G53+DHS_Dry05!G53)/2 -> 4.6069671 | H62: =(DHS_Wet05!H53+DHS_Dry05!H53)/2 -> 12.52470548 | I62: =(DHS_Wet05!I53+DHS_Dry05!I53)/2 -> 7.207334509 | J62: =(DHS_Wet05!J53+DHS_Dry05!J53)/2 -> 5.651000269 | K62: =(DHS_Wet05!K53+DHS_Dry05!K53)/2 -> 1.674669731 | L62: =(DHS_Wet05!L53+DHS_Dry05!L53)/2 -> 0.2941199077 | M62: =(DHS_Wet05!M53+DHS_Dry05!M53)/2 -> 13.35891487 | N62: =(DHS_Wet05!N53+DHS_Dry05!N53)/2 -> 14.0026599 | O62: =(DHS_Wet05!O53+DHS_Dry05!O53)/2 -> 11.52023304 | P62: =(DHS_Wet05!P53+DHS_Dry05!P53)/2 -> 12.74851351 | Q62: =(DHS_Wet05!Q53+DHS_Dry05!Q53)/2 -> 8.811338433 | R62: =(DHS_Wet05!R53+DHS_Dry05!R53)/2 -> 4.042578779 | S62: =(DHS_Wet05!S53+DHS_Dry05!S53)/2 -> 1.396658721 | T62: =(DHS_Wet05!T53+DHS_Dry05!T53)/2 -> 33.33752265 | U62: =(DHS_Wet05!U53+DHS_Dry05!U53)/2 -> 14.92950079 | V62: =(DHS_Wet05!V53+DHS_Dry05!V53)/2 -> 12.82079743 | W62: =(DHS_Wet05!W53+DHS_Dry05!W53)/2 -> 24.59512872 | X62: =(DHS_Wet05!X53+DHS_Dry05!X53)/2 -> 5.039291103 | Y62: =(DHS_Wet05!Y53+DHS_Dry05!Y53)/2 -> 4.514350842 | Z62: =(DHS_Wet05!Z53+DHS_Dry05!Z53)/2 -> 10.02003519 | AA62: =(DHS_Wet05!AA53+DHS_Dry05!AA53)/2 -> 18.92948566 | AB62: =(DHS_Wet05!AB53+DHS_Dry05!AB53)/2 -> 11.08118832 | AC62: =(DHS_Wet05!AC53+DHS_Dry05!AC53)/2 -> 4.365595523 | AD62: =(DHS_Wet05!AD53+DHS_Dry05!AD53)/2 -> 0.7615614357 | AE62: =(DHS_Wet05!AE53+DHS_Dry05!AE53)/2 -> 5.842812032 | AF62: =(DHS_Wet05!AF53+DHS_Dry05!AF53)/2 -> 0.4806243196 | AG62: =(DHS_Wet05!AG53+DHS_Dry05!AG53)/2 -> 24.98313599 | AH62: =(DHS_Wet05!AH53+DHS_Dry05!AH53)/2 -> 13.12968309 | AI62: =(DHS_Wet05!AI53+DHS_Dry05!AI53)/2 -> 2.628477089 | AJ62: =(DHS_Wet05!AJ53+DHS_Dry05!AJ53)/2 -> 7.534835187
B63: Unprotected well | C63: =(DHS_Wet05!C54+DHS_Dry05!C54)/2 -> 20.72881667 | D63: =(DHS_Wet05!D54+DHS_Dry05!D54)/2 -> 16.67347467 | E63: =(DHS_Wet05!E54+DHS_Dry05!E54)/2 -> 14.37626648 | F63: =(DHS_Wet05!F54+DHS_Dry05!F54)/2 -> 9.233137747 | G63: =(DHS_Wet05!G54+DHS_Dry05!G54)/2 -> 1.80448636 | H63: =(DHS_Wet05!H54+DHS_Dry05!H54)/2 -> 14.17558381 | I63: =(DHS_Wet05!I54+DHS_Dry05!I54)/2 -> 5.2141464 | J63: =(DHS_Wet05!J54+DHS_Dry05!J54)/2 -> 1.390909108 | K63: =(DHS_Wet05!K54+DHS_Dry05!K54)/2 -> 0.6917570889 | L63: =(DHS_Wet05!L54+DHS_Dry05!L54)/2 -> 0.06543775453 | M63: =(DHS_Wet05!M54+DHS_Dry05!M54)/2 -> 21.38728714 | N63: =(DHS_Wet05!N54+DHS_Dry05!N54)/2 -> 16.48709931 | O63: =(DHS_Wet05!O54+DHS_Dry05!O54)/2 -> 16.78517208 | P63: =(DHS_Wet05!P54+DHS_Dry05!P54)/2 -> 11.11950629 | Q63: =(DHS_Wet05!Q54+DHS_Dry05!Q54)/2 -> 4.529165171 | R63: =(DHS_Wet05!R54+DHS_Dry05!R54)/2 -> 4.987230105 | S63: =(DHS_Wet05!S54+DHS_Dry05!S54)/2 -> 5.8301167 | T63: =(DHS_Wet05!T54+DHS_Dry05!T54)/2 -> 13.40974243 | U63: =(DHS_Wet05!U54+DHS_Dry05!U54)/2 -> 35.34452019 | V63: =(DHS_Wet05!V54+DHS_Dry05!V54)/2 -> 4.727712478 | W63: =(DHS_Wet05!W54+DHS_Dry05!W54)/2 -> 50.34830755 | X63: =(DHS_Wet05!X54+DHS_Dry05!X54)/2 -> 16.25996025 | Y63: =(DHS_Wet05!Y54+DHS_Dry05!Y54)/2 -> 2.356251209 | Z63: =(DHS_Wet05!Z54+DHS_Dry05!Z54)/2 -> 9.028970997 | AA63: =(DHS_Wet05!AA54+DHS_Dry05!AA54)/2 -> 11.38532743 | AB63: =(DHS_Wet05!AB54+DHS_Dry05!AB54)/2 -> 15.18388339 | AC63: =(DHS_Wet05!AC54+DHS_Dry05!AC54)/2 -> 8.946881446 | AD63: =(DHS_Wet05!AD54+DHS_Dry05!AD54)/2 -> 0 | AE63: =(DHS_Wet05!AE54+DHS_Dry05!AE54)/2 -> 26.72113127 | AF63: =(DHS_Wet05!AF54+DHS_Dry05!AF54)/2 -> 5.434683839 | AG63: =(DHS_Wet05!AG54+DHS_Dry05!AG54)/2 -> 13.57993796 | AH63: =(DHS_Wet05!AH54+DHS_Dry05!AH54)/2 -> 36.30393727 | AI63: =(DHS_Wet05!AI54+DHS_Dry05!AI54)/2 -> 3.365152123 | AJ63: =(DHS_Wet05!AJ54+DHS_Dry05!AJ54)/2 -> 4.923269735
B64: Protected spring | C64: =(DHS_Wet05!C55+DHS_Dry05!C55)/2 -> 0.1422224441 | D64: =(DHS_Wet05!D55+DHS_Dry05!D55)/2 -> 0.1699416767 | E64: =(DHS_Wet05!E55+DHS_Dry05!E55)/2 -> 0.2828173544 | F64: =(DHS_Wet05!F55+DHS_Dry05!F55)/2 -> 0.2530624401 | G64: =(DHS_Wet05!G55+DHS_Dry05!G55)/2 -> 0.08600742372 | H64: =(DHS_Wet05!H55+DHS_Dry05!H55)/2 -> 0.636879444 | I64: =(DHS_Wet05!I55+DHS_Dry05!I55)/2 -> 0.4847961821 | J64: =(DHS_Wet05!J55+DHS_Dry05!J55)/2 -> 0.1148630832 | K64: =(DHS_Wet05!K55+DHS_Dry05!K55)/2 -> 0.0972072563 | L64: =(DHS_Wet05!L55+DHS_Dry05!L55)/2 -> 0.06799010151 | M64: =(DHS_Wet05!M55+DHS_Dry05!M55)/2 -> 0.09237255632 | N64: =(DHS_Wet05!N55+DHS_Dry05!N55)/2 -> 0.1581600816 | O64: =(DHS_Wet05!O55+DHS_Dry05!O55)/2 -> 0.3160322156 | P64: =(DHS_Wet05!P55+DHS_Dry05!P55)/2 -> 0.1008203259 | Q64: =(DHS_Wet05!Q55+DHS_Dry05!Q55)/2 -> 0.1818306546 | R64: =(DHS_Wet05!R55+DHS_Dry05!R55)/2 -> 0.3591442795 | S64: =(DHS_Wet05!S55+DHS_Dry05!S55)/2 -> 0 | T64: =(DHS_Wet05!T55+DHS_Dry05!T55)/2 -> 0.2535694154 | U64: =(DHS_Wet05!U55+DHS_Dry05!U55)/2 -> 0.09739264976 | V64: =(DHS_Wet05!V55+DHS_Dry05!V55)/2 -> 0.3430348659 | W64: =(DHS_Wet05!W55+DHS_Dry05!W55)/2 -> 0.5155993531 | X64: =(DHS_Wet05!X55+DHS_Dry05!X55)/2 -> 0 | Y64: =(DHS_Wet05!Y55+DHS_Dry05!Y55)/2 -> 0.1624419993 | Z64: =(DHS_Wet05!Z55+DHS_Dry05!Z55)/2 -> 0 | AA64: =(DHS_Wet05!AA55+DHS_Dry05!AA55)/2 -> 1.824792832 | AB64: =(DHS_Wet05!AB55+DHS_Dry05!AB55)/2 -> 1.278018655 | AC64: =(DHS_Wet05!AC55+DHS_Dry05!AC55)/2 -> 0 | AD64: =(DHS_Wet05!AD55+DHS_Dry05!AD55)/2 -> 0 | AE64: =(DHS_Wet05!AE55+DHS_Dry05!AE55)/2 -> 0 | AF64: =(DHS_Wet05!AF55+DHS_Dry05!AF55)/2 -> 0 | AG64: =(DHS_Wet05!AG55+DHS_Dry05!AG55)/2 -> 0.2068370195 | AH64: =(DHS_Wet05!AH55+DHS_Dry05!AH55)/2 -> 0 | AI64: =(DHS_Wet05!AI55+DHS_Dry05!AI55)/2 -> 0 | AJ64: =(DHS_Wet05!AJ55+DHS_Dry05!AJ55)/2 -> 0.1227185251
B65: Unprotected spring | C65: =(DHS_Wet05!C56+DHS_Dry05!C56)/2 -> 1.983298503 | D65: =(DHS_Wet05!D56+DHS_Dry05!D56)/2 -> 0.7038211689 | E65: =(DHS_Wet05!E56+DHS_Dry05!E56)/2 -> 0.987557107 | F65: =(DHS_Wet05!F56+DHS_Dry05!F56)/2 -> 0.4737241564 | G65: =(DHS_Wet05!G56+DHS_Dry05!G56)/2 -> 0.1417268487 | H65: =(DHS_Wet05!H56+DHS_Dry05!H56)/2 -> 1.224775367 | I65: =(DHS_Wet05!I56+DHS_Dry05!I56)/2 -> 0.5018043791 | J65: =(DHS_Wet05!J56+DHS_Dry05!J56)/2 -> 0.079565928 | K65: =(DHS_Wet05!K56+DHS_Dry05!K56)/2 -> 0.06388735828 | L65: =(DHS_Wet05!L56+DHS_Dry05!L56)/2 -> 0 | M65: =(DHS_Wet05!M56+DHS_Dry05!M56)/2 -> 2.10173977 | N65: =(DHS_Wet05!N56+DHS_Dry05!N56)/2 -> 0.6155849578 | O65: =(DHS_Wet05!O56+DHS_Dry05!O56)/2 -> 1.056053568 | P65: =(DHS_Wet05!P56+DHS_Dry05!P56)/2 -> 0.6997877255 | Q65: =(DHS_Wet05!Q56+DHS_Dry05!Q56)/2 -> 0.2561530857 | R65: =(DHS_Wet05!R56+DHS_Dry05!R56)/2 -> 0.2430791785 | S65: =(DHS_Wet05!S56+DHS_Dry05!S56)/2 -> 0 | T65: =(DHS_Wet05!T56+DHS_Dry05!T56)/2 -> 0 | U65: =(DHS_Wet05!U56+DHS_Dry05!U56)/2 -> 0.3837595557 | V65: =(DHS_Wet05!V56+DHS_Dry05!V56)/2 -> 1.199749963 | W65: =(DHS_Wet05!W56+DHS_Dry05!W56)/2 -> 1.703427932 | X65: =(DHS_Wet05!X56+DHS_Dry05!X56)/2 -> 4.211680128 | Y65: =(DHS_Wet05!Y56+DHS_Dry05!Y56)/2 -> 0.07304723146 | Z65: =(DHS_Wet05!Z56+DHS_Dry05!Z56)/2 -> 4.654814611 | AA65: =(DHS_Wet05!AA56+DHS_Dry05!AA56)/2 -> 2.348760745 | AB65: =(DHS_Wet05!AB56+DHS_Dry05!AB56)/2 -> 11.14048708 | AC65: =(DHS_Wet05!AC56+DHS_Dry05!AC56)/2 -> 0.06683853671 | AD65: =(DHS_Wet05!AD56+DHS_Dry05!AD56)/2 -> 0 | AE65: =(DHS_Wet05!AE56+DHS_Dry05!AE56)/2 -> 5.678957953 | AF65: =(DHS_Wet05!AF56+DHS_Dry05!AF56)/2 -> 0 | AG65: =(DHS_Wet05!AG56+DHS_Dry05!AG56)/2 -> 0.1952108784 | AH65: =(DHS_Wet05!AH56+DHS_Dry05!AH56)/2 -> 0 | AI65: =(DHS_Wet05!AI56+DHS_Dry05!AI56)/2 -> 0.04483498822 | AJ65: =(DHS_Wet05!AJ56+DHS_Dry05!AJ56)/2 -> 0.2524565818
B66: River/dam/lake/ponds/stream/canal/irrigation channel | C66: =(DHS_Wet05!C57+DHS_Dry05!C57)/2 -> 19.75700961 | D66: =(DHS_Wet05!D57+DHS_Dry05!D57)/2 -> 19.93624038 | E66: =(DHS_Wet05!E57+DHS_Dry05!E57)/2 -> 19.10338224 | F66: =(DHS_Wet05!F57+DHS_Dry05!F57)/2 -> 18.60221787 | G66: =(DHS_Wet05!G57+DHS_Dry05!G57)/2 -> 9.160156019 | H66: =(DHS_Wet05!H57+DHS_Dry05!H57)/2 -> 19.31828397 | I66: =(DHS_Wet05!I57+DHS_Dry05!I57)/2 -> 14.80412177 | J66: =(DHS_Wet05!J57+DHS_Dry05!J57)/2 -> 5.413023991 | K66: =(DHS_Wet05!K57+DHS_Dry05!K57)/2 -> 2.727486778 | L66: =(DHS_Wet05!L57+DHS_Dry05!L57)/2 -> 0.04034627369 | M66: =(DHS_Wet05!M57+DHS_Dry05!M57)/2 -> 19.68087911 | N66: =(DHS_Wet05!N57+DHS_Dry05!N57)/2 -> 20.6535204 | O66: =(DHS_Wet05!O57+DHS_Dry05!O57)/2 -> 18.92815803 | P66: =(DHS_Wet05!P57+DHS_Dry05!P57)/2 -> 19.36907688 | Q66: =(DHS_Wet05!Q57+DHS_Dry05!Q57)/2 -> 15.95967939 | R66: =(DHS_Wet05!R57+DHS_Dry05!R57)/2 -> 36.06870348 | S66: =(DHS_Wet05!S57+DHS_Dry05!S57)/2 -> 38.34287405 | T66: =(DHS_Wet05!T57+DHS_Dry05!T57)/2 -> 15.04369256 | U66: =(DHS_Wet05!U57+DHS_Dry05!U57)/2 -> 11.80715094 | V66: =(DHS_Wet05!V57+DHS_Dry05!V57)/2 -> 19.55785664 | W66: =(DHS_Wet05!W57+DHS_Dry05!W57)/2 -> 2.840473776 | X66: =(DHS_Wet05!X57+DHS_Dry05!X57)/2 -> 16.10124772 | Y66: =(DHS_Wet05!Y57+DHS_Dry05!Y57)/2 -> 32.64725017 | Z66: =(DHS_Wet05!Z57+DHS_Dry05!Z57)/2 -> 33.93048289 | AA66: =(DHS_Wet05!AA57+DHS_Dry05!AA57)/2 -> 2.762965057 | AB66: =(DHS_Wet05!AB57+DHS_Dry05!AB57)/2 -> 38.13773778 | AC66: =(DHS_Wet05!AC57+DHS_Dry05!AC57)/2 -> 17.61433758 | AD66: =(DHS_Wet05!AD57+DHS_Dry05!AD57)/2 -> 5.712679954 | AE66: =(DHS_Wet05!AE57+DHS_Dry05!AE57)/2 -> 22.62829189 | AF66: =(DHS_Wet05!AF57+DHS_Dry05!AF57)/2 -> 5.925611981 | AG66: =(DHS_Wet05!AG57+DHS_Dry05!AG57)/2 -> 17.66552035 | AH66: =(DHS_Wet05!AH57+DHS_Dry05!AH57)/2 -> 2.650362506 | AI66: =(DHS_Wet05!AI57+DHS_Dry05!AI57)/2 -> 0.3885698979 | AJ66: =(DHS_Wet05!AJ57+DHS_Dry05!AJ57)/2 -> 24.34667654
B67: Rainwater | C67: =(DHS_Wet05!C58+DHS_Dry05!C58)/2 -> 9.130172061 | D67: =(DHS_Wet05!D58+DHS_Dry05!D58)/2 -> 15.78373397 | E67: =(DHS_Wet05!E58+DHS_Dry05!E58)/2 -> 22.37009533 | F67: =(DHS_Wet05!F58+DHS_Dry05!F58)/2 -> 24.80657208 | G67: =(DHS_Wet05!G58+DHS_Dry05!G58)/2 -> 15.1537569 | H67: =(DHS_Wet05!H58+DHS_Dry05!H58)/2 -> 18.16563828 | I67: =(DHS_Wet05!I58+DHS_Dry05!I58)/2 -> 22.81143236 | J67: =(DHS_Wet05!J58+DHS_Dry05!J58)/2 -> 17.21551361 | K67: =(DHS_Wet05!K58+DHS_Dry05!K58)/2 -> 8.842220083 | L67: =(DHS_Wet05!L58+DHS_Dry05!L58)/2 -> 2.074573977 | M67: =(DHS_Wet05!M58+DHS_Dry05!M58)/2 -> 8.062117059 | N67: =(DHS_Wet05!N58+DHS_Dry05!N58)/2 -> 15.03561337 | O67: =(DHS_Wet05!O58+DHS_Dry05!O58)/2 -> 21.02883427 | P67: =(DHS_Wet05!P58+DHS_Dry05!P58)/2 -> 24.02250619 | Q67: =(DHS_Wet05!Q58+DHS_Dry05!Q58)/2 -> 22.3812474 | R67: =(DHS_Wet05!R58+DHS_Dry05!R58)/2 -> 44.11445847 | S67: =(DHS_Wet05!S58+DHS_Dry05!S58)/2 -> 28.70424399 | T67: =(DHS_Wet05!T58+DHS_Dry05!T58)/2 -> 5.632915948 | U67: =(DHS_Wet05!U58+DHS_Dry05!U58)/2 -> 4.427944855 | V67: =(DHS_Wet05!V58+DHS_Dry05!V58)/2 -> 27.90217243 | W67: =(DHS_Wet05!W58+DHS_Dry05!W58)/2 -> 4.66616556 | X67: =(DHS_Wet05!X58+DHS_Dry05!X58)/2 -> 38.89605385 | Y67: =(DHS_Wet05!Y58+DHS_Dry05!Y58)/2 -> 27.96089713 | Z67: =(DHS_Wet05!Z58+DHS_Dry05!Z58)/2 -> 15.03840746 | AA67: =(DHS_Wet05!AA58+DHS_Dry05!AA58)/2 -> 24.35528905 | AB67: =(DHS_Wet05!AB58+DHS_Dry05!AB58)/2 -> 8.437549928 | AC67: =(DHS_Wet05!AC58+DHS_Dry05!AC58)/2 -> 29.80611406 | AD67: =(DHS_Wet05!AD58+DHS_Dry05!AD58)/2 -> 5.380479477 | AE67: =(DHS_Wet05!AE58+DHS_Dry05!AE58)/2 -> 23.98510666 | AF67: =(DHS_Wet05!AF58+DHS_Dry05!AF58)/2 -> 3.47411795 | AG67: =(DHS_Wet05!AG58+DHS_Dry05!AG58)/2 -> 32.54781469 | AH67: =(DHS_Wet05!AH58+DHS_Dry05!AH58)/2 -> 3.599228158 | AI67: =(DHS_Wet05!AI58+DHS_Dry05!AI58)/2 -> 0.9180646772 | AJ67: =(DHS_Wet05!AJ58+DHS_Dry05!AJ58)/2 -> 35.18153709
B68: Tanker truck/water vendor | C68: =(DHS_Wet05!C59+DHS_Dry05!C59)/2 -> 1.533968992 | D68: =(DHS_Wet05!D59+DHS_Dry05!D59)/2 -> 2.090934312 | E68: =(DHS_Wet05!E59+DHS_Dry05!E59)/2 -> 3.078318312 | F68: =(DHS_Wet05!F59+DHS_Dry05!F59)/2 -> 5.314431468 | G68: =(DHS_Wet05!G59+DHS_Dry05!G59)/2 -> 4.256367144 | H68: =(DHS_Wet05!H59+DHS_Dry05!H59)/2 -> 5.628650989 | I68: =(DHS_Wet05!I59+DHS_Dry05!I59)/2 -> 9.557442464 | J68: =(DHS_Wet05!J59+DHS_Dry05!J59)/2 -> 5.507963678 | K68: =(DHS_Wet05!K59+DHS_Dry05!K59)/2 -> 1.282711129 | L68: =(DHS_Wet05!L59+DHS_Dry05!L59)/2 -> 0.3957162608 | M68: =(DHS_Wet05!M59+DHS_Dry05!M59)/2 -> 1.327221441 | N68: =(DHS_Wet05!N59+DHS_Dry05!N59)/2 -> 1.560874133 | O68: =(DHS_Wet05!O59+DHS_Dry05!O59)/2 -> 2.461416221 | P68: =(DHS_Wet05!P59+DHS_Dry05!P59)/2 -> 4.150368486 | Q68: =(DHS_Wet05!Q59+DHS_Dry05!Q59)/2 -> 5.664441642 | R68: =(DHS_Wet05!R59+DHS_Dry05!R59)/2 -> 1.244609742 | S68: =(DHS_Wet05!S59+DHS_Dry05!S59)/2 -> 3.246941513 | T68: =(DHS_Wet05!T59+DHS_Dry05!T59)/2 -> 0.4283130092 | U68: =(DHS_Wet05!U59+DHS_Dry05!U59)/2 -> 1.535173148 | V68: =(DHS_Wet05!V59+DHS_Dry05!V59)/2 -> 5.369795154 | W68: =(DHS_Wet05!W59+DHS_Dry05!W59)/2 -> 0.1796446998 | X68: =(DHS_Wet05!X59+DHS_Dry05!X59)/2 -> 2.473925632 | Y68: =(DHS_Wet05!Y59+DHS_Dry05!Y59)/2 -> 11.45525622 | Z68: =(DHS_Wet05!Z59+DHS_Dry05!Z59)/2 -> 1.60150955 | AA68: =(DHS_Wet05!AA59+DHS_Dry05!AA59)/2 -> 10.79552646 | AB68: =(DHS_Wet05!AB59+DHS_Dry05!AB59)/2 -> 0.342401976 | AC68: =(DHS_Wet05!AC59+DHS_Dry05!AC59)/2 -> 1.002836971 | AD68: =(DHS_Wet05!AD59+DHS_Dry05!AD59)/2 -> 4.818783027 | AE68: =(DHS_Wet05!AE59+DHS_Dry05!AE59)/2 -> 0.5030464119 | AF68: =(DHS_Wet05!AF59+DHS_Dry05!AF59)/2 -> 0.9421624462 | AG68: =(DHS_Wet05!AG59+DHS_Dry05!AG59)/2 -> 1.091684862 | AH68: =(DHS_Wet05!AH59+DHS_Dry05!AH59)/2 -> 0 | AI68: =(DHS_Wet05!AI59+DHS_Dry05!AI59)/2 -> 0.05621571179 | AJ68: =(DHS_Wet05!AJ59+DHS_Dry05!AJ59)/2 -> 6.796039745
B69: Bottled water | C69: =(DHS_Wet05!C60+DHS_Dry05!C60)/2 -> 0.03357947906 | D69: =(DHS_Wet05!D60+DHS_Dry05!D60)/2 -> 0.03706881303 | E69: =(DHS_Wet05!E60+DHS_Dry05!E60)/2 -> 0.06209668534 | F69: =(DHS_Wet05!F60+DHS_Dry05!F60)/2 -> 0.4532714514 | G69: =(DHS_Wet05!G60+DHS_Dry05!G60)/2 -> 6.782083067 | H69: =(DHS_Wet05!H60+DHS_Dry05!H60)/2 -> 0.1138899254 | I69: =(DHS_Wet05!I60+DHS_Dry05!I60)/2 -> 1.268624115 | J69: =(DHS_Wet05!J60+DHS_Dry05!J60)/2 -> 8.001840787 | K69: =(DHS_Wet05!K60+DHS_Dry05!K60)/2 -> 9.133682057 | L69: =(DHS_Wet05!L60+DHS_Dry05!L60)/2 -> 11.75465113 | M69: =(DHS_Wet05!M60+DHS_Dry05!M60)/2 -> 0.03967192506 | N69: =(DHS_Wet05!N60+DHS_Dry05!N60)/2 -> 0.023151332 | O69: =(DHS_Wet05!O60+DHS_Dry05!O60)/2 -> 0.04728947689 | P69: =(DHS_Wet05!P60+DHS_Dry05!P60)/2 -> 0.2576684535 | Q69: =(DHS_Wet05!Q60+DHS_Dry05!Q60)/2 -> 2.844019627 | R69: =(DHS_Wet05!R60+DHS_Dry05!R60)/2 -> 1.15192735 | S69: =(DHS_Wet05!S60+DHS_Dry05!S60)/2 -> 3.633190574 | T69: =(DHS_Wet05!T60+DHS_Dry05!T60)/2 -> 0.08117741437 | U69: =(DHS_Wet05!U60+DHS_Dry05!U60)/2 -> 0.352749242 | V69: =(DHS_Wet05!V60+DHS_Dry05!V60)/2 -> 0.08008914699 | W69: =(DHS_Wet05!W60+DHS_Dry05!W60)/2 -> 1.034682583 | X69: =(DHS_Wet05!X60+DHS_Dry05!X60)/2 -> 0.05881600695 | Y69: =(DHS_Wet05!Y60+DHS_Dry05!Y60)/2 -> 0.0988379331 | Z69: =(DHS_Wet05!Z60+DHS_Dry05!Z60)/2 -> 0.193889719 | AA69: =(DHS_Wet05!AA60+DHS_Dry05!AA60)/2 -> 0.7329461365 | AB69: =(DHS_Wet05!AB60+DHS_Dry05!AB60)/2 -> 0 | AC69: =(DHS_Wet05!AC60+DHS_Dry05!AC60)/2 -> 0.1463540629 | AD69: =(DHS_Wet05!AD60+DHS_Dry05!AD60)/2 -> 8.635830555 | AE69: =(DHS_Wet05!AE60+DHS_Dry05!AE60)/2 -> 0.08036744738 | AF69: =(DHS_Wet05!AF60+DHS_Dry05!AF60)/2 -> 0.3330032853 | AG69: =(DHS_Wet05!AG60+DHS_Dry05!AG60)/2 -> 0 | AH69: =(DHS_Wet05!AH60+DHS_Dry05!AH60)/2 -> 3.654722472 | AI69: =(DHS_Wet05!AI60+DHS_Dry05!AI60)/2 -> 0 | AJ69: =(DHS_Wet05!AJ60+DHS_Dry05!AJ60)/2 -> 0
B70: other | C70: =(DHS_Wet05!C61+DHS_Dry05!C61)/2 -> 0.1664744718 | D70: =(DHS_Wet05!D61+DHS_Dry05!D61)/2 -> 0.07154923312 | E70: =(DHS_Wet05!E61+DHS_Dry05!E61)/2 -> 0.134397548 | F70: =(DHS_Wet05!F61+DHS_Dry05!F61)/2 -> 0.1988217573 | G70: =(DHS_Wet05!G61+DHS_Dry05!G61)/2 -> 0.370327391 | H70: =(DHS_Wet05!H61+DHS_Dry05!H61)/2 -> 0.1995855138 | I70: =(DHS_Wet05!I61+DHS_Dry05!I61)/2 -> 0.6789091731 | J70: =(DHS_Wet05!J61+DHS_Dry05!J61)/2 -> 1.088688017 | K70: =(DHS_Wet05!K61+DHS_Dry05!K61)/2 -> 0.09445420121 | L70: =(DHS_Wet05!L61+DHS_Dry05!L61)/2 -> 0.2037182349 | M70: =(DHS_Wet05!M61+DHS_Dry05!M61)/2 -> 0.1813378076 | N70: =(DHS_Wet05!N61+DHS_Dry05!N61)/2 -> 0.03790216732 | O70: =(DHS_Wet05!O61+DHS_Dry05!O61)/2 -> 0.108569983 | P70: =(DHS_Wet05!P61+DHS_Dry05!P61)/2 -> 0.07107448181 | Q70: =(DHS_Wet05!Q61+DHS_Dry05!Q61)/2 -> 0.3020212001 | R70: =(DHS_Wet05!R61+DHS_Dry05!R61)/2 -> 1.673347142 | S70: =(DHS_Wet05!S61+DHS_Dry05!S61)/2 -> 0 | T70: =(DHS_Wet05!T61+DHS_Dry05!T61)/2 -> 0.2959193217 | U70: =(DHS_Wet05!U61+DHS_Dry05!U61)/2 -> 0.443155606 | V70: =(DHS_Wet05!V61+DHS_Dry05!V61)/2 -> 0 | W70: =(DHS_Wet05!W61+DHS_Dry05!W61)/2 -> 0 | X70: =(DHS_Wet05!X61+DHS_Dry05!X61)/2 -> 0.2218418434 | Y70: =(DHS_Wet05!Y61+DHS_Dry05!Y61)/2 -> 0 | Z70: =(DHS_Wet05!Z61+DHS_Dry05!Z61)/2 -> 0.2892280292 | AA70: =(DHS_Wet05!AA61+DHS_Dry05!AA61)/2 -> 0.03137044265 | AB70: =(DHS_Wet05!AB61+DHS_Dry05!AB61)/2 -> 0 | AC70: =(DHS_Wet05!AC61+DHS_Dry05!AC61)/2 -> 0.02498749026 | AD70: =(DHS_Wet05!AD61+DHS_Dry05!AD61)/2 -> 0 | AE70: =(DHS_Wet05!AE61+DHS_Dry05!AE61)/2 -> 0.6745721374 | AF70: =(DHS_Wet05!AF61+DHS_Dry05!AF61)/2 -> 0.1224135421 | AG70: =(DHS_Wet05!AG61+DHS_Dry05!AG61)/2 -> 0.8013550506 | AH70: =(DHS_Wet05!AH61+DHS_Dry05!AH61)/2 -> 0 | AI70: =(DHS_Wet05!AI61+DHS_Dry05!AI61)/2 -> 0 | AJ70: =(DHS_Wet05!AJ61+DHS_Dry05!AJ61)/2 -> 0
A108: =A1026 -> Cambodia
A109: =A1034 -> 2005
A110: Use of sanitation facilities
A111: by wealth quintile and sub-national region
A112: Notes:
A113: WHO/UNICEF JMP customised wealth index excludes water,
A114: sanitation and hygiene assets.
A115: Survey used for analysis: | B115: =A1025 -> DHS05
A116: =B1030 -> 
A117: =B1029 -> 
A120: Use of sanitation facilities | C120: NATIONAL wealth index quintile | H120: URBAN wealth index quintile | M120: RURAL wealth index quintile | R120: SUB-REGIONS: | BA120: Raw numbers of respondents: | BB120: Use of sanitation facilities | BC120: NATIONAL wealth index quintile | BH120: URBAN wealth index quintile | BM120: RURAL wealth index quintile | BR120: SUB-REGIONS:
A121: Weighted percentage (used in graphs) | C121: Poorest | D121: Poor | E121: Middle | F121: Rich | G121: Richest | H121: Poorest | I121: Poor | J121: Middle | K121: Rich | L121: Richest | M121: Poorest | N121: Poor | O121: Middle | P121: Rich | Q121: Richest | R121: Banteay Mean Chey | S121: Battambang & Krong Pailin | T121: Kampong Cham | U121: Kampong Chhnang | V121: Kampong Speu | W121: Kampong Thom | X121: Kampot & Krong Kep | Y121: Kandal | Z121: Kratie | AA121: Krong Preah Sihanouk & Kaoh Kong | AB121: Mondol Kiri & Rattanak Kiri | AC121: Otdar Mean Chey | AD121: Phnom Penh | AE121: Preah Vihear & Steung Treng | AF121: Prey Veng | AG121: Pursat | AH121: Siem Reap | AI121: Svay Rieng | AJ121: Takeo | BA121: Sanitation data, raw numbers (weighted) | BC121: Poorest | BD121: Poor | BE121: Middle | BF121: Rich | BG121: Richest | BH121: Poorest | BI121: Poor | BJ121: Middle | BK121: Rich | BL121: Richest | BM121: Poorest | BN121: Poor | BO121: Middle | BP121: Rich | BQ121: Richest | BR121: Banteay Mean Chey | BS121: Battambang & Krong Pailin | BT121: Kampong Cham | BU121: Kampong Chhnang | BV121: Kampong Speu | BW121: Kampong Thom | BX121: Kampot & Krong Kep | BY121: Kandal | BZ121: Kratie | CA121: Krong Preah Sihanouk & Kaoh Kong | CB121: Mondol Kiri & Rattanak Kiri | CC121: Otdar Mean Chey | CD121: Phnom Penh | CE121: Preah Vihear & Steung Treng | CF121: Prey Veng | CG121: Pursat | CH121: Siem Reap | CI121: Svay Rieng | CJ121: Takeo
A122: Sanitation | B122: Improved | C122: =(DHS_Wet05!C122+DHS_Dry05!C122)/2 -> 2.65543539 | D122: =(DHS_Wet05!D122+DHS_Dry05!D122)/2 -> 6.267876986 | E122: =(DHS_Wet05!E122+DHS_Dry05!E122)/2 -> 11.77748464 | F122: =(DHS_Wet05!F122+DHS_Dry05!F122)/2 -> 31.86016351 | G122: =(DHS_Wet05!G122+DHS_Dry05!G122)/2 -> 85.85204566 | H122: =(DHS_Wet05!H122+DHS_Dry05!H122)/2 -> 6.923943352 | I122: =(DHS_Wet05!I122+DHS_Dry05!I122)/2 -> 40.32017237 | J122: =(DHS_Wet05!J122+DHS_Dry05!J122)/2 -> 83.29013308 | K122: =(DHS_Wet05!K122+DHS_Dry05!K122)/2 -> 97.30924259 | L122: =(DHS_Wet05!L122+DHS_Dry05!L122)/2 -> 100 | M122: =(DHS_Wet05!M122+DHS_Dry05!M122)/2 -> 2.815016289 | N122: =(DHS_Wet05!N122+DHS_Dry05!N122)/2 -> 5.40325261 | O122: =(DHS_Wet05!O122+DHS_Dry05!O122)/2 -> 8.709484719 | P122: =(DHS_Wet05!P122+DHS_Dry05!P122)/2 -> 20.60954898 | Q122: =(DHS_Wet05!Q122+DHS_Dry05!Q122)/2 -> 66.49424647 | R122: =(DHS_Wet05!R122+DHS_Dry05!R122)/2 -> 21.69574608 | S122: =(DHS_Wet05!S122+DHS_Dry05!S122)/2 -> 40.82356519 | T122: =(DHS_Wet05!T122+DHS_Dry05!T122)/2 -> 19.04642443 | U122: =(DHS_Wet05!U122+DHS_Dry05!U122)/2 -> 14.87322909 | V122: =(DHS_Wet05!V122+DHS_Dry05!V122)/2 -> 14.56850721 | W122: =(DHS_Wet05!W122+DHS_Dry05!W122)/2 -> 22.92786612 | X122: =(DHS_Wet05!X122+DHS_Dry05!X122)/2 -> 17.34003796 | Y122: =(DHS_Wet05!Y122+DHS_Dry05!Y122)/2 -> 36.45609625 | Z122: =(DHS_Wet05!Z122+DHS_Dry05!Z122)/2 -> 19.92424029 | AA122: =(DHS_Wet05!AA122+DHS_Dry05!AA122)/2 -> 32.28524752 | AB122: =(DHS_Wet05!AB122+DHS_Dry05!AB122)/2 -> 14.07928748 | AC122: =(DHS_Wet05!AC122+DHS_Dry05!AC122)/2 -> 11.66753013 | AD122: =(DHS_Wet05!AD122+DHS_Dry05!AD122)/2 -> 85.5201324 | AE122: =(DHS_Wet05!AE122+DHS_Dry05!AE122)/2 -> 13.68055229 | AF122: =(DHS_Wet05!AF122+DHS_Dry05!AF122)/2 -> 13.98921751 | AG122: =(DHS_Wet05!AG122+DHS_Dry05!AG122)/2 -> 13.13773026 | AH122: =(DHS_Wet05!AH122+DHS_Dry05!AH122)/2 -> 19.72244202 | AI122: =(DHS_Wet05!AI122+DHS_Dry05!AI122)/2 -> 16.15075386 | AJ122: =(DHS_Wet05!AJ122+DHS_Dry05!AJ122)/2 -> 22.14726937 | BA122: Sanitation | BB122: Improved | BC122: 371.570999 | BD122: 875.405875 | BE122: 1656.069753 | BF122: 4510.042784 | BG122: 12229.78582 | BH122: 148.541488 | BI122: 879.104018 | BJ122: 1828.153394 | BK122: 2128.018299 | BL122: 2192.648587 | BM122: 332.650949 | BN122: 634.724881 | BO122: 1034.940355 | BP122: 2476.618685 | BQ122: 7987.474572 | BR122: 627.732449 | BS122: 2175.790599 | BT122: 1704.686662 | BU122: 387.477025 | BV122: 561.099661 | BW122: 802.580934 | BX122: 585.270232 | BY122: 2549.455713 | BZ122: 296.572983 | CA122: 519.579942 | CB122: 156.926474 | CC122: 91.160859 | CD122: 5404.820966 | CE122: 202.314593 | CF122: 827.765456 | CG122: 276.459646 | CH122: 951.887458 | CI122: 448.747944 | CJ122: 1072.545632
B123: Not Improved | C123: =(DHS_Wet05!C123+DHS_Dry05!C123)/2 -> 97.34456461 | D123: =(DHS_Wet05!D123+DHS_Dry05!D123)/2 -> 93.73212301 | E123: =(DHS_Wet05!E123+DHS_Dry05!E123)/2 -> 88.22251536 | F123: =(DHS_Wet05!F123+DHS_Dry05!F123)/2 -> 68.13983649 | G123: =(DHS_Wet05!G123+DHS_Dry05!G123)/2 -> 14.14795434 | H123: =(DHS_Wet05!H123+DHS_Dry05!H123)/2 -> 93.07605665 | I123: =(DHS_Wet05!I123+DHS_Dry05!I123)/2 -> 59.67982763 | J123: =(DHS_Wet05!J123+DHS_Dry05!J123)/2 -> 16.70986692 | K123: =(DHS_Wet05!K123+DHS_Dry05!K123)/2 -> 2.690757405 | L123: =(DHS_Wet05!L123+DHS_Dry05!L123)/2 -> 0 | M123: =(DHS_Wet05!M123+DHS_Dry05!M123)/2 -> 97.18498371 | N123: =(DHS_Wet05!N123+DHS_Dry05!N123)/2 -> 94.59674739 | O123: =(DHS_Wet05!O123+DHS_Dry05!O123)/2 -> 91.29051528 | P123: =(DHS_Wet05!P123+DHS_Dry05!P123)/2 -> 79.39045102 | Q123: =(DHS_Wet05!Q123+DHS_Dry05!Q123)/2 -> 33.50575353 | R123: =(DHS_Wet05!R123+DHS_Dry05!R123)/2 -> 78.30425392 | S123: =(DHS_Wet05!S123+DHS_Dry05!S123)/2 -> 59.17643481 | T123: =(DHS_Wet05!T123+DHS_Dry05!T123)/2 -> 80.95357557 | U123: =(DHS_Wet05!U123+DHS_Dry05!U123)/2 -> 85.12677091 | V123: =(DHS_Wet05!V123+DHS_Dry05!V123)/2 -> 85.43149279 | W123: =(DHS_Wet05!W123+DHS_Dry05!W123)/2 -> 77.07213388 | X123: =(DHS_Wet05!X123+DHS_Dry05!X123)/2 -> 82.65996204 | Y123: =(DHS_Wet05!Y123+DHS_Dry05!Y123)/2 -> 63.54390375 | Z123: =(DHS_Wet05!Z123+DHS_Dry05!Z123)/2 -> 80.07575971 | AA123: =(DHS_Wet05!AA123+DHS_Dry05!AA123)/2 -> 67.71475248 | AB123: =(DHS_Wet05!AB123+DHS_Dry05!AB123)/2 -> 85.92071252 | AC123: =(DHS_Wet05!AC123+DHS_Dry05!AC123)/2 -> 88.33246987 | AD123: =(DHS_Wet05!AD123+DHS_Dry05!AD123)/2 -> 14.4798676 | AE123: =(DHS_Wet05!AE123+DHS_Dry05!AE123)/2 -> 86.31944771 | AF123: =(DHS_Wet05!AF123+DHS_Dry05!AF123)/2 -> 86.01078249 | AG123: =(DHS_Wet05!AG123+DHS_Dry05!AG123)/2 -> 86.86226974 | AH123: =(DHS_Wet05!AH123+DHS_Dry05!AH123)/2 -> 80.27755798 | AI123: =(DHS_Wet05!AI123+DHS_Dry05!AI123)/2 -> 83.84924614 | AJ123: =(DHS_Wet05!AJ123+DHS_Dry05!AJ123)/2 -> 77.85273063 | BB123: Not Improved | BC123: 13899.77772 | BD123: 13389.46415 | BE123: 12616.29592 | BF123: 9758.556172 | BG123: 2037.302383 | BH123: 2040.660052 | BI123: 1316.16688 | BJ123: 366.768533 | BK123: 58.843136 | BL123: 0 | BM123: 11747.16321 | BN123: 11436.01904 | BO123: 11044.59272 | BP123: 9604.073745 | BQ123: 4087.109031 | BR123: 2265.611005 | BS123: 3153.951154 | BT123: 7562.096542 | BU123: 2218.129827 | BV123: 3290.356449 | BW123: 2720.964992 | BX123: 2952.246352 | BY123: 4443.766204 | BZ123: 1191.930361 | CA123: 1092.035825 | CB123: 970.394707 | CC123: 690.160106 | CD123: 915.118929 | CE123: 1276.533546 | CF123: 5120.628712 | CG123: 1827.858532 | CH123: 3874.530371 | CI123: 2359.847642 | CJ123: 3775.235088
A124: Sanitation ladder | B124: Basic | C124: =(DHS_Wet05!C124+DHS_Dry05!C124)/2 -> 1.754648987 | D124: =(DHS_Wet05!D124+DHS_Dry05!D124)/2 -> 4.446065331 | E124: =(DHS_Wet05!E124+DHS_Dry05!E124)/2 -> 8.565740705 | F124: =(DHS_Wet05!F124+DHS_Dry05!F124)/2 -> 24.86557349 | G124: =(DHS_Wet05!G124+DHS_Dry05!G124)/2 -> 77.36918899 | H124: =(DHS_Wet05!H124+DHS_Dry05!H124)/2 -> 3.794979505 | I124: =(DHS_Wet05!I124+DHS_Dry05!I124)/2 -> 29.52786342 | J124: =(DHS_Wet05!J124+DHS_Dry05!J124)/2 -> 71.81080203 | K124: =(DHS_Wet05!K124+DHS_Dry05!K124)/2 -> 92.8187098 | L124: =(DHS_Wet05!L124+DHS_Dry05!L124)/2 -> 99.23666561 | M124: =(DHS_Wet05!M124+DHS_Dry05!M124)/2 -> 1.835507099 | N124: =(DHS_Wet05!N124+DHS_Dry05!N124)/2 -> 3.893803322 | O124: =(DHS_Wet05!O124+DHS_Dry05!O124)/2 -> 6.73274962 | P124: =(DHS_Wet05!P124+DHS_Dry05!P124)/2 -> 15.88838063 | Q124: =(DHS_Wet05!Q124+DHS_Dry05!Q124)/2 -> 55.95251328 | R124: =(DHS_Wet05!R124+DHS_Dry05!R124)/2 -> 17.08049628 | S124: =(DHS_Wet05!S124+DHS_Dry05!S124)/2 -> 31.93175206 | T124: =(DHS_Wet05!T124+DHS_Dry05!T124)/2 -> 16.78182266 | U124: =(DHS_Wet05!U124+DHS_Dry05!U124)/2 -> 11.87611104 | V124: =(DHS_Wet05!V124+DHS_Dry05!V124)/2 -> 12.26599103 | W124: =(DHS_Wet05!W124+DHS_Dry05!W124)/2 -> 15.42575661 | X124: =(DHS_Wet05!X124+DHS_Dry05!X124)/2 -> 15.85716047 | Y124: =(DHS_Wet05!Y124+DHS_Dry05!Y124)/2 -> 30.66907914 | Z124: =(DHS_Wet05!Z124+DHS_Dry05!Z124)/2 -> 17.87983407 | AA124: =(DHS_Wet05!AA124+DHS_Dry05!AA124)/2 -> 30.85333077 | AB124: =(DHS_Wet05!AB124+DHS_Dry05!AB124)/2 -> 12.36791966 | AC124: =(DHS_Wet05!AC124+DHS_Dry05!AC124)/2 -> 11.13523877 | AD124: =(DHS_Wet05!AD124+DHS_Dry05!AD124)/2 -> 75.49030094 | AE124: =(DHS_Wet05!AE124+DHS_Dry05!AE124)/2 -> 12.44479221 | AF124: =(DHS_Wet05!AF124+DHS_Dry05!AF124)/2 -> 12.48739487 | AG124: =(DHS_Wet05!AG124+DHS_Dry05!AG124)/2 -> 11.39794392 | AH124: =(DHS_Wet05!AH124+DHS_Dry05!AH124)/2 -> 14.55270026 | AI124: =(DHS_Wet05!AI124+DHS_Dry05!AI124)/2 -> 14.5966251 | AJ124: =(DHS_Wet05!AJ124+DHS_Dry05!AJ124)/2 -> 18.23720817 | BA124: Sanitation ladder | BB124: Basic | BC124: 245.52534 | BD124: 619.69268 | BE124: 1204.456174 | BF124: 3519.906615 | BG124: 11017.74651 | BH124: 80.434295 | BI124: 643.079172 | BJ124: 1575.419802 | BK124: 2029.816569 | BL124: 2173.765006 | BM124: 216.902183 | BN124: 457.408533 | BO124: 800.046674 | BP124: 1909.282944 | BQ124: 6721.172144 | BR124: 494.197421 | BS124: 1701.879922 | BT124: 1502.001037 | BU124: 307.253371 | BV124: 472.419261 | BW124: 539.972542 | BX124: 535.219358 | BY124: 2144.756764 | BZ124: 266.141928 | CA124: 496.535509 | CB124: 137.851722 | CC124: 87.001955 | CD124: 4770.941646 | CE124: 184.039578 | CF124: 738.900092 | CG124: 237.972575 | CH124: 702.37412 | CI124: 404.678922 | CJ124: 883.189599
B125: Limited | C125: =(DHS_Wet05!C125+DHS_Dry05!C125)/2 -> 0.9007864029 | D125: =(DHS_Wet05!D125+DHS_Dry05!D125)/2 -> 1.821811655 | E125: =(DHS_Wet05!E125+DHS_Dry05!E125)/2 -> 3.211743939 | F125: =(DHS_Wet05!F125+DHS_Dry05!F125)/2 -> 6.99459002 | G125: =(DHS_Wet05!G125+DHS_Dry05!G125)/2 -> 8.482856671 | H125: =(DHS_Wet05!H125+DHS_Dry05!H125)/2 -> 3.128963847 | I125: =(DHS_Wet05!I125+DHS_Dry05!I125)/2 -> 10.79230894 | J125: =(DHS_Wet05!J125+DHS_Dry05!J125)/2 -> 11.47933105 | K125: =(DHS_Wet05!K125+DHS_Dry05!K125)/2 -> 4.490532799 | L125: =(DHS_Wet05!L125+DHS_Dry05!L125)/2 -> 0.7633343928 | M125: =(DHS_Wet05!M125+DHS_Dry05!M125)/2 -> 0.9795091905 | N125: =(DHS_Wet05!N125+DHS_Dry05!N125)/2 -> 1.509449289 | O125: =(DHS_Wet05!O125+DHS_Dry05!O125)/2 -> 1.976735099 | P125: =(DHS_Wet05!P125+DHS_Dry05!P125)/2 -> 4.721168346 | Q125: =(DHS_Wet05!Q125+DHS_Dry05!Q125)/2 -> 10.54173318 | R125: =(DHS_Wet05!R125+DHS_Dry05!R125)/2 -> 4.615249801 | S125: =(DHS_Wet05!S125+DHS_Dry05!S125)/2 -> 8.89181313 | T125: =(DHS_Wet05!T125+DHS_Dry05!T125)/2 -> 2.264601775 | U125: =(DHS_Wet05!U125+DHS_Dry05!U125)/2 -> 2.99711805 | V125: =(DHS_Wet05!V125+DHS_Dry05!V125)/2 -> 2.302516177 | W125: =(DHS_Wet05!W125+DHS_Dry05!W125)/2 -> 7.502109505 | X125: =(DHS_Wet05!X125+DHS_Dry05!X125)/2 -> 1.482877494 | Y125: =(DHS_Wet05!Y125+DHS_Dry05!Y125)/2 -> 5.787017112 | Z125: =(DHS_Wet05!Z125+DHS_Dry05!Z125)/2 -> 2.044406223 | AA125: =(DHS_Wet05!AA125+DHS_Dry05!AA125)/2 -> 1.431916753 | AB125: =(DHS_Wet05!AB125+DHS_Dry05!AB125)/2 -> 1.711367815 | AC125: =(DHS_Wet05!AC125+DHS_Dry05!AC125)/2 -> 0.5322913612 | AD125: =(DHS_Wet05!AD125+DHS_Dry05!AD125)/2 -> 10.02983146 | AE125: =(DHS_Wet05!AE125+DHS_Dry05!AE125)/2 -> 1.235760084 | AF125: =(DHS_Wet05!AF125+DHS_Dry05!AF125)/2 -> 1.501822644 | AG125: =(DHS_Wet05!AG125+DHS_Dry05!AG125)/2 -> 1.739786335 | AH125: =(DHS_Wet05!AH125+DHS_Dry05!AH125)/2 -> 5.16974176 | AI125: =(DHS_Wet05!AI125+DHS_Dry05!AI125)/2 -> 1.554128759 | AJ125: =(DHS_Wet05!AJ125+DHS_Dry05!AJ125)/2 -> 3.910061209 | BB125: Limited | BC125: 126.045659 | BD125: 253.924147 | BE125: 451.613579 | BF125: 990.136169 | BG125: 1207.999796 | BH125: 66.318145 | BI125: 235.042712 | BJ125: 251.839068 | BK125: 98.20173 | BL125: 16.720731 | BM125: 115.748766 | BN125: 177.316348 | BO125: 234.893681 | BP125: 567.335741 | BQ125: 1266.302428 | BR125: 133.535028 | BS125: 473.910677 | BT125: 202.685625 | BU125: 77.540082 | BV125: 88.6804 | BW125: 262.608392 | BX125: 50.050874 | BY125: 404.698949 | BZ125: 30.431055 | CA125: 23.044433 | CB125: 19.074752 | CC125: 4.158904 | CD125: 633.87932 | CE125: 18.275015 | CF125: 88.865364 | CG125: 36.324221 | CH125: 249.513338 | CI125: 43.086888 | CJ125: 189.356033
B126: Unimproved | C126: =(DHS_Wet05!C126+DHS_Dry05!C126)/2 -> 0.7513858552 | D126: =(DHS_Wet05!D126+DHS_Dry05!D126)/2 -> 1.965418762 | E126: =(DHS_Wet05!E126+DHS_Dry05!E126)/2 -> 2.520377058 | F126: =(DHS_Wet05!F126+DHS_Dry05!F126)/2 -> 4.062013512 | G126: =(DHS_Wet05!G126+DHS_Dry05!G126)/2 -> 2.742040753 | H126: =(DHS_Wet05!H126+DHS_Dry05!H126)/2 -> 3.939630019 | I126: =(DHS_Wet05!I126+DHS_Dry05!I126)/2 -> 7.800400929 | J126: =(DHS_Wet05!J126+DHS_Dry05!J126)/2 -> 5.101064466 | K126: =(DHS_Wet05!K126+DHS_Dry05!K126)/2 -> 1.727370303 | L126: =(DHS_Wet05!L126+DHS_Dry05!L126)/2 -> -4.130029652e-14 | M126: =(DHS_Wet05!M126+DHS_Dry05!M126)/2 -> 0.659370928 | N126: =(DHS_Wet05!N126+DHS_Dry05!N126)/2 -> 1.726622197 | O126: =(DHS_Wet05!O126+DHS_Dry05!O126)/2 -> 2.115140473 | P126: =(DHS_Wet05!P126+DHS_Dry05!P126)/2 -> 3.021595294 | Q126: =(DHS_Wet05!Q126+DHS_Dry05!Q126)/2 -> 3.331207677 | R126: =(DHS_Wet05!R126+DHS_Dry05!R126)/2 -> 0.7393739229 | S126: =(DHS_Wet05!S126+DHS_Dry05!S126)/2 -> 1.307210335 | T126: =(DHS_Wet05!T126+DHS_Dry05!T126)/2 -> 2.452147725 | U126: =(DHS_Wet05!U126+DHS_Dry05!U126)/2 -> 0.968998498 | V126: =(DHS_Wet05!V126+DHS_Dry05!V126)/2 -> 0.0577229478 | W126: =(DHS_Wet05!W126+DHS_Dry05!W126)/2 -> 4.400105228 | X126: =(DHS_Wet05!X126+DHS_Dry05!X126)/2 -> 6.526924412 | Y126: =(DHS_Wet05!Y126+DHS_Dry05!Y126)/2 -> 0.7253852888 | Z126: =(DHS_Wet05!Z126+DHS_Dry05!Z126)/2 -> 6.54371066 | AA126: =(DHS_Wet05!AA126+DHS_Dry05!AA126)/2 -> 13.75081239 | AB126: =(DHS_Wet05!AB126+DHS_Dry05!AB126)/2 -> 1.436247401 | AC126: =(DHS_Wet05!AC126+DHS_Dry05!AC126)/2 -> 0.3810787286 | AD126: =(DHS_Wet05!AD126+DHS_Dry05!AD126)/2 -> 2.535675412 | AE126: =(DHS_Wet05!AE126+DHS_Dry05!AE126)/2 -> 0.1352464088 | AF126: =(DHS_Wet05!AF126+DHS_Dry05!AF126)/2 -> 3.395310378 | AG126: =(DHS_Wet05!AG126+DHS_Dry05!AG126)/2 -> 2.007655897 | AH126: =(DHS_Wet05!AH126+DHS_Dry05!AH126)/2 -> 0.1814786931 | AI126: =(DHS_Wet05!AI126+DHS_Dry05!AI126)/2 -> 4.888116238 | AJ126: =(DHS_Wet05!AJ126+DHS_Dry05!AJ126)/2 -> 0.8514530802 | BB126: Unimproved | BC126: 114.628341 | BD126: 300.704813 | BE126: 384.573352 | BF126: 615.548592 | BG126: 410.471374 | BH126: 90.878721 | BI126: 177.782449 | BJ126: 112.068226 | BK126: 37.775195 | BL126: 0 | BM126: 87.04857 | BN126: 225.904049 | BO126: 272.623825 | BP126: 378.187172 | BQ126: 443.658265 | BR126: 21.392627 | BS126: 69.670935 | BT126: 287.539412 | BU126: 27.567577 | BV126: 2.223174 | BW126: 160.332687 | BX126: 259.02752 | BY126: 50.727803 | BZ126: 97.403352 | CA126: 222.344458 | CB126: 17.983437 | CC126: 2.977448 | CD126: 160.253162 | CE126: 2.000089 | CF126: 206.334787 | CG126: 44.082746 | CH126: 8.75892 | CI126: 142.924337 | CJ126: 42.382001
B127: Open defecation | C127: =(DHS_Wet05!C127+DHS_Dry05!C127)/2 -> 96.59317876 | D127: =(DHS_Wet05!D127+DHS_Dry05!D127)/2 -> 91.76670425 | E127: =(DHS_Wet05!E127+DHS_Dry05!E127)/2 -> 85.7021383 | F127: =(DHS_Wet05!F127+DHS_Dry05!F127)/2 -> 64.07782297 | G127: =(DHS_Wet05!G127+DHS_Dry05!G127)/2 -> 11.40591359 | H127: =(DHS_Wet05!H127+DHS_Dry05!H127)/2 -> 89.13642663 | I127: =(DHS_Wet05!I127+DHS_Dry05!I127)/2 -> 51.8794267 | J127: =(DHS_Wet05!J127+DHS_Dry05!J127)/2 -> 11.60880245 | K127: =(DHS_Wet05!K127+DHS_Dry05!K127)/2 -> 0.9633871018 | L127: =(DHS_Wet05!L127+DHS_Dry05!L127)/2 -> 0 | M127: =(DHS_Wet05!M127+DHS_Dry05!M127)/2 -> 96.52561278 | N127: =(DHS_Wet05!N127+DHS_Dry05!N127)/2 -> 92.87012519 | O127: =(DHS_Wet05!O127+DHS_Dry05!O127)/2 -> 89.17537481 | P127: =(DHS_Wet05!P127+DHS_Dry05!P127)/2 -> 76.36885573 | Q127: =(DHS_Wet05!Q127+DHS_Dry05!Q127)/2 -> 30.17454585 | R127: =(DHS_Wet05!R127+DHS_Dry05!R127)/2 -> 77.56488 | S127: =(DHS_Wet05!S127+DHS_Dry05!S127)/2 -> 57.86922448 | T127: =(DHS_Wet05!T127+DHS_Dry05!T127)/2 -> 78.50142784 | U127: =(DHS_Wet05!U127+DHS_Dry05!U127)/2 -> 84.15777241 | V127: =(DHS_Wet05!V127+DHS_Dry05!V127)/2 -> 85.37376984 | W127: =(DHS_Wet05!W127+DHS_Dry05!W127)/2 -> 72.67202865 | X127: =(DHS_Wet05!X127+DHS_Dry05!X127)/2 -> 76.13303763 | Y127: =(DHS_Wet05!Y127+DHS_Dry05!Y127)/2 -> 62.81851846 | Z127: =(DHS_Wet05!Z127+DHS_Dry05!Z127)/2 -> 73.53204905 | AA127: =(DHS_Wet05!AA127+DHS_Dry05!AA127)/2 -> 53.96394009 | AB127: =(DHS_Wet05!AB127+DHS_Dry05!AB127)/2 -> 84.48446512 | AC127: =(DHS_Wet05!AC127+DHS_Dry05!AC127)/2 -> 87.95139114 | AD127: =(DHS_Wet05!AD127+DHS_Dry05!AD127)/2 -> 11.94419218 | AE127: =(DHS_Wet05!AE127+DHS_Dry05!AE127)/2 -> 86.1842013 | AF127: =(DHS_Wet05!AF127+DHS_Dry05!AF127)/2 -> 82.61547211 | AG127: =(DHS_Wet05!AG127+DHS_Dry05!AG127)/2 -> 84.85461385 | AH127: =(DHS_Wet05!AH127+DHS_Dry05!AH127)/2 -> 80.09607929 | AI127: =(DHS_Wet05!AI127+DHS_Dry05!AI127)/2 -> 78.9611299 | AJ127: =(DHS_Wet05!AJ127+DHS_Dry05!AJ127)/2 -> 77.00127755 | BB127: Open defecation | BC127: 13785.14938 | BD127: 13088.75934 | BE127: 12231.72256 | BF127: 9143.00758 | BG127: 1626.831009 | BH127: 1949.781331 | BI127: 1138.384431 | BJ127: 254.700307 | BK127: 21.067941 | BL127: 0 | BM127: 11660.11464 | BN127: 11210.11499 | BO127: 10771.96889 | BP127: 9225.886573 | BQ127: 3643.450766 | BR127: 2244.218378 | BS127: 3084.280219 | BT127: 7274.55713 | BU127: 2190.56225 | BV127: 3288.133275 | BW127: 2560.632305 | BX127: 2693.218832 | BY127: 4393.038401 | BZ127: 1094.527009 | CA127: 869.691367 | CB127: 952.41127 | CC127: 687.182658 | CD127: 754.865767 | CE127: 1274.533457 | CF127: 4914.293925 | CG127: 1783.775786 | CH127: 3865.771451 | CI127: 2216.923305 | CJ127: 3732.853087
A128: Shared among Improved Sanitation | B128: Yes | C128: =(DHS_Wet05!C128+DHS_Dry05!C128)/2 -> 33.9223619 | D128: =(DHS_Wet05!D128+DHS_Dry05!D128)/2 -> 29.06584891 | E128: =(DHS_Wet05!E128+DHS_Dry05!E128)/2 -> 27.27020273 | F128: =(DHS_Wet05!F128+DHS_Dry05!F128)/2 -> 21.95403051 | G128: =(DHS_Wet05!G128+DHS_Dry05!G128)/2 -> 9.880785724 | H128: =(DHS_Wet05!H128+DHS_Dry05!H128)/2 -> 45.19048883 | I128: =(DHS_Wet05!I128+DHS_Dry05!I128)/2 -> 26.76652482 | J128: =(DHS_Wet05!J128+DHS_Dry05!J128)/2 -> 13.78234207 | K128: =(DHS_Wet05!K128+DHS_Dry05!K128)/2 -> 4.614703269 | L128: =(DHS_Wet05!L128+DHS_Dry05!L128)/2 -> 0.7633343928 | M128: =(DHS_Wet05!M128+DHS_Dry05!M128)/2 -> 34.79586225 | N128: =(DHS_Wet05!N128+DHS_Dry05!N128)/2 -> 27.93593781 | O128: =(DHS_Wet05!O128+DHS_Dry05!O128)/2 -> 22.69634959 | P128: =(DHS_Wet05!P128+DHS_Dry05!P128)/2 -> 22.90767426 | Q128: =(DHS_Wet05!Q128+DHS_Dry05!Q128)/2 -> 15.85360199 | R128: =(DHS_Wet05!R128+DHS_Dry05!R128)/2 -> 21.2726024 | S128: =(DHS_Wet05!S128+DHS_Dry05!S128)/2 -> 21.78107936 | T128: =(DHS_Wet05!T128+DHS_Dry05!T128)/2 -> 11.88990502 | U128: =(DHS_Wet05!U128+DHS_Dry05!U128)/2 -> 20.15109181 | V128: =(DHS_Wet05!V128+DHS_Dry05!V128)/2 -> 15.80475024 | W128: =(DHS_Wet05!W128+DHS_Dry05!W128)/2 -> 32.72048723 | X128: =(DHS_Wet05!X128+DHS_Dry05!X128)/2 -> 8.551754602 | Y128: =(DHS_Wet05!Y128+DHS_Dry05!Y128)/2 -> 15.87393525 | Z128: =(DHS_Wet05!Z128+DHS_Dry05!Z128)/2 -> 10.26089925 | AA128: =(DHS_Wet05!AA128+DHS_Dry05!AA128)/2 -> 4.435204506 | AB128: =(DHS_Wet05!AB128+DHS_Dry05!AB128)/2 -> 12.15521608 | AC128: =(DHS_Wet05!AC128+DHS_Dry05!AC128)/2 -> 4.562159731 | AD128: =(DHS_Wet05!AD128+DHS_Dry05!AD128)/2 -> 11.72803547 | AE128: =(DHS_Wet05!AE128+DHS_Dry05!AE128)/2 -> 9.032969263 | AF128: =(DHS_Wet05!AF128+DHS_Dry05!AF128)/2 -> 10.7355729 | AG128: =(DHS_Wet05!AG128+DHS_Dry05!AG128)/2 -> 13.24267054 | AH128: =(DHS_Wet05!AH128+DHS_Dry05!AH128)/2 -> 26.21248299 | AI128: =(DHS_Wet05!AI128+DHS_Dry05!AI128)/2 -> 9.62263912 | AJ128: =(DHS_Wet05!AJ128+DHS_Dry05!AJ128)/2 -> 17.65482301 | BA128: Shared among improved sanitation facilities | BB128: Yes | BC128: N/A | BD128: N/A | BE128: N/A | BF128: N/A | BG128: N/A | BH128: N/A | BI128: N/A | BJ128: N/A | BK128: N/A | BL128: N/A | BM128: N/A | BN128: N/A | BO128: N/A | BP128: N/A | BQ128: N/A | BR128: N/A | BS128: N/A | BT128: N/A | BU128: N/A | BV128: N/A | BW128: N/A | BX128: N/A | BY128: N/A | BZ128: N/A | CA128: N/A | CB128: N/A | CC128: N/A | CD128: N/A | CE128: N/A | CF128: N/A | CG128: N/A | CH128: N/A | CI128: N/A | CJ128: N/A
B129: No | C129: =(DHS_Wet05!C129+DHS_Dry05!C129)/2 -> 66.0776381 | D129: =(DHS_Wet05!D129+DHS_Dry05!D129)/2 -> 70.93415109 | E129: =(DHS_Wet05!E129+DHS_Dry05!E129)/2 -> 72.72979727 | F129: =(DHS_Wet05!F129+DHS_Dry05!F129)/2 -> 78.04596949 | G129: =(DHS_Wet05!G129+DHS_Dry05!G129)/2 -> 90.11921428 | H129: =(DHS_Wet05!H129+DHS_Dry05!H129)/2 -> 54.80951117 | I129: =(DHS_Wet05!I129+DHS_Dry05!I129)/2 -> 73.23347518 | J129: =(DHS_Wet05!J129+DHS_Dry05!J129)/2 -> 86.21765793 | K129: =(DHS_Wet05!K129+DHS_Dry05!K129)/2 -> 95.38529673 | L129: =(DHS_Wet05!L129+DHS_Dry05!L129)/2 -> 99.23666561 | M129: =(DHS_Wet05!M129+DHS_Dry05!M129)/2 -> 65.20413775 | N129: =(DHS_Wet05!N129+DHS_Dry05!N129)/2 -> 72.06406219 | O129: =(DHS_Wet05!O129+DHS_Dry05!O129)/2 -> 77.30365041 | P129: =(DHS_Wet05!P129+DHS_Dry05!P129)/2 -> 77.09232574 | Q129: =(DHS_Wet05!Q129+DHS_Dry05!Q129)/2 -> 84.14639801 | R129: =(DHS_Wet05!R129+DHS_Dry05!R129)/2 -> 78.7273976 | S129: =(DHS_Wet05!S129+DHS_Dry05!S129)/2 -> 78.21892064 | T129: =(DHS_Wet05!T129+DHS_Dry05!T129)/2 -> 88.11009498 | U129: =(DHS_Wet05!U129+DHS_Dry05!U129)/2 -> 79.84890819 | V129: =(DHS_Wet05!V129+DHS_Dry05!V129)/2 -> 84.19524976 | W129: =(DHS_Wet05!W129+DHS_Dry05!W129)/2 -> 67.27951277 | X129: =(DHS_Wet05!X129+DHS_Dry05!X129)/2 -> 91.4482454 | Y129: =(DHS_Wet05!Y129+DHS_Dry05!Y129)/2 -> 84.12606475 | Z129: =(DHS_Wet05!Z129+DHS_Dry05!Z129)/2 -> 89.73910075 | AA129: =(DHS_Wet05!AA129+DHS_Dry05!AA129)/2 -> 95.56479549 | AB129: =(DHS_Wet05!AB129+DHS_Dry05!AB129)/2 -> 87.84478392 | AC129: =(DHS_Wet05!AC129+DHS_Dry05!AC129)/2 -> 95.43784027 | AD129: =(DHS_Wet05!AD129+DHS_Dry05!AD129)/2 -> 88.27196453 | AE129: =(DHS_Wet05!AE129+DHS_Dry05!AE129)/2 -> 90.96703074 | AF129: =(DHS_Wet05!AF129+DHS_Dry05!AF129)/2 -> 89.2644271 | AG129: =(DHS_Wet05!AG129+DHS_Dry05!AG129)/2 -> 86.75732946 | AH129: =(DHS_Wet05!AH129+DHS_Dry05!AH129)/2 -> 73.78751701 | AI129: =(DHS_Wet05!AI129+DHS_Dry05!AI129)/2 -> 90.37736088 | AJ129: =(DHS_Wet05!AJ129+DHS_Dry05!AJ129)/2 -> 82.34517699 | BB129: No | BC129: N/A | BD129: N/A | BE129: N/A | BF129: N/A | BG129: N/A | BH129: N/A | BI129: N/A | BJ129: N/A | BK129: N/A | BL129: N/A | BM129: N/A | BN129: N/A | BO129: N/A | BP129: N/A | BQ129: N/A | BR129: N/A | BS129: N/A | BT129: N/A | BU129: N/A | BV129: N/A | BW129: N/A | BX129: N/A | BY129: N/A | BZ129: N/A | CA129: N/A | CB129: N/A | CC129: N/A | CD129: N/A | CE129: N/A | CF129: N/A | CG129: N/A | CH129: N/A | CI129: N/A | CJ129: N/A
A130: Manually calculated ratios | B130: Improved latrines
B131: Other
B132: Other
C133: NATIONAL wealth index quintile | H133: URBAN wealth index quintile | M133: RURAL wealth index quintile | R133: SUB-REGIONS: | BA133: Raw numbers of respondents: | BB133: Use of sanitation facilities | BC133: NATIONAL wealth index quintile | BH133: URBAN wealth index quintile | BM133: RURAL wealth index quintile | BR133: SUB-REGIONS:
A134: Percentage based on weighted population | C134: Poorest | D134: Poor | E134: Middle | F134: Rich | G134: Richest | H134: Poorest | I134: Poor | J134: Middle | K134: Rich | L134: Richest | M134: Poorest | N134: Poor | O134: Middle | P134: Rich | Q134: Richest | R134: Banteay Mean Chey | S134: Battambang & Krong Pailin | T134: Kampong Cham | U134: Kampong Chhnang | V134: Kampong Speu | W134: Kampong Thom | X134: Kampot & Krong Kep | Y134: Kandal | Z134: Kratie | AA134: Krong Preah Sihanouk & Kaoh Kong | AB134: Mondol Kiri & Rattanak Kiri | AC134: Otdar Mean Chey | AD134: Phnom Penh | AE134: Preah Vihear & Steung Treng | AF134: Prey Veng | AG134: Pursat | AH134: Siem Reap | AI134: Svay Rieng | AJ134: Takeo | BA134: Sanitation data, raw numbers (weighted) | BC134: Poorest | BD134: Poor | BE134: Middle | BF134: Rich | BG134: Richest | BH134: Poorest | BI134: Poor | BJ134: Middle | BK134: Rich | BL134: Richest | BM134: Poorest | BN134: Poor | BO134: Middle | BP134: Rich | BQ134: Richest | BR134: Banteay Mean Chey | BS134: Battambang & Krong Pailin | BT134: Kampong Cham | BU134: Kampong Chhnang | BV134: Kampong Speu | BW134: Kampong Thom | BX134: Kampot & Krong Kep | BY134: Kandal | BZ134: Kratie | CA134: Krong Preah Sihanouk & Kaoh Kong | CB134: Mondol Kiri & Rattanak Kiri | CC134: Otdar Mean Chey | CD134: Phnom Penh | CE134: Preah Vihear & Steung Treng | CF134: Prey Veng | CG134: Pursat | CH134: Siem Reap | CI134: Svay Rieng | CJ134: Takeo
A135: Sanitation type | B135: Sewer connection | C135: =(DHS_Wet05!C135+DHS_Dry05!C135)/2 -> 0 | D135: =(DHS_Wet05!D135+DHS_Dry05!D135)/2 -> 0.007405998076 | E135: =(DHS_Wet05!E135+DHS_Dry05!E135)/2 -> 0.06684458779 | F135: =(DHS_Wet05!F135+DHS_Dry05!F135)/2 -> 0.6502384522 | G135: =(DHS_Wet05!G135+DHS_Dry05!G135)/2 -> 30.5200836 | H135: =(DHS_Wet05!H135+DHS_Dry05!H135)/2 -> 0 | I135: =(DHS_Wet05!I135+DHS_Dry05!I135)/2 -> 3.484555144 | J135: =(DHS_Wet05!J135+DHS_Dry05!J135)/2 -> 17.99824427 | K135: =(DHS_Wet05!K135+DHS_Dry05!K135)/2 -> 57.30753014 | L135: =(DHS_Wet05!L135+DHS_Dry05!L135)/2 -> 82.71839641 | M135: =(DHS_Wet05!M135+DHS_Dry05!M135)/2 -> 0 | N135: =(DHS_Wet05!N135+DHS_Dry05!N135)/2 -> 0.008752202903 | O135: =(DHS_Wet05!O135+DHS_Dry05!O135)/2 -> 0 | P135: =(DHS_Wet05!P135+DHS_Dry05!P135)/2 -> 0.07897149981 | Q135: =(DHS_Wet05!Q135+DHS_Dry05!Q135)/2 -> 7.5249328 | R135: =(DHS_Wet05!R135+DHS_Dry05!R135)/2 -> 0.4259092014 | S135: =(DHS_Wet05!S135+DHS_Dry05!S135)/2 -> 1.746970178 | T135: =(DHS_Wet05!T135+DHS_Dry05!T135)/2 -> 0.03080184285 | U135: =(DHS_Wet05!U135+DHS_Dry05!U135)/2 -> 0 | V135: =(DHS_Wet05!V135+DHS_Dry05!V135)/2 -> 0.1886222715 | W135: =(DHS_Wet05!W135+DHS_Dry05!W135)/2 -> 0 | X135: =(DHS_Wet05!X135+DHS_Dry05!X135)/2 -> 1.108861911 | Y135: =(DHS_Wet05!Y135+DHS_Dry05!Y135)/2 -> 0.5382384893 | Z135: =(DHS_Wet05!Z135+DHS_Dry05!Z135)/2 -> 0 | AA135: =(DHS_Wet05!AA135+DHS_Dry05!AA135)/2 -> 4.71910573 | AB135: =(DHS_Wet05!AB135+DHS_Dry05!AB135)/2 -> 0.1397950315 | AC135: =(DHS_Wet05!AC135+DHS_Dry05!AC135)/2 -> 0.7977864769 | AD135: =(DHS_Wet05!AD135+DHS_Dry05!AD135)/2 -> 62.72713404 | AE135: =(DHS_Wet05!AE135+DHS_Dry05!AE135)/2 -> 0.3806331327 | AF135: =(DHS_Wet05!AF135+DHS_Dry05!AF135)/2 -> 0.05717702802 | AG135: =(DHS_Wet05!AG135+DHS_Dry05!AG135)/2 -> 0 | AH135: =(DHS_Wet05!AH135+DHS_Dry05!AH135)/2 -> 3.727259851 | AI135: =(DHS_Wet05!AI135+DHS_Dry05!AI135)/2 -> 1.003455611 | AJ135: =(DHS_Wet05!AJ135+DHS_Dry05!AJ135)/2 -> 0 | BA135: Sanitation type | BB135: Sewer connection | BC135: N/A | BD135: N/A | BE135: N/A | BF135: N/A | BG135: N/A | BH135: N/A | BI135: N/A | BJ135: N/A | BK135: N/A | BL135: N/A | BM135: N/A | BN135: N/A | BO135: N/A | BP135: N/A | BQ135: N/A | BR135: N/A | BS135: N/A | BT135: N/A | BU135: N/A | BV135: N/A | BW135: N/A | BX135: N/A | BY135: N/A | BZ135: N/A | CA135: N/A | CB135: N/A | CC135: N/A | CD135: N/A | CE135: N/A | CF135: N/A | CG135: N/A | CH135: N/A | CI135: N/A | CJ135: N/A
B136: Septic tank connection | C136: =(DHS_Wet05!C136+DHS_Dry05!C136)/2 -> 1.292919812 | D136: =(DHS_Wet05!D136+DHS_Dry05!D136)/2 -> 3.86565058 | E136: =(DHS_Wet05!E136+DHS_Dry05!E136)/2 -> 9.47854246 | F136: =(DHS_Wet05!F136+DHS_Dry05!F136)/2 -> 26.95069884 | G136: =(DHS_Wet05!G136+DHS_Dry05!G136)/2 -> 53.05191434 | H136: =(DHS_Wet05!H136+DHS_Dry05!H136)/2 -> 4.967445026 | I136: =(DHS_Wet05!I136+DHS_Dry05!I136)/2 -> 32.88300026 | J136: =(DHS_Wet05!J136+DHS_Dry05!J136)/2 -> 62.58368934 | K136: =(DHS_Wet05!K136+DHS_Dry05!K136)/2 -> 39.34203307 | L136: =(DHS_Wet05!L136+DHS_Dry05!L136)/2 -> 17.28160359 | M136: =(DHS_Wet05!M136+DHS_Dry05!M136)/2 -> 1.392631681 | N136: =(DHS_Wet05!N136+DHS_Dry05!N136)/2 -> 3.020662499 | O136: =(DHS_Wet05!O136+DHS_Dry05!O136)/2 -> 6.693780084 | P136: =(DHS_Wet05!P136+DHS_Dry05!P136)/2 -> 16.83090268 | Q136: =(DHS_Wet05!Q136+DHS_Dry05!Q136)/2 -> 55.36370766 | R136: =(DHS_Wet05!R136+DHS_Dry05!R136)/2 -> 20.24827112 | S136: =(DHS_Wet05!S136+DHS_Dry05!S136)/2 -> 37.41871105 | T136: =(DHS_Wet05!T136+DHS_Dry05!T136)/2 -> 16.34324852 | U136: =(DHS_Wet05!U136+DHS_Dry05!U136)/2 -> 12.70975415 | V136: =(DHS_Wet05!V136+DHS_Dry05!V136)/2 -> 13.12644482 | W136: =(DHS_Wet05!W136+DHS_Dry05!W136)/2 -> 14.66752615 | X136: =(DHS_Wet05!X136+DHS_Dry05!X136)/2 -> 12.17798438 | Y136: =(DHS_Wet05!Y136+DHS_Dry05!Y136)/2 -> 33.6578362 | Z136: =(DHS_Wet05!Z136+DHS_Dry05!Z136)/2 -> 14.55405793 | AA136: =(DHS_Wet05!AA136+DHS_Dry05!AA136)/2 -> 25.848814 | AB136: =(DHS_Wet05!AB136+DHS_Dry05!AB136)/2 -> 9.221677172 | AC136: =(DHS_Wet05!AC136+DHS_Dry05!AC136)/2 -> 9.526602297 | AD136: =(DHS_Wet05!AD136+DHS_Dry05!AD136)/2 -> 21.46202039 | AE136: =(DHS_Wet05!AE136+DHS_Dry05!AE136)/2 -> 10.7627763 | AF136: =(DHS_Wet05!AF136+DHS_Dry05!AF136)/2 -> 10.04345439 | AG136: =(DHS_Wet05!AG136+DHS_Dry05!AG136)/2 -> 12.4802046 | AH136: =(DHS_Wet05!AH136+DHS_Dry05!AH136)/2 -> 15.19713825 | AI136: =(DHS_Wet05!AI136+DHS_Dry05!AI136)/2 -> 12.51217145 | AJ136: =(DHS_Wet05!AJ136+DHS_Dry05!AJ136)/2 -> 20.59355492 | BB136: Septic tank connection | BC136: N/A | BD136: N/A | BE136: N/A | BF136: N/A | BG136: N/A | BH136: N/A | BI136: N/A | BJ136: N/A | BK136: N/A | BL136: N/A | BM136: N/A | BN136: N/A | BO136: N/A | BP136: N/A | BQ136: N/A | BR136: N/A | BS136: N/A | BT136: N/A | BU136: N/A | BV136: N/A | BW136: N/A | BX136: N/A | BY136: N/A | BZ136: N/A | CA136: N/A | CB136: N/A | CC136: N/A | CD136: N/A | CE136: N/A | CF136: N/A | CG136: N/A | CH136: N/A | CI136: N/A | CJ136: N/A
B137: Improved latrines | C137: =(DHS_Wet05!C137+DHS_Dry05!C137)/2 -> 1.31069535 | D137: =(DHS_Wet05!D137+DHS_Dry05!D137)/2 -> 2.263738732 | E137: =(DHS_Wet05!E137+DHS_Dry05!E137)/2 -> 2.057943412 | F137: =(DHS_Wet05!F137+DHS_Dry05!F137)/2 -> 4.007231094 | G137: =(DHS_Wet05!G137+DHS_Dry05!G137)/2 -> 2.148267086 | H137: =(DHS_Wet05!H137+DHS_Dry05!H137)/2 -> 1.817745158 | I137: =(DHS_Wet05!I137+DHS_Dry05!I137)/2 -> 3.677799313 | J137: =(DHS_Wet05!J137+DHS_Dry05!J137)/2 -> 2.70819947 | K137: =(DHS_Wet05!K137+DHS_Dry05!K137)/2 -> 0.659679382 | L137: =(DHS_Wet05!L137+DHS_Dry05!L137)/2 -> 0 | M137: =(DHS_Wet05!M137+DHS_Dry05!M137)/2 -> 1.361143705 | N137: =(DHS_Wet05!N137+DHS_Dry05!N137)/2 -> 2.228959472 | O137: =(DHS_Wet05!O137+DHS_Dry05!O137)/2 -> 1.873938129 | P137: =(DHS_Wet05!P137+DHS_Dry05!P137)/2 -> 3.590761022 | Q137: =(DHS_Wet05!Q137+DHS_Dry05!Q137)/2 -> 3.262498451 | R137: =(DHS_Wet05!R137+DHS_Dry05!R137)/2 -> 1.021565758 | S137: =(DHS_Wet05!S137+DHS_Dry05!S137)/2 -> 1.657883967 | T137: =(DHS_Wet05!T137+DHS_Dry05!T137)/2 -> 2.021617522 | U137: =(DHS_Wet05!U137+DHS_Dry05!U137)/2 -> 2.161139542 | V137: =(DHS_Wet05!V137+DHS_Dry05!V137)/2 -> 1.253440118 | W137: =(DHS_Wet05!W137+DHS_Dry05!W137)/2 -> 8.110123154 | X137: =(DHS_Wet05!X137+DHS_Dry05!X137)/2 -> 3.257817688 | Y137: =(DHS_Wet05!Y137+DHS_Dry05!Y137)/2 -> 2.260021559 | Z137: =(DHS_Wet05!Z137+DHS_Dry05!Z137)/2 -> 5.370182359 | AA137: =(DHS_Wet05!AA137+DHS_Dry05!AA137)/2 -> 1.671771185 | AB137: =(DHS_Wet05!AB137+DHS_Dry05!AB137)/2 -> 4.558826346 | AC137: =(DHS_Wet05!AC137+DHS_Dry05!AC137)/2 -> 1.343141355 | AD137: =(DHS_Wet05!AD137+DHS_Dry05!AD137)/2 -> 1.330977974 | AE137: =(DHS_Wet05!AE137+DHS_Dry05!AE137)/2 -> 2.537142862 | AF137: =(DHS_Wet05!AF137+DHS_Dry05!AF137)/2 -> 3.815148754 | AG137: =(DHS_Wet05!AG137+DHS_Dry05!AG137)/2 -> 0.6575256606 | AH137: =(DHS_Wet05!AH137+DHS_Dry05!AH137)/2 -> 0.7980439192 | AI137: =(DHS_Wet05!AI137+DHS_Dry05!AI137)/2 -> 2.462036163 | AJ137: =(DHS_Wet05!AJ137+DHS_Dry05!AJ137)/2 -> 1.530911798 | BB137: Improved latrines | BC137: N/A | BD137: N/A | BE137: N/A | BF137: N/A | BG137: N/A | BH137: N/A | BI137: N/A | BJ137: N/A | BK137: N/A | BL137: N/A | BM137: N/A | BN137: N/A | BO137: N/A | BP137: N/A | BQ137: N/A | BR137: N/A | BS137: N/A | BT137: N/A | BU137: N/A | BV137: N/A | BW137: N/A | BX137: N/A | BY137: N/A | BZ137: N/A | CA137: N/A | CB137: N/A | CC137: N/A | CD137: N/A | CE137: N/A | CF137: N/A | CG137: N/A | CH137: N/A | CI137: N/A | CJ137: N/A
B138: Unimproved facilities | C138: =(DHS_Wet05!C138+DHS_Dry05!C138)/2 -> 0.8032060829 | D138: =(DHS_Wet05!D138+DHS_Dry05!D138)/2 -> 2.108009483 | E138: =(DHS_Wet05!E138+DHS_Dry05!E138)/2 -> 2.694531243 | F138: =(DHS_Wet05!F138+DHS_Dry05!F138)/2 -> 4.314008642 | G138: =(DHS_Wet05!G138+DHS_Dry05!G138)/2 -> 2.877050792 | H138: =(DHS_Wet05!H138+DHS_Dry05!H138)/2 -> 4.151226798 | I138: =(DHS_Wet05!I138+DHS_Dry05!I138)/2 -> 8.098428725 | J138: =(DHS_Wet05!J138+DHS_Dry05!J138)/2 -> 5.105795547 | K138: =(DHS_Wet05!K138+DHS_Dry05!K138)/2 -> 1.727370303 | L138: =(DHS_Wet05!L138+DHS_Dry05!L138)/2 -> 0 | M138: =(DHS_Wet05!M138+DHS_Dry05!M138)/2 -> 0.7206118311 | N138: =(DHS_Wet05!N138+DHS_Dry05!N138)/2 -> 1.871500634 | O138: =(DHS_Wet05!O138+DHS_Dry05!O138)/2 -> 2.25690698 | P138: =(DHS_Wet05!P138+DHS_Dry05!P138)/2 -> 3.130509068 | Q138: =(DHS_Wet05!Q138+DHS_Dry05!Q138)/2 -> 3.674315236 | R138: =(DHS_Wet05!R138+DHS_Dry05!R138)/2 -> 0.7393739229 | S138: =(DHS_Wet05!S138+DHS_Dry05!S138)/2 -> 1.307210335 | T138: =(DHS_Wet05!T138+DHS_Dry05!T138)/2 -> 3.102904273 | U138: =(DHS_Wet05!U138+DHS_Dry05!U138)/2 -> 1.058009844 | V138: =(DHS_Wet05!V138+DHS_Dry05!V138)/2 -> 0.0577229478 | W138: =(DHS_Wet05!W138+DHS_Dry05!W138)/2 -> 4.550322044 | X138: =(DHS_Wet05!X138+DHS_Dry05!X138)/2 -> 7.322298393 | Y138: =(DHS_Wet05!Y138+DHS_Dry05!Y138)/2 -> 0.7253852888 | Z138: =(DHS_Wet05!Z138+DHS_Dry05!Z138)/2 -> 6.54371066 | AA138: =(DHS_Wet05!AA138+DHS_Dry05!AA138)/2 -> 13.796369 | AB138: =(DHS_Wet05!AB138+DHS_Dry05!AB138)/2 -> 1.595236327 | AC138: =(DHS_Wet05!AC138+DHS_Dry05!AC138)/2 -> 0.3810787286 | AD138: =(DHS_Wet05!AD138+DHS_Dry05!AD138)/2 -> 2.535675412 | AE138: =(DHS_Wet05!AE138+DHS_Dry05!AE138)/2 -> 0.1352464088 | AF138: =(DHS_Wet05!AF138+DHS_Dry05!AF138)/2 -> 3.468747719 | AG138: =(DHS_Wet05!AG138+DHS_Dry05!AG138)/2 -> 2.09487075 | AH138: =(DHS_Wet05!AH138+DHS_Dry05!AH138)/2 -> 0.1814786931 | AI138: =(DHS_Wet05!AI138+DHS_Dry05!AI138)/2 -> 5.088818686 | AJ138: =(DHS_Wet05!AJ138+DHS_Dry05!AJ138)/2 -> 0.8742557357 | BB138: Unimproved facilities | BC138: N/A | BD138: N/A | BE138: N/A | BF138: N/A | BG138: N/A | BH138: N/A | BI138: N/A | BJ138: N/A | BK138: N/A | BL138: N/A | BM138: N/A | BN138: N/A | BO138: N/A | BP138: N/A | BQ138: N/A | BR138: N/A | BS138: N/A | BT138: N/A | BU138: N/A | BV138: N/A | BW138: N/A | BX138: N/A | BY138: N/A | BZ138: N/A | CA138: N/A | CB138: N/A | CC138: N/A | CD138: N/A | CE138: N/A | CF138: N/A | CG138: N/A | CH138: N/A | CI138: N/A | CJ138: N/A
B139: Open defecation | C139: =(DHS_Wet05!C139+DHS_Dry05!C139)/2 -> 96.59317876 | D139: =(DHS_Wet05!D139+DHS_Dry05!D139)/2 -> 91.75519521 | E139: =(DHS_Wet05!E139+DHS_Dry05!E139)/2 -> 85.7021383 | F139: =(DHS_Wet05!F139+DHS_Dry05!F139)/2 -> 64.07782297 | G139: =(DHS_Wet05!G139+DHS_Dry05!G139)/2 -> 11.40268418 | H139: =(DHS_Wet05!H139+DHS_Dry05!H139)/2 -> 89.06358302 | I139: =(DHS_Wet05!I139+DHS_Dry05!I139)/2 -> 51.85621656 | J139: =(DHS_Wet05!J139+DHS_Dry05!J139)/2 -> 11.60407137 | K139: =(DHS_Wet05!K139+DHS_Dry05!K139)/2 -> 0.9633871018 | L139: =(DHS_Wet05!L139+DHS_Dry05!L139)/2 -> 0 | M139: =(DHS_Wet05!M139+DHS_Dry05!M139)/2 -> 96.52561278 | N139: =(DHS_Wet05!N139+DHS_Dry05!N139)/2 -> 92.87012519 | O139: =(DHS_Wet05!O139+DHS_Dry05!O139)/2 -> 89.17537481 | P139: =(DHS_Wet05!P139+DHS_Dry05!P139)/2 -> 76.36885573 | Q139: =(DHS_Wet05!Q139+DHS_Dry05!Q139)/2 -> 30.17454585 | R139: =(DHS_Wet05!R139+DHS_Dry05!R139)/2 -> 77.56488 | S139: =(DHS_Wet05!S139+DHS_Dry05!S139)/2 -> 57.86922448 | T139: =(DHS_Wet05!T139+DHS_Dry05!T139)/2 -> 78.50142784 | U139: =(DHS_Wet05!U139+DHS_Dry05!U139)/2 -> 84.07109646 | V139: =(DHS_Wet05!V139+DHS_Dry05!V139)/2 -> 85.37376984 | W139: =(DHS_Wet05!W139+DHS_Dry05!W139)/2 -> 72.67202865 | X139: =(DHS_Wet05!X139+DHS_Dry05!X139)/2 -> 76.13303763 | Y139: =(DHS_Wet05!Y139+DHS_Dry05!Y139)/2 -> 62.81851846 | Z139: =(DHS_Wet05!Z139+DHS_Dry05!Z139)/2 -> 73.53204905 | AA139: =(DHS_Wet05!AA139+DHS_Dry05!AA139)/2 -> 53.96394009 | AB139: =(DHS_Wet05!AB139+DHS_Dry05!AB139)/2 -> 84.48446512 | AC139: =(DHS_Wet05!AC139+DHS_Dry05!AC139)/2 -> 87.95139114 | AD139: =(DHS_Wet05!AD139+DHS_Dry05!AD139)/2 -> 11.94419218 | AE139: =(DHS_Wet05!AE139+DHS_Dry05!AE139)/2 -> 86.1842013 | AF139: =(DHS_Wet05!AF139+DHS_Dry05!AF139)/2 -> 82.61547211 | AG139: =(DHS_Wet05!AG139+DHS_Dry05!AG139)/2 -> 84.76739899 | AH139: =(DHS_Wet05!AH139+DHS_Dry05!AH139)/2 -> 80.09607929 | AI139: =(DHS_Wet05!AI139+DHS_Dry05!AI139)/2 -> 78.93351809 | AJ139: =(DHS_Wet05!AJ139+DHS_Dry05!AJ139)/2 -> 77.00127755 | BB139: Open defecation | BC139: N/A | BD139: N/A | BE139: N/A | BF139: N/A | BG139: N/A | BH139: N/A | BI139: N/A | BJ139: N/A | BK139: N/A | BL139: N/A | BM139: N/A | BN139: N/A | BO139: N/A | BP139: N/A | BQ139: N/A | BR139: N/A | BS139: N/A | BT139: N/A | BU139: N/A | BV139: N/A | BW139: N/A | BX139: N/A | BY139: N/A | BZ139: N/A | CA139: N/A | CB139: N/A | CC139: N/A | CD139: N/A | CE139: N/A | CF139: N/A | CG139: N/A | CH139: N/A | CI139: N/A | CJ139: N/A
A140: Septic tank emptying practices | B140: Not emptied/treated and disposed in situ | C140: N/A | D140: N/A | E140: N/A | F140: N/A | G140: N/A | H140: N/A | I140: N/A | J140: N/A | K140: N/A | L140: N/A | M140: N/A | N140: N/A | O140: N/A | P140: N/A | Q140: N/A | R140: N/A | S140: N/A | T140: N/A | U140: N/A | V140: N/A | W140: N/A | X140: N/A | Y140: N/A | Z140: N/A | AA140: N/A | AB140: N/A | AC140: N/A | AD140: N/A | AE140: N/A | AF140: N/A | AG140: N/A | AH140: N/A | AI140: N/A | AJ140: N/A | BA140: Septic tank emptying practices | BB140: Not emptied/treated and disposed in situ | BC140: N/A | BD140: N/A | BE140: N/A | BF140: N/A | BG140: N/A | BH140: N/A | BI140: N/A | BJ140: N/A | BK140: N/A | BL140: N/A | BM140: N/A | BN140: N/A | BO140: N/A | BP140: N/A | BQ140: N/A | BR140: N/A | BS140: N/A | BT140: N/A | BU140: N/A | BV140: N/A | BW140: N/A | BX140: N/A | BY140: N/A | BZ140: N/A | CA140: N/A | CB140: N/A | CC140: N/A | CD140: N/A | CE140: N/A | CF140: N/A | CG140: N/A | CH140: N/A | CI140: N/A | CJ140: N/A
B141: Emptied and buried on site | C141: N/A | D141: N/A | E141: N/A | F141: N/A | G141: N/A | H141: N/A | I141: N/A | J141: N/A | K141: N/A | L141: N/A | M141: N/A | N141: N/A | O141: N/A | P141: N/A | Q141: N/A | R141: N/A | S141: N/A | T141: N/A | U141: N/A | V141: N/A | W141: N/A | X141: N/A | Y141: N/A | Z141: N/A | AA141: N/A | AB141: N/A | AC141: N/A | AD141: N/A | AE141: N/A | AF141: N/A | AG141: N/A | AH141: N/A | AI141: N/A | AJ141: N/A | BB141: Emptied and buried on site | BC141: N/A | BD141: N/A | BE141: N/A | BF141: N/A | BG141: N/A | BH141: N/A | BI141: N/A | BJ141: N/A | BK141: N/A | BL141: N/A | BM141: N/A | BN141: N/A | BO141: N/A | BP141: N/A | BQ141: N/A | BR141: N/A | BS141: N/A | BT141: N/A | BU141: N/A | BV141: N/A | BW141: N/A | BX141: N/A | BY141: N/A | BZ141: N/A | CA141: N/A | CB141: N/A | CC141: N/A | CD141: N/A | CE141: N/A | CF141: N/A | CG141: N/A | CH141: N/A | CI141: N/A | CJ141: N/A
B142: Emptied and discharged locally | C142: N/A | D142: N/A | E142: N/A | F142: N/A | G142: N/A | H142: N/A | I142: N/A | J142: N/A | K142: N/A | L142: N/A | M142: N/A | N142: N/A | O142: N/A | P142: N/A | Q142: N/A | R142: N/A | S142: N/A | T142: N/A | U142: N/A | V142: N/A | W142: N/A | X142: N/A | Y142: N/A | Z142: N/A | AA142: N/A | AB142: N/A | AC142: N/A | AD142: N/A | AE142: N/A | AF142: N/A | AG142: N/A | AH142: N/A | AI142: N/A | AJ142: N/A | BB142: Emptied and discharged locally | BC142: N/A | BD142: N/A | BE142: N/A | BF142: N/A | BG142: N/A | BH142: N/A | BI142: N/A | BJ142: N/A | BK142: N/A | BL142: N/A | BM142: N/A | BN142: N/A | BO142: N/A | BP142: N/A | BQ142: N/A | BR142: N/A | BS142: N/A | BT142: N/A | BU142: N/A | BV142: N/A | BW142: N/A | BX142: N/A | BY142: N/A | BZ142: N/A | CA142: N/A | CB142: N/A | CC142: N/A | CD142: N/A | CE142: N/A | CF142: N/A | CG142: N/A | CH142: N/A | CI142: N/A | CJ142: N/A
B143: Emptied and removed offsite | C143: N/A | D143: N/A | E143: N/A | F143: N/A | G143: N/A | H143: N/A | I143: N/A | J143: N/A | K143: N/A | L143: N/A | M143: N/A | N143: N/A | O143: N/A | P143: N/A | Q143: N/A | R143: N/A | S143: N/A | T143: N/A | U143: N/A | V143: N/A | W143: N/A | X143: N/A | Y143: N/A | Z143: N/A | AA143: N/A | AB143: N/A | AC143: N/A | AD143: N/A | AE143: N/A | AF143: N/A | AG143: N/A | AH143: N/A | AI143: N/A | AJ143: N/A | BB143: Emptied and removed offsite | BC143: N/A | BD143: N/A | BE143: N/A | BF143: N/A | BG143: N/A | BH143: N/A | BI143: N/A | BJ143: N/A | BK143: N/A | BL143: N/A | BM143: N/A | BN143: N/A | BO143: N/A | BP143: N/A | BQ143: N/A | BR143: N/A | BS143: N/A | BT143: N/A | BU143: N/A | BV143: N/A | BW143: N/A | BX143: N/A | BY143: N/A | BZ143: N/A | CA143: N/A | CB143: N/A | CC143: N/A | CD143: N/A | CE143: N/A | CF143: N/A | CG143: N/A | CH143: N/A | CI143: N/A | CJ143: N/A
A144: Latrine emptying practices | B144: Not emptied/treated and disposed in situ | C144: N/A | D144: N/A | E144: N/A | F144: N/A | G144: N/A | H144: N/A | I144: N/A | J144: N/A | K144: N/A | L144: N/A | M144: N/A | N144: N/A | O144: N/A | P144: N/A | Q144: N/A | R144: N/A | S144: N/A | T144: N/A | U144: N/A | V144: N/A | W144: N/A | X144: N/A | Y144: N/A | Z144: N/A | AA144: N/A | AB144: N/A | AC144: N/A | AD144: N/A | AE144: N/A | AF144: N/A | AG144: N/A | AH144: N/A | AI144: N/A | AJ144: N/A | BA144: Latrine emptying practices | BB144: Not emptied/treated and disposed in situ | BC144: N/A | BD144: N/A | BE144: N/A | BF144: N/A | BG144: N/A | BH144: N/A | BI144: N/A | BJ144: N/A | BK144: N/A | BL144: N/A | BM144: N/A | BN144: N/A | BO144: N/A | BP144: N/A | BQ144: N/A | BR144: N/A | BS144: N/A | BT144: N/A | BU144: N/A | BV144: N/A | BW144: N/A | BX144: N/A | BY144: N/A | BZ144: N/A | CA144: N/A | CB144: N/A | CC144: N/A | CD144: N/A | CE144: N/A | CF144: N/A | CG144: N/A | CH144: N/A | CI144: N/A | CJ144: N/A
B145: Emptied and buried on site | C145: N/A | D145: N/A | E145: N/A | F145: N/A | G145: N/A | H145: N/A | I145: N/A | J145: N/A | K145: N/A | L145: N/A | M145: N/A | N145: N/A | O145: N/A | P145: N/A | Q145: N/A | R145: N/A | S145: N/A | T145: N/A | U145: N/A | V145: N/A | W145: N/A | X145: N/A | Y145: N/A | Z145: N/A | AA145: N/A | AB145: N/A | AC145: N/A | AD145: N/A | AE145: N/A | AF145: N/A | AG145: N/A | AH145: N/A | AI145: N/A | AJ145: N/A | BB145: Emptied and buried on site | BC145: N/A | BD145: N/A | BE145: N/A | BF145: N/A | BG145: N/A | BH145: N/A | BI145: N/A | BJ145: N/A | BK145: N/A | BL145: N/A | BM145: N/A | BN145: N/A | BO145: N/A | BP145: N/A | BQ145: N/A | BR145: N/A | BS145: N/A | BT145: N/A | BU145: N/A | BV145: N/A | BW145: N/A | BX145: N/A | BY145: N/A | BZ145: N/A | CA145: N/A | CB145: N/A | CC145: N/A | CD145: N/A | CE145: N/A | CF145: N/A | CG145: N/A | CH145: N/A | CI145: N/A | CJ145: N/A
B146: Emptied and discharged locally | C146: N/A | D146: N/A | E146: N/A | F146: N/A | G146: N/A | H146: N/A | I146: N/A | J146: N/A | K146: N/A | L146: N/A | M146: N/A | N146: N/A | O146: N/A | P146: N/A | Q146: N/A | R146: N/A | S146: N/A | T146: N/A | U146: N/A | V146: N/A | W146: N/A | X146: N/A | Y146: N/A | Z146: N/A | AA146: N/A | AB146: N/A | AC146: N/A | AD146: N/A | AE146: N/A | AF146: N/A | AG146: N/A | AH146: N/A | AI146: N/A | AJ146: N/A | BB146: Emptied and discharged locally | BC146: N/A | BD146: N/A | BE146: N/A | BF146: N/A | BG146: N/A | BH146: N/A | BI146: N/A | BJ146: N/A | BK146: N/A | BL146: N/A | BM146: N/A | BN146: N/A | BO146: N/A | BP146: N/A | BQ146: N/A | BR146: N/A | BS146: N/A | BT146: N/A | BU146: N/A | BV146: N/A | BW146: N/A | BX146: N/A | BY146: N/A | BZ146: N/A | CA146: N/A | CB146: N/A | CC146: N/A | CD146: N/A | CE146: N/A | CF146: N/A | CG146: N/A | CH146: N/A | CI146: N/A | CJ146: N/A
B147: Emptied and removed offsite | C147: N/A | D147: N/A | E147: N/A | F147: N/A | G147: N/A | H147: N/A | I147: N/A | J147: N/A | K147: N/A | L147: N/A | M147: N/A | N147: N/A | O147: N/A | P147: N/A | Q147: N/A | R147: N/A | S147: N/A | T147: N/A | U147: N/A | V147: N/A | W147: N/A | X147: N/A | Y147: N/A | Z147: N/A | AA147: N/A | AB147: N/A | AC147: N/A | AD147: N/A | AE147: N/A | AF147: N/A | AG147: N/A | AH147: N/A | AI147: N/A | AJ147: N/A | BB147: Emptied and removed offsite | BC147: N/A | BD147: N/A | BE147: N/A | BF147: N/A | BG147: N/A | BH147: N/A | BI147: N/A | BJ147: N/A | BK147: N/A | BL147: N/A | BM147: N/A | BN147: N/A | BO147: N/A | BP147: N/A | BQ147: N/A | BR147: N/A | BS147: N/A | BT147: N/A | BU147: N/A | BV147: N/A | BW147: N/A | BX147: N/A | BY147: N/A | BZ147: N/A | CA147: N/A | CB147: N/A | CC147: N/A | CD147: N/A | CE147: N/A | CF147: N/A | CG147: N/A | CH147: N/A | CI147: N/A | CJ147: N/A
A148: Shared among improved sanitation facilities | B148: Yes | C148: 0.8832077577 | D148: 1.78006632 | E148: 3.16425174 | F148: 6.939266932 | G148: 8.467038116 | H148: 3.029330274 | I148: 10.70677483 | J148: 11.47371416 | K148: 4.490532799 | L148: 0.7625814323 | M148: 0.9581998902 | N148: 1.468976139 | O148: 1.944559277 | P148: 4.696218733 | Q148: 10.48733828 | R148: 4.615249801 | S148: 8.89181313 | T148: 2.18722744 | U148: 2.975893387 | V148: 2.302516177 | W148: 7.45295783 | X148: 1.414859063 | Y148: 5.787017112 | Z148: 2.044406223 | AA148: 1.429896224 | AB148: 1.692042367 | AC148: 0.5322913612 | AD148: 10.02983146 | AE148: 1.235760084 | AF148: 1.493938725 | AG148: 1.726175318 | AH148: 5.16974176 | AI148: 1.534107944 | AJ148: 3.90603544 | BA148: Shared among improved sanitation facilities | BB148: Yes | BC148: N/A | BD148: N/A | BE148: N/A | BF148: N/A | BG148: N/A | BH148: N/A | BI148: N/A | BJ148: N/A | BK148: N/A | BL148: N/A | BM148: N/A | BN148: N/A | BO148: N/A | BP148: N/A | BQ148: N/A | BR148: N/A | BS148: N/A | BT148: N/A | BU148: N/A | BV148: N/A | BW148: N/A | BX148: N/A | BY148: N/A | BZ148: N/A | CA148: N/A | CB148: N/A | CC148: N/A | CD148: N/A | CE148: N/A | CF148: N/A | CG148: N/A | CH148: N/A | CI148: N/A | CJ148: N/A
B149: No | C149: 1.720407404 | D149: 4.344187355 | E149: 8.43907872 | F149: 24.66890145 | G149: 77.22491344 | H149: 3.674138426 | I149: 29.29384126 | J149: 71.77566467 | K149: 92.8187098 | L149: 99.13877759 | M149: 1.795575496 | N149: 3.789398035 | O149: 6.623158935 | P149: 15.80441647 | Q149: 55.66380063 | R149: 17.08049628 | S149: 31.93175206 | T149: 16.20844045 | U149: 11.7920081 | V149: 12.26599103 | W149: 15.32469147 | X149: 15.12980492 | Y149: 30.66907914 | Z149: 17.87983407 | AA149: 30.80979469 | AB149: 12.22825618 | AC149: 11.13523877 | AD149: 75.49030094 | AE149: 12.44479221 | AF149: 12.42184144 | AG149: 11.30877343 | AH149: 14.55270026 | AI149: 14.40858641 | AJ149: 18.21843128 | BB149: No | BC149: N/A | BD149: N/A | BE149: N/A | BF149: N/A | BG149: N/A | BH149: N/A | BI149: N/A | BJ149: N/A | BK149: N/A | BL149: N/A | BM149: N/A | BN149: N/A | BO149: N/A | BP149: N/A | BQ149: N/A | BR149: N/A | BS149: N/A | BT149: N/A | BU149: N/A | BV149: N/A | BW149: N/A | BX149: N/A | BY149: N/A | BZ149: N/A | CA149: N/A | CB149: N/A | CC149: N/A | CD149: N/A | CE149: N/A | CF149: N/A | CG149: N/A | CH149: N/A | CI149: N/A | CJ149: N/A
B150: DK/missing | C150: 97.39638484 | D150: 93.87574633 | E150: 88.39666954 | F150: 68.39183162 | G150: 14.30804844 | H150: 93.2965313 | I150: 59.99938391 | J150: 16.75062117 | K150: 2.690757405 | L150: 0.09864097753 | M150: 97.24622461 | N150: 94.74162583 | O150: 91.43228179 | P150: 79.4993648 | Q150: 33.84886109 | R150: 78.30425392 | S150: 59.17643481 | T150: 81.60433211 | U150: 85.23209851 | V150: 85.43149279 | W150: 77.2223507 | X150: 83.45533602 | Y150: 63.54390375 | Z150: 80.07575971 | AA150: 67.76030909 | AB150: 86.07970145 | AC150: 88.33246987 | AD150: 14.4798676 | AE150: 86.31944771 | AF150: 86.08421983 | AG150: 86.96505125 | AH150: 80.27755798 | AI150: 84.05730564 | AJ150: 77.87553328 | BB150: DK/missing | BC150: N/A | BD150: N/A | BE150: N/A | BF150: N/A | BG150: N/A | BH150: N/A | BI150: N/A | BJ150: N/A | BK150: N/A | BL150: N/A | BM150: N/A | BN150: N/A | BO150: N/A | BP150: N/A | BQ150: N/A | BR150: N/A | BS150: N/A | BT150: N/A | BU150: N/A | BV150: N/A | BW150: N/A | BX150: N/A | BY150: N/A | BZ150: N/A | CA150: N/A | CB150: N/A | CC150: N/A | CD150: N/A | CE150: N/A | CF150: N/A | CG150: N/A | CH150: N/A | CI150: N/A | CJ150: N/A
A151: Shared among all sanitation facilities | B151: Yes | C151: 36.2325064 | D151: 29.12990167 | E151: 26.97572224 | F151: 21.4834041 | G151: 10.27793852 | H151: 45.46176092 | I151: 26.12712222 | J151: 14.00267079 | K151: 4.53421484 | L151: 0.7625814323 | M151: 35.48043666 | N151: 29.52524557 | O151: 22.96592455 | P151: 22.09487771 | Q151: 16.17684889 | R151: 20.57154051 | S151: 21.35365232 | T151: 13.04693766 | U151: 19.35614284 | V151: 16.13702984 | W151: 34.63635572 | X151: 14.16348542 | Y151: 15.83066866 | Z151: 12.48991389 | AA151: 7.745730832 | AB151: 14.33260692 | AC151: 4.417865726 | AD151: 12.54818717 | AE151: 8.944543202 | AF151: 16.01317968 | AG151: 11.33211142 | AH151: 25.97348449 | AI151: 10.30824461 | AJ151: 17.55455845 | BA151: Shared among all sanitation facilities | BB151: Yes | BC151: N/A | BD151: N/A | BE151: N/A | BF151: N/A | BG151: N/A | BH151: N/A | BI151: N/A | BJ151: N/A | BK151: N/A | BL151: N/A | BM151: N/A | BN151: N/A | BO151: N/A | BP151: N/A | BQ151: N/A | BR151: N/A | BS151: N/A | BT151: N/A | BU151: N/A | BV151: N/A | BW151: N/A | BX151: N/A | BY151: N/A | BZ151: N/A | CA151: N/A | CB151: N/A | CC151: N/A | CD151: N/A | CE151: N/A | CF151: N/A | CG151: N/A | CH151: N/A | CI151: N/A | CJ151: N/A
B152: No | C152: 63.7674936 | D152: 70.71798271 | E152: 73.02427776 | F152: 78.5165959 | G152: 89.690104 | H152: 53.79099723 | I152: 73.77995067 | J152: 85.95122499 | K152: 95.46578516 | L152: 99.13877759 | M152: 64.51956334 | N152: 70.47475443 | O152: 77.03407545 | P152: 77.90512229 | Q152: 83.82315111 | R152: 79.42845949 | S152: 78.64634768 | T152: 86.95306234 | U152: 79.9972828 | V152: 83.86297016 | W152: 65.36364428 | X152: 85.83651458 | Y152: 84.16933134 | Z152: 87.51008611 | AA152: 92.25426917 | AB152: 85.66739308 | AC152: 95.58213427 | AD152: 87.45181283 | AE152: 91.0554568 | AF152: 83.98682032 | AG152: 87.99314164 | AH152: 74.02651551 | AI152: 89.52576249 | AJ152: 82.44544155 | BB152: No | BC152: N/A | BD152: N/A | BE152: N/A | BF152: N/A | BG152: N/A | BH152: N/A | BI152: N/A | BJ152: N/A | BK152: N/A | BL152: N/A | BM152: N/A | BN152: N/A | BO152: N/A | BP152: N/A | BQ152: N/A | BR152: N/A | BS152: N/A | BT152: N/A | BU152: N/A | BV152: N/A | BW152: N/A | BX152: N/A | BY152: N/A | BZ152: N/A | CA152: N/A | CB152: N/A | CC152: N/A | CD152: N/A | CE152: N/A | CF152: N/A | CG152: N/A | CH152: N/A | CI152: N/A | CJ152: N/A
A153: Type of toilet facility | B153: Flush to piped sewer system | C153: =(DHS_Wet05!C140+DHS_Dry05!C140)/2 -> 0 | D153: =(DHS_Wet05!D140+DHS_Dry05!D140)/2 -> 0.007411179043 | E153: =(DHS_Wet05!E140+DHS_Dry05!E140)/2 -> 0.06684458779 | F153: =(DHS_Wet05!F140+DHS_Dry05!F140)/2 -> 0.6502384522 | G153: =(DHS_Wet05!G140+DHS_Dry05!G140)/2 -> 30.5200836 | H153: =(DHS_Wet05!H140+DHS_Dry05!H140)/2 -> 0 | I153: =(DHS_Wet05!I140+DHS_Dry05!I140)/2 -> 3.484555144 | J153: =(DHS_Wet05!J140+DHS_Dry05!J140)/2 -> 17.99824427 | K153: =(DHS_Wet05!K140+DHS_Dry05!K140)/2 -> 57.30753014 | L153: =(DHS_Wet05!L140+DHS_Dry05!L140)/2 -> 82.71839641 | M153: =(DHS_Wet05!M140+DHS_Dry05!M140)/2 -> 0 | N153: =(DHS_Wet05!N140+DHS_Dry05!N140)/2 -> 0.008759439487 | O153: =(DHS_Wet05!O140+DHS_Dry05!O140)/2 -> 0 | P153: =(DHS_Wet05!P140+DHS_Dry05!P140)/2 -> 0.07897149981 | Q153: =(DHS_Wet05!Q140+DHS_Dry05!Q140)/2 -> 7.5249328 | R153: =(DHS_Wet05!R140+DHS_Dry05!R140)/2 -> 0.4259092014 | S153: =(DHS_Wet05!S140+DHS_Dry05!S140)/2 -> 1.746970178 | T153: =(DHS_Wet05!T140+DHS_Dry05!T140)/2 -> 0.03080184285 | U153: =(DHS_Wet05!U140+DHS_Dry05!U140)/2 -> 0 | V153: =(DHS_Wet05!V140+DHS_Dry05!V140)/2 -> 0.1886222715 | W153: =(DHS_Wet05!W140+DHS_Dry05!W140)/2 -> 0 | X153: =(DHS_Wet05!X140+DHS_Dry05!X140)/2 -> 1.108861911 | Y153: =(DHS_Wet05!Y140+DHS_Dry05!Y140)/2 -> 0.5382384893 | Z153: =(DHS_Wet05!Z140+DHS_Dry05!Z140)/2 -> 0 | AA153: =(DHS_Wet05!AA140+DHS_Dry05!AA140)/2 -> 4.71910573 | AB153: =(DHS_Wet05!AB140+DHS_Dry05!AB140)/2 -> 0.1400376731 | AC153: =(DHS_Wet05!AC140+DHS_Dry05!AC140)/2 -> 0.7977864769 | AD153: =(DHS_Wet05!AD140+DHS_Dry05!AD140)/2 -> 62.72713404 | AE153: =(DHS_Wet05!AE140+DHS_Dry05!AE140)/2 -> 0.3806331327 | AF153: =(DHS_Wet05!AF140+DHS_Dry05!AF140)/2 -> 0.05717702802 | AG153: =(DHS_Wet05!AG140+DHS_Dry05!AG140)/2 -> 0 | AH153: =(DHS_Wet05!AH140+DHS_Dry05!AH140)/2 -> 3.727259851 | AI153: =(DHS_Wet05!AI140+DHS_Dry05!AI140)/2 -> 1.003455611 | AJ153: =(DHS_Wet05!AJ140+DHS_Dry05!AJ140)/2 -> 0 | BA153: Type of toilet facility | BB153: Flush to piped sewer system | BC153: 0 | BD153: 1.056456 | BE153: 9.540304 | BF153: 92.779917 | BG153: 4354.327246 | BH153: 0 | BI153: 76.495425 | BJ153: 395.04741 | BK153: 1253.236276 | BL153: 1813.72375 | BM153: 0 | BN153: 1.056456 | BO153: 0 | BP153: 9.540304 | BQ153: 908.604302 | BR153: 12.323016 | BS153: 93.108999 | BT153: 2.85434 | BU153: 0 | BV153: 7.264704 | BW153: 0 | BX153: 39.226174 | BY153: 37.640212 | BZ153: 0 | CA153: 76.053852 | CB153: 1.575939 | CC153: 6.233273 | CD153: 3964.317169 | CE153: 5.628986 | CF153: 3.401115 | CG153: 0 | CH153: 179.893134 | CI153: 28.18301 | CJ153: 0
B154: Flush to septic tank | C154: =(DHS_Wet05!C141+DHS_Dry05!C141)/2 -> 1.29317094 | D154: =(DHS_Wet05!D141+DHS_Dry05!D141)/2 -> 3.868354848 | E154: =(DHS_Wet05!E141+DHS_Dry05!E141)/2 -> 9.47854246 | F154: =(DHS_Wet05!F141+DHS_Dry05!F141)/2 -> 26.95069884 | G154: =(DHS_Wet05!G141+DHS_Dry05!G141)/2 -> 53.05191434 | H154: =(DHS_Wet05!H141+DHS_Dry05!H141)/2 -> 4.967445026 | I154: =(DHS_Wet05!I141+DHS_Dry05!I141)/2 -> 32.88300026 | J154: =(DHS_Wet05!J141+DHS_Dry05!J141)/2 -> 62.58368934 | K154: =(DHS_Wet05!K141+DHS_Dry05!K141)/2 -> 39.34203307 | L154: =(DHS_Wet05!L141+DHS_Dry05!L141)/2 -> 17.28160359 | M154: =(DHS_Wet05!M141+DHS_Dry05!M141)/2 -> 1.392951262 | N154: =(DHS_Wet05!N141+DHS_Dry05!N141)/2 -> 3.023160073 | O154: =(DHS_Wet05!O141+DHS_Dry05!O141)/2 -> 6.693780084 | P154: =(DHS_Wet05!P141+DHS_Dry05!P141)/2 -> 16.83090268 | Q154: =(DHS_Wet05!Q141+DHS_Dry05!Q141)/2 -> 55.36370766 | R154: =(DHS_Wet05!R141+DHS_Dry05!R141)/2 -> 20.24827112 | S154: =(DHS_Wet05!S141+DHS_Dry05!S141)/2 -> 37.41871105 | T154: =(DHS_Wet05!T141+DHS_Dry05!T141)/2 -> 16.34324852 | U154: =(DHS_Wet05!U141+DHS_Dry05!U141)/2 -> 12.71374616 | V154: =(DHS_Wet05!V141+DHS_Dry05!V141)/2 -> 13.12644482 | W154: =(DHS_Wet05!W141+DHS_Dry05!W141)/2 -> 14.66752615 | X154: =(DHS_Wet05!X141+DHS_Dry05!X141)/2 -> 12.17798438 | Y154: =(DHS_Wet05!Y141+DHS_Dry05!Y141)/2 -> 33.6578362 | Z154: =(DHS_Wet05!Z141+DHS_Dry05!Z141)/2 -> 14.55405793 | AA154: =(DHS_Wet05!AA141+DHS_Dry05!AA141)/2 -> 25.848814 | AB154: =(DHS_Wet05!AB141+DHS_Dry05!AB141)/2 -> 9.237683195 | AC154: =(DHS_Wet05!AC141+DHS_Dry05!AC141)/2 -> 9.526602297 | AD154: =(DHS_Wet05!AD141+DHS_Dry05!AD141)/2 -> 21.46202039 | AE154: =(DHS_Wet05!AE141+DHS_Dry05!AE141)/2 -> 10.7627763 | AF154: =(DHS_Wet05!AF141+DHS_Dry05!AF141)/2 -> 10.04345439 | AG154: =(DHS_Wet05!AG141+DHS_Dry05!AG141)/2 -> 12.4802046 | AH154: =(DHS_Wet05!AH141+DHS_Dry05!AH141)/2 -> 15.19713825 | AI154: =(DHS_Wet05!AI141+DHS_Dry05!AI141)/2 -> 12.51217145 | AJ154: =(DHS_Wet05!AJ141+DHS_Dry05!AJ141)/2 -> 20.63600455 | BB154: Flush to septic tank | BC154: 184.517095 | BD154: 551.430031 | BE154: 1352.81224 | BF154: 3845.487133 | BG154: 7568.963411 | BH154: 108.747383 | BI154: 721.870935 | BJ154: 1373.66312 | BK154: 860.355749 | BL154: 378.924837 | BM154: 168.227319 | BN154: 364.616435 | BO154: 808.577379 | BP154: 2033.289586 | BQ154: 6684.937167 | BR154: 585.852027 | BS154: 1994.320666 | BT154: 1514.493409 | BU154: 331.166225 | BV154: 505.559261 | BW154: 516.81702 | BX154: 430.798217 | BY154: 2353.767178 | BZ154: 216.637639 | CA154: 416.583562 | CB154: 103.95792 | CC154: 74.433341 | CD154: 1356.386789 | CE154: 159.165117 | CF154: 597.424255 | CG154: 262.623214 | CH154: 733.47739 | CI154: 351.416295 | CJ154: 998.330385
B155: Flush to pit latrine | C155: =(DHS_Wet05!C142+DHS_Dry05!C142)/2 -> 0.06654296228 | D155: =(DHS_Wet05!D142+DHS_Dry05!D142)/2 -> 0.3189801538 | E155: =(DHS_Wet05!E142+DHS_Dry05!E142)/2 -> 0.3344539448 | F155: =(DHS_Wet05!F142+DHS_Dry05!F142)/2 -> 1.028196345 | G155: =(DHS_Wet05!G142+DHS_Dry05!G142)/2 -> 1.168601285 | H155: =(DHS_Wet05!H142+DHS_Dry05!H142)/2 -> 0.2169541686 | I155: =(DHS_Wet05!I142+DHS_Dry05!I142)/2 -> 1.420908282 | J155: =(DHS_Wet05!J142+DHS_Dry05!J142)/2 -> 0.9688572855 | K155: =(DHS_Wet05!K142+DHS_Dry05!K142)/2 -> 0.2409735668 | L155: =(DHS_Wet05!L142+DHS_Dry05!L142)/2 -> 0 | M155: =(DHS_Wet05!M142+DHS_Dry05!M142)/2 -> 0.07861803769 | N155: =(DHS_Wet05!N142+DHS_Dry05!N142)/2 -> 0.2273046091 | O155: =(DHS_Wet05!O142+DHS_Dry05!O142)/2 -> 0.4037760376 | P155: =(DHS_Wet05!P142+DHS_Dry05!P142)/2 -> 0.7143562465 | Q155: =(DHS_Wet05!Q142+DHS_Dry05!Q142)/2 -> 1.504594113 | R155: =(DHS_Wet05!R142+DHS_Dry05!R142)/2 -> 0.5438032937 | S155: =(DHS_Wet05!S142+DHS_Dry05!S142)/2 -> 0.2250909623 | T155: =(DHS_Wet05!T142+DHS_Dry05!T142)/2 -> 0.3554634686 | U155: =(DHS_Wet05!U142+DHS_Dry05!U142)/2 -> 0.8935565052 | V155: =(DHS_Wet05!V142+DHS_Dry05!V142)/2 -> 0.1901199129 | W155: =(DHS_Wet05!W142+DHS_Dry05!W142)/2 -> 0.263523002 | X155: =(DHS_Wet05!X142+DHS_Dry05!X142)/2 -> 0 | Y155: =(DHS_Wet05!Y142+DHS_Dry05!Y142)/2 -> 1.288841368 | Z155: =(DHS_Wet05!Z142+DHS_Dry05!Z142)/2 -> 3.441825388 | AA155: =(DHS_Wet05!AA142+DHS_Dry05!AA142)/2 -> 0.8443318984 | AB155: =(DHS_Wet05!AB142+DHS_Dry05!AB142)/2 -> 0.121035176 | AC155: =(DHS_Wet05!AC142+DHS_Dry05!AC142)/2 -> 0.1943587934 | AD155: =(DHS_Wet05!AD142+DHS_Dry05!AD142)/2 -> 0.892465687 | AE155: =(DHS_Wet05!AE142+DHS_Dry05!AE142)/2 -> 1.474060279 | AF155: =(DHS_Wet05!AF142+DHS_Dry05!AF142)/2 -> 0.6894231929 | AG155: =(DHS_Wet05!AG142+DHS_Dry05!AG142)/2 -> 0 | AH155: =(DHS_Wet05!AH142+DHS_Dry05!AH142)/2 -> 0.7980439192 | AI155: =(DHS_Wet05!AI142+DHS_Dry05!AI142)/2 -> 0 | AJ155: =(DHS_Wet05!AJ142+DHS_Dry05!AJ142)/2 -> 0 | BB155: Flush to pit latrine | BC155: 9.494734 | BD155: 45.470295 | BE155: 47.73449 | BF155: 146.709213 | BG155: 166.725376 | BH155: 4.749564 | BI155: 31.192786 | BJ155: 21.265661 | BK155: 5.269758 | BL155: 0 | BM155: 9.494734 | BN155: 27.41469 | BO155: 48.77426 | BP155: 86.299181 | BQ155: 181.673474 | BR155: 15.734097 | BS155: 11.996767 | BT155: 32.940029 | BU155: 23.275259 | BV155: 7.322385 | BW155: 9.285354 | BX155: 0 | BY155: 90.131537 | BZ155: 51.231686 | CA155: 13.607386 | CB155: 1.362091 | CC155: 1.518566 | CD155: 56.403295 | CE155: 21.799113 | CF155: 41.009609 | CG155: 0 | CH155: 38.516934 | CI155: 0 | CJ155: 0
B156: Flush to somewhere else | C156: =(DHS_Wet05!C143+DHS_Dry05!C143)/2 -> 0 | D156: =(DHS_Wet05!D143+DHS_Dry05!D143)/2 -> 0 | E156: =(DHS_Wet05!E143+DHS_Dry05!E143)/2 -> 0 | F156: =(DHS_Wet05!F143+DHS_Dry05!F143)/2 -> 0 | G156: =(DHS_Wet05!G143+DHS_Dry05!G143)/2 -> 0.6617658746 | H156: =(DHS_Wet05!H143+DHS_Dry05!H143)/2 -> 0 | I156: =(DHS_Wet05!I143+DHS_Dry05!I143)/2 -> 0.0875994394 | J156: =(DHS_Wet05!J143+DHS_Dry05!J143)/2 -> 1.350821623 | K156: =(DHS_Wet05!K143+DHS_Dry05!K143)/2 -> 0.8374116305 | L156: =(DHS_Wet05!L143+DHS_Dry05!L143)/2 -> 0 | M156: =(DHS_Wet05!M143+DHS_Dry05!M143)/2 -> 0 | N156: =(DHS_Wet05!N143+DHS_Dry05!N143)/2 -> 0 | O156: =(DHS_Wet05!O143+DHS_Dry05!O143)/2 -> 0 | P156: =(DHS_Wet05!P143+DHS_Dry05!P143)/2 -> 0 | Q156: =(DHS_Wet05!Q143+DHS_Dry05!Q143)/2 -> 0.3687842618 | R156: =(DHS_Wet05!R143+DHS_Dry05!R143)/2 -> 0 | S156: =(DHS_Wet05!S143+DHS_Dry05!S143)/2 -> 0 | T156: =(DHS_Wet05!T143+DHS_Dry05!T143)/2 -> 0 | U156: =(DHS_Wet05!U143+DHS_Dry05!U143)/2 -> 0 | V156: =(DHS_Wet05!V143+DHS_Dry05!V143)/2 -> 0 | W156: =(DHS_Wet05!W143+DHS_Dry05!W143)/2 -> 0.1370111275 | X156: =(DHS_Wet05!X143+DHS_Dry05!X143)/2 -> 0 | Y156: =(DHS_Wet05!Y143+DHS_Dry05!Y143)/2 -> 0 | Z156: =(DHS_Wet05!Z143+DHS_Dry05!Z143)/2 -> 0 | AA156: =(DHS_Wet05!AA143+DHS_Dry05!AA143)/2 -> 0.7217902827 | AB156: =(DHS_Wet05!AB143+DHS_Dry05!AB143)/2 -> 0 | AC156: =(DHS_Wet05!AC143+DHS_Dry05!AC143)/2 -> 0 | AD156: =(DHS_Wet05!AD143+DHS_Dry05!AD143)/2 -> 1.166207151 | AE156: =(DHS_Wet05!AE143+DHS_Dry05!AE143)/2 -> 0 | AF156: =(DHS_Wet05!AF143+DHS_Dry05!AF143)/2 -> 0 | AG156: =(DHS_Wet05!AG143+DHS_Dry05!AG143)/2 -> 0 | AH156: =(DHS_Wet05!AH143+DHS_Dry05!AH143)/2 -> 0 | AI156: =(DHS_Wet05!AI143+DHS_Dry05!AI143)/2 -> 0 | AJ156: =(DHS_Wet05!AJ143+DHS_Dry05!AJ143)/2 -> 0.08787024101 | BB156: Flush to somewhere else | BC156: 0 | BD156: 0 | BE156: 0 | BF156: 0 | BG156: 94.414721 | BH156: 0 | BI156: 1.923045 | BJ156: 29.64948 | BK156: 18.313032 | BL156: 0 | BM156: 0 | BN156: 0 | BO156: 0 | BP156: 0 | BQ156: 44.529164 | BR156: 0 | BS156: 0 | BT156: 0 | BU156: 0 | BV156: 0 | BW156: 4.82765 | BX156: 0 | BY156: 0 | BZ156: 0 | CA156: 11.632486 | CB156: 0 | CC156: 0 | CD156: 73.703591 | CE156: 0 | CF156: 0 | CG156: 0 | CH156: 0 | CI156: 0 | CJ156: 4.250994
B157: Flush, don't know where | C157: =(DHS_Wet05!C144+DHS_Dry05!C144)/2 -> 0 | D157: =(DHS_Wet05!D144+DHS_Dry05!D144)/2 -> 0 | E157: =(DHS_Wet05!E144+DHS_Dry05!E144)/2 -> 0.1057671612 | F157: =(DHS_Wet05!F144+DHS_Dry05!F144)/2 -> 0.002657794232 | G157: =(DHS_Wet05!G144+DHS_Dry05!G144)/2 -> 0.2582058615 | H157: =(DHS_Wet05!H144+DHS_Dry05!H144)/2 -> 0 | I157: =(DHS_Wet05!I144+DHS_Dry05!I144)/2 -> 0.01727486117 | J157: =(DHS_Wet05!J144+DHS_Dry05!J144)/2 -> 0.828147087 | K157: =(DHS_Wet05!K144+DHS_Dry05!K144)/2 -> 0.4187058153 | L157: =(DHS_Wet05!L144+DHS_Dry05!L144)/2 -> 0 | M157: =(DHS_Wet05!M144+DHS_Dry05!M144)/2 -> 0 | N157: =(DHS_Wet05!N144+DHS_Dry05!N144)/2 -> 0 | O157: =(DHS_Wet05!O144+DHS_Dry05!O144)/2 -> 0.0264161204 | P157: =(DHS_Wet05!P144+DHS_Dry05!P144)/2 -> 0.09854180188 | Q157: =(DHS_Wet05!Q144+DHS_Dry05!Q144)/2 -> 0.07871708303 | R157: =(DHS_Wet05!R144+DHS_Dry05!R144)/2 -> 0 | S157: =(DHS_Wet05!S144+DHS_Dry05!S144)/2 -> 0 | T157: =(DHS_Wet05!T144+DHS_Dry05!T144)/2 -> 0.1284645571 | U157: =(DHS_Wet05!U144+DHS_Dry05!U144)/2 -> 0.01455895436 | V157: =(DHS_Wet05!V144+DHS_Dry05!V144)/2 -> 0 | W157: =(DHS_Wet05!W144+DHS_Dry05!W144)/2 -> 0 | X157: =(DHS_Wet05!X144+DHS_Dry05!X144)/2 -> 0 | Y157: =(DHS_Wet05!Y144+DHS_Dry05!Y144)/2 -> 0 | Z157: =(DHS_Wet05!Z144+DHS_Dry05!Z144)/2 -> 0 | AA157: =(DHS_Wet05!AA144+DHS_Dry05!AA144)/2 -> 0.7363260675 | AB157: =(DHS_Wet05!AB144+DHS_Dry05!AB144)/2 -> 0 | AC157: =(DHS_Wet05!AC144+DHS_Dry05!AC144)/2 -> 0 | AD157: =(DHS_Wet05!AD144+DHS_Dry05!AD144)/2 -> 0.4385122875 | AE157: =(DHS_Wet05!AE144+DHS_Dry05!AE144)/2 -> 0.03035754572 | AF157: =(DHS_Wet05!AF144+DHS_Dry05!AF144)/2 -> 0 | AG157: =(DHS_Wet05!AG144+DHS_Dry05!AG144)/2 -> 0 | AH157: =(DHS_Wet05!AH144+DHS_Dry05!AH144)/2 -> 0 | AI157: =(DHS_Wet05!AI144+DHS_Dry05!AI144)/2 -> 0 | AJ157: =(DHS_Wet05!AJ144+DHS_Dry05!AJ144)/2 -> 0 | BB157: Flush, don't know where | BC157: 0 | BD157: 0 | BE157: 15.095476 | BF157: 0.37923 | BG157: 36.838458 | BH157: 0 | BI157: 0.37923 | BJ157: 18.177182 | BK157: 9.156516 | BL157: 0 | BM157: 0 | BN157: 0 | BO157: 3.190944 | BP157: 11.904532 | BQ157: 9.50476 | BR157: 0 | BS157: 0 | BT157: 11.904532 | BU157: 0.37923 | BV157: 0 | BW157: 0 | BX157: 0 | BY157: 0 | BZ157: 0 | CA157: 11.866747 | CB157: 0 | CC157: 0 | CD157: 27.713713 | CE157: 0.448942 | CF157: 0 | CG157: 0 | CH157: 0 | CI157: 0 | CJ157: 0
B158: Ventilated Improved Pit latrine (VIP) | C158: =(DHS_Wet05!C145+DHS_Dry05!C145)/2 -> 0.1031347464 | D158: =(DHS_Wet05!D145+DHS_Dry05!D145)/2 -> 0.2578702735 | E158: =(DHS_Wet05!E145+DHS_Dry05!E145)/2 -> 0.3483083684 | F158: =(DHS_Wet05!F145+DHS_Dry05!F145)/2 -> 0.5039902602 | G158: =(DHS_Wet05!G145+DHS_Dry05!G145)/2 -> 0.263561257 | H158: =(DHS_Wet05!H145+DHS_Dry05!H145)/2 -> 0.2775063369 | I158: =(DHS_Wet05!I145+DHS_Dry05!I145)/2 -> 0.5496353097 | J158: =(DHS_Wet05!J145+DHS_Dry05!J145)/2 -> 0 | K158: =(DHS_Wet05!K145+DHS_Dry05!K145)/2 -> 0 | L158: =(DHS_Wet05!L145+DHS_Dry05!L145)/2 -> 0 | M158: =(DHS_Wet05!M145+DHS_Dry05!M145)/2 -> 0.1218498712 | N158: =(DHS_Wet05!N145+DHS_Dry05!N145)/2 -> 0.2854090917 | O158: =(DHS_Wet05!O145+DHS_Dry05!O145)/2 -> 0.2835330124 | P158: =(DHS_Wet05!P145+DHS_Dry05!P145)/2 -> 0.2178275472 | Q158: =(DHS_Wet05!Q145+DHS_Dry05!Q145)/2 -> 0.686215117 | R158: =(DHS_Wet05!R145+DHS_Dry05!R145)/2 -> 0 | S158: =(DHS_Wet05!S145+DHS_Dry05!S145)/2 -> 0 | T158: =(DHS_Wet05!T145+DHS_Dry05!T145)/2 -> 1.301513096 | U158: =(DHS_Wet05!U145+DHS_Dry05!U145)/2 -> 0 | V158: =(DHS_Wet05!V145+DHS_Dry05!V145)/2 -> 0 | W158: =(DHS_Wet05!W145+DHS_Dry05!W145)/2 -> 0.300433632 | X158: =(DHS_Wet05!X145+DHS_Dry05!X145)/2 -> 1.590747963 | Y158: =(DHS_Wet05!Y145+DHS_Dry05!Y145)/2 -> 0 | Z158: =(DHS_Wet05!Z145+DHS_Dry05!Z145)/2 -> 0 | AA158: =(DHS_Wet05!AA145+DHS_Dry05!AA145)/2 -> 0.0911132188 | AB158: =(DHS_Wet05!AB145+DHS_Dry05!AB145)/2 -> 0.2938164527 | AC158: =(DHS_Wet05!AC145+DHS_Dry05!AC145)/2 -> 0 | AD158: =(DHS_Wet05!AD145+DHS_Dry05!AD145)/2 -> 0 | AE158: =(DHS_Wet05!AE145+DHS_Dry05!AE145)/2 -> 0 | AF158: =(DHS_Wet05!AF145+DHS_Dry05!AF145)/2 -> 0.1468746817 | AG158: =(DHS_Wet05!AG145+DHS_Dry05!AG145)/2 -> 0 | AH158: =(DHS_Wet05!AH145+DHS_Dry05!AH145)/2 -> 0 | AI158: =(DHS_Wet05!AI145+DHS_Dry05!AI145)/2 -> 0.3461812747 | AJ158: =(DHS_Wet05!AJ145+DHS_Dry05!AJ145)/2 -> 0 | BB158: Ventilated Improved Pit latrine (VIP) | BC158: 14.715861 | BD158: 36.759144 | BE158: 49.711844 | BF158: 71.912349 | BG158: 37.602517 | BH158: 6.075173 | BI158: 12.065984 | BJ158: 0 | BK158: 0 | BL158: 0 | BM158: 14.715861 | BN158: 34.422539 | BO158: 34.249464 | BP158: 26.315076 | BQ158: 82.857618 | BR158: 0 | BS158: 0 | BT158: 120.608397 | BU158: 0 | BV158: 0 | BW158: 10.585917 | BX158: 56.272973 | BY158: 0 | BZ158: 0 | CA158: 1.468395 | CB158: 3.306516 | CC158: 0 | CD158: 0 | CE158: 0 | CF158: 8.736685 | CG158: 0 | CH158: 0 | CI158: 9.722832 | CJ158: 0
B159: Pit latrine with slab | C159: =(DHS_Wet05!C146+DHS_Dry05!C146)/2 -> 1.073592783 | D159: =(DHS_Wet05!D146+DHS_Dry05!D146)/2 -> 1.710734914 | E159: =(DHS_Wet05!E146+DHS_Dry05!E146)/2 -> 1.108028407 | F159: =(DHS_Wet05!F146+DHS_Dry05!F146)/2 -> 2.762286733 | G159: =(DHS_Wet05!G146+DHS_Dry05!G146)/2 -> 0.5894616254 | H159: =(DHS_Wet05!H146+DHS_Dry05!H146)/2 -> 1.414931263 | I159: =(DHS_Wet05!I146+DHS_Dry05!I146)/2 -> 1.637505651 | J159: =(DHS_Wet05!J146+DHS_Dry05!J146)/2 -> 0.7095336198 | K159: =(DHS_Wet05!K146+DHS_Dry05!K146)/2 -> 0 | L159: =(DHS_Wet05!L146+DHS_Dry05!L146)/2 -> 0 | M159: =(DHS_Wet05!M146+DHS_Dry05!M146)/2 -> 1.134203572 | N159: =(DHS_Wet05!N146+DHS_Dry05!N146)/2 -> 1.740904454 | O159: =(DHS_Wet05!O146+DHS_Dry05!O146)/2 -> 0.971691226 | P159: =(DHS_Wet05!P146+DHS_Dry05!P146)/2 -> 2.526533034 | Q159: =(DHS_Wet05!Q146+DHS_Dry05!Q146)/2 -> 1.502247423 | R159: =(DHS_Wet05!R146+DHS_Dry05!R146)/2 -> 0.4777624648 | S159: =(DHS_Wet05!S146+DHS_Dry05!S146)/2 -> 1.432793005 | T159: =(DHS_Wet05!T146+DHS_Dry05!T146)/2 -> 1.537689497 | U159: =(DHS_Wet05!U146+DHS_Dry05!U146)/2 -> 0.7901767191 | V159: =(DHS_Wet05!V146+DHS_Dry05!V146)/2 -> 0.3538153782 | W159: =(DHS_Wet05!W146+DHS_Dry05!W146)/2 -> 5.18530023 | X159: =(DHS_Wet05!X146+DHS_Dry05!X146)/2 -> 3.257817688 | Y159: =(DHS_Wet05!Y146+DHS_Dry05!Y146)/2 -> 0.9711801914 | Z159: =(DHS_Wet05!Z146+DHS_Dry05!Z146)/2 -> 1.638551576 | AA159: =(DHS_Wet05!AA146+DHS_Dry05!AA146)/2 -> 0.0911132188 | AB159: =(DHS_Wet05!AB146+DHS_Dry05!AB146)/2 -> 4.445703904 | AC159: =(DHS_Wet05!AC146+DHS_Dry05!AC146)/2 -> 0.1313307905 | AD159: =(DHS_Wet05!AD146+DHS_Dry05!AD146)/2 -> 0 | AE159: =(DHS_Wet05!AE146+DHS_Dry05!AE146)/2 -> 1.032725038 | AF159: =(DHS_Wet05!AF146+DHS_Dry05!AF146)/2 -> 2.780273185 | AG159: =(DHS_Wet05!AG146+DHS_Dry05!AG146)/2 -> 0.1611258238 | AH159: =(DHS_Wet05!AH146+DHS_Dry05!AH146)/2 -> 0 | AI159: =(DHS_Wet05!AI146+DHS_Dry05!AI146)/2 -> 2.331956773 | AJ159: =(DHS_Wet05!AJ146+DHS_Dry05!AJ146)/2 -> 1.534067477 | BB159: Pit latrine with slab | BC159: 153.186416 | BD159: 243.863514 | BE159: 158.141866 | BF159: 394.139616 | BG159: 84.09901 | BH159: 30.975697 | BI159: 35.947685 | BJ159: 15.573709 | BK159: 0 | BL159: 0 | BM159: 136.97825 | BN159: 209.966512 | BO159: 117.375763 | BP159: 305.222685 | BQ159: 181.390121 | BR159: 13.823309 | BS159: 76.364167 | BT159: 142.494352 | BU159: 20.582434 | BV159: 13.627044 | BW159: 182.706435 | BX159: 115.245841 | BY159: 67.916786 | BZ159: 24.389895 | CA159: 1.468395 | CB159: 50.030524 | CC159: 1.026115 | CD159: 0 | CE159: 15.272435 | CF159: 165.381608 | CG159: 3.3906 | CH159: 0 | CI159: 65.495235 | CJ159: 74.215247
B160: Pit latrine without slab/open pit | C160: =(DHS_Wet05!C147+DHS_Dry05!C147)/2 -> 0.4827297679 | D160: =(DHS_Wet05!D147+DHS_Dry05!D147)/2 -> 0.9746056669 | E160: =(DHS_Wet05!E147+DHS_Dry05!E147)/2 -> 1.008216068 | F160: =(DHS_Wet05!F147+DHS_Dry05!F147)/2 -> 1.862148967 | G160: =(DHS_Wet05!G147+DHS_Dry05!G147)/2 -> 0.2823611618 | H160: =(DHS_Wet05!H147+DHS_Dry05!H147)/2 -> 0.8750677199 | I160: =(DHS_Wet05!I147+DHS_Dry05!I147)/2 -> 1.688393083 | J160: =(DHS_Wet05!J147+DHS_Dry05!J147)/2 -> 0.8460783854 | K160: =(DHS_Wet05!K147+DHS_Dry05!K147)/2 -> 0.1076556549 | L160: =(DHS_Wet05!L147+DHS_Dry05!L147)/2 -> 0 | M160: =(DHS_Wet05!M147+DHS_Dry05!M147)/2 -> 0.4491852454 | N160: =(DHS_Wet05!N147+DHS_Dry05!N147)/2 -> 0.9829698696 | O160: =(DHS_Wet05!O147+DHS_Dry05!O147)/2 -> 0.9320622604 | P160: =(DHS_Wet05!P147+DHS_Dry05!P147)/2 -> 1.73824456 | Q160: =(DHS_Wet05!Q147+DHS_Dry05!Q147)/2 -> 0.7052967688 | R160: =(DHS_Wet05!R147+DHS_Dry05!R147)/2 -> 0 | S160: =(DHS_Wet05!S147+DHS_Dry05!S147)/2 -> 1.307210335 | T160: =(DHS_Wet05!T147+DHS_Dry05!T147)/2 -> 1.67698354 | U160: =(DHS_Wet05!U147+DHS_Dry05!U147)/2 -> 0.1274920297 | V160: =(DHS_Wet05!V147+DHS_Dry05!V147)/2 -> 0 | W160: =(DHS_Wet05!W147+DHS_Dry05!W147)/2 -> 1.278473218 | X160: =(DHS_Wet05!X147+DHS_Dry05!X147)/2 -> 4.014074666 | Y160: =(DHS_Wet05!Y147+DHS_Dry05!Y147)/2 -> 0.2888473902 | Z160: =(DHS_Wet05!Z147+DHS_Dry05!Z147)/2 -> 5.958298808 | AA160: =(DHS_Wet05!AA147+DHS_Dry05!AA147)/2 -> 0.9689128339 | AB160: =(DHS_Wet05!AB147+DHS_Dry05!AB147)/2 -> 1.09504751 | AC160: =(DHS_Wet05!AC147+DHS_Dry05!AC147)/2 -> 0.3810787286 | AD160: =(DHS_Wet05!AD147+DHS_Dry05!AD147)/2 -> 0 | AE160: =(DHS_Wet05!AE147+DHS_Dry05!AE147)/2 -> 0 | AF160: =(DHS_Wet05!AF147+DHS_Dry05!AF147)/2 -> 0.8575240234 | AG160: =(DHS_Wet05!AG147+DHS_Dry05!AG147)/2 -> 0.0573385723 | AH160: =(DHS_Wet05!AH147+DHS_Dry05!AH147)/2 -> 0 | AI160: =(DHS_Wet05!AI147+DHS_Dry05!AI147)/2 -> 1.505042884 | AJ160: =(DHS_Wet05!AJ147+DHS_Dry05!AJ147)/2 -> 0.1645306543 | BB160: Pit latrine without slab/open pit | BC160: 68.87867 | BD160: 138.929042 | BE160: 143.896284 | BF160: 265.702568 | BG160: 40.284716 | BH160: 19.156996 | BI160: 37.064802 | BJ160: 18.57076 | BK160: 2.35428 | BL160: 0 | BM160: 54.248294 | BN160: 118.553752 | BO160: 112.588769 | BP160: 209.991979 | BQ160: 85.161648 | BR160: 0 | BS160: 69.670935 | BT160: 155.402429 | BU160: 3.320898 | BV160: 0 | BW160: 45.047591 | BX160: 141.998557 | BY160: 20.199739 | BZ160: 88.689477 | CA160: 15.615152 | CB160: 12.323313 | CC160: 2.977448 | CD160: 0 | CE160: 0 | CF160: 51.008909 | CG160: 1.206586 | CH160: 0 | CI160: 42.270568 | CJ160: 7.959678
B161: No toilet/field/forest | C161: =(DHS_Wet05!C148+DHS_Dry05!C148)/2 -> 96.61194037 | D161: =(DHS_Wet05!D148+DHS_Dry05!D148)/2 -> 91.8193838 | E161: =(DHS_Wet05!E148+DHS_Dry05!E148)/2 -> 85.7021383 | F161: =(DHS_Wet05!F148+DHS_Dry05!F148)/2 -> 64.07782297 | G161: =(DHS_Wet05!G148+DHS_Dry05!G148)/2 -> 11.40268418 | H161: =(DHS_Wet05!H148+DHS_Dry05!H148)/2 -> 89.06358302 | I161: =(DHS_Wet05!I148+DHS_Dry05!I148)/2 -> 51.85621656 | J161: =(DHS_Wet05!J148+DHS_Dry05!J148)/2 -> 11.60407137 | K161: =(DHS_Wet05!K148+DHS_Dry05!K148)/2 -> 0.9633871018 | L161: =(DHS_Wet05!L148+DHS_Dry05!L148)/2 -> 0 | M161: =(DHS_Wet05!M148+DHS_Dry05!M148)/2 -> 96.54776343 | N161: =(DHS_Wet05!N148+DHS_Dry05!N148)/2 -> 92.94691299 | O161: =(DHS_Wet05!O148+DHS_Dry05!O148)/2 -> 89.17537481 | P161: =(DHS_Wet05!P148+DHS_Dry05!P148)/2 -> 76.36885573 | Q161: =(DHS_Wet05!Q148+DHS_Dry05!Q148)/2 -> 30.17454585 | R161: =(DHS_Wet05!R148+DHS_Dry05!R148)/2 -> 77.56488 | S161: =(DHS_Wet05!S148+DHS_Dry05!S148)/2 -> 57.86922448 | T161: =(DHS_Wet05!T148+DHS_Dry05!T148)/2 -> 78.50142784 | U161: =(DHS_Wet05!U148+DHS_Dry05!U148)/2 -> 84.09750235 | V161: =(DHS_Wet05!V148+DHS_Dry05!V148)/2 -> 85.37376984 | W161: =(DHS_Wet05!W148+DHS_Dry05!W148)/2 -> 72.67202865 | X161: =(DHS_Wet05!X148+DHS_Dry05!X148)/2 -> 76.13303763 | Y161: =(DHS_Wet05!Y148+DHS_Dry05!Y148)/2 -> 62.81851846 | Z161: =(DHS_Wet05!Z148+DHS_Dry05!Z148)/2 -> 73.53204905 | AA161: =(DHS_Wet05!AA148+DHS_Dry05!AA148)/2 -> 53.96394009 | AB161: =(DHS_Wet05!AB148+DHS_Dry05!AB148)/2 -> 84.63110443 | AC161: =(DHS_Wet05!AC148+DHS_Dry05!AC148)/2 -> 87.95139114 | AD161: =(DHS_Wet05!AD148+DHS_Dry05!AD148)/2 -> 11.94419218 | AE161: =(DHS_Wet05!AE148+DHS_Dry05!AE148)/2 -> 86.1842013 | AF161: =(DHS_Wet05!AF148+DHS_Dry05!AF148)/2 -> 82.61547211 | AG161: =(DHS_Wet05!AG148+DHS_Dry05!AG148)/2 -> 84.76739899 | AH161: =(DHS_Wet05!AH148+DHS_Dry05!AH148)/2 -> 80.09607929 | AI161: =(DHS_Wet05!AI148+DHS_Dry05!AI148)/2 -> 78.93351809 | AJ161: =(DHS_Wet05!AJ148+DHS_Dry05!AJ148)/2 -> 77.16000079 | BB161: No toilet/field/forest | BC161: 13785.14938 | BD161: 13088.75934 | BE161: 12231.72256 | BF161: 9143.00758 | BG161: 1626.831009 | BH161: 1949.781331 | BI161: 1138.384431 | BJ161: 254.700307 | BK161: 21.067941 | BL161: 0 | BM161: 11660.11464 | BN161: 11210.11499 | BO161: 10771.96889 | BP161: 9225.886573 | BQ161: 3643.450766 | BR161: 2244.218378 | BS161: 3084.280219 | BT161: 7274.55713 | BU161: 2190.56225 | BV161: 3288.133275 | BW161: 2560.632305 | BX161: 2693.218832 | BY161: 4393.038401 | BZ161: 1094.527009 | CA161: 869.691367 | CB161: 952.41127 | CC161: 687.182658 | CD161: 754.865767 | CE161: 1274.533457 | CF161: 4914.293925 | CG161: 1783.775786 | CH161: 3865.771451 | CI161: 2216.923305 | CJ161: 3732.853087
B162: Composting toilet | C162: =(DHS_Wet05!C149+DHS_Dry05!C149)/2 -> 0.170814185 | D162: =(DHS_Wet05!D149+DHS_Dry05!D149)/2 -> 0.2356072938 | E162: =(DHS_Wet05!E149+DHS_Dry05!E149)/2 -> 0.5096938986 | F162: =(DHS_Wet05!F149+DHS_Dry05!F149)/2 -> 0.2140902207 | G162: =(DHS_Wet05!G149+DHS_Dry05!G149)/2 -> 0.1319983148 | H162: =(DHS_Wet05!H149+DHS_Dry05!H149)/2 -> 0.1858597267 | I162: =(DHS_Wet05!I149+DHS_Dry05!I149)/2 -> 0.6021105191 | J162: =(DHS_Wet05!J149+DHS_Dry05!J149)/2 -> 0.201661478 | K162: =(DHS_Wet05!K149+DHS_Dry05!K149)/2 -> 0 | L162: =(DHS_Wet05!L149+DHS_Dry05!L149)/2 -> 0 | M162: =(DHS_Wet05!M149+DHS_Dry05!M149)/2 -> 0.1486344498 | N162: =(DHS_Wet05!N149+DHS_Dry05!N149)/2 -> 0.2625933792 | O162: =(DHS_Wet05!O149+DHS_Dry05!O149)/2 -> 0.4720547447 | P162: =(DHS_Wet05!P149+DHS_Dry05!P149)/2 -> 0.2513299397 | Q162: =(DHS_Wet05!Q149+DHS_Dry05!Q149)/2 -> 0.1769398325 | R162: =(DHS_Wet05!R149+DHS_Dry05!R149)/2 -> 0 | S162: =(DHS_Wet05!S149+DHS_Dry05!S149)/2 -> 0 | T162: =(DHS_Wet05!T149+DHS_Dry05!T149)/2 -> 0 | U162: =(DHS_Wet05!U149+DHS_Dry05!U149)/2 -> 0.4635261561 | V162: =(DHS_Wet05!V149+DHS_Dry05!V149)/2 -> 0.7095048267 | W162: =(DHS_Wet05!W149+DHS_Dry05!W149)/2 -> 2.661299923 | X162: =(DHS_Wet05!X149+DHS_Dry05!X149)/2 -> 0 | Y162: =(DHS_Wet05!Y149+DHS_Dry05!Y149)/2 -> 0 | Z162: =(DHS_Wet05!Z149+DHS_Dry05!Z149)/2 -> 0.2898053953 | AA162: =(DHS_Wet05!AA149+DHS_Dry05!AA149)/2 -> 0 | AB162: =(DHS_Wet05!AB149+DHS_Dry05!AB149)/2 -> 0 | AC162: =(DHS_Wet05!AC149+DHS_Dry05!AC149)/2 -> 1.017451772 | AD162: =(DHS_Wet05!AD149+DHS_Dry05!AD149)/2 -> 0 | AE162: =(DHS_Wet05!AE149+DHS_Dry05!AE149)/2 -> 0 | AF162: =(DHS_Wet05!AF149+DHS_Dry05!AF149)/2 -> 0.3454523762 | AG162: =(DHS_Wet05!AG149+DHS_Dry05!AG149)/2 -> 0.4963998367 | AH162: =(DHS_Wet05!AH149+DHS_Dry05!AH149)/2 -> 0 | AI162: =(DHS_Wet05!AI149+DHS_Dry05!AI149)/2 -> 0.1300793898 | AJ162: =(DHS_Wet05!AJ149+DHS_Dry05!AJ149)/2 -> 0 | BB162: Composting toilet | BC162: 24.372754 | BD162: 33.585579 | BE162: 72.745377 | BF162: 30.547675 | BG162: 18.832316 | BH162: 4.068844 | BI162: 13.217957 | BJ162: 4.426312 | BK162: 0 | BL162: 0 | BM162: 17.950646 | BN162: 31.670788 | BO162: 57.022009 | BP162: 30.362397 | BQ162: 21.364748 | BR162: 0 | BS162: 0 | BT162: 0 | BU162: 12.073877 | BV162: 27.326267 | BW162: 93.772125 | BX162: 0 | BY162: 0 | BZ162: 4.313763 | CA162: 0 | CB162: 0 | CC162: 7.949564 | CD162: 0 | CE162: 0 | CF162: 20.548869 | CG162: 10.445832 | CH162: 0 | CI162: 3.653404 | CJ162: 0
B163: Bucket toilet | C163: =(DHS_Wet05!C150+DHS_Dry05!C150)/2 -> 0 | D163: =(DHS_Wet05!D150+DHS_Dry05!D150)/2 -> 0.1582417656 | E163: =(DHS_Wet05!E150+DHS_Dry05!E150)/2 -> 0.2113718545 | F163: =(DHS_Wet05!F150+DHS_Dry05!F150)/2 -> 0.1459639104 | G163: =(DHS_Wet05!G150+DHS_Dry05!G150)/2 -> 0.1710934611 | H163: =(DHS_Wet05!H150+DHS_Dry05!H150)/2 -> 0.2820827999 | I163: =(DHS_Wet05!I150+DHS_Dry05!I150)/2 -> 0.5500320717 | J163: =(DHS_Wet05!J150+DHS_Dry05!J150)/2 -> 0.2452196561 | K163: =(DHS_Wet05!K150+DHS_Dry05!K150)/2 -> 0 | L163: =(DHS_Wet05!L150+DHS_Dry05!L150)/2 -> 0 | M163: =(DHS_Wet05!M150+DHS_Dry05!M150)/2 -> 0 | N163: =(DHS_Wet05!N150+DHS_Dry05!N150)/2 -> 0.1133002044 | O163: =(DHS_Wet05!O150+DHS_Dry05!O150)/2 -> 0.1766791636 | P163: =(DHS_Wet05!P150+DHS_Dry05!P150)/2 -> 0.1859327943 | Q163: =(DHS_Wet05!Q150+DHS_Dry05!Q150)/2 -> 0.1396381486 | R163: =(DHS_Wet05!R150+DHS_Dry05!R150)/2 -> 0 | S163: =(DHS_Wet05!S150+DHS_Dry05!S150)/2 -> 0 | T163: =(DHS_Wet05!T150+DHS_Dry05!T150)/2 -> 0 | U163: =(DHS_Wet05!U150+DHS_Dry05!U150)/2 -> 0 | V163: =(DHS_Wet05!V150+DHS_Dry05!V150)/2 -> 0 | W163: =(DHS_Wet05!W150+DHS_Dry05!W150)/2 -> 0.7182073835 | X163: =(DHS_Wet05!X150+DHS_Dry05!X150)/2 -> 1.426705227 | Y163: =(DHS_Wet05!Y150+DHS_Dry05!Y150)/2 -> 0.1650556516 | Z163: =(DHS_Wet05!Z150+DHS_Dry05!Z150)/2 -> 0 | AA163: =(DHS_Wet05!AA150+DHS_Dry05!AA150)/2 -> 0.1824356686 | AB163: =(DHS_Wet05!AB150+DHS_Dry05!AB150)/2 -> 0 | AC163: =(DHS_Wet05!AC150+DHS_Dry05!AC150)/2 -> 0 | AD163: =(DHS_Wet05!AD150+DHS_Dry05!AD150)/2 -> 0 | AE163: =(DHS_Wet05!AE150+DHS_Dry05!AE150)/2 -> 0.1352464088 | AF163: =(DHS_Wet05!AF150+DHS_Dry05!AF150)/2 -> 0 | AG163: =(DHS_Wet05!AG150+DHS_Dry05!AG150)/2 -> 0 | AH163: =(DHS_Wet05!AH150+DHS_Dry05!AH150)/2 -> 0 | AI163: =(DHS_Wet05!AI150+DHS_Dry05!AI150)/2 -> 0.2030468904 | AJ163: =(DHS_Wet05!AJ150+DHS_Dry05!AJ150)/2 -> 0 | BB163: Bucket toilet | BC163: 0 | BD163: 22.557202 | BE163: 30.167764 | BF163: 20.827005 | BG163: 24.410055 | BH163: 6.175361 | BI163: 12.074694 | BJ163: 5.38238 | BK163: 0 | BL163: 0 | BM163: 0 | BN163: 13.664879 | BO163: 21.342018 | BP163: 22.461969 | BQ163: 16.860725 | BR163: 0 | BS163: 0 | BT163: 0 | BU163: 0 | BV163: 0 | BW163: 25.306367 | BX163: 50.469934 | BY163: 11.542708 | BZ163: 0 | CA163: 2.940162 | CB163: 0 | CC163: 0 | CD163: 0 | CE163: 2.000089 | CF163: 0 | CG163: 0 | CH163: 0 | CI163: 5.702766 | CJ163: 0
B164: Hanging toilet/latrine | C164: =(DHS_Wet05!C151+DHS_Dry05!C151)/2 -> 0.1595485419 | D164: =(DHS_Wet05!D151+DHS_Dry05!D151)/2 -> 0.5322904937 | E164: =(DHS_Wet05!E151+DHS_Dry05!E151)/2 -> 0.7934655587 | F164: =(DHS_Wet05!F151+DHS_Dry05!F151)/2 -> 1.424832449 | G164: =(DHS_Wet05!G151+DHS_Dry05!G151)/2 -> 1.284018241 | H164: =(DHS_Wet05!H151+DHS_Dry05!H151)/2 -> 2.239810228 | I164: =(DHS_Wet05!I151+DHS_Dry05!I151)/2 -> 3.973817631 | J164: =(DHS_Wet05!J151+DHS_Dry05!J151)/2 -> 2.320282484 | K164: =(DHS_Wet05!K151+DHS_Dry05!K151)/2 -> 0.5487393855 | L164: =(DHS_Wet05!L151+DHS_Dry05!L151)/2 -> 0 | M164: =(DHS_Wet05!M151+DHS_Dry05!M151)/2 -> 0.1036382605 | N164: =(DHS_Wet05!N151+DHS_Dry05!N151)/2 -> 0.3133294527 | O164: =(DHS_Wet05!O151+DHS_Dry05!O151)/2 -> 0.6435784938 | P164: =(DHS_Wet05!P151+DHS_Dry05!P151)/2 -> 0.7222847821 | Q164: =(DHS_Wet05!Q151+DHS_Dry05!Q151)/2 -> 1.522880457 | R164: =(DHS_Wet05!R151+DHS_Dry05!R151)/2 -> 0 | S164: =(DHS_Wet05!S151+DHS_Dry05!S151)/2 -> 0 | T164: =(DHS_Wet05!T151+DHS_Dry05!T151)/2 -> 0 | U164: =(DHS_Wet05!U151+DHS_Dry05!U151)/2 -> 0.7920794838 | V164: =(DHS_Wet05!V151+DHS_Dry05!V151)/2 -> 0 | W164: =(DHS_Wet05!W151+DHS_Dry05!W151)/2 -> 1.269598153 | X164: =(DHS_Wet05!X151+DHS_Dry05!X151)/2 -> 0.1378301948 | Y164: =(DHS_Wet05!Y151+DHS_Dry05!Y151)/2 -> 0.271482247 | Z164: =(DHS_Wet05!Z151+DHS_Dry05!Z151)/2 -> 0.5854118525 | AA164: =(DHS_Wet05!AA151+DHS_Dry05!AA151)/2 -> 11.57798917 | AB164: =(DHS_Wet05!AB151+DHS_Dry05!AB151)/2 -> 0.03557165664 | AC164: =(DHS_Wet05!AC151+DHS_Dry05!AC151)/2 -> 0 | AD164: =(DHS_Wet05!AD151+DHS_Dry05!AD151)/2 -> 0.2936293273 | AE164: =(DHS_Wet05!AE151+DHS_Dry05!AE151)/2 -> 0 | AF164: =(DHS_Wet05!AF151+DHS_Dry05!AF151)/2 -> 2.464349014 | AG164: =(DHS_Wet05!AG151+DHS_Dry05!AG151)/2 -> 2.037532178 | AH164: =(DHS_Wet05!AH151+DHS_Dry05!AH151)/2 -> 0 | AI164: =(DHS_Wet05!AI151+DHS_Dry05!AI151)/2 -> 3.034547637 | AJ164: =(DHS_Wet05!AJ151+DHS_Dry05!AJ151)/2 -> 0.4175262817 | BB164: Hanging toilet/latrine | BC164: 22.765307 | BD164: 75.877466 | BE164: 113.246306 | BF164: 203.303628 | BG164: 183.192015 | BH164: 49.03396 | BI164: 87.236062 | BJ164: 50.928389 | BK164: 12.00017 | BL164: 0 | BM164: 12.516437 | BN164: 37.78995 | BO164: 77.741277 | BP164: 87.257003 | BQ164: 183.881474 | BR164: 0 | BS164: 0 | BT164: 0 | BU164: 20.631997 | BV164: 0 | BW164: 44.734874 | BX164: 4.875766 | BY164: 18.985356 | BZ164: 8.713875 | CA164: 186.592699 | CB164: 0.400312 | CC164: 0 | CD164: 18.557197 | CE164: 0 | CF164: 146.589193 | CG164: 42.87616 | CH164: 0 | CI164: 85.228171 | CJ164: 20.199122
B165: other | C165: =(DHS_Wet05!C152+DHS_Dry05!C152)/2 -> 0.03852569805 | D165: =(DHS_Wet05!D152+DHS_Dry05!D152)/2 -> 0.1165196146 | E165: =(DHS_Wet05!E152+DHS_Dry05!E152)/2 -> 0.3331693925 | F165: =(DHS_Wet05!F152+DHS_Dry05!F152)/2 -> 0.3770730551 | G165: =(DHS_Wet05!G152+DHS_Dry05!G152)/2 -> 0.2142507958 | H165: =(DHS_Wet05!H152+DHS_Dry05!H152)/2 -> 0.476759714 | I165: =(DHS_Wet05!I152+DHS_Dry05!I152)/2 -> 1.24895119 | J165: =(DHS_Wet05!J152+DHS_Dry05!J152)/2 -> 0.3433933985 | K165: =(DHS_Wet05!K152+DHS_Dry05!K152)/2 -> 0.2335636323 | L165: =(DHS_Wet05!L152+DHS_Dry05!L152)/2 -> 0 | M165: =(DHS_Wet05!M152+DHS_Dry05!M152)/2 -> 0.02315586741 | N165: =(DHS_Wet05!N152+DHS_Dry05!N152)/2 -> 0.09535643549 | O165: =(DHS_Wet05!O152+DHS_Dry05!O152)/2 -> 0.2210540494 | P165: =(DHS_Wet05!P152+DHS_Dry05!P152)/2 -> 0.2662193842 | Q165: =(DHS_Wet05!Q152+DHS_Dry05!Q152)/2 -> 0.2515004823 | R165: =(DHS_Wet05!R152+DHS_Dry05!R152)/2 -> 0.7393739229 | S165: =(DHS_Wet05!S152+DHS_Dry05!S152)/2 -> 0 | T165: =(DHS_Wet05!T152+DHS_Dry05!T152)/2 -> 0.1244076369 | U165: =(DHS_Wet05!U152+DHS_Dry05!U152)/2 -> 0.1073616445 | V165: =(DHS_Wet05!V152+DHS_Dry05!V152)/2 -> 0.0577229478 | W165: =(DHS_Wet05!W152+DHS_Dry05!W152)/2 -> 0.8465985296 | X165: =(DHS_Wet05!X152+DHS_Dry05!X152)/2 -> 0.1529403431 | Y165: =(DHS_Wet05!Y152+DHS_Dry05!Y152)/2 -> 0 | Z165: =(DHS_Wet05!Z152+DHS_Dry05!Z152)/2 -> 0 | AA165: =(DHS_Wet05!AA152+DHS_Dry05!AA152)/2 -> 0.254127819 | AB165: =(DHS_Wet05!AB152+DHS_Dry05!AB152)/2 -> 0 | AC165: =(DHS_Wet05!AC152+DHS_Dry05!AC152)/2 -> 0 | AD165: =(DHS_Wet05!AD152+DHS_Dry05!AD152)/2 -> 1.075838934 | AE165: =(DHS_Wet05!AE152+DHS_Dry05!AE152)/2 -> 0 | AF165: =(DHS_Wet05!AF152+DHS_Dry05!AF152)/2 -> 0 | AG165: =(DHS_Wet05!AG152+DHS_Dry05!AG152)/2 -> 0 | AH165: =(DHS_Wet05!AH152+DHS_Dry05!AH152)/2 -> 0.1814786931 | AI165: =(DHS_Wet05!AI152+DHS_Dry05!AI152)/2 -> 0 | AJ165: =(DHS_Wet05!AJ152+DHS_Dry05!AJ152)/2 -> 0 | BB165: other | BC165: 5.497069 | BD165: 16.609752 | BE165: 47.551154 | BF165: 53.803042 | BG165: 30.56735 | BH165: 10.437231 | BI165: 27.417862 | BJ165: 7.537217 | BK165: 5.107713 | BL165: 0 | BM165: 2.796544 | BN165: 11.500722 | BO165: 26.702297 | BP165: 32.161145 | BQ165: 30.367636 | BR165: 21.392627 | BS165: 0 | BT165: 11.528586 | BU165: 2.796544 | BV165: 2.223174 | BW165: 29.830288 | BX165: 5.41029 | BY165: 0 | BZ165: 0 | CA165: 4.095564 | CB165: 0 | CC165: 0 | CD165: 67.992374 | CE165: 0 | CF165: 0 | CG165: 0 | CH165: 8.75892 | CI165: 0 | CJ165: 0
BB166: Total | BC166: 14268.57728 | BD166: 14254.89782 | BE166: 14272.36567 | BF166: 14268.59896 | BG166: 14267.0882 | BH166: 2189.20154 | BI166: 2195.270898 | BJ166: 2194.921927 | BK166: 2186.861435 | BL166: 2192.648587 | BM166: 12077.04272 | BN166: 12060.77172 | BO166: 12079.53307 | BP166: 12080.69243 | BQ166: 12074.5836 | BR166: 2893.343454 | BS166: 5329.741753 | BT166: 9266.783204 | BU166: 2604.788714 | BV166: 3851.45611 | BW166: 3523.545926 | BX166: 3537.516584 | BY166: 6993.221917 | BZ166: 1488.503344 | CA166: 1611.615767 | CB166: 1125.367885 | CC166: 781.320965 | CD166: 6319.939895 | CE166: 1478.848139 | CF166: 5948.394168 | CG166: 2104.318178 | CH166: 4826.417829 | CI166: 2808.595586 | CJ166: 4837.808513
A208: =A1026 -> Cambodia
A209: =A1034 -> 2005
A210: Access to hygiene facilities
A211: by wealth quintile and sub-national region
A212: Notes:
A213: WHO/UNICEF JMP customised wealth index excludes water,
A214: sanitation and hygiene assets.
A215: Survey used for analysis: | B215: =A1025 -> DHS05
A220: Access to handwashing | C220: NATIONAL wealth index quintile | H220: URBAN wealth index quintile | M220: RURAL wealth index quintile | R220: SUB-REGIONS: | BA220: Raw numbers of respondents: | BB220: Access to handwashing | BC220: NATIONAL wealth index quintile | BH220: URBAN wealth index quintile | BM220: RURAL wealth index quintile | BR220: SUB-REGIONS:
A221: Weighted percentage (used in graphs) | C221: Poorest | D221: Poor | E221: Middle | F221: Rich | G221: Richest | H221: Poorest | I221: Poor | J221: Middle | K221: Rich | L221: Richest | M221: Poorest | N221: Poor | O221: Middle | P221: Rich | Q221: Richest | R221: Banteay Mean Chey | S221: Battambang & Krong Pailin | T221: Kampong Cham | U221: Kampong Chhnang | V221: Kampong Speu | W221: Kampong Thom | X221: Kampot & Krong Kep | Y221: Kandal | Z221: Kratie | AA221: Krong Preah Sihanouk & Kaoh Kong | AB221: Mondol Kiri & Rattanak Kiri | AC221: Otdar Mean Chey | AD221: Phnom Penh | AE221: Preah Vihear & Steung Treng | AF221: Prey Veng | AG221: Pursat | AH221: Siem Reap | AI221: Svay Rieng | AJ221: Takeo | BA221: Hygiene data, raw numbers (weighted) | BC221: Poorest | BD221: Poor | BE221: Middle | BF221: Rich | BG221: Richest | BH221: Poorest | BI221: Poor | BJ221: Middle | BK221: Rich | BL221: Richest | BM221: Poorest | BN221: Poor | BO221: Middle | BP221: Rich | BQ221: Richest | BR221: Banteay Mean Chey | BS221: Battambang & Krong Pailin | BT221: Kampong Cham | BU221: Kampong Chhnang | BV221: Kampong Speu | BW221: Kampong Thom | BX221: Kampot & Krong Kep | BY221: Kandal | BZ221: Kratie | CA221: Krong Preah Sihanouk & Kaoh Kong | CB221: Mondol Kiri & Rattanak Kiri | CC221: Otdar Mean Chey | CD221: Phnom Penh | CE221: Preah Vihear & Steung Treng | CF221: Prey Veng | CG221: Pursat | CH221: Siem Reap | CI221: Svay Rieng | CJ221: Takeo
A222: Hygiene ladder | B222: Basic | C222: N/A | D222: N/A | E222: N/A | F222: N/A | G222: N/A | H222: N/A | I222: N/A | J222: N/A | K222: N/A | L222: N/A | M222: N/A | N222: N/A | O222: N/A | P222: N/A | Q222: N/A | R222: N/A | S222: N/A | T222: N/A | U222: N/A | V222: N/A | W222: N/A | X222: N/A | Y222: N/A | Z222: N/A | AA222: N/A | AB222: N/A | AC222: N/A | AD222: N/A | AE222: N/A | AF222: N/A | AG222: N/A | AH222: N/A | AI222: N/A | AJ222: N/A | BA222: Hygiene ladder | BB222: Basic | BC222: N/A | BD222: N/A | BE222: N/A | BF222: N/A | BG222: N/A | BH222: N/A | BI222: N/A | BJ222: N/A | BK222: N/A | BL222: N/A | BM222: N/A | BN222: N/A | BO222: N/A | BP222: N/A | BQ222: N/A | BR222: N/A | BS222: N/A | BT222: N/A | BU222: N/A | BV222: N/A | BW222: N/A | BX222: N/A | BY222: N/A | BZ222: N/A | CA222: N/A | CB222: N/A | CC222: N/A | CD222: N/A | CE222: N/A | CF222: N/A | CG222: N/A | CH222: N/A | CI222: N/A | CJ222: N/A
B223: Limited | C223: N/A | D223: N/A | E223: N/A | F223: N/A | G223: N/A | H223: N/A | I223: N/A | J223: N/A | K223: N/A | L223: N/A | M223: N/A | N223: N/A | O223: N/A | P223: N/A | Q223: N/A | R223: N/A | S223: N/A | T223: N/A | U223: N/A | V223: N/A | W223: N/A | X223: N/A | Y223: N/A | Z223: N/A | AA223: N/A | AB223: N/A | AC223: N/A | AD223: N/A | AE223: N/A | AF223: N/A | AG223: N/A | AH223: N/A | AI223: N/A | AJ223: N/A | BB223: Limited | BC223: N/A | BD223: N/A | BE223: N/A | BF223: N/A | BG223: N/A | BH223: N/A | BI223: N/A | BJ223: N/A | BK223: N/A | BL223: N/A | BM223: N/A | BN223: N/A | BO223: N/A | BP223: N/A | BQ223: N/A | BR223: N/A | BS223: N/A | BT223: N/A | BU223: N/A | BV223: N/A | BW223: N/A | BX223: N/A | BY223: N/A | BZ223: N/A | CA223: N/A | CB223: N/A | CC223: N/A | CD223: N/A | CE223: N/A | CF223: N/A | CG223: N/A | CH223: N/A | CI223: N/A | CJ223: N/A
B224: No facility | C224: N/A | D224: N/A | E224: N/A | F224: N/A | G224: N/A | H224: N/A | I224: N/A | J224: N/A | K224: N/A | L224: N/A | M224: N/A | N224: N/A | O224: N/A | P224: N/A | Q224: N/A | R224: N/A | S224: N/A | T224: N/A | U224: N/A | V224: N/A | W224: N/A | X224: N/A | Y224: N/A | Z224: N/A | AA224: N/A | AB224: N/A | AC224: N/A | AD224: N/A | AE224: N/A | AF224: N/A | AG224: N/A | AH224: N/A | AI224: N/A | AJ224: N/A | BB224: No facility | BC224: N/A | BD224: N/A | BE224: N/A | BF224: N/A | BG224: N/A | BH224: N/A | BI224: N/A | BJ224: N/A | BK224: N/A | BL224: N/A | BM224: N/A | BN224: N/A | BO224: N/A | BP224: N/A | BQ224: N/A | BR224: N/A | BS224: N/A | BT224: N/A | BU224: N/A | BV224: N/A | BW224: N/A | BX224: N/A | BY224: N/A | BZ224: N/A | CA224: N/A | CB224: N/A | CC224: N/A | CD224: N/A | CE224: N/A | CF224: N/A | CG224: N/A | CH224: N/A | CI224: N/A | CJ224: N/A
BA225: Observed handwashing place | BB225: Fixed | BC225: N/A | BD225: N/A | BE225: N/A | BF225: N/A | BG225: N/A | BH225: N/A | BI225: N/A | BJ225: N/A | BK225: N/A | BL225: N/A | BM225: N/A | BN225: N/A | BO225: N/A | BP225: N/A | BQ225: N/A | BR225: N/A | BS225: N/A | BT225: N/A | BU225: N/A | BV225: N/A | BW225: N/A | BX225: N/A | BY225: N/A | BZ225: N/A | CA225: N/A | CB225: N/A | CC225: N/A | CD225: N/A | CE225: N/A | CF225: N/A | CG225: N/A | CH225: N/A | CI225: N/A | CJ225: N/A
BB226: Mobile | BC226: N/A | BD226: N/A | BE226: N/A | BF226: N/A | BG226: N/A | BH226: N/A | BI226: N/A | BJ226: N/A | BK226: N/A | BL226: N/A | BM226: N/A | BN226: N/A | BO226: N/A | BP226: N/A | BQ226: N/A | BR226: N/A | BS226: N/A | BT226: N/A | BU226: N/A | BV226: N/A | BW226: N/A | BX226: N/A | BY226: N/A | BZ226: N/A | CA226: N/A | CB226: N/A | CC226: N/A | CD226: N/A | CE226: N/A | CF226: N/A | CG226: N/A | CH226: N/A | CI226: N/A | CJ226: N/A
BA227: Water / Soap | BB227: Water and soap | BC227: N/A | BD227: N/A | BE227: N/A | BF227: N/A | BG227: N/A | BH227: N/A | BI227: N/A | BJ227: N/A | BK227: N/A | BL227: N/A | BM227: N/A | BN227: N/A | BO227: N/A | BP227: N/A | BQ227: N/A | BR227: N/A | BS227: N/A | BT227: N/A | BU227: N/A | BV227: N/A | BW227: N/A | BX227: N/A | BY227: N/A | BZ227: N/A | CA227: N/A | CB227: N/A | CC227: N/A | CD227: N/A | CE227: N/A | CF227: N/A | CG227: N/A | CH227: N/A | CI227: N/A | CJ227: N/A
BB228: Water only | BC228: N/A | BD228: N/A | BE228: N/A | BF228: N/A | BG228: N/A | BH228: N/A | BI228: N/A | BJ228: N/A | BK228: N/A | BL228: N/A | BM228: N/A | BN228: N/A | BO228: N/A | BP228: N/A | BQ228: N/A | BR228: N/A | BS228: N/A | BT228: N/A | BU228: N/A | BV228: N/A | BW228: N/A | BX228: N/A | BY228: N/A | BZ228: N/A | CA228: N/A | CB228: N/A | CC228: N/A | CD228: N/A | CE228: N/A | CF228: N/A | CG228: N/A | CH228: N/A | CI228: N/A | CJ228: N/A
BB229: Soap only | BC229: N/A | BD229: N/A | BE229: N/A | BF229: N/A | BG229: N/A | BH229: N/A | BI229: N/A | BJ229: N/A | BK229: N/A | BL229: N/A | BM229: N/A | BN229: N/A | BO229: N/A | BP229: N/A | BQ229: N/A | BR229: N/A | BS229: N/A | BT229: N/A | BU229: N/A | BV229: N/A | BW229: N/A | BX229: N/A | BY229: N/A | BZ229: N/A | CA229: N/A | CB229: N/A | CC229: N/A | CD229: N/A | CE229: N/A | CF229: N/A | CG229: N/A | CH229: N/A | CI229: N/A | CJ229: N/A
BB230: Neither | BC230: N/A | BD230: N/A | BE230: N/A | BF230: N/A | BG230: N/A | BH230: N/A | BI230: N/A | BJ230: N/A | BK230: N/A | BL230: N/A | BM230: N/A | BN230: N/A | BO230: N/A | BP230: N/A | BQ230: N/A | BR230: N/A | BS230: N/A | BT230: N/A | BU230: N/A | BV230: N/A | BW230: N/A | BX230: N/A | BY230: N/A | BZ230: N/A | CA230: N/A | CB230: N/A | CC230: N/A | CD230: N/A | CE230: N/A | CF230: N/A | CG230: N/A | CH230: N/A | CI230: N/A | CJ230: N/A
BA259: Raw numbers of respondents: | BB259: Menstrual health and hygiene | BC259: NATIONAL wealth index quintile | BH259: URBAN wealth index quintile | BM259: RURAL wealth index quintile | BR259: SUB-REGIONS:
BA260: MHH data, raw numbers (weighted) | BC260: Poorest | BD260: Poor | BE260: Middle | BF260: Rich | BG260: Richest | BH260: Poorest | BI260: Poor | BJ260: Middle | BK260: Rich | BL260: Richest | BM260: Poorest | BN260: Poor | BO260: Middle | BP260: Rich | BQ260: Richest | BR260: Banteay Mean Chey | BS260: Battambang & Krong Pailin | BT260: Kampong Cham | BU260: Kampong Chhnang | BV260: Kampong Speu | BW260: Kampong Thom | BX260: Kampot & Krong Kep | BY260: Kandal | BZ260: Kratie | CA260: Krong Preah Sihanouk & Kaoh Kong | CB260: Mondol Kiri & Rattanak Kiri | CC260: Otdar Mean Chey | CD260: Phnom Penh | CE260: Preah Vihear & Steung Treng | CF260: Prey Veng | CG260: Pursat | CH260: Siem Reap | CI260: Svay Rieng | CJ260: Takeo
BA261: Private place to wash and change | BB261: Yes | BC261: N/A | BD261: N/A | BE261: N/A | BF261: N/A | BG261: N/A | BH261: N/A | BI261: N/A | BJ261: N/A | BK261: N/A | BL261: N/A | BM261: N/A | BN261: N/A | BO261: N/A | BP261: N/A | BQ261: N/A | BR261: N/A | BS261: N/A | BT261: N/A | BU261: N/A | BV261: N/A | BW261: N/A | BX261: N/A | BY261: N/A | BZ261: N/A | CA261: N/A | CB261: N/A | CC261: N/A | CD261: N/A | CE261: N/A | CF261: N/A | CG261: N/A | CH261: N/A | CI261: N/A | CJ261: N/A
BB262: No | BC262: N/A | BD262: N/A | BE262: N/A | BF262: N/A | BG262: N/A | BH262: N/A | BI262: N/A | BJ262: N/A | BK262: N/A | BL262: N/A | BM262: N/A | BN262: N/A | BO262: N/A | BP262: N/A | BQ262: N/A | BR262: N/A | BS262: N/A | BT262: N/A | BU262: N/A | BV262: N/A | BW262: N/A | BX262: N/A | BY262: N/A | BZ262: N/A | CA262: N/A | CB262: N/A | CC262: N/A | CD262: N/A | CE262: N/A | CF262: N/A | CG262: N/A | CH262: N/A | CI262: N/A | CJ262: N/A
BB263: DK/not sure/missing | BC263: N/A | BD263: N/A | BE263: N/A | BF263: N/A | BG263: N/A | BH263: N/A | BI263: N/A | BJ263: N/A | BK263: N/A | BL263: N/A | BM263: N/A | BN263: N/A | BO263: N/A | BP263: N/A | BQ263: N/A | BR263: N/A | BS263: N/A | BT263: N/A | BU263: N/A | BV263: N/A | BW263: N/A | BX263: N/A | BY263: N/A | BZ263: N/A | CA263: N/A | CB263: N/A | CC263: N/A | CD263: N/A | CE263: N/A | CF263: N/A | CG263: N/A | CH263: N/A | CI263: N/A | CJ263: N/A
BA264: Use of menstrual materials | BB264: Materials reusable | BC264: N/A | BD264: N/A | BE264: N/A | BF264: N/A | BG264: N/A | BH264: N/A | BI264: N/A | BJ264: N/A | BK264: N/A | BL264: N/A | BM264: N/A | BN264: N/A | BO264: N/A | BP264: N/A | BQ264: N/A | BR264: N/A | BS264: N/A | BT264: N/A | BU264: N/A | BV264: N/A | BW264: N/A | BX264: N/A | BY264: N/A | BZ264: N/A | CA264: N/A | CB264: N/A | CC264: N/A | CD264: N/A | CE264: N/A | CF264: N/A | CG264: N/A | CH264: N/A | CI264: N/A | CJ264: N/A
BB265: Materials not reusable | BC265: N/A | BD265: N/A | BE265: N/A | BF265: N/A | BG265: N/A | BH265: N/A | BI265: N/A | BJ265: N/A | BK265: N/A | BL265: N/A | BM265: N/A | BN265: N/A | BO265: N/A | BP265: N/A | BQ265: N/A | BR265: N/A | BS265: N/A | BT265: N/A | BU265: N/A | BV265: N/A | BW265: N/A | BX265: N/A | BY265: N/A | BZ265: N/A | CA265: N/A | CB265: N/A | CC265: N/A | CD265: N/A | CE265: N/A | CF265: N/A | CG265: N/A | CH265: N/A | CI265: N/A | CJ265: N/A
BB266: No materials used | BC266: N/A | BD266: N/A | BE266: N/A | BF266: N/A | BG266: N/A | BH266: N/A | BI266: N/A | BJ266: N/A | BK266: N/A | BL266: N/A | BM266: N/A | BN266: N/A | BO266: N/A | BP266: N/A | BQ266: N/A | BR266: N/A | BS266: N/A | BT266: N/A | BU266: N/A | BV266: N/A | BW266: N/A | BX266: N/A | BY266: N/A | BZ266: N/A | CA266: N/A | CB266: N/A | CC266: N/A | CD266: N/A | CE266: N/A | CF266: N/A | CG266: N/A | CH266: N/A | CI266: N/A | CJ266: N/A
BB267: DK/not sure/missing | BC267: N/A | BD267: N/A | BE267: N/A | BF267: N/A | BG267: N/A | BH267: N/A | BI267: N/A | BJ267: N/A | BK267: N/A | BL267: N/A | BM267: N/A | BN267: N/A | BO267: N/A | BP267: N/A | BQ267: N/A | BR267: N/A | BS267: N/A | BT267: N/A | BU267: N/A | BV267: N/A | BW267: N/A | BX267: N/A | BY267: N/A | BZ267: N/A | CA267: N/A | CB267: N/A | CC267: N/A | CD267: N/A | CE267: N/A | CF267: N/A | CG267: N/A | CH267: N/A | CI267: N/A | CJ267: N/A
BA268: Use of menstrual materials with private place to wash and change | BB268: Materials reusable | BC268: N/A | BD268: N/A | BE268: N/A | BF268: N/A | BG268: N/A | BH268: N/A | BI268: N/A | BJ268: N/A | BK268: N/A | BL268: N/A | BM268: N/A | BN268: N/A | BO268: N/A | BP268: N/A | BQ268: N/A | BR268: N/A | BS268: N/A | BT268: N/A | BU268: N/A | BV268: N/A | BW268: N/A | BX268: N/A | BY268: N/A | BZ268: N/A | CA268: N/A | CB268: N/A | CC268: N/A | CD268: N/A | CE268: N/A | CF268: N/A | CG268: N/A | CH268: N/A | CI268: N/A | CJ268: N/A
BB269: Materials not reusable | BC269: N/A | BD269: N/A | BE269: N/A | BF269: N/A | BG269: N/A | BH269: N/A | BI269: N/A | BJ269: N/A | BK269: N/A | BL269: N/A | BM269: N/A | BN269: N/A | BO269: N/A | BP269: N/A | BQ269: N/A | BR269: N/A | BS269: N/A | BT269: N/A | BU269: N/A | BV269: N/A | BW269: N/A | BX269: N/A | BY269: N/A | BZ269: N/A | CA269: N/A | CB269: N/A | CC269: N/A | CD269: N/A | CE269: N/A | CF269: N/A | CG269: N/A | CH269: N/A | CI269: N/A | CJ269: N/A
BB270: No materials used | BC270: N/A | BD270: N/A | BE270: N/A | BF270: N/A | BG270: N/A | BH270: N/A | BI270: N/A | BJ270: N/A | BK270: N/A | BL270: N/A | BM270: N/A | BN270: N/A | BO270: N/A | BP270: N/A | BQ270: N/A | BR270: N/A | BS270: N/A | BT270: N/A | BU270: N/A | BV270: N/A | BW270: N/A | BX270: N/A | BY270: N/A | BZ270: N/A | CA270: N/A | CB270: N/A | CC270: N/A | CD270: N/A | CE270: N/A | CF270: N/A | CG270: N/A | CH270: N/A | CI270: N/A | CJ270: N/A
BA271: Awareness of menstruation before menarche | BB271: Yes | BC271: N/A | BD271: N/A | BE271: N/A | BF271: N/A | BG271: N/A | BH271: N/A | BI271: N/A | BJ271: N/A | BK271: N/A | BL271: N/A | BM271: N/A | BN271: N/A | BO271: N/A | BP271: N/A | BQ271: N/A | BR271: N/A | BS271: N/A | BT271: N/A | BU271: N/A | BV271: N/A | BW271: N/A | BX271: N/A | BY271: N/A | BZ271: N/A | CA271: N/A | CB271: N/A | CC271: N/A | CD271: N/A | CE271: N/A | CF271: N/A | CG271: N/A | CH271: N/A | CI271: N/A | CJ271: N/A
BB272: No | BC272: N/A | BD272: N/A | BE272: N/A | BF272: N/A | BG272: N/A | BH272: N/A | BI272: N/A | BJ272: N/A | BK272: N/A | BL272: N/A | BM272: N/A | BN272: N/A | BO272: N/A | BP272: N/A | BQ272: N/A | BR272: N/A | BS272: N/A | BT272: N/A | BU272: N/A | BV272: N/A | BW272: N/A | BX272: N/A | BY272: N/A | BZ272: N/A | CA272: N/A | CB272: N/A | CC272: N/A | CD272: N/A | CE272: N/A | CF272: N/A | CG272: N/A | CH272: N/A | CI272: N/A | CJ272: N/A
BB273: DK/not sure/missing | BC273: N/A | BD273: N/A | BE273: N/A | BF273: N/A | BG273: N/A | BH273: N/A | BI273: N/A | BJ273: N/A | BK273: N/A | BL273: N/A | BM273: N/A | BN273: N/A | BO273: N/A | BP273: N/A | BQ273: N/A | BR273: N/A | BS273: N/A | BT273: N/A | BU273: N/A | BV273: N/A | BW273: N/A | BX273: N/A | BY273: N/A | BZ273: N/A | CA273: N/A | CB273: N/A | CC273: N/A | CD273: N/A | CE273: N/A | CF273: N/A | CG273: N/A | CH273: N/A | CI273: N/A | CJ273: N/A
BA274: Participation in (all) activities during menstruation | BB274: Yes | BC274: N/A | BD274: N/A | BE274: N/A | BF274: N/A | BG274: N/A | BH274: N/A | BI274: N/A | BJ274: N/A | BK274: N/A | BL274: N/A | BM274: N/A | BN274: N/A | BO274: N/A | BP274: N/A | BQ274: N/A | BR274: N/A | BS274: N/A | BT274: N/A | BU274: N/A | BV274: N/A | BW274: N/A | BX274: N/A | BY274: N/A | BZ274: N/A | CA274: N/A | CB274: N/A | CC274: N/A | CD274: N/A | CE274: N/A | CF274: N/A | CG274: N/A | CH274: N/A | CI274: N/A | CJ274: N/A
BB275: No | BC275: N/A | BD275: N/A | BE275: N/A | BF275: N/A | BG275: N/A | BH275: N/A | BI275: N/A | BJ275: N/A | BK275: N/A | BL275: N/A | BM275: N/A | BN275: N/A | BO275: N/A | BP275: N/A | BQ275: N/A | BR275: N/A | BS275: N/A | BT275: N/A | BU275: N/A | BV275: N/A | BW275: N/A | BX275: N/A | BY275: N/A | BZ275: N/A | CA275: N/A | CB275: N/A | CC275: N/A | CD275: N/A | CE275: N/A | CF275: N/A | CG275: N/A | CH275: N/A | CI275: N/A | CJ275: N/A
BB276: DK/not sure/missing/no such activity | BC276: N/A | BD276: N/A | BE276: N/A | BF276: N/A | BG276: N/A | BH276: N/A | BI276: N/A | BJ276: N/A | BK276: N/A | BL276: N/A | BM276: N/A | BN276: N/A | BO276: N/A | BP276: N/A | BQ276: N/A | BR276: N/A | BS276: N/A | BT276: N/A | BU276: N/A | BV276: N/A | BW276: N/A | BX276: N/A | BY276: N/A | BZ276: N/A | CA276: N/A | CB276: N/A | CC276: N/A | CD276: N/A | CE276: N/A | CF276: N/A | CG276: N/A | CH276: N/A | CI276: N/A | CJ276: N/A
BA277: Participation in specific activities during menstruation | BB277: Did not go to school (amongst those usually attending school) | BC277: N/A | BD277: N/A | BE277: N/A | BF277: N/A | BG277: N/A | BH277: N/A | BI277: N/A | BJ277: N/A | BK277: N/A | BL277: N/A | BM277: N/A | BN277: N/A | BO277: N/A | BP277: N/A | BQ277: N/A | BR277: N/A | BS277: N/A | BT277: N/A | BU277: N/A | BV277: N/A | BW277: N/A | BX277: N/A | BY277: N/A | BZ277: N/A | CA277: N/A | CB277: N/A | CC277: N/A | CD277: N/A | CE277: N/A | CF277: N/A | CG277: N/A | CH277: N/A | CI277: N/A | CJ277: N/A
BB278: Did not go to work (amongst those who usually work) | BC278: N/A | BD278: N/A | BE278: N/A | BF278: N/A | BG278: N/A | BH278: N/A | BI278: N/A | BJ278: N/A | BK278: N/A | BL278: N/A | BM278: N/A | BN278: N/A | BO278: N/A | BP278: N/A | BQ278: N/A | BR278: N/A | BS278: N/A | BT278: N/A | BU278: N/A | BV278: N/A | BW278: N/A | BX278: N/A | BY278: N/A | BZ278: N/A | CA278: N/A | CB278: N/A | CC278: N/A | CD278: N/A | CE278: N/A | CF278: N/A | CG278: N/A | CH278: N/A | CI278: N/A | CJ278: N/A
BB279: Did not participate in social activities | BC279: N/A | BD279: N/A | BE279: N/A | BF279: N/A | BG279: N/A | BH279: N/A | BI279: N/A | BJ279: N/A | BK279: N/A | BL279: N/A | BM279: N/A | BN279: N/A | BO279: N/A | BP279: N/A | BQ279: N/A | BR279: N/A | BS279: N/A | BT279: N/A | BU279: N/A | BV279: N/A | BW279: N/A | BX279: N/A | BY279: N/A | BZ279: N/A | CA279: N/A | CB279: N/A | CC279: N/A | CD279: N/A | CE279: N/A | CF279: N/A | CG279: N/A | CH279: N/A | CI279: N/A | CJ279: N/A
BB280: Did not cook food | BC280: N/A | BD280: N/A | BE280: N/A | BF280: N/A | BG280: N/A | BH280: N/A | BI280: N/A | BJ280: N/A | BK280: N/A | BL280: N/A | BM280: N/A | BN280: N/A | BO280: N/A | BP280: N/A | BQ280: N/A | BR280: N/A | BS280: N/A | BT280: N/A | BU280: N/A | BV280: N/A | BW280: N/A | BX280: N/A | BY280: N/A | BZ280: N/A | CA280: N/A | CB280: N/A | CC280: N/A | CD280: N/A | CE280: N/A | CF280: N/A | CG280: N/A | CH280: N/A | CI280: N/A | CJ280: N/A
BB281: Did not eat with others | BC281: N/A | BD281: N/A | BE281: N/A | BF281: N/A | BG281: N/A | BH281: N/A | BI281: N/A | BJ281: N/A | BK281: N/A | BL281: N/A | BM281: N/A | BN281: N/A | BO281: N/A | BP281: N/A | BQ281: N/A | BR281: N/A | BS281: N/A | BT281: N/A | BU281: N/A | BV281: N/A | BW281: N/A | BX281: N/A | BY281: N/A | BZ281: N/A | CA281: N/A | CB281: N/A | CC281: N/A | CD281: N/A | CE281: N/A | CF281: N/A | CG281: N/A | CH281: N/A | CI281: N/A | CJ281: N/A
BB282: Did not bathe in regular place | BC282: N/A | BD282: N/A | BE282: N/A | BF282: N/A | BG282: N/A | BH282: N/A | BI282: N/A | BJ282: N/A | BK282: N/A | BL282: N/A | BM282: N/A | BN282: N/A | BO282: N/A | BP282: N/A | BQ282: N/A | BR282: N/A | BS282: N/A | BT282: N/A | BU282: N/A | BV282: N/A | BW282: N/A | BX282: N/A | BY282: N/A | BZ282: N/A | CA282: N/A | CB282: N/A | CC282: N/A | CD282: N/A | CE282: N/A | CF282: N/A | CG282: N/A | CH282: N/A | CI282: N/A | CJ282: N/A
BB283: Did not participate in other activities | BC283: N/A | BD283: N/A | BE283: N/A | BF283: N/A | BG283: N/A | BH283: N/A | BI283: N/A | BJ283: N/A | BK283: N/A | BL283: N/A | BM283: N/A | BN283: N/A | BO283: N/A | BP283: N/A | BQ283: N/A | BR283: N/A | BS283: N/A | BT283: N/A | BU283: N/A | BV283: N/A | BW283: N/A | BX283: N/A | BY283: N/A | BZ283: N/A | CA283: N/A | CB283: N/A | CC283: N/A | CD283: N/A | CE283: N/A | CF283: N/A | CG283: N/A | CH283: N/A | CI283: N/A | CJ283: N/A
BB284: DK/not sure/missing/no such activity | BC284: N/A | BD284: N/A | BE284: N/A | BF284: N/A | BG284: N/A | BH284: N/A | BI284: N/A | BJ284: N/A | BK284: N/A | BL284: N/A | BM284: N/A | BN284: N/A | BO284: N/A | BP284: N/A | BQ284: N/A | BR284: N/A | BS284: N/A | BT284: N/A | BU284: N/A | BV284: N/A | BW284: N/A | BX284: N/A | BY284: N/A | BZ284: N/A | CA284: N/A | CB284: N/A | CC284: N/A | CD284: N/A | CE284: N/A | CF284: N/A | CG284: N/A | CH284: N/A | CI284: N/A | CJ284: N/A
BA339: Raw numbers of respondents: | BB339: Basic water, sanitation and hygiene | BC339: NATIONAL wealth index quintile | BH339: URBAN wealth index quintile | BM339: RURAL wealth index quintile | BR339: SUB-REGIONS:
BA340: WatSan data, raw numbers (weighted) | BC340: Poorest | BD340: Poor | BE340: Middle | BF340: Rich | BG340: Richest | BH340: Poorest | BI340: Poor | BJ340: Middle | BK340: Rich | BL340: Richest | BM340: Poorest | BN340: Poor | BO340: Middle | BP340: Rich | BQ340: Richest | BR340: Banteay Mean Chey | BS340: Battambang & Krong Pailin | BT340: Kampong Cham | BU340: Kampong Chhnang | BV340: Kampong Speu | BW340: Kampong Thom | BX340: Kampot & Krong Kep | BY340: Kandal | BZ340: Kratie | CA340: Krong Preah Sihanouk & Kaoh Kong | CB340: Mondol Kiri & Rattanak Kiri | CC340: Otdar Mean Chey | CD340: Phnom Penh | CE340: Preah Vihear & Steung Treng | CF340: Prey Veng | CG340: Pursat | CH340: Siem Reap | CI340: Svay Rieng | CJ340: Takeo
BA341: Use of Basic Water Sanitation and Hygiene | BB341: Yes | BC341: N/A | BD341: N/A | BE341: N/A | BF341: N/A | BG341: N/A | BH341: N/A | BI341: N/A | BJ341: N/A | BK341: N/A | BL341: N/A | BM341: N/A | BN341: N/A | BO341: N/A | BP341: N/A | BQ341: N/A | BR341: N/A | BS341: N/A | BT341: N/A | BU341: N/A | BV341: N/A | BW341: N/A | BX341: N/A | BY341: N/A | BZ341: N/A | CA341: N/A | CB341: N/A | CC341: N/A | CD341: N/A | CE341: N/A | CF341: N/A | CG341: N/A | CH341: N/A | CI341: N/A | CJ341: N/A
BB342: No | BC342: N/A | BD342: N/A | BE342: N/A | BF342: N/A | BG342: N/A | BH342: N/A | BI342: N/A | BJ342: N/A | BK342: N/A | BL342: N/A | BM342: N/A | BN342: N/A | BO342: N/A | BP342: N/A | BQ342: N/A | BR342: N/A | BS342: N/A | BT342: N/A | BU342: N/A | BV342: N/A | BW342: N/A | BX342: N/A | BY342: N/A | BZ342: N/A | CA342: N/A | CB342: N/A | CC342: N/A | CD342: N/A | CE342: N/A | CF342: N/A | CG342: N/A | CH342: N/A | CI342: N/A | CJ342: N/A
BA343: Use of Basic Water and Sanitation | BB343: Yes | BC343: N/A | BD343: N/A | BE343: N/A | BF343: N/A | BG343: N/A | BH343: N/A | BI343: N/A | BJ343: N/A | BK343: N/A | BL343: N/A | BM343: N/A | BN343: N/A | BO343: N/A | BP343: N/A | BQ343: N/A | BR343: N/A | BS343: N/A | BT343: N/A | BU343: N/A | BV343: N/A | BW343: N/A | BX343: N/A | BY343: N/A | BZ343: N/A | CA343: N/A | CB343: N/A | CC343: N/A | CD343: N/A | CE343: N/A | CF343: N/A | CG343: N/A | CH343: N/A | CI343: N/A | CJ343: N/A
BB344: No | BC344: N/A | BD344: N/A | BE344: N/A | BF344: N/A | BG344: N/A | BH344: N/A | BI344: N/A | BJ344: N/A | BK344: N/A | BL344: N/A | BM344: N/A | BN344: N/A | BO344: N/A | BP344: N/A | BQ344: N/A | BR344: N/A | BS344: N/A | BT344: N/A | BU344: N/A | BV344: N/A | BW344: N/A | BX344: N/A | BY344: N/A | BZ344: N/A | CA344: N/A | CB344: N/A | CC344: N/A | CD344: N/A | CE344: N/A | CF344: N/A | CG344: N/A | CH344: N/A | CI344: N/A | CJ344: N/A
BA345: Use of Basic Water and Hygiene | BB345: Yes | BC345: N/A | BD345: N/A | BE345: N/A | BF345: N/A | BG345: N/A | BH345: N/A | BI345: N/A | BJ345: N/A | BK345: N/A | BL345: N/A | BM345: N/A | BN345: N/A | BO345: N/A | BP345: N/A | BQ345: N/A | BR345: N/A | BS345: N/A | BT345: N/A | BU345: N/A | BV345: N/A | BW345: N/A | BX345: N/A | BY345: N/A | BZ345: N/A | CA345: N/A | CB345: N/A | CC345: N/A | CD345: N/A | CE345: N/A | CF345: N/A | CG345: N/A | CH345: N/A | CI345: N/A | CJ345: N/A
BB346: No | BC346: N/A | BD346: N/A | BE346: N/A | BF346: N/A | BG346: N/A | BH346: N/A | BI346: N/A | BJ346: N/A | BK346: N/A | BL346: N/A | BM346: N/A | BN346: N/A | BO346: N/A | BP346: N/A | BQ346: N/A | BR346: N/A | BS346: N/A | BT346: N/A | BU346: N/A | BV346: N/A | BW346: N/A | BX346: N/A | BY346: N/A | BZ346: N/A | CA346: N/A | CB346: N/A | CC346: N/A | CD346: N/A | CE346: N/A | CF346: N/A | CG346: N/A | CH346: N/A | CI346: N/A | CJ346: N/A
BA347: Use of Basic Sanitation and Hygiene | BB347: Yes | BC347: N/A | BD347: N/A | BE347: N/A | BF347: N/A | BG347: N/A | BH347: N/A | BI347: N/A | BJ347: N/A | BK347: N/A | BL347: N/A | BM347: N/A | BN347: N/A | BO347: N/A | BP347: N/A | BQ347: N/A | BR347: N/A | BS347: N/A | BT347: N/A | BU347: N/A | BV347: N/A | BW347: N/A | BX347: N/A | BY347: N/A | BZ347: N/A | CA347: N/A | CB347: N/A | CC347: N/A | CD347: N/A | CE347: N/A | CF347: N/A | CG347: N/A | CH347: N/A | CI347: N/A | CJ347: N/A
BB348: No | BC348: N/A | BD348: N/A | BE348: N/A | BF348: N/A | BG348: N/A | BH348: N/A | BI348: N/A | BJ348: N/A | BK348: N/A | BL348: N/A | BM348: N/A | BN348: N/A | BO348: N/A | BP348: N/A | BQ348: N/A | BR348: N/A | BS348: N/A | BT348: N/A | BU348: N/A | BV348: N/A | BW348: N/A | BX348: N/A | BY348: N/A | BZ348: N/A | CA348: N/A | CB348: N/A | CC348: N/A | CD348: N/A | CE348: N/A | CF348: N/A | CG348: N/A | CH348: N/A | CI348: N/A | CJ348: N/A
BA349: Use of Basic Water | BB349: Yes | BC349: N/A | BD349: N/A | BE349: N/A | BF349: N/A | BG349: N/A | BH349: N/A | BI349: N/A | BJ349: N/A | BK349: N/A | BL349: N/A | BM349: N/A | BN349: N/A | BO349: N/A | BP349: N/A | BQ349: N/A | BR349: N/A | BS349: N/A | BT349: N/A | BU349: N/A | BV349: N/A | BW349: N/A | BX349: N/A | BY349: N/A | BZ349: N/A | CA349: N/A | CB349: N/A | CC349: N/A | CD349: N/A | CE349: N/A | CF349: N/A | CG349: N/A | CH349: N/A | CI349: N/A | CJ349: N/A
BB350: No | BC350: N/A | BD350: N/A | BE350: N/A | BF350: N/A | BG350: N/A | BH350: N/A | BI350: N/A | BJ350: N/A | BK350: N/A | BL350: N/A | BM350: N/A | BN350: N/A | BO350: N/A | BP350: N/A | BQ350: N/A | BR350: N/A | BS350: N/A | BT350: N/A | BU350: N/A | BV350: N/A | BW350: N/A | BX350: N/A | BY350: N/A | BZ350: N/A | CA350: N/A | CB350: N/A | CC350: N/A | CD350: N/A | CE350: N/A | CF350: N/A | CG350: N/A | CH350: N/A | CI350: N/A | CJ350: N/A
BA351: Use of Basic Sanitation | BB351: Yes | BC351: N/A | BD351: N/A | BE351: N/A | BF351: N/A | BG351: N/A | BH351: N/A | BI351: N/A | BJ351: N/A | BK351: N/A | BL351: N/A | BM351: N/A | BN351: N/A | BO351: N/A | BP351: N/A | BQ351: N/A | BR351: N/A | BS351: N/A | BT351: N/A | BU351: N/A | BV351: N/A | BW351: N/A | BX351: N/A | BY351: N/A | BZ351: N/A | CA351: N/A | CB351: N/A | CC351: N/A | CD351: N/A | CE351: N/A | CF351: N/A | CG351: N/A | CH351: N/A | CI351: N/A | CJ351: N/A
BB352: No | BC352: N/A | BD352: N/A | BE352: N/A | BF352: N/A | BG352: N/A | BH352: N/A | BI352: N/A | BJ352: N/A | BK352: N/A | BL352: N/A | BM352: N/A | BN352: N/A | BO352: N/A | BP352: N/A | BQ352: N/A | BR352: N/A | BS352: N/A | BT352: N/A | BU352: N/A | BV352: N/A | BW352: N/A | BX352: N/A | BY352: N/A | BZ352: N/A | CA352: N/A | CB352: N/A | CC352: N/A | CD352: N/A | CE352: N/A | CF352: N/A | CG352: N/A | CH352: N/A | CI352: N/A | CJ352: N/A
